Workbook

Sheet rooster en stand
C2: Updated: | D2: 2023-11-19T21:23:42 | F2: © 2023/2024 - Wim Gielis - wim.gielis@gmail.com - https://www.wimgielis.com
C3: LUCYVO | Q3: =P5 -> Antverpia 98 | R3: =P6 -> Bariton | S3: =P7 -> Boerenbond | T3: =P8 -> Goka | U3: =P9 -> Hoje | V3: =P10 -> Hombeek | W3: =P11 -> Jolika | X3: =P12 -> Lucyvo | Y3: =P13 -> Paradeske | Z3: =P14 -> Pouma United | AA3: =P15 -> Racing Emblem | AB3: =P16 -> De Vrede | AC3: =P5 -> Antverpia 98 | AD3: =P6 -> Bariton | AE3: =P7 -> Boerenbond | AF3: =P8 -> Goka | AG3: =P9 -> Hoje | AH3: =P10 -> Hombeek | AI3: =P11 -> Jolika | AJ3: =P12 -> Lucyvo | AK3: =P13 -> Paradeske | AL3: =P14 -> Pouma United | AM3: =P15 -> Racing Emblem | AN3: =P16 -> De Vrede | AO3: =P5 -> Antverpia 98 | AP3: =P6 -> Bariton | AQ3: =P7 -> Boerenbond | AR3: =P8 -> Goka | AS3: =P9 -> Hoje | AT3: =P10 -> Hombeek | AU3: =P11 -> Jolika | AV3: =P12 -> Lucyvo | AW3: =P13 -> Paradeske | AX3: =P14 -> Pouma United | AY3: =P15 -> Racing Emblem | AZ3: =P16 -> De Vrede
D4: Ploeg | E4: P | F4: M | H4: W | I4: V | J4: G | K4: + | L4: - | M4: S | N4: VP | BB4: Coëfficiënt | BC4: Ploeg | BD4: Punten | BE4: Matchen | BF4: W | BG4: V | BH4: G | BI4: D+ | BJ4: D- | BK4: DS | BL4: Ff | BM4: Nr | BN4: Coëf sorted | BQ4: 1 | BR4: 2 | BS4: 3 | BT4: 4 | BU4: 5 | BV4: 6 | BW4: 7 | BX4: 8 | BY4: 9 | BZ4: 10 | CA4: 11 | CB4: 12 | CD4: 1 | CE4: 2 | CF4: 3 | CG4: 4 | CH4: 5 | CI4: 6 | CJ4: 7 | CK4: 8 | CL4: 9 | CM4: 10 | CN4: 11 | CO4: 12
C5: 1 | D5: =VLOOKUP(BN5,HulpberekeningenStand,2,FALSE) -> Hoje | E5: =3*H5+J5 -> 46 | F5: =SUM(H5:J5) -> 17 | G5: =REPT(IF(F5-MODE($F$5:$F$16)<0,"-","+"),ABS(F5-MODE($F$5:$F$16))) ->  | H5: =VLOOKUP(BN5,HulpberekeningenStand,5,FALSE) -> 15 | I5: =VLOOKUP(BN5,HulpberekeningenStand,6,FALSE) -> 1 | J5: =VLOOKUP(BN5,HulpberekeningenStand,7,FALSE) -> 1 | K5: =VLOOKUP(BN5,HulpberekeningenStand,8,FALSE) -> 57 | L5: =VLOOKUP(BN5,HulpberekeningenStand,9,FALSE) -> 22 | M5: =K5-L5 -> 35 | N5: =3*F5-E5 -> 5 | P5: Antverpia 98 | R5: 4-1 | S5: 0-3 | T5: 5-2 | X5: 5-5 | Y5: 5-2 | Z5: 2-3 | AA5: 0-4 | AB5: 4-3 | AD5: 9 | AE5: 15 | AF5: 19 | AG5: 23 | AH5: 21 | AI5: 26 | AJ5: 12 | AK5: 5 | AL5: 3 | AM5: 11 | AN5: 7 | AP5: 2023-10-29 | AQ5: 2024-01-14 | AR5: 2024-02-18 | AS5: 2024-03-17 | AT5: 2024-03-03 | AU5: 2024-04-14 | AV5: 2023-11-19 | AW5: 2023-10-01 | AX5: 2023-09-17 | AY5: 2023-11-12 | AZ5: 2023-10-15 | BB5: =RANK( BD5, $BD$5:$BD$16, 0 ) - RANK( BE5, $BE$5:$BE$16, 0 ) / 10^2 + RANK( BF5, $BF$5:$BF$16, 0 ) / 10^4 + RANK( BK5, $BK$5:$BK$16, 0 ) / 10^6 + RANK( BI5, $BI$5:$BI$16, 0 ) / 10^8 + BM5 / 10^10 -> 4.92050403 | BC5: =P5 -> Antverpia 98 | BD5: =3 * BF5 + BH5 -> 25 | BE5: =SUM( BF5:BH5 ) -> 16 | BF5: =CHOOSE(StandBer,COUNTIF(BQ31:CB31,"t")+COUNTIF(BQ31:BQ42,"u")+COUNTIF(CD31:CO31,"t")+COUNTIF(CD31:CD42,"u"),COUNTIF(BQ31:CB31,"t")+COUNTIF(BQ31:BQ42,"u"),COUNTIF(CD31:CO31,"t")+COUNTIF(CD31:CD42,"u"),COUNTIF(BQ31:CB31,"t")+COUNTIF(CD31:CO31,"t"),COUNTIF(BQ31:BQ42,"u")+COUNTIF(CD31:CD42,"u")) -> 8 | BG5: =CHOOSE(StandBer,COUNTIF(BQ31:CB31,"u")+COUNTIF(BQ31:BQ42,"t")+COUNTIF(CD31:CO31,"u")+COUNTIF(CD31:CD42,"t"),COUNTIF(BQ31:CB31,"u")+COUNTIF(BQ31:BQ42,"t"),COUNTIF(CD31:CO31,"u")+COUNTIF(CD31:CD42,"t"),COUNTIF(BQ31:CB31,"u")+COUNTIF(CD31:CO31,"u"),COUNTIF(BQ31:BQ42,"t")+COUNTIF(CD31:CD42,"t"))+BL5 -> 7 | BH5: =CHOOSE(StandBer,COUNTIF(BQ31:CB31,"g")+COUNTIF(BQ31:BQ42,"g")+COUNTIF(CD31:CO31,"g")+COUNTIF(CD31:CD42,"g"),COUNTIF(BQ31:CB31,"g")+COUNTIF(BQ31:BQ42,"g"),COUNTIF(CD31:CO31,"g")+COUNTIF(CD31:CD42,"g"),COUNTIF(BQ31:CB31,"g")+COUNTIF(CD31:CO31,"g"),COUNTIF(BQ31:BQ42,"g")+COUNTIF(CD31:CD42,"g")) -> 1 | BI5: =CHOOSE(StandBer,SUM(BQ5:CB5)+SUM(BQ18:BQ29)+SUM(CD5:CO5)+SUM(CD18:CD29),SUM(BQ5:CB5)+SUM(BQ18:BQ29),SUM(CD5:CO5)+SUM(CD18:CD29),SUM(BQ5:CB5)+SUM(CD5:CO5),SUM(BQ18:BQ29)+SUM(CD18:CD29))-5*BL5 -> 46 | BJ5: =CHOOSE(StandBer,SUM(BQ5:BQ16)+SUM(BQ18:CB18)+SUM(CD5:CD16)+SUM(CD18:CO18),SUM(BQ5:BQ16)+SUM(BQ18:CB18),SUM(CD5:CD16)+SUM(CD18:CO18),SUM(BQ5:BQ16)+SUM(CD5:CD16),SUM(BQ18:CB18)+SUM(CD18:CO18)) -> 40 | BK5: =BI5 - BJ5 -> 6 | BL5: =CHOOSE(StandBer,COUNTIF(BQ31:CB31,"ff")+COUNTIF(BQ31:BQ42,"ff")+COUNTIF(CD31:CO31,"ff")+COUNTIF(CD31:CD42,"ff"),COUNTIF(BQ31:CB31,"ff")+COUNTIF(BQ31:BQ42,"ff"),COUNTIF(CD31:CO31,"ff")+COUNTIF(CD31:CD42,"ff"),COUNTIF(BQ31:CB31,"ff")+COUNTIF(CD31:CO31,"ff"),COUNTIF(BQ31:BQ42,"ff")+COUNTIF(CD31:CD42,"ff")) -> 0 | BM5: 1 | BN5: =SMALL( $BB$5:$BB$16, BM5 ) -> 0.9801010105 | BP5: 1 | BR5: =IF(OR(ISERROR(FIND("-",R5)),AD5>'export html'!$AR$7),"",IF(LEFT(R5,1)<>"*",LEFT(R5,FIND("-",R5)-1)-0,MID(R5,2,FIND("-",R5)-2)-0)) -> 4 | BS5: =IF(OR(ISERROR(FIND("-",S5)),AE5>'export html'!$AR$7),"",IF(LEFT(S5,1)<>"*",LEFT(S5,FIND("-",S5)-1)-0,MID(S5,2,FIND("-",S5)-2)-0)) ->  | BT5: =IF(OR(ISERROR(FIND("-",T5)),AF5>'export html'!$AR$7),"",IF(LEFT(T5,1)<>"*",LEFT(T5,FIND("-",T5)-1)-0,MID(T5,2,FIND("-",T5)-2)-0)) ->  | BU5: =IF(OR(ISERROR(FIND("-",U5)),AG5>'export html'!$AR$7),"",IF(LEFT(U5,1)<>"*",LEFT(U5,FIND("-",U5)-1)-0,MID(U5,2,FIND("-",U5)-2)-0)) ->  | BV5: =IF(OR(ISERROR(FIND("-",V5)),AH5>'export html'!$AR$7),"",IF(LEFT(V5,1)<>"*",LEFT(V5,FIND("-",V5)-1)-0,MID(V5,2,FIND("-",V5)-2)-0)) ->  | BW5: =IF(OR(ISERROR(FIND("-",W5)),AI5>'export html'!$AR$7),"",IF(LEFT(W5,1)<>"*",LEFT(W5,FIND("-",W5)-1)-0,MID(W5,2,FIND("-",W5)-2)-0)) ->  | BX5: =IF(OR(ISERROR(FIND("-",X5)),AJ5>'export html'!$AR$7),"",IF(LEFT(X5,1)<>"*",LEFT(X5,FIND("-",X5)-1)-0,MID(X5,2,FIND("-",X5)-2)-0)) ->  | BY5: =IF(OR(ISERROR(FIND("-",Y5)),AK5>'export html'!$AR$7),"",IF(LEFT(Y5,1)<>"*",LEFT(Y5,FIND("-",Y5)-1)-0,MID(Y5,2,FIND("-",Y5)-2)-0)) -> 5 | BZ5: =IF(OR(ISERROR(FIND("-",Z5)),AL5>'export html'!$AR$7),"",IF(LEFT(Z5,1)<>"*",LEFT(Z5,FIND("-",Z5)-1)-0,MID(Z5,2,FIND("-",Z5)-2)-0)) -> 2 | CA5: =IF(OR(ISERROR(FIND("-",AA5)),AM5>'export html'!$AR$7),"",IF(LEFT(AA5,1)<>"*",LEFT(AA5,FIND("-",AA5)-1)-0,MID(AA5,2,FIND("-",AA5)-2)-0)) -> 0 | CB5: =IF(OR(ISERROR(FIND("-",AB5)),AN5>'export html'!$AR$7),"",IF(LEFT(AB5,1)<>"*",LEFT(AB5,FIND("-",AB5)-1)-0,MID(AB5,2,FIND("-",AB5)-2)-0)) -> 4 | CC5: 1 | CE5: =IF(OR(ISERROR(FIND("-",R5)),AD5<='export html'!$AR$7),"",IF(LEFT(R5,1)<>"*",LEFT(R5,FIND("-",R5)-1)-0,MID(R5,2,FIND("-",R5)-2)-0)) ->  | CF5: =IF(OR(ISERROR(FIND("-",S5)),AE5<='export html'!$AR$7),"",IF(LEFT(S5,1)<>"*",LEFT(S5,FIND("-",S5)-1)-0,MID(S5,2,FIND("-",S5)-2)-0)) -> 0 | CG5: =IF(OR(ISERROR(FIND("-",T5)),AF5<='export html'!$AR$7),"",IF(LEFT(T5,1)<>"*",LEFT(T5,FIND("-",T5)-1)-0,MID(T5,2,FIND("-",T5)-2)-0)) -> 5 | CH5: =IF(OR(ISERROR(FIND("-",U5)),AG5<='export html'!$AR$7),"",IF(LEFT(U5,1)<>"*",LEFT(U5,FIND("-",U5)-1)-0,MID(U5,2,FIND("-",U5)-2)-0)) ->  | CI5: =IF(OR(ISERROR(FIND("-",V5)),AH5<='export html'!$AR$7),"",IF(LEFT(V5,1)<>"*",LEFT(V5,FIND("-",V5)-1)-0,MID(V5,2,FIND("-",V5)-2)-0)) ->  | CJ5: =IF(OR(ISERROR(FIND("-",W5)),AI5<='export html'!$AR$7),"",IF(LEFT(W5,1)<>"*",LEFT(W5,FIND("-",W5)-1)-0,MID(W5,2,FIND("-",W5)-2)-0)) ->  | CK5: =IF(OR(ISERROR(FIND("-",X5)),AJ5<='export html'!$AR$7),"",IF(LEFT(X5,1)<>"*",LEFT(X5,FIND("-",X5)-1)-0,MID(X5,2,FIND("-",X5)-2)-0)) -> 5 | CL5: =IF(OR(ISERROR(FIND("-",Y5)),AK5<='export html'!$AR$7),"",IF(LEFT(Y5,1)<>"*",LEFT(Y5,FIND("-",Y5)-1)-0,MID(Y5,2,FIND("-",Y5)-2)-0)) ->  | CM5: =IF(OR(ISERROR(FIND("-",Z5)),AL5<='export html'!$AR$7),"",IF(LEFT(Z5,1)<>"*",LEFT(Z5,FIND("-",Z5)-1)-0,MID(Z5,2,FIND("-",Z5)-2)-0)) ->  | CN5: =IF(OR(ISERROR(FIND("-",AA5)),AM5<='export html'!$AR$7),"",IF(LEFT(AA5,1)<>"*",LEFT(AA5,FIND("-",AA5)-1)-0,MID(AA5,2,FIND("-",AA5)-2)-0)) ->  | CO5: =IF(OR(ISERROR(FIND("-",AB5)),AN5<='export html'!$AR$7),"",IF(LEFT(AB5,1)<>"*",LEFT(AB5,FIND("-",AB5)-1)-0,MID(AB5,2,FIND("-",AB5)-2)-0)) ->  | CP5: 1
C6: =IF(RANK(E6,$E$5:$E$16,0)>RANK(E5,$E$5:$E$16,0),RANK(E6,$E$5:$E$16,0),"") -> 2 | D6: =VLOOKUP(BN6,HulpberekeningenStand,2,FALSE) -> Pouma United | E6: 36 | F6: 17 | H6: =VLOOKUP(BN6,HulpberekeningenStand,5,FALSE) -> 11 | I6: =VLOOKUP(BN6,HulpberekeningenStand,6,FALSE) -> 3 | J6: =VLOOKUP(BN6,HulpberekeningenStand,7,FALSE) -> 3 | K6: =VLOOKUP(BN6,HulpberekeningenStand,8,FALSE) -> 55 | L6: =VLOOKUP(BN6,HulpberekeningenStand,9,FALSE) -> 37 | M6: 18 | N6: 15 | P6: Bariton | T6: 2-0 | U6: 3-0 | V6: 7-0 | X6: 8-1 | Y6: *5-0 | Z6: 3-2 | AA6: 0-3 | AC6: 22 | AE6: 12 | AF6: 1 | AG6: 3 | AH6: 15 | AI6: 24 | AJ6: 17 | AK6: 7 | AL6: 19 | AM6: 10 | AN6: 21 | AO6: 2024-03-10 | AQ6: 2024-04-07 | AR6: 2023-09-03 | AS6: 2023-09-17 | AT6: 2024-01-14 | AU6: 2024-03-24 | AV6: 2024-01-28 | AW6: 2023-10-15 | AX6: 2024-02-18 | AY6: 2023-11-05 | AZ6: 2024-03-03 | BB6: 7.92060808 | BC6: Bariton | BD6: =3 * BF6 + BH6 -> 20 | BE6: =SUM( BF6:BH6 ) -> 16 | BF6: =CHOOSE(StandBer,COUNTIF(BQ32:CB32,"t")+COUNTIF(BR31:BR42,"u")+COUNTIF(CD32:CO32,"t")+COUNTIF(CE31:CE42,"u"),COUNTIF(BQ32:CB32,"t")+COUNTIF(BR31:BR42,"u"),COUNTIF(CD32:CO32,"t")+COUNTIF(CE31:CE42,"u"),COUNTIF(BQ32:CB32,"t")+COUNTIF(CD32:CO32,"t"),COUNTIF(BR31:BR42,"u")+COUNTIF(CE31:CE42,"u")) -> 6 | BG6: =CHOOSE(StandBer,COUNTIF(BQ32:CB32,"u")+COUNTIF(BR31:BR42,"t")+COUNTIF(CD32:CO32,"u")+COUNTIF(CE31:CE42,"t"),COUNTIF(BQ32:CB32,"u")+COUNTIF(BR31:BR42,"t"),COUNTIF(CD32:CO32,"u")+COUNTIF(CE31:CE42,"t"),COUNTIF(BQ32:CB32,"u")+COUNTIF(CD32:CO32,"u"),COUNTIF(BR31:BR42,"t")+COUNTIF(CE31:CE42,"t"))+BL6 -> 8 | BH6: =CHOOSE(StandBer,COUNTIF(BQ32:CB32,"g")+COUNTIF(BR31:BR42,"g")+COUNTIF(CD32:CO32,"g")+COUNTIF(CE31:CE42,"g"),COUNTIF(BQ32:CB32,"g")+COUNTIF(BR31:BR42,"g"),COUNTIF(CD32:CO32,"g")+COUNTIF(CE31:CE42,"g"),COUNTIF(BQ32:CB32,"g")+COUNTIF(CD32:CO32,"g"),COUNTIF(BR31:BR42,"g")+COUNTIF(CE31:CE42,"g")) -> 2 | BI6: =CHOOSE(StandBer,SUM(BQ6:CB6)+SUM(BR18:BR29)+SUM(CD6:CO6)+SUM(CE18:CE29),SUM(BQ6:CB6)+SUM(BR18:BR29),SUM(CD6:CO6)+SUM(CE18:CE29),SUM(BQ6:CB6)+SUM(CD6:CO6),SUM(BR18:BR29)+SUM(CE18:CE29))-5*BL6 -> 40 | BJ6: =CHOOSE(StandBer,SUM(BR5:BR16)+SUM(BQ19:CB19)+SUM(CE5:CE16)+SUM(CD19:CO19),SUM(BR5:BR16)+SUM(BQ19:CB19),SUM(CE5:CE16)+SUM(CD19:CO19),SUM(BR5:BR16)+SUM(CE5:CE16),SUM(BQ19:CB19)+SUM(CD19:CO19)) -> 40 | BK6: =BI6 - BJ6 -> 0 | BL6: =CHOOSE(StandBer,COUNTIF(BQ32:CB32,"ff")+COUNTIF(BR31:BR42,"ff")+COUNTIF(CD32:CO32,"ff")+COUNTIF(CE31:CE42,"ff"),COUNTIF(BQ32:CB32,"ff")+COUNTIF(BR31:BR42,"ff"),COUNTIF(CD32:CO32,"ff")+COUNTIF(CE31:CE42,"ff"),COUNTIF(BQ32:CB32,"ff")+COUNTIF(CD32:CO32,"ff"),COUNTIF(BR31:BR42,"ff")+COUNTIF(CE31:CE42,"ff")) -> 0 | BM6: 2 | BN6: =SMALL( $BB$5:$BB$16, BM6 ) -> 1.980202021 | BP6: 2 | BQ6: =IF(OR(ISERROR(FIND("-",Q6)),AC6>'export html'!$AR$7),"",IF(LEFT(Q6,1)<>"*",LEFT(Q6,FIND("-",Q6)-1)-0,MID(Q6,2,FIND("-",Q6)-2)-0)) ->  | BS6: =IF(OR(ISERROR(FIND("-",S6)),AE6>'export html'!$AR$7),"",IF(LEFT(S6,1)<>"*",LEFT(S6,FIND("-",S6)-1)-0,MID(S6,2,FIND("-",S6)-2)-0)) ->  | BT6: =IF(OR(ISERROR(FIND("-",T6)),AF6>'export html'!$AR$7),"",IF(LEFT(T6,1)<>"*",LEFT(T6,FIND("-",T6)-1)-0,MID(T6,2,FIND("-",T6)-2)-0)) -> 2 | BU6: =IF(OR(ISERROR(FIND("-",U6)),AG6>'export html'!$AR$7),"",IF(LEFT(U6,1)<>"*",LEFT(U6,FIND("-",U6)-1)-0,MID(U6,2,FIND("-",U6)-2)-0)) -> 3 | BV6: =IF(OR(ISERROR(FIND("-",V6)),AH6>'export html'!$AR$7),"",IF(LEFT(V6,1)<>"*",LEFT(V6,FIND("-",V6)-1)-0,MID(V6,2,FIND("-",V6)-2)-0)) ->  | BW6: =IF(OR(ISERROR(FIND("-",W6)),AI6>'export html'!$AR$7),"",IF(LEFT(W6,1)<>"*",LEFT(W6,FIND("-",W6)-1)-0,MID(W6,2,FIND("-",W6)-2)-0)) ->  | BX6: =IF(OR(ISERROR(FIND("-",X6)),AJ6>'export html'!$AR$7),"",IF(LEFT(X6,1)<>"*",LEFT(X6,FIND("-",X6)-1)-0,MID(X6,2,FIND("-",X6)-2)-0)) ->  | BY6: =IF(OR(ISERROR(FIND("-",Y6)),AK6>'export html'!$AR$7),"",IF(LEFT(Y6,1)<>"*",LEFT(Y6,FIND("-",Y6)-1)-0,MID(Y6,2,FIND("-",Y6)-2)-0)) -> 5 | BZ6: =IF(OR(ISERROR(FIND("-",Z6)),AL6>'export html'!$AR$7),"",IF(LEFT(Z6,1)<>"*",LEFT(Z6,FIND("-",Z6)-1)-0,MID(Z6,2,FIND("-",Z6)-2)-0)) ->  | CA6: =IF(OR(ISERROR(FIND("-",AA6)),AM6>'export html'!$AR$7),"",IF(LEFT(AA6,1)<>"*",LEFT(AA6,FIND("-",AA6)-1)-0,MID(AA6,2,FIND("-",AA6)-2)-0)) -> 0 | CB6: =IF(OR(ISERROR(FIND("-",AB6)),AN6>'export html'!$AR$7),"",IF(LEFT(AB6,1)<>"*",LEFT(AB6,FIND("-",AB6)-1)-0,MID(AB6,2,FIND("-",AB6)-2)-0)) ->  | CC6: 2 | CD6: =IF(OR(ISERROR(FIND("-",Q6)),AC6<='export html'!$AR$7),"",IF(LEFT(Q6,1)<>"*",LEFT(Q6,FIND("-",Q6)-1)-0,MID(Q6,2,FIND("-",Q6)-2)-0)) ->  | CF6: =IF(OR(ISERROR(FIND("-",S6)),AE6<='export html'!$AR$7),"",IF(LEFT(S6,1)<>"*",LEFT(S6,FIND("-",S6)-1)-0,MID(S6,2,FIND("-",S6)-2)-0)) ->  | CG6: =IF(OR(ISERROR(FIND("-",T6)),AF6<='export html'!$AR$7),"",IF(LEFT(T6,1)<>"*",LEFT(T6,FIND("-",T6)-1)-0,MID(T6,2,FIND("-",T6)-2)-0)) ->  | CH6: =IF(OR(ISERROR(FIND("-",U6)),AG6<='export html'!$AR$7),"",IF(LEFT(U6,1)<>"*",LEFT(U6,FIND("-",U6)-1)-0,MID(U6,2,FIND("-",U6)-2)-0)) ->  | CI6: =IF(OR(ISERROR(FIND("-",V6)),AH6<='export html'!$AR$7),"",IF(LEFT(V6,1)<>"*",LEFT(V6,FIND("-",V6)-1)-0,MID(V6,2,FIND("-",V6)-2)-0)) -> 7 | CJ6: =IF(OR(ISERROR(FIND("-",W6)),AI6<='export html'!$AR$7),"",IF(LEFT(W6,1)<>"*",LEFT(W6,FIND("-",W6)-1)-0,MID(W6,2,FIND("-",W6)-2)-0)) ->  | CK6: =IF(OR(ISERROR(FIND("-",X6)),AJ6<='export html'!$AR$7),"",IF(LEFT(X6,1)<>"*",LEFT(X6,FIND("-",X6)-1)-0,MID(X6,2,FIND("-",X6)-2)-0)) -> 8 | CL6: =IF(OR(ISERROR(FIND("-",Y6)),AK6<='export html'!$AR$7),"",IF(LEFT(Y6,1)<>"*",LEFT(Y6,FIND("-",Y6)-1)-0,MID(Y6,2,FIND("-",Y6)-2)-0)) ->  | CM6: =IF(OR(ISERROR(FIND("-",Z6)),AL6<='export html'!$AR$7),"",IF(LEFT(Z6,1)<>"*",LEFT(Z6,FIND("-",Z6)-1)-0,MID(Z6,2,FIND("-",Z6)-2)-0)) -> 3 | CN6: =IF(OR(ISERROR(FIND("-",AA6)),AM6<='export html'!$AR$7),"",IF(LEFT(AA6,1)<>"*",LEFT(AA6,FIND("-",AA6)-1)-0,MID(AA6,2,FIND("-",AA6)-2)-0)) ->  | CO6: =IF(OR(ISERROR(FIND("-",AB6)),AN6<='export html'!$AR$7),"",IF(LEFT(AB6,1)<>"*",LEFT(AB6,FIND("-",AB6)-1)-0,MID(AB6,2,FIND("-",AB6)-2)-0)) ->  | CP6: 2
C7: 3 | D7: =VLOOKUP(BN7,HulpberekeningenStand,2,FALSE) -> Boerenbond | E7: 30 | F7: 17 | H7: =VLOOKUP(BN7,HulpberekeningenStand,5,FALSE) -> 9 | I7: =VLOOKUP(BN7,HulpberekeningenStand,6,FALSE) -> 5 | J7: =VLOOKUP(BN7,HulpberekeningenStand,7,FALSE) -> 3 | K7: =VLOOKUP(BN7,HulpberekeningenStand,8,FALSE) -> 46 | L7: =VLOOKUP(BN7,HulpberekeningenStand,9,FALSE) -> 31 | M7: 15 | N7: 21 | P7: Boerenbond | Q7: 4-1 | R7: 7-0 | T7: 4-0 | U7: 3-4 | V7: 2-2 | W7: 1-0 | X7: 3-0 | Z7: 0-3 | AA7: 2-1 | AB7: 3-2 | AC7: 2 | AD7: 25 | AF7: 17 | AG7: 19 | AH7: 5 | AI7: 14 | AJ7: 7 | AK7: 23 | AL7: 9 | AM7: 13 | AN7: 11 | AO7: 2023-12-10 | AP7: 2023-11-19 | AR7: 2024-01-28 | AS7: 2024-02-18 | AT7: 2023-10-01 | AU7: 2023-12-23 | AV7: 2023-10-15 | AW7: 2024-03-17 | AX7: 2023-10-29 | AY7: 2023-11-26 | AZ7: 2023-11-12 | BB7: 2.98030303 | BC7: Boerenbond | BD7: 30 | BE7: 17 | BF7: =CHOOSE(StandBer,COUNTIF(BQ33:CB33,"t")+COUNTIF(BS31:BS42,"u")+COUNTIF(CD33:CO33,"t")+COUNTIF(CF31:CF42,"u"),COUNTIF(BQ33:CB33,"t")+COUNTIF(BS31:BS42,"u"),COUNTIF(CD33:CO33,"t")+COUNTIF(CF31:CF42,"u"),COUNTIF(BQ33:CB33,"t")+COUNTIF(CD33:CO33,"t"),COUNTIF(BS31:BS42,"u")+COUNTIF(CF31:CF42,"u")) -> 9 | BG7: =CHOOSE(StandBer,COUNTIF(BQ33:CB33,"u")+COUNTIF(BS31:BS42,"t")+COUNTIF(CD33:CO33,"u")+COUNTIF(CF31:CF42,"t"),COUNTIF(BQ33:CB33,"u")+COUNTIF(BS31:BS42,"t"),COUNTIF(CD33:CO33,"u")+COUNTIF(CF31:CF42,"t"),COUNTIF(BQ33:CB33,"u")+COUNTIF(CD33:CO33,"u"),COUNTIF(BS31:BS42,"t")+COUNTIF(CF31:CF42,"t"))+BL7 -> 5 | BH7: =CHOOSE(StandBer,COUNTIF(BQ33:CB33,"g")+COUNTIF(BS31:BS42,"g")+COUNTIF(CD33:CO33,"g")+COUNTIF(CF31:CF42,"g"),COUNTIF(BQ33:CB33,"g")+COUNTIF(BS31:BS42,"g"),COUNTIF(CD33:CO33,"g")+COUNTIF(CF31:CF42,"g"),COUNTIF(BQ33:CB33,"g")+COUNTIF(CD33:CO33,"g"),COUNTIF(BS31:BS42,"g")+COUNTIF(CF31:CF42,"g")) -> 3 | BI7: =CHOOSE(StandBer,SUM(BQ7:CB7)+SUM(BS18:BS29)+SUM(CD7:CO7)+SUM(CF18:CF29),SUM(BQ7:CB7)+SUM(BS18:BS29),SUM(CD7:CO7)+SUM(CF18:CF29),SUM(BQ7:CB7)+SUM(CD7:CO7),SUM(BS18:BS29)+SUM(CF18:CF29))-5*BL7 -> 46 | BJ7: =CHOOSE(StandBer,SUM(BS5:BS16)+SUM(BQ20:CB20)+SUM(CF5:CF16)+SUM(CD20:CO20),SUM(BS5:BS16)+SUM(BQ20:CB20),SUM(CF5:CF16)+SUM(CD20:CO20),SUM(BS5:BS16)+SUM(CF5:CF16),SUM(BQ20:CB20)+SUM(CD20:CO20)) -> 31 | BK7: 15 | BL7: =CHOOSE(StandBer,COUNTIF(BQ33:CB33,"ff")+COUNTIF(BS31:BS42,"ff")+COUNTIF(CD33:CO33,"ff")+COUNTIF(CF31:CF42,"ff"),COUNTIF(BQ33:CB33,"ff")+COUNTIF(BS31:BS42,"ff"),COUNTIF(CD33:CO33,"ff")+COUNTIF(CF31:CF42,"ff"),COUNTIF(BQ33:CB33,"ff")+COUNTIF(CD33:CO33,"ff"),COUNTIF(BS31:BS42,"ff")+COUNTIF(CF31:CF42,"ff")) -> 0 | BM7: 3 | BN7: 2.98030303 | BP7: 3 | BQ7: =IF(OR(ISERROR(FIND("-",Q7)),AC7>'export html'!$AR$7),"",IF(LEFT(Q7,1)<>"*",LEFT(Q7,FIND("-",Q7)-1)-0,MID(Q7,2,FIND("-",Q7)-2)-0)) -> 4 | BR7: =IF(OR(ISERROR(FIND("-",R7)),AD7>'export html'!$AR$7),"",IF(LEFT(R7,1)<>"*",LEFT(R7,FIND("-",R7)-1)-0,MID(R7,2,FIND("-",R7)-2)-0)) ->  | BT7: =IF(OR(ISERROR(FIND("-",T7)),AF7>'export html'!$AR$7),"",IF(LEFT(T7,1)<>"*",LEFT(T7,FIND("-",T7)-1)-0,MID(T7,2,FIND("-",T7)-2)-0)) ->  | BU7: =IF(OR(ISERROR(FIND("-",U7)),AG7>'export html'!$AR$7),"",IF(LEFT(U7,1)<>"*",LEFT(U7,FIND("-",U7)-1)-0,MID(U7,2,FIND("-",U7)-2)-0)) ->  | BV7: =IF(OR(ISERROR(FIND("-",V7)),AH7>'export html'!$AR$7),"",IF(LEFT(V7,1)<>"*",LEFT(V7,FIND("-",V7)-1)-0,MID(V7,2,FIND("-",V7)-2)-0)) -> 2 | BW7: =IF(OR(ISERROR(FIND("-",W7)),AI7>'export html'!$AR$7),"",IF(LEFT(W7,1)<>"*",LEFT(W7,FIND("-",W7)-1)-0,MID(W7,2,FIND("-",W7)-2)-0)) ->  | BX7: =IF(OR(ISERROR(FIND("-",X7)),AJ7>'export html'!$AR$7),"",IF(LEFT(X7,1)<>"*",LEFT(X7,FIND("-",X7)-1)-0,MID(X7,2,FIND("-",X7)-2)-0)) -> 3 | BY7: =IF(OR(ISERROR(FIND("-",Y7)),AK7>'export html'!$AR$7),"",IF(LEFT(Y7,1)<>"*",LEFT(Y7,FIND("-",Y7)-1)-0,MID(Y7,2,FIND("-",Y7)-2)-0)) ->  | BZ7: =IF(OR(ISERROR(FIND("-",Z7)),AL7>'export html'!$AR$7),"",IF(LEFT(Z7,1)<>"*",LEFT(Z7,FIND("-",Z7)-1)-0,MID(Z7,2,FIND("-",Z7)-2)-0)) -> 0 | CA7: =IF(OR(ISERROR(FIND("-",AA7)),AM7>'export html'!$AR$7),"",IF(LEFT(AA7,1)<>"*",LEFT(AA7,FIND("-",AA7)-1)-0,MID(AA7,2,FIND("-",AA7)-2)-0)) ->  | CB7: =IF(OR(ISERROR(FIND("-",AB7)),AN7>'export html'!$AR$7),"",IF(LEFT(AB7,1)<>"*",LEFT(AB7,FIND("-",AB7)-1)-0,MID(AB7,2,FIND("-",AB7)-2)-0)) -> 3 | CC7: 3 | CD7: =IF(OR(ISERROR(FIND("-",Q7)),AC7<='export html'!$AR$7),"",IF(LEFT(Q7,1)<>"*",LEFT(Q7,FIND("-",Q7)-1)-0,MID(Q7,2,FIND("-",Q7)-2)-0)) ->  | CE7: =IF(OR(ISERROR(FIND("-",R7)),AD7<='export html'!$AR$7),"",IF(LEFT(R7,1)<>"*",LEFT(R7,FIND("-",R7)-1)-0,MID(R7,2,FIND("-",R7)-2)-0)) -> 7 | CG7: =IF(OR(ISERROR(FIND("-",T7)),AF7<='export html'!$AR$7),"",IF(LEFT(T7,1)<>"*",LEFT(T7,FIND("-",T7)-1)-0,MID(T7,2,FIND("-",T7)-2)-0)) -> 4 | CH7: =IF(OR(ISERROR(FIND("-",U7)),AG7<='export html'!$AR$7),"",IF(LEFT(U7,1)<>"*",LEFT(U7,FIND("-",U7)-1)-0,MID(U7,2,FIND("-",U7)-2)-0)) -> 3 | CI7: =IF(OR(ISERROR(FIND("-",V7)),AH7<='export html'!$AR$7),"",IF(LEFT(V7,1)<>"*",LEFT(V7,FIND("-",V7)-1)-0,MID(V7,2,FIND("-",V7)-2)-0)) ->  | CJ7: =IF(OR(ISERROR(FIND("-",W7)),AI7<='export html'!$AR$7),"",IF(LEFT(W7,1)<>"*",LEFT(W7,FIND("-",W7)-1)-0,MID(W7,2,FIND("-",W7)-2)-0)) -> 1 | CK7: =IF(OR(ISERROR(FIND("-",X7)),AJ7<='export html'!$AR$7),"",IF(LEFT(X7,1)<>"*",LEFT(X7,FIND("-",X7)-1)-0,MID(X7,2,FIND("-",X7)-2)-0)) ->  | CL7: =IF(OR(ISERROR(FIND("-",Y7)),AK7<='export html'!$AR$7),"",IF(LEFT(Y7,1)<>"*",LEFT(Y7,FIND("-",Y7)-1)-0,MID(Y7,2,FIND("-",Y7)-2)-0)) ->  | CM7: =IF(OR(ISERROR(FIND("-",Z7)),AL7<='export html'!$AR$7),"",IF(LEFT(Z7,1)<>"*",LEFT(Z7,FIND("-",Z7)-1)-0,MID(Z7,2,FIND("-",Z7)-2)-0)) ->  | CN7: =IF(OR(ISERROR(FIND("-",AA7)),AM7<='export html'!$AR$7),"",IF(LEFT(AA7,1)<>"*",LEFT(AA7,FIND("-",AA7)-1)-0,MID(AA7,2,FIND("-",AA7)-2)-0)) -> 2 | CO7: =IF(OR(ISERROR(FIND("-",AB7)),AN7<='export html'!$AR$7),"",IF(LEFT(AB7,1)<>"*",LEFT(AB7,FIND("-",AB7)-1)-0,MID(AB7,2,FIND("-",AB7)-2)-0)) ->  | CP7: 3
C8: 4 | D8: =VLOOKUP(BN8,HulpberekeningenStand,2,FALSE) -> Hombeek | E8: =3*H8+J8 -> 28 | F8: =SUM(H8:J8) -> 17 | H8: =VLOOKUP(BN8,HulpberekeningenStand,5,FALSE) -> 9 | I8: =VLOOKUP(BN8,HulpberekeningenStand,6,FALSE) -> 7 | J8: =VLOOKUP(BN8,HulpberekeningenStand,7,FALSE) -> 1 | K8: =VLOOKUP(BN8,HulpberekeningenStand,8,FALSE) -> 44 | L8: =VLOOKUP(BN8,HulpberekeningenStand,9,FALSE) -> 42 | M8: =K8-L8 -> 2 | N8: =3*F8-E8 -> 23 | P8: Goka | Q8: 0-1 | R8: 2-2 | S8: 2-2 | V8: 4-0 | W8: 3-1 | X8: 4-2 | Z8: 2-5 | AA8: 6-1 | AB8: 3-2 | AC8: 6 | AD8: 14 | AE8: 4 | AG8: 21 | AH8: 7 | AI8: 16 | AJ8: 9 | AK8: 25 | AL8: 11 | AM8: 2 | AN8: 13 | AO8: 2023-10-08 | AP8: 2023-12-03 | AQ8: 2023-09-24 | AS8: 2024-03-03 | AT8: 2023-10-15 | AU8: 2024-02-11 | AV8: 2023-10-29 | AW8: 2024-04-07 | AX8: 2023-11-12 | AY8: 2023-09-10 | AZ8: 2023-11-26 | BB8: 6.98060609 | BC8: Goka | BD8: 21 | BE8: 17 | BF8: =CHOOSE(StandBer,COUNTIF(BQ34:CB34,"t")+COUNTIF(BT31:BT42,"u")+COUNTIF(CD34:CO34,"t")+COUNTIF(CG31:CG42,"u"),COUNTIF(BQ34:CB34,"t")+COUNTIF(BT31:BT42,"u"),COUNTIF(CD34:CO34,"t")+COUNTIF(CG31:CG42,"u"),COUNTIF(BQ34:CB34,"t")+COUNTIF(CD34:CO34,"t"),COUNTIF(BT31:BT42,"u")+COUNTIF(CG31:CG42,"u")) -> 6 | BG8: =CHOOSE(StandBer,COUNTIF(BQ34:CB34,"u")+COUNTIF(BT31:BT42,"t")+COUNTIF(CD34:CO34,"u")+COUNTIF(CG31:CG42,"t"),COUNTIF(BQ34:CB34,"u")+COUNTIF(BT31:BT42,"t"),COUNTIF(CD34:CO34,"u")+COUNTIF(CG31:CG42,"t"),COUNTIF(BQ34:CB34,"u")+COUNTIF(CD34:CO34,"u"),COUNTIF(BT31:BT42,"t")+COUNTIF(CG31:CG42,"t"))+BL8 -> 8 | BH8: =CHOOSE(StandBer,COUNTIF(BQ34:CB34,"g")+COUNTIF(BT31:BT42,"g")+COUNTIF(CD34:CO34,"g")+COUNTIF(CG31:CG42,"g"),COUNTIF(BQ34:CB34,"g")+COUNTIF(BT31:BT42,"g"),COUNTIF(CD34:CO34,"g")+COUNTIF(CG31:CG42,"g"),COUNTIF(BQ34:CB34,"g")+COUNTIF(CD34:CO34,"g"),COUNTIF(BT31:BT42,"g")+COUNTIF(CG31:CG42,"g")) -> 3 | BI8: =CHOOSE(StandBer,SUM(BQ8:CB8)+SUM(BT18:BT29)+SUM(CD8:CO8)+SUM(CG18:CG29),SUM(BQ8:CB8)+SUM(BT18:BT29),SUM(CD8:CO8)+SUM(CG18:CG29),SUM(BQ8:CB8)+SUM(CD8:CO8),SUM(BT18:BT29)+SUM(CG18:CG29))-5*BL8 -> 37 | BJ8: =CHOOSE(StandBer,SUM(BT5:BT16)+SUM(BQ21:CB21)+SUM(CG5:CG16)+SUM(CD21:CO21),SUM(BT5:BT16)+SUM(BQ21:CB21),SUM(CG5:CG16)+SUM(CD21:CO21),SUM(BT5:BT16)+SUM(CG5:CG16),SUM(BQ21:CB21)+SUM(CD21:CO21)) -> 36 | BK8: 1 | BL8: =CHOOSE(StandBer,COUNTIF(BQ34:CB34,"ff")+COUNTIF(BT31:BT42,"ff")+COUNTIF(CD34:CO34,"ff")+COUNTIF(CG31:CG42,"ff"),COUNTIF(BQ34:CB34,"ff")+COUNTIF(BT31:BT42,"ff"),COUNTIF(CD34:CO34,"ff")+COUNTIF(CG31:CG42,"ff"),COUNTIF(BQ34:CB34,"ff")+COUNTIF(CD34:CO34,"ff"),COUNTIF(BT31:BT42,"ff")+COUNTIF(CG31:CG42,"ff")) -> 0 | BM8: 4 | BN8: 3.980305061 | BP8: 4 | BQ8: =IF(OR(ISERROR(FIND("-",Q8)),AC8>'export html'!$AR$7),"",IF(LEFT(Q8,1)<>"*",LEFT(Q8,FIND("-",Q8)-1)-0,MID(Q8,2,FIND("-",Q8)-2)-0)) -> 0 | BR8: =IF(OR(ISERROR(FIND("-",R8)),AD8>'export html'!$AR$7),"",IF(LEFT(R8,1)<>"*",LEFT(R8,FIND("-",R8)-1)-0,MID(R8,2,FIND("-",R8)-2)-0)) ->  | BS8: =IF(OR(ISERROR(FIND("-",S8)),AE8>'export html'!$AR$7),"",IF(LEFT(S8,1)<>"*",LEFT(S8,FIND("-",S8)-1)-0,MID(S8,2,FIND("-",S8)-2)-0)) -> 2 | BU8: =IF(OR(ISERROR(FIND("-",U8)),AG8>'export html'!$AR$7),"",IF(LEFT(U8,1)<>"*",LEFT(U8,FIND("-",U8)-1)-0,MID(U8,2,FIND("-",U8)-2)-0)) ->  | BV8: =IF(OR(ISERROR(FIND("-",V8)),AH8>'export html'!$AR$7),"",IF(LEFT(V8,1)<>"*",LEFT(V8,FIND("-",V8)-1)-0,MID(V8,2,FIND("-",V8)-2)-0)) -> 4 | BW8: =IF(OR(ISERROR(FIND("-",W8)),AI8>'export html'!$AR$7),"",IF(LEFT(W8,1)<>"*",LEFT(W8,FIND("-",W8)-1)-0,MID(W8,2,FIND("-",W8)-2)-0)) ->  | BX8: =IF(OR(ISERROR(FIND("-",X8)),AJ8>'export html'!$AR$7),"",IF(LEFT(X8,1)<>"*",LEFT(X8,FIND("-",X8)-1)-0,MID(X8,2,FIND("-",X8)-2)-0)) -> 4 | BY8: =IF(OR(ISERROR(FIND("-",Y8)),AK8>'export html'!$AR$7),"",IF(LEFT(Y8,1)<>"*",LEFT(Y8,FIND("-",Y8)-1)-0,MID(Y8,2,FIND("-",Y8)-2)-0)) ->  | BZ8: =IF(OR(ISERROR(FIND("-",Z8)),AL8>'export html'!$AR$7),"",IF(LEFT(Z8,1)<>"*",LEFT(Z8,FIND("-",Z8)-1)-0,MID(Z8,2,FIND("-",Z8)-2)-0)) -> 2 | CA8: =IF(OR(ISERROR(FIND("-",AA8)),AM8>'export html'!$AR$7),"",IF(LEFT(AA8,1)<>"*",LEFT(AA8,FIND("-",AA8)-1)-0,MID(AA8,2,FIND("-",AA8)-2)-0)) -> 6 | CB8: =IF(OR(ISERROR(FIND("-",AB8)),AN8>'export html'!$AR$7),"",IF(LEFT(AB8,1)<>"*",LEFT(AB8,FIND("-",AB8)-1)-0,MID(AB8,2,FIND("-",AB8)-2)-0)) ->  | CC8: 4 | CD8: =IF(OR(ISERROR(FIND("-",Q8)),AC8<='export html'!$AR$7),"",IF(LEFT(Q8,1)<>"*",LEFT(Q8,FIND("-",Q8)-1)-0,MID(Q8,2,FIND("-",Q8)-2)-0)) ->  | CE8: =IF(OR(ISERROR(FIND("-",R8)),AD8<='export html'!$AR$7),"",IF(LEFT(R8,1)<>"*",LEFT(R8,FIND("-",R8)-1)-0,MID(R8,2,FIND("-",R8)-2)-0)) -> 2 | CF8: =IF(OR(ISERROR(FIND("-",S8)),AE8<='export html'!$AR$7),"",IF(LEFT(S8,1)<>"*",LEFT(S8,FIND("-",S8)-1)-0,MID(S8,2,FIND("-",S8)-2)-0)) ->  | CH8: =IF(OR(ISERROR(FIND("-",U8)),AG8<='export html'!$AR$7),"",IF(LEFT(U8,1)<>"*",LEFT(U8,FIND("-",U8)-1)-0,MID(U8,2,FIND("-",U8)-2)-0)) ->  | CI8: =IF(OR(ISERROR(FIND("-",V8)),AH8<='export html'!$AR$7),"",IF(LEFT(V8,1)<>"*",LEFT(V8,FIND("-",V8)-1)-0,MID(V8,2,FIND("-",V8)-2)-0)) ->  | CJ8: =IF(OR(ISERROR(FIND("-",W8)),AI8<='export html'!$AR$7),"",IF(LEFT(W8,1)<>"*",LEFT(W8,FIND("-",W8)-1)-0,MID(W8,2,FIND("-",W8)-2)-0)) -> 3 | CK8: =IF(OR(ISERROR(FIND("-",X8)),AJ8<='export html'!$AR$7),"",IF(LEFT(X8,1)<>"*",LEFT(X8,FIND("-",X8)-1)-0,MID(X8,2,FIND("-",X8)-2)-0)) ->  | CL8: =IF(OR(ISERROR(FIND("-",Y8)),AK8<='export html'!$AR$7),"",IF(LEFT(Y8,1)<>"*",LEFT(Y8,FIND("-",Y8)-1)-0,MID(Y8,2,FIND("-",Y8)-2)-0)) ->  | CM8: =IF(OR(ISERROR(FIND("-",Z8)),AL8<='export html'!$AR$7),"",IF(LEFT(Z8,1)<>"*",LEFT(Z8,FIND("-",Z8)-1)-0,MID(Z8,2,FIND("-",Z8)-2)-0)) ->  | CN8: =IF(OR(ISERROR(FIND("-",AA8)),AM8<='export html'!$AR$7),"",IF(LEFT(AA8,1)<>"*",LEFT(AA8,FIND("-",AA8)-1)-0,MID(AA8,2,FIND("-",AA8)-2)-0)) ->  | CO8: =IF(OR(ISERROR(FIND("-",AB8)),AN8<='export html'!$AR$7),"",IF(LEFT(AB8,1)<>"*",LEFT(AB8,FIND("-",AB8)-1)-0,MID(AB8,2,FIND("-",AB8)-2)-0)) -> 3 | CP8: 4
C9: 5 | D9: Antverpia 98 | E9: 25 | F9: 16 | G9: - | H9: 8 | I9: 7 | J9: 1 | K9: 46 | L9: 40 | M9: 6 | N9: 23 | P9: Hoje | Q9: 3-0 | R9: 4-1 | S9: 4-1 | T9: 1-0 | W9: 6-0 | X9: 3-2 | Y9: 3-1 | Z9: 7-3 | AA9: 3-1 | AB9: 4-4 | AC9: 10 | AD9: 16 | AE9: 6 | AF9: 8 | AH9: 22 | AI9: 18 | AJ9: 11 | AK9: 14 | AL9: 13 | AM9: 4 | AN9: 2 | AO9: 2023-11-05 | AP9: 2024-02-11 | AQ9: 2023-10-08 | AR9: 2023-10-22 | AT9: 2024-03-10 | AU9: 2024-02-04 | AV9: 2023-11-12 | AW9: 2023-12-03 | AX9: 2023-11-26 | AY9: 2023-09-24 | AZ9: 2023-09-10 | BB9: 0.9801010105 | BC9: Hoje | BD9: 46 | BE9: 17 | BF9: =CHOOSE(StandBer,COUNTIF(BQ35:CB35,"t")+COUNTIF(BU31:BU42,"u")+COUNTIF(CD35:CO35,"t")+COUNTIF(CH31:CH42,"u"),COUNTIF(BQ35:CB35,"t")+COUNTIF(BU31:BU42,"u"),COUNTIF(CD35:CO35,"t")+COUNTIF(CH31:CH42,"u"),COUNTIF(BQ35:CB35,"t")+COUNTIF(CD35:CO35,"t"),COUNTIF(BU31:BU42,"u")+COUNTIF(CH31:CH42,"u")) -> 15 | BG9: =CHOOSE(StandBer,COUNTIF(BQ35:CB35,"u")+COUNTIF(BU31:BU42,"t")+COUNTIF(CD35:CO35,"u")+COUNTIF(CH31:CH42,"t"),COUNTIF(BQ35:CB35,"u")+COUNTIF(BU31:BU42,"t"),COUNTIF(CD35:CO35,"u")+COUNTIF(CH31:CH42,"t"),COUNTIF(BQ35:CB35,"u")+COUNTIF(CD35:CO35,"u"),COUNTIF(BU31:BU42,"t")+COUNTIF(CH31:CH42,"t"))+BL9 -> 1 | BH9: =CHOOSE(StandBer,COUNTIF(BQ35:CB35,"g")+COUNTIF(BU31:BU42,"g")+COUNTIF(CD35:CO35,"g")+COUNTIF(CH31:CH42,"g"),COUNTIF(BQ35:CB35,"g")+COUNTIF(BU31:BU42,"g"),COUNTIF(CD35:CO35,"g")+COUNTIF(CH31:CH42,"g"),COUNTIF(BQ35:CB35,"g")+COUNTIF(CD35:CO35,"g"),COUNTIF(BU31:BU42,"g")+COUNTIF(CH31:CH42,"g")) -> 1 | BI9: =CHOOSE(StandBer,SUM(BQ9:CB9)+SUM(BU18:BU29)+SUM(CD9:CO9)+SUM(CH18:CH29),SUM(BQ9:CB9)+SUM(BU18:BU29),SUM(CD9:CO9)+SUM(CH18:CH29),SUM(BQ9:CB9)+SUM(CD9:CO9),SUM(BU18:BU29)+SUM(CH18:CH29))-5*BL9 -> 57 | BJ9: =CHOOSE(StandBer,SUM(BU5:BU16)+SUM(BQ22:CB22)+SUM(CH5:CH16)+SUM(CD22:CO22),SUM(BU5:BU16)+SUM(BQ22:CB22),SUM(CH5:CH16)+SUM(CD22:CO22),SUM(BU5:BU16)+SUM(CH5:CH16),SUM(BQ22:CB22)+SUM(CD22:CO22)) -> 22 | BK9: 35 | BL9: =CHOOSE(StandBer,COUNTIF(BQ35:CB35,"ff")+COUNTIF(BU31:BU42,"ff")+COUNTIF(CD35:CO35,"ff")+COUNTIF(CH31:CH42,"ff"),COUNTIF(BQ35:CB35,"ff")+COUNTIF(BU31:BU42,"ff"),COUNTIF(CD35:CO35,"ff")+COUNTIF(CH31:CH42,"ff"),COUNTIF(BQ35:CB35,"ff")+COUNTIF(CD35:CO35,"ff"),COUNTIF(BU31:BU42,"ff")+COUNTIF(CH31:CH42,"ff")) -> 0 | BM9: 5 | BN9: 4.92050403 | BP9: 5 | BQ9: =IF(OR(ISERROR(FIND("-",Q9)),AC9>'export html'!$AR$7),"",IF(LEFT(Q9,1)<>"*",LEFT(Q9,FIND("-",Q9)-1)-0,MID(Q9,2,FIND("-",Q9)-2)-0)) -> 3 | BR9: =IF(OR(ISERROR(FIND("-",R9)),AD9>'export html'!$AR$7),"",IF(LEFT(R9,1)<>"*",LEFT(R9,FIND("-",R9)-1)-0,MID(R9,2,FIND("-",R9)-2)-0)) ->  | BS9: =IF(OR(ISERROR(FIND("-",S9)),AE9>'export html'!$AR$7),"",IF(LEFT(S9,1)<>"*",LEFT(S9,FIND("-",S9)-1)-0,MID(S9,2,FIND("-",S9)-2)-0)) -> 4 | BT9: =IF(OR(ISERROR(FIND("-",T9)),AF9>'export html'!$AR$7),"",IF(LEFT(T9,1)<>"*",LEFT(T9,FIND("-",T9)-1)-0,MID(T9,2,FIND("-",T9)-2)-0)) -> 1 | BV9: =IF(OR(ISERROR(FIND("-",V9)),AH9>'export html'!$AR$7),"",IF(LEFT(V9,1)<>"*",LEFT(V9,FIND("-",V9)-1)-0,MID(V9,2,FIND("-",V9)-2)-0)) ->  | BW9: =IF(OR(ISERROR(FIND("-",W9)),AI9>'export html'!$AR$7),"",IF(LEFT(W9,1)<>"*",LEFT(W9,FIND("-",W9)-1)-0,MID(W9,2,FIND("-",W9)-2)-0)) ->  | BX9: =IF(OR(ISERROR(FIND("-",X9)),AJ9>'export html'!$AR$7),"",IF(LEFT(X9,1)<>"*",LEFT(X9,FIND("-",X9)-1)-0,MID(X9,2,FIND("-",X9)-2)-0)) -> 3 | BY9: =IF(OR(ISERROR(FIND("-",Y9)),AK9>'export html'!$AR$7),"",IF(LEFT(Y9,1)<>"*",LEFT(Y9,FIND("-",Y9)-1)-0,MID(Y9,2,FIND("-",Y9)-2)-0)) ->  | BZ9: =IF(OR(ISERROR(FIND("-",Z9)),AL9>'export html'!$AR$7),"",IF(LEFT(Z9,1)<>"*",LEFT(Z9,FIND("-",Z9)-1)-0,MID(Z9,2,FIND("-",Z9)-2)-0)) ->  | CA9: =IF(OR(ISERROR(FIND("-",AA9)),AM9>'export html'!$AR$7),"",IF(LEFT(AA9,1)<>"*",LEFT(AA9,FIND("-",AA9)-1)-0,MID(AA9,2,FIND("-",AA9)-2)-0)) -> 3 | CB9: =IF(OR(ISERROR(FIND("-",AB9)),AN9>'export html'!$AR$7),"",IF(LEFT(AB9,1)<>"*",LEFT(AB9,FIND("-",AB9)-1)-0,MID(AB9,2,FIND("-",AB9)-2)-0)) -> 4 | CC9: 5 | CD9: =IF(OR(ISERROR(FIND("-",Q9)),AC9<='export html'!$AR$7),"",IF(LEFT(Q9,1)<>"*",LEFT(Q9,FIND("-",Q9)-1)-0,MID(Q9,2,FIND("-",Q9)-2)-0)) ->  | CE9: =IF(OR(ISERROR(FIND("-",R9)),AD9<='export html'!$AR$7),"",IF(LEFT(R9,1)<>"*",LEFT(R9,FIND("-",R9)-1)-0,MID(R9,2,FIND("-",R9)-2)-0)) -> 4 | CF9: =IF(OR(ISERROR(FIND("-",S9)),AE9<='export html'!$AR$7),"",IF(LEFT(S9,1)<>"*",LEFT(S9,FIND("-",S9)-1)-0,MID(S9,2,FIND("-",S9)-2)-0)) ->  | CG9: =IF(OR(ISERROR(FIND("-",T9)),AF9<='export html'!$AR$7),"",IF(LEFT(T9,1)<>"*",LEFT(T9,FIND("-",T9)-1)-0,MID(T9,2,FIND("-",T9)-2)-0)) ->  | CI9: =IF(OR(ISERROR(FIND("-",V9)),AH9<='export html'!$AR$7),"",IF(LEFT(V9,1)<>"*",LEFT(V9,FIND("-",V9)-1)-0,MID(V9,2,FIND("-",V9)-2)-0)) ->  | CJ9: =IF(OR(ISERROR(FIND("-",W9)),AI9<='export html'!$AR$7),"",IF(LEFT(W9,1)<>"*",LEFT(W9,FIND("-",W9)-1)-0,MID(W9,2,FIND("-",W9)-2)-0)) -> 6 | CK9: =IF(OR(ISERROR(FIND("-",X9)),AJ9<='export html'!$AR$7),"",IF(LEFT(X9,1)<>"*",LEFT(X9,FIND("-",X9)-1)-0,MID(X9,2,FIND("-",X9)-2)-0)) ->  | CL9: =IF(OR(ISERROR(FIND("-",Y9)),AK9<='export html'!$AR$7),"",IF(LEFT(Y9,1)<>"*",LEFT(Y9,FIND("-",Y9)-1)-0,MID(Y9,2,FIND("-",Y9)-2)-0)) -> 3 | CM9: =IF(OR(ISERROR(FIND("-",Z9)),AL9<='export html'!$AR$7),"",IF(LEFT(Z9,1)<>"*",LEFT(Z9,FIND("-",Z9)-1)-0,MID(Z9,2,FIND("-",Z9)-2)-0)) -> 7 | CN9: =IF(OR(ISERROR(FIND("-",AA9)),AM9<='export html'!$AR$7),"",IF(LEFT(AA9,1)<>"*",LEFT(AA9,FIND("-",AA9)-1)-0,MID(AA9,2,FIND("-",AA9)-2)-0)) ->  | CO9: =IF(OR(ISERROR(FIND("-",AB9)),AN9<='export html'!$AR$7),"",IF(LEFT(AB9,1)<>"*",LEFT(AB9,FIND("-",AB9)-1)-0,MID(AB9,2,FIND("-",AB9)-2)-0)) ->  | CP9: 5
C10: 6 | D10: De Vrede | E10: 22 | F10: 17 | H10: 6 | I10: 7 | J10: 4 | K10: 43 | L10: 42 | M10: 1 | N10: 29 | P10: Hombeek | Q10: 4-1 | R10: 3-1 | S10: 5-1 | T10: 4-1 | U10: 0-7 | W10: 4-1 | Y10: 8-2 | AA10: 1-2 | AB10: 5-1 | AC10: 8 | AD10: 2 | AE10: 18 | AF10: 20 | AG10: 9 | AI10: 4 | AJ10: 23 | AK10: 13 | AL10: 25 | AM10: 16 | AN10: 14 | AO10: 2023-10-22 | AP10: 2023-09-10 | AQ10: 2024-02-04 | AR10: 2024-02-25 | AS10: 2023-10-29 | AU10: 2023-09-24 | AV10: 2024-03-17 | AW10: 2023-11-26 | AX10: 2024-04-07 | AY10: 2024-02-11 | AZ10: 2023-12-03 | BB10: 3.980305061 | BC10: Hombeek | BD10: 28 | BE10: 17 | BF10: =CHOOSE(StandBer,COUNTIF(BQ36:CB36,"t")+COUNTIF(BV31:BV42,"u")+COUNTIF(CD36:CO36,"t")+COUNTIF(CI31:CI42,"u"),COUNTIF(BQ36:CB36,"t")+COUNTIF(BV31:BV42,"u"),COUNTIF(CD36:CO36,"t")+COUNTIF(CI31:CI42,"u"),COUNTIF(BQ36:CB36,"t")+COUNTIF(CD36:CO36,"t"),COUNTIF(BV31:BV42,"u")+COUNTIF(CI31:CI42,"u")) -> 9 | BG10: =CHOOSE(StandBer,COUNTIF(BQ36:CB36,"u")+COUNTIF(BV31:BV42,"t")+COUNTIF(CD36:CO36,"u")+COUNTIF(CI31:CI42,"t"),COUNTIF(BQ36:CB36,"u")+COUNTIF(BV31:BV42,"t"),COUNTIF(CD36:CO36,"u")+COUNTIF(CI31:CI42,"t"),COUNTIF(BQ36:CB36,"u")+COUNTIF(CD36:CO36,"u"),COUNTIF(BV31:BV42,"t")+COUNTIF(CI31:CI42,"t"))+BL10 -> 7 | BH10: =CHOOSE(StandBer,COUNTIF(BQ36:CB36,"g")+COUNTIF(BV31:BV42,"g")+COUNTIF(CD36:CO36,"g")+COUNTIF(CI31:CI42,"g"),COUNTIF(BQ36:CB36,"g")+COUNTIF(BV31:BV42,"g"),COUNTIF(CD36:CO36,"g")+COUNTIF(CI31:CI42,"g"),COUNTIF(BQ36:CB36,"g")+COUNTIF(CD36:CO36,"g"),COUNTIF(BV31:BV42,"g")+COUNTIF(CI31:CI42,"g")) -> 1 | BI10: =CHOOSE(StandBer,SUM(BQ10:CB10)+SUM(BV18:BV29)+SUM(CD10:CO10)+SUM(CI18:CI29),SUM(BQ10:CB10)+SUM(BV18:BV29),SUM(CD10:CO10)+SUM(CI18:CI29),SUM(BQ10:CB10)+SUM(CD10:CO10),SUM(BV18:BV29)+SUM(CI18:CI29))-5*BL10 -> 44 | BJ10: =CHOOSE(StandBer,SUM(BV5:BV16)+SUM(BQ23:CB23)+SUM(CI5:CI16)+SUM(CD23:CO23),SUM(BV5:BV16)+SUM(BQ23:CB23),SUM(CI5:CI16)+SUM(CD23:CO23),SUM(BV5:BV16)+SUM(CI5:CI16),SUM(BQ23:CB23)+SUM(CD23:CO23)) -> 42 | BK10: 2 | BL10: =CHOOSE(StandBer,COUNTIF(BQ36:CB36,"ff")+COUNTIF(BV31:BV42,"ff")+COUNTIF(CD36:CO36,"ff")+COUNTIF(CI31:CI42,"ff"),COUNTIF(BQ36:CB36,"ff")+COUNTIF(BV31:BV42,"ff"),COUNTIF(CD36:CO36,"ff")+COUNTIF(CI31:CI42,"ff"),COUNTIF(BQ36:CB36,"ff")+COUNTIF(CD36:CO36,"ff"),COUNTIF(BV31:BV42,"ff")+COUNTIF(CI31:CI42,"ff")) -> 0 | BM10: 6 | BN10: 5.980606071 | BP10: 6 | BQ10: =IF(OR(ISERROR(FIND("-",Q10)),AC10>'export html'!$AR$7),"",IF(LEFT(Q10,1)<>"*",LEFT(Q10,FIND("-",Q10)-1)-0,MID(Q10,2,FIND("-",Q10)-2)-0)) -> 4 | BR10: =IF(OR(ISERROR(FIND("-",R10)),AD10>'export html'!$AR$7),"",IF(LEFT(R10,1)<>"*",LEFT(R10,FIND("-",R10)-1)-0,MID(R10,2,FIND("-",R10)-2)-0)) -> 3 | BS10: =IF(OR(ISERROR(FIND("-",S10)),AE10>'export html'!$AR$7),"",IF(LEFT(S10,1)<>"*",LEFT(S10,FIND("-",S10)-1)-0,MID(S10,2,FIND("-",S10)-2)-0)) ->  | BT10: =IF(OR(ISERROR(FIND("-",T10)),AF10>'export html'!$AR$7),"",IF(LEFT(T10,1)<>"*",LEFT(T10,FIND("-",T10)-1)-0,MID(T10,2,FIND("-",T10)-2)-0)) ->  | BU10: =IF(OR(ISERROR(FIND("-",U10)),AG10>'export html'!$AR$7),"",IF(LEFT(U10,1)<>"*",LEFT(U10,FIND("-",U10)-1)-0,MID(U10,2,FIND("-",U10)-2)-0)) -> 0 | BW10: =IF(OR(ISERROR(FIND("-",W10)),AI10>'export html'!$AR$7),"",IF(LEFT(W10,1)<>"*",LEFT(W10,FIND("-",W10)-1)-0,MID(W10,2,FIND("-",W10)-2)-0)) -> 4 | BX10: =IF(OR(ISERROR(FIND("-",X10)),AJ10>'export html'!$AR$7),"",IF(LEFT(X10,1)<>"*",LEFT(X10,FIND("-",X10)-1)-0,MID(X10,2,FIND("-",X10)-2)-0)) ->  | BY10: =IF(OR(ISERROR(FIND("-",Y10)),AK10>'export html'!$AR$7),"",IF(LEFT(Y10,1)<>"*",LEFT(Y10,FIND("-",Y10)-1)-0,MID(Y10,2,FIND("-",Y10)-2)-0)) ->  | BZ10: =IF(OR(ISERROR(FIND("-",Z10)),AL10>'export html'!$AR$7),"",IF(LEFT(Z10,1)<>"*",LEFT(Z10,FIND("-",Z10)-1)-0,MID(Z10,2,FIND("-",Z10)-2)-0)) ->  | CA10: =IF(OR(ISERROR(FIND("-",AA10)),AM10>'export html'!$AR$7),"",IF(LEFT(AA10,1)<>"*",LEFT(AA10,FIND("-",AA10)-1)-0,MID(AA10,2,FIND("-",AA10)-2)-0)) ->  | CB10: =IF(OR(ISERROR(FIND("-",AB10)),AN10>'export html'!$AR$7),"",IF(LEFT(AB10,1)<>"*",LEFT(AB10,FIND("-",AB10)-1)-0,MID(AB10,2,FIND("-",AB10)-2)-0)) ->  | CC10: 6 | CD10: =IF(OR(ISERROR(FIND("-",Q10)),AC10<='export html'!$AR$7),"",IF(LEFT(Q10,1)<>"*",LEFT(Q10,FIND("-",Q10)-1)-0,MID(Q10,2,FIND("-",Q10)-2)-0)) ->  | CE10: =IF(OR(ISERROR(FIND("-",R10)),AD10<='export html'!$AR$7),"",IF(LEFT(R10,1)<>"*",LEFT(R10,FIND("-",R10)-1)-0,MID(R10,2,FIND("-",R10)-2)-0)) ->  | CF10: =IF(OR(ISERROR(FIND("-",S10)),AE10<='export html'!$AR$7),"",IF(LEFT(S10,1)<>"*",LEFT(S10,FIND("-",S10)-1)-0,MID(S10,2,FIND("-",S10)-2)-0)) -> 5 | CG10: =IF(OR(ISERROR(FIND("-",T10)),AF10<='export html'!$AR$7),"",IF(LEFT(T10,1)<>"*",LEFT(T10,FIND("-",T10)-1)-0,MID(T10,2,FIND("-",T10)-2)-0)) -> 4 | CH10: =IF(OR(ISERROR(FIND("-",U10)),AG10<='export html'!$AR$7),"",IF(LEFT(U10,1)<>"*",LEFT(U10,FIND("-",U10)-1)-0,MID(U10,2,FIND("-",U10)-2)-0)) ->  | CJ10: =IF(OR(ISERROR(FIND("-",W10)),AI10<='export html'!$AR$7),"",IF(LEFT(W10,1)<>"*",LEFT(W10,FIND("-",W10)-1)-0,MID(W10,2,FIND("-",W10)-2)-0)) ->  | CK10: =IF(OR(ISERROR(FIND("-",X10)),AJ10<='export html'!$AR$7),"",IF(LEFT(X10,1)<>"*",LEFT(X10,FIND("-",X10)-1)-0,MID(X10,2,FIND("-",X10)-2)-0)) ->  | CL10: =IF(OR(ISERROR(FIND("-",Y10)),AK10<='export html'!$AR$7),"",IF(LEFT(Y10,1)<>"*",LEFT(Y10,FIND("-",Y10)-1)-0,MID(Y10,2,FIND("-",Y10)-2)-0)) -> 8 | CM10: =IF(OR(ISERROR(FIND("-",Z10)),AL10<='export html'!$AR$7),"",IF(LEFT(Z10,1)<>"*",LEFT(Z10,FIND("-",Z10)-1)-0,MID(Z10,2,FIND("-",Z10)-2)-0)) ->  | CN10: =IF(OR(ISERROR(FIND("-",AA10)),AM10<='export html'!$AR$7),"",IF(LEFT(AA10,1)<>"*",LEFT(AA10,FIND("-",AA10)-1)-0,MID(AA10,2,FIND("-",AA10)-2)-0)) -> 1 | CO10: =IF(OR(ISERROR(FIND("-",AB10)),AN10<='export html'!$AR$7),"",IF(LEFT(AB10,1)<>"*",LEFT(AB10,FIND("-",AB10)-1)-0,MID(AB10,2,FIND("-",AB10)-2)-0)) -> 5 | CP10: 6
C11: 7 | D11: =VLOOKUP(BN11,HulpberekeningenStand,2,FALSE) -> Goka | E11: 21 | F11: 17 | H11: =VLOOKUP(BN11,HulpberekeningenStand,5,FALSE) -> 6 | I11: =VLOOKUP(BN11,HulpberekeningenStand,6,FALSE) -> 8 | J11: =VLOOKUP(BN11,HulpberekeningenStand,7,FALSE) -> 3 | K11: =VLOOKUP(BN11,HulpberekeningenStand,8,FALSE) -> 37 | L11: =VLOOKUP(BN11,HulpberekeningenStand,9,FALSE) -> 36 | M11: 1 | N11: 30 | P11: Jolika | Q11: 0-5* | R11: 4-4 | S11: 1-1 | T11: 0-5* | U11: 0-1 | V11: 0-1 | X11: 1-2 | Y11: 3-1 | AC11: 13 | AD11: 11 | AE11: 1 | AF11: 3 | AG11: 5 | AH11: 17 | AJ11: 19 | AK11: 9 | AL11: 21 | AM11: 25 | AN11: 23 | AO11: 2023-11-26 | AP11: 2023-11-12 | AQ11: 2023-09-03 | AR11: 2023-09-17 | AS11: 2023-10-01 | AT11: 2024-01-28 | AV11: 2024-02-18 | AW11: 2023-10-29 | AX11: 2024-03-03 | AY11: 2024-04-07 | AZ11: 2024-03-17 | BB11: 11.92121212 | BC11: Jolika | BD11: 6 | BE11: 16 | BF11: =CHOOSE(StandBer,COUNTIF(BQ37:CB37,"t")+COUNTIF(BW31:BW42,"u")+COUNTIF(CD37:CO37,"t")+COUNTIF(CJ31:CJ42,"u"),COUNTIF(BQ37:CB37,"t")+COUNTIF(BW31:BW42,"u"),COUNTIF(CD37:CO37,"t")+COUNTIF(CJ31:CJ42,"u"),COUNTIF(BQ37:CB37,"t")+COUNTIF(CD37:CO37,"t"),COUNTIF(BW31:BW42,"u")+COUNTIF(CJ31:CJ42,"u")) -> 1 | BG11: =CHOOSE(StandBer,COUNTIF(BQ37:CB37,"u")+COUNTIF(BW31:BW42,"t")+COUNTIF(CD37:CO37,"u")+COUNTIF(CJ31:CJ42,"t"),COUNTIF(BQ37:CB37,"u")+COUNTIF(BW31:BW42,"t"),COUNTIF(CD37:CO37,"u")+COUNTIF(CJ31:CJ42,"t"),COUNTIF(BQ37:CB37,"u")+COUNTIF(CD37:CO37,"u"),COUNTIF(BW31:BW42,"t")+COUNTIF(CJ31:CJ42,"t"))+BL11 -> 12 | BH11: =CHOOSE(StandBer,COUNTIF(BQ37:CB37,"g")+COUNTIF(BW31:BW42,"g")+COUNTIF(CD37:CO37,"g")+COUNTIF(CJ31:CJ42,"g"),COUNTIF(BQ37:CB37,"g")+COUNTIF(BW31:BW42,"g"),COUNTIF(CD37:CO37,"g")+COUNTIF(CJ31:CJ42,"g"),COUNTIF(BQ37:CB37,"g")+COUNTIF(CD37:CO37,"g"),COUNTIF(BW31:BW42,"g")+COUNTIF(CJ31:CJ42,"g")) -> 3 | BI11: =CHOOSE(StandBer,SUM(BQ11:CB11)+SUM(BW18:BW29)+SUM(CD11:CO11)+SUM(CJ18:CJ29),SUM(BQ11:CB11)+SUM(BW18:BW29),SUM(CD11:CO11)+SUM(CJ18:CJ29),SUM(BQ11:CB11)+SUM(CD11:CO11),SUM(BW18:BW29)+SUM(CJ18:CJ29))-5*BL11 -> 13 | BJ11: =CHOOSE(StandBer,SUM(BW5:BW16)+SUM(BQ24:CB24)+SUM(CJ5:CJ16)+SUM(CD24:CO24),SUM(BW5:BW16)+SUM(BQ24:CB24),SUM(CJ5:CJ16)+SUM(CD24:CO24),SUM(BW5:BW16)+SUM(CJ5:CJ16),SUM(BQ24:CB24)+SUM(CD24:CO24)) -> 43 | BK11: -30 | BL11: =CHOOSE(StandBer,COUNTIF(BQ37:CB37,"ff")+COUNTIF(BW31:BW42,"ff")+COUNTIF(CD37:CO37,"ff")+COUNTIF(CJ31:CJ42,"ff"),COUNTIF(BQ37:CB37,"ff")+COUNTIF(BW31:BW42,"ff"),COUNTIF(CD37:CO37,"ff")+COUNTIF(CJ31:CJ42,"ff"),COUNTIF(BQ37:CB37,"ff")+COUNTIF(CD37:CO37,"ff"),COUNTIF(BW31:BW42,"ff")+COUNTIF(CJ31:CJ42,"ff")) -> 0 | BM11: 7 | BN11: 6.98060609 | BP11: 7 | BQ11: =IF(OR(ISERROR(FIND("-",Q11)),AC11>'export html'!$AR$7),"",IF(LEFT(Q11,1)<>"*",LEFT(Q11,FIND("-",Q11)-1)-0,MID(Q11,2,FIND("-",Q11)-2)-0)) ->  | BR11: =IF(OR(ISERROR(FIND("-",R11)),AD11>'export html'!$AR$7),"",IF(LEFT(R11,1)<>"*",LEFT(R11,FIND("-",R11)-1)-0,MID(R11,2,FIND("-",R11)-2)-0)) -> 4 | BS11: =IF(OR(ISERROR(FIND("-",S11)),AE11>'export html'!$AR$7),"",IF(LEFT(S11,1)<>"*",LEFT(S11,FIND("-",S11)-1)-0,MID(S11,2,FIND("-",S11)-2)-0)) -> 1 | BT11: =IF(OR(ISERROR(FIND("-",T11)),AF11>'export html'!$AR$7),"",IF(LEFT(T11,1)<>"*",LEFT(T11,FIND("-",T11)-1)-0,MID(T11,2,FIND("-",T11)-2)-0)) -> 0 | BU11: =IF(OR(ISERROR(FIND("-",U11)),AG11>'export html'!$AR$7),"",IF(LEFT(U11,1)<>"*",LEFT(U11,FIND("-",U11)-1)-0,MID(U11,2,FIND("-",U11)-2)-0)) -> 0 | BV11: =IF(OR(ISERROR(FIND("-",V11)),AH11>'export html'!$AR$7),"",IF(LEFT(V11,1)<>"*",LEFT(V11,FIND("-",V11)-1)-0,MID(V11,2,FIND("-",V11)-2)-0)) ->  | BX11: =IF(OR(ISERROR(FIND("-",X11)),AJ11>'export html'!$AR$7),"",IF(LEFT(X11,1)<>"*",LEFT(X11,FIND("-",X11)-1)-0,MID(X11,2,FIND("-",X11)-2)-0)) ->  | BY11: =IF(OR(ISERROR(FIND("-",Y11)),AK11>'export html'!$AR$7),"",IF(LEFT(Y11,1)<>"*",LEFT(Y11,FIND("-",Y11)-1)-0,MID(Y11,2,FIND("-",Y11)-2)-0)) -> 3 | BZ11: =IF(OR(ISERROR(FIND("-",Z11)),AL11>'export html'!$AR$7),"",IF(LEFT(Z11,1)<>"*",LEFT(Z11,FIND("-",Z11)-1)-0,MID(Z11,2,FIND("-",Z11)-2)-0)) ->  | CA11: =IF(OR(ISERROR(FIND("-",AA11)),AM11>'export html'!$AR$7),"",IF(LEFT(AA11,1)<>"*",LEFT(AA11,FIND("-",AA11)-1)-0,MID(AA11,2,FIND("-",AA11)-2)-0)) ->  | CB11: =IF(OR(ISERROR(FIND("-",AB11)),AN11>'export html'!$AR$7),"",IF(LEFT(AB11,1)<>"*",LEFT(AB11,FIND("-",AB11)-1)-0,MID(AB11,2,FIND("-",AB11)-2)-0)) ->  | CC11: 7 | CD11: =IF(OR(ISERROR(FIND("-",Q11)),AC11<='export html'!$AR$7),"",IF(LEFT(Q11,1)<>"*",LEFT(Q11,FIND("-",Q11)-1)-0,MID(Q11,2,FIND("-",Q11)-2)-0)) -> 0 | CE11: =IF(OR(ISERROR(FIND("-",R11)),AD11<='export html'!$AR$7),"",IF(LEFT(R11,1)<>"*",LEFT(R11,FIND("-",R11)-1)-0,MID(R11,2,FIND("-",R11)-2)-0)) ->  | CF11: =IF(OR(ISERROR(FIND("-",S11)),AE11<='export html'!$AR$7),"",IF(LEFT(S11,1)<>"*",LEFT(S11,FIND("-",S11)-1)-0,MID(S11,2,FIND("-",S11)-2)-0)) ->  | CG11: =IF(OR(ISERROR(FIND("-",T11)),AF11<='export html'!$AR$7),"",IF(LEFT(T11,1)<>"*",LEFT(T11,FIND("-",T11)-1)-0,MID(T11,2,FIND("-",T11)-2)-0)) ->  | CH11: =IF(OR(ISERROR(FIND("-",U11)),AG11<='export html'!$AR$7),"",IF(LEFT(U11,1)<>"*",LEFT(U11,FIND("-",U11)-1)-0,MID(U11,2,FIND("-",U11)-2)-0)) ->  | CI11: =IF(OR(ISERROR(FIND("-",V11)),AH11<='export html'!$AR$7),"",IF(LEFT(V11,1)<>"*",LEFT(V11,FIND("-",V11)-1)-0,MID(V11,2,FIND("-",V11)-2)-0)) -> 0 | CK11: =IF(OR(ISERROR(FIND("-",X11)),AJ11<='export html'!$AR$7),"",IF(LEFT(X11,1)<>"*",LEFT(X11,FIND("-",X11)-1)-0,MID(X11,2,FIND("-",X11)-2)-0)) -> 1 | CL11: =IF(OR(ISERROR(FIND("-",Y11)),AK11<='export html'!$AR$7),"",IF(LEFT(Y11,1)<>"*",LEFT(Y11,FIND("-",Y11)-1)-0,MID(Y11,2,FIND("-",Y11)-2)-0)) ->  | CM11: =IF(OR(ISERROR(FIND("-",Z11)),AL11<='export html'!$AR$7),"",IF(LEFT(Z11,1)<>"*",LEFT(Z11,FIND("-",Z11)-1)-0,MID(Z11,2,FIND("-",Z11)-2)-0)) ->  | CN11: =IF(OR(ISERROR(FIND("-",AA11)),AM11<='export html'!$AR$7),"",IF(LEFT(AA11,1)<>"*",LEFT(AA11,FIND("-",AA11)-1)-0,MID(AA11,2,FIND("-",AA11)-2)-0)) ->  | CO11: =IF(OR(ISERROR(FIND("-",AB11)),AN11<='export html'!$AR$7),"",IF(LEFT(AB11,1)<>"*",LEFT(AB11,FIND("-",AB11)-1)-0,MID(AB11,2,FIND("-",AB11)-2)-0)) ->  | CP11: 7
C12: 8 | D12: Bariton | E12: =3*H12+J12 -> 20 | F12: =SUM(H12:J12) -> 16 | G12: - | H12: 6 | I12: 8 | J12: 2 | K12: 40 | L12: 40 | M12: =K12-L12 -> 0 | N12: =3*F12-E12 -> 28 | P12: Lucyvo | R12: 2-1 | S12: 2-7 | V12: 2-1 | W12: 4-0 | Y12: 3-6 | Z12: 4-4 | AA12: 3-5 | AB12: 6-5 | AC12: 25 | AD12: 4 | AE12: 20 | AF12: 22 | AG12: 24 | AH12: 10 | AI12: 6 | AK12: 2 | AL12: 14 | AM12: 18 | AN12: 16 | AO12: 2024-04-07 | AP12: 2023-09-24 | AQ12: 2024-02-25 | AR12: 2024-03-10 | AS12: 2024-03-24 | AT12: 2023-11-05 | AU12: 2023-10-08 | AW12: 2023-09-10 | AX12: 2023-12-03 | AY12: 2024-02-04 | AZ12: 2024-02-11 | BB12: =RANK( BD12, $BD$5:$BD$16, 0 ) - RANK( BE12, $BE$5:$BE$16, 0 ) / 10^2 + RANK( BF12, $BF$5:$BF$16, 0 ) / 10^4 + RANK( BK12, $BK$5:$BK$16, 0 ) / 10^6 + RANK( BI12, $BI$5:$BI$16, 0 ) / 10^8 + BM12 / 10^10 -> 8.990911051 | BC12: Lucyvo | BD12: 18 | BE12: 18 | BF12: =CHOOSE(StandBer,COUNTIF(BQ38:CB38,"t")+COUNTIF(BX31:BX42,"u")+COUNTIF(CD38:CO38,"t")+COUNTIF(CK31:CK42,"u"),COUNTIF(BQ38:CB38,"t")+COUNTIF(BX31:BX42,"u"),COUNTIF(CD38:CO38,"t")+COUNTIF(CK31:CK42,"u"),COUNTIF(BQ38:CB38,"t")+COUNTIF(CD38:CO38,"t"),COUNTIF(BX31:BX42,"u")+COUNTIF(CK31:CK42,"u")) -> 5 | BG12: =CHOOSE(StandBer,COUNTIF(BQ38:CB38,"u")+COUNTIF(BX31:BX42,"t")+COUNTIF(CD38:CO38,"u")+COUNTIF(CK31:CK42,"t"),COUNTIF(BQ38:CB38,"u")+COUNTIF(BX31:BX42,"t"),COUNTIF(CD38:CO38,"u")+COUNTIF(CK31:CK42,"t"),COUNTIF(BQ38:CB38,"u")+COUNTIF(CD38:CO38,"u"),COUNTIF(BX31:BX42,"t")+COUNTIF(CK31:CK42,"t"))+BL12 -> 10 | BH12: =CHOOSE(StandBer,COUNTIF(BQ38:CB38,"g")+COUNTIF(BX31:BX42,"g")+COUNTIF(CD38:CO38,"g")+COUNTIF(CK31:CK42,"g"),COUNTIF(BQ38:CB38,"g")+COUNTIF(BX31:BX42,"g"),COUNTIF(CD38:CO38,"g")+COUNTIF(CK31:CK42,"g"),COUNTIF(BQ38:CB38,"g")+COUNTIF(CD38:CO38,"g"),COUNTIF(BX31:BX42,"g")+COUNTIF(CK31:CK42,"g")) -> 3 | BI12: =CHOOSE(StandBer,SUM(BQ12:CB12)+SUM(BX18:BX29)+SUM(CD12:CO12)+SUM(CK18:CK29),SUM(BQ12:CB12)+SUM(BX18:BX29),SUM(CD12:CO12)+SUM(CK18:CK29),SUM(BQ12:CB12)+SUM(CD12:CO12),SUM(BX18:BX29)+SUM(CK18:CK29))-5*BL12 -> 45 | BJ12: =CHOOSE(StandBer,SUM(BX5:BX16)+SUM(BQ25:CB25)+SUM(CK5:CK16)+SUM(CD25:CO25),SUM(BX5:BX16)+SUM(BQ25:CB25),SUM(CK5:CK16)+SUM(CD25:CO25),SUM(BX5:BX16)+SUM(CK5:CK16),SUM(BQ25:CB25)+SUM(CD25:CO25)) -> 67 | BK12: -22 | BL12: =CHOOSE(StandBer,COUNTIF(BQ38:CB38,"ff")+COUNTIF(BX31:BX42,"ff")+COUNTIF(CD38:CO38,"ff")+COUNTIF(CK31:CK42,"ff"),COUNTIF(BQ38:CB38,"ff")+COUNTIF(BX31:BX42,"ff"),COUNTIF(CD38:CO38,"ff")+COUNTIF(CK31:CK42,"ff"),COUNTIF(BQ38:CB38,"ff")+COUNTIF(CD38:CO38,"ff"),COUNTIF(BX31:BX42,"ff")+COUNTIF(CK31:CK42,"ff")) -> 0 | BM12: 8 | BN12: 7.92060808 | BP12: 8 | BQ12: =IF(OR(ISERROR(FIND("-",Q12)),AC12>'export html'!$AR$7),"",IF(LEFT(Q12,1)<>"*",LEFT(Q12,FIND("-",Q12)-1)-0,MID(Q12,2,FIND("-",Q12)-2)-0)) ->  | BR12: =IF(OR(ISERROR(FIND("-",R12)),AD12>'export html'!$AR$7),"",IF(LEFT(R12,1)<>"*",LEFT(R12,FIND("-",R12)-1)-0,MID(R12,2,FIND("-",R12)-2)-0)) -> 2 | BS12: =IF(OR(ISERROR(FIND("-",S12)),AE12>'export html'!$AR$7),"",IF(LEFT(S12,1)<>"*",LEFT(S12,FIND("-",S12)-1)-0,MID(S12,2,FIND("-",S12)-2)-0)) ->  | BT12: =IF(OR(ISERROR(FIND("-",T12)),AF12>'export html'!$AR$7),"",IF(LEFT(T12,1)<>"*",LEFT(T12,FIND("-",T12)-1)-0,MID(T12,2,FIND("-",T12)-2)-0)) ->  | BU12: =IF(OR(ISERROR(FIND("-",U12)),AG12>'export html'!$AR$7),"",IF(LEFT(U12,1)<>"*",LEFT(U12,FIND("-",U12)-1)-0,MID(U12,2,FIND("-",U12)-2)-0)) ->  | BV12: =IF(OR(ISERROR(FIND("-",V12)),AH12>'export html'!$AR$7),"",IF(LEFT(V12,1)<>"*",LEFT(V12,FIND("-",V12)-1)-0,MID(V12,2,FIND("-",V12)-2)-0)) -> 2 | BW12: =IF(OR(ISERROR(FIND("-",W12)),AI12>'export html'!$AR$7),"",IF(LEFT(W12,1)<>"*",LEFT(W12,FIND("-",W12)-1)-0,MID(W12,2,FIND("-",W12)-2)-0)) -> 4 | BY12: =IF(OR(ISERROR(FIND("-",Y12)),AK12>'export html'!$AR$7),"",IF(LEFT(Y12,1)<>"*",LEFT(Y12,FIND("-",Y12)-1)-0,MID(Y12,2,FIND("-",Y12)-2)-0)) -> 3 | BZ12: =IF(OR(ISERROR(FIND("-",Z12)),AL12>'export html'!$AR$7),"",IF(LEFT(Z12,1)<>"*",LEFT(Z12,FIND("-",Z12)-1)-0,MID(Z12,2,FIND("-",Z12)-2)-0)) ->  | CA12: =IF(OR(ISERROR(FIND("-",AA12)),AM12>'export html'!$AR$7),"",IF(LEFT(AA12,1)<>"*",LEFT(AA12,FIND("-",AA12)-1)-0,MID(AA12,2,FIND("-",AA12)-2)-0)) ->  | CB12: =IF(OR(ISERROR(FIND("-",AB12)),AN12>'export html'!$AR$7),"",IF(LEFT(AB12,1)<>"*",LEFT(AB12,FIND("-",AB12)-1)-0,MID(AB12,2,FIND("-",AB12)-2)-0)) ->  | CC12: 8 | CD12: =IF(OR(ISERROR(FIND("-",Q12)),AC12<='export html'!$AR$7),"",IF(LEFT(Q12,1)<>"*",LEFT(Q12,FIND("-",Q12)-1)-0,MID(Q12,2,FIND("-",Q12)-2)-0)) ->  | CE12: =IF(OR(ISERROR(FIND("-",R12)),AD12<='export html'!$AR$7),"",IF(LEFT(R12,1)<>"*",LEFT(R12,FIND("-",R12)-1)-0,MID(R12,2,FIND("-",R12)-2)-0)) ->  | CF12: =IF(OR(ISERROR(FIND("-",S12)),AE12<='export html'!$AR$7),"",IF(LEFT(S12,1)<>"*",LEFT(S12,FIND("-",S12)-1)-0,MID(S12,2,FIND("-",S12)-2)-0)) -> 2 | CG12: =IF(OR(ISERROR(FIND("-",T12)),AF12<='export html'!$AR$7),"",IF(LEFT(T12,1)<>"*",LEFT(T12,FIND("-",T12)-1)-0,MID(T12,2,FIND("-",T12)-2)-0)) ->  | CH12: =IF(OR(ISERROR(FIND("-",U12)),AG12<='export html'!$AR$7),"",IF(LEFT(U12,1)<>"*",LEFT(U12,FIND("-",U12)-1)-0,MID(U12,2,FIND("-",U12)-2)-0)) ->  | CI12: =IF(OR(ISERROR(FIND("-",V12)),AH12<='export html'!$AR$7),"",IF(LEFT(V12,1)<>"*",LEFT(V12,FIND("-",V12)-1)-0,MID(V12,2,FIND("-",V12)-2)-0)) ->  | CJ12: =IF(OR(ISERROR(FIND("-",W12)),AI12<='export html'!$AR$7),"",IF(LEFT(W12,1)<>"*",LEFT(W12,FIND("-",W12)-1)-0,MID(W12,2,FIND("-",W12)-2)-0)) ->  | CL12: =IF(OR(ISERROR(FIND("-",Y12)),AK12<='export html'!$AR$7),"",IF(LEFT(Y12,1)<>"*",LEFT(Y12,FIND("-",Y12)-1)-0,MID(Y12,2,FIND("-",Y12)-2)-0)) ->  | CM12: =IF(OR(ISERROR(FIND("-",Z12)),AL12<='export html'!$AR$7),"",IF(LEFT(Z12,1)<>"*",LEFT(Z12,FIND("-",Z12)-1)-0,MID(Z12,2,FIND("-",Z12)-2)-0)) -> 4 | CN12: =IF(OR(ISERROR(FIND("-",AA12)),AM12<='export html'!$AR$7),"",IF(LEFT(AA12,1)<>"*",LEFT(AA12,FIND("-",AA12)-1)-0,MID(AA12,2,FIND("-",AA12)-2)-0)) -> 3 | CO12: =IF(OR(ISERROR(FIND("-",AB12)),AN12<='export html'!$AR$7),"",IF(LEFT(AB12,1)<>"*",LEFT(AB12,FIND("-",AB12)-1)-0,MID(AB12,2,FIND("-",AB12)-2)-0)) -> 6 | CP12: 8
C13: 9 | D13: Lucyvo | E13: 18 | F13: 18 | G13: + | H13: 5 | I13: 10 | J13: 3 | K13: 45 | L13: 67 | M13: -22 | N13: 36 | P13: Paradeske | Q13: 0-5 | S13: 4-2 | T13: 3-2 | U13: 1-3 | X13: 4-1 | Z13: 0-6 | AA13: 4-2 | AB13: 2-2 | AC13: 18 | AD13: 20 | AE13: 10 | AF13: 12 | AG13: 1 | AH13: 26 | AI13: 22 | AJ13: 15 | AL13: 17 | AM13: 8 | AN13: 6 | AO13: 2024-02-04 | AP13: 2024-02-25 | AQ13: 2023-11-05 | AR13: 2023-11-19 | AS13: 2023-09-03 | AT13: 2024-04-14 | AU13: 2024-03-10 | AV13: 2024-01-14 | AX13: 2024-01-28 | AY13: 2023-10-22 | AZ13: 2023-10-08 | BB13: =RANK( BD13, $BD$5:$BD$16, 0 ) - RANK( BE13, $BE$5:$BE$16, 0 ) / 10^2 + RANK( BF13, $BF$5:$BF$16, 0 ) / 10^4 + RANK( BK13, $BK$5:$BK$16, 0 ) / 10^6 + RANK( BI13, $BI$5:$BI$16, 0 ) / 10^8 + BM13 / 10^10 -> 9.920910101 | BC13: Paradeske | BD13: 17 | BE13: 16 | BF13: =CHOOSE(StandBer,COUNTIF(BQ39:CB39,"t")+COUNTIF(BY31:BY42,"u")+COUNTIF(CD39:CO39,"t")+COUNTIF(CL31:CL42,"u"),COUNTIF(BQ39:CB39,"t")+COUNTIF(BY31:BY42,"u"),COUNTIF(CD39:CO39,"t")+COUNTIF(CL31:CL42,"u"),COUNTIF(BQ39:CB39,"t")+COUNTIF(CD39:CO39,"t"),COUNTIF(BY31:BY42,"u")+COUNTIF(CL31:CL42,"u")) -> 5 | BG13: =CHOOSE(StandBer,COUNTIF(BQ39:CB39,"u")+COUNTIF(BY31:BY42,"t")+COUNTIF(CD39:CO39,"u")+COUNTIF(CL31:CL42,"t"),COUNTIF(BQ39:CB39,"u")+COUNTIF(BY31:BY42,"t"),COUNTIF(CD39:CO39,"u")+COUNTIF(CL31:CL42,"t"),COUNTIF(BQ39:CB39,"u")+COUNTIF(CD39:CO39,"u"),COUNTIF(BY31:BY42,"t")+COUNTIF(CL31:CL42,"t"))+BL13 -> 9 | BH13: =CHOOSE(StandBer,COUNTIF(BQ39:CB39,"g")+COUNTIF(BY31:BY42,"g")+COUNTIF(CD39:CO39,"g")+COUNTIF(CL31:CL42,"g"),COUNTIF(BQ39:CB39,"g")+COUNTIF(BY31:BY42,"g"),COUNTIF(CD39:CO39,"g")+COUNTIF(CL31:CL42,"g"),COUNTIF(BQ39:CB39,"g")+COUNTIF(CD39:CO39,"g"),COUNTIF(BY31:BY42,"g")+COUNTIF(CL31:CL42,"g")) -> 2 | BI13: =CHOOSE(StandBer,SUM(BQ13:CB13)+SUM(BY18:BY29)+SUM(CD13:CO13)+SUM(CL18:CL29),SUM(BQ13:CB13)+SUM(BY18:BY29),SUM(CD13:CO13)+SUM(CL18:CL29),SUM(BQ13:CB13)+SUM(CD13:CO13),SUM(BY18:BY29)+SUM(CL18:CL29))-5*BL13 -> 33 | BJ13: =CHOOSE(StandBer,SUM(BY5:BY16)+SUM(BQ26:CB26)+SUM(CL5:CL16)+SUM(CD26:CO26),SUM(BY5:BY16)+SUM(BQ26:CB26),SUM(CL5:CL16)+SUM(CD26:CO26),SUM(BY5:BY16)+SUM(CL5:CL16),SUM(BQ26:CB26)+SUM(CD26:CO26)) -> 54 | BK13: -21 | BL13: =CHOOSE(StandBer,COUNTIF(BQ39:CB39,"ff")+COUNTIF(BY31:BY42,"ff")+COUNTIF(CD39:CO39,"ff")+COUNTIF(CL31:CL42,"ff"),COUNTIF(BQ39:CB39,"ff")+COUNTIF(BY31:BY42,"ff"),COUNTIF(CD39:CO39,"ff")+COUNTIF(CL31:CL42,"ff"),COUNTIF(BQ39:CB39,"ff")+COUNTIF(CD39:CO39,"ff"),COUNTIF(BY31:BY42,"ff")+COUNTIF(CL31:CL42,"ff")) -> 0 | BM13: 9 | BN13: 8.990911051 | BP13: 9 | BQ13: =IF(OR(ISERROR(FIND("-",Q13)),AC13>'export html'!$AR$7),"",IF(LEFT(Q13,1)<>"*",LEFT(Q13,FIND("-",Q13)-1)-0,MID(Q13,2,FIND("-",Q13)-2)-0)) ->  | BR13: =IF(OR(ISERROR(FIND("-",R13)),AD13>'export html'!$AR$7),"",IF(LEFT(R13,1)<>"*",LEFT(R13,FIND("-",R13)-1)-0,MID(R13,2,FIND("-",R13)-2)-0)) ->  | BS13: =IF(OR(ISERROR(FIND("-",S13)),AE13>'export html'!$AR$7),"",IF(LEFT(S13,1)<>"*",LEFT(S13,FIND("-",S13)-1)-0,MID(S13,2,FIND("-",S13)-2)-0)) -> 4 | BT13: =IF(OR(ISERROR(FIND("-",T13)),AF13>'export html'!$AR$7),"",IF(LEFT(T13,1)<>"*",LEFT(T13,FIND("-",T13)-1)-0,MID(T13,2,FIND("-",T13)-2)-0)) ->  | BU13: =IF(OR(ISERROR(FIND("-",U13)),AG13>'export html'!$AR$7),"",IF(LEFT(U13,1)<>"*",LEFT(U13,FIND("-",U13)-1)-0,MID(U13,2,FIND("-",U13)-2)-0)) -> 1 | BV13: =IF(OR(ISERROR(FIND("-",V13)),AH13>'export html'!$AR$7),"",IF(LEFT(V13,1)<>"*",LEFT(V13,FIND("-",V13)-1)-0,MID(V13,2,FIND("-",V13)-2)-0)) ->  | BW13: =IF(OR(ISERROR(FIND("-",W13)),AI13>'export html'!$AR$7),"",IF(LEFT(W13,1)<>"*",LEFT(W13,FIND("-",W13)-1)-0,MID(W13,2,FIND("-",W13)-2)-0)) ->  | BX13: =IF(OR(ISERROR(FIND("-",X13)),AJ13>'export html'!$AR$7),"",IF(LEFT(X13,1)<>"*",LEFT(X13,FIND("-",X13)-1)-0,MID(X13,2,FIND("-",X13)-2)-0)) ->  | BZ13: =IF(OR(ISERROR(FIND("-",Z13)),AL13>'export html'!$AR$7),"",IF(LEFT(Z13,1)<>"*",LEFT(Z13,FIND("-",Z13)-1)-0,MID(Z13,2,FIND("-",Z13)-2)-0)) ->  | CA13: =IF(OR(ISERROR(FIND("-",AA13)),AM13>'export html'!$AR$7),"",IF(LEFT(AA13,1)<>"*",LEFT(AA13,FIND("-",AA13)-1)-0,MID(AA13,2,FIND("-",AA13)-2)-0)) -> 4 | CB13: =IF(OR(ISERROR(FIND("-",AB13)),AN13>'export html'!$AR$7),"",IF(LEFT(AB13,1)<>"*",LEFT(AB13,FIND("-",AB13)-1)-0,MID(AB13,2,FIND("-",AB13)-2)-0)) -> 2 | CC13: 9 | CD13: =IF(OR(ISERROR(FIND("-",Q13)),AC13<='export html'!$AR$7),"",IF(LEFT(Q13,1)<>"*",LEFT(Q13,FIND("-",Q13)-1)-0,MID(Q13,2,FIND("-",Q13)-2)-0)) -> 0 | CE13: =IF(OR(ISERROR(FIND("-",R13)),AD13<='export html'!$AR$7),"",IF(LEFT(R13,1)<>"*",LEFT(R13,FIND("-",R13)-1)-0,MID(R13,2,FIND("-",R13)-2)-0)) ->  | CF13: =IF(OR(ISERROR(FIND("-",S13)),AE13<='export html'!$AR$7),"",IF(LEFT(S13,1)<>"*",LEFT(S13,FIND("-",S13)-1)-0,MID(S13,2,FIND("-",S13)-2)-0)) ->  | CG13: =IF(OR(ISERROR(FIND("-",T13)),AF13<='export html'!$AR$7),"",IF(LEFT(T13,1)<>"*",LEFT(T13,FIND("-",T13)-1)-0,MID(T13,2,FIND("-",T13)-2)-0)) -> 3 | CH13: =IF(OR(ISERROR(FIND("-",U13)),AG13<='export html'!$AR$7),"",IF(LEFT(U13,1)<>"*",LEFT(U13,FIND("-",U13)-1)-0,MID(U13,2,FIND("-",U13)-2)-0)) ->  | CI13: =IF(OR(ISERROR(FIND("-",V13)),AH13<='export html'!$AR$7),"",IF(LEFT(V13,1)<>"*",LEFT(V13,FIND("-",V13)-1)-0,MID(V13,2,FIND("-",V13)-2)-0)) ->  | CJ13: =IF(OR(ISERROR(FIND("-",W13)),AI13<='export html'!$AR$7),"",IF(LEFT(W13,1)<>"*",LEFT(W13,FIND("-",W13)-1)-0,MID(W13,2,FIND("-",W13)-2)-0)) ->  | CK13: =IF(OR(ISERROR(FIND("-",X13)),AJ13<='export html'!$AR$7),"",IF(LEFT(X13,1)<>"*",LEFT(X13,FIND("-",X13)-1)-0,MID(X13,2,FIND("-",X13)-2)-0)) -> 4 | CM13: =IF(OR(ISERROR(FIND("-",Z13)),AL13<='export html'!$AR$7),"",IF(LEFT(Z13,1)<>"*",LEFT(Z13,FIND("-",Z13)-1)-0,MID(Z13,2,FIND("-",Z13)-2)-0)) -> 0 | CN13: =IF(OR(ISERROR(FIND("-",AA13)),AM13<='export html'!$AR$7),"",IF(LEFT(AA13,1)<>"*",LEFT(AA13,FIND("-",AA13)-1)-0,MID(AA13,2,FIND("-",AA13)-2)-0)) ->  | CO13: =IF(OR(ISERROR(FIND("-",AB13)),AN13<='export html'!$AR$7),"",IF(LEFT(AB13,1)<>"*",LEFT(AB13,FIND("-",AB13)-1)-0,MID(AB13,2,FIND("-",AB13)-2)-0)) ->  | CP13: 9
C14: 10 | D14: Paradeske | E14: 17 | F14: 16 | G14: - | H14: 5 | I14: 9 | J14: 2 | K14: 33 | L14: 54 | M14: -21 | N14: 31 | P14: Pouma United | Q14: 1-8 | R14: 6-1 | V14: 3-1 | W14: 2-0 | X14: 3-2 | Y14: 3-2 | AA14: 2-2 | AB14: *5-0 | AC14: 16 | AD14: 6 | AE14: 22 | AF14: 24 | AG14: 26 | AH14: 12 | AI14: 8 | AJ14: 1 | AK14: 4 | AM14: 20 | AN14: 18 | AO14: 2024-02-11 | AP14: 2023-10-08 | AQ14: 2024-03-10 | AR14: 2024-03-24 | AS14: 2024-04-14 | AT14: 2023-11-19 | AU14: 2023-10-22 | AV14: 2023-09-03 | AW14: 2023-09-24 | AY14: 2024-02-25 | AZ14: 2024-02-04 | BB14: 1.980202021 | BC14: Pouma United | BD14: 36 | BE14: 17 | BF14: =CHOOSE(StandBer,COUNTIF(BQ40:CB40,"t")+COUNTIF(BZ31:BZ42,"u")+COUNTIF(CD40:CO40,"t")+COUNTIF(CM31:CM42,"u"),COUNTIF(BQ40:CB40,"t")+COUNTIF(BZ31:BZ42,"u"),COUNTIF(CD40:CO40,"t")+COUNTIF(CM31:CM42,"u"),COUNTIF(BQ40:CB40,"t")+COUNTIF(CD40:CO40,"t"),COUNTIF(BZ31:BZ42,"u")+COUNTIF(CM31:CM42,"u")) -> 11 | BG14: =CHOOSE(StandBer,COUNTIF(BQ40:CB40,"u")+COUNTIF(BZ31:BZ42,"t")+COUNTIF(CD40:CO40,"u")+COUNTIF(CM31:CM42,"t"),COUNTIF(BQ40:CB40,"u")+COUNTIF(BZ31:BZ42,"t"),COUNTIF(CD40:CO40,"u")+COUNTIF(CM31:CM42,"t"),COUNTIF(BQ40:CB40,"u")+COUNTIF(CD40:CO40,"u"),COUNTIF(BZ31:BZ42,"t")+COUNTIF(CM31:CM42,"t"))+BL14 -> 3 | BH14: =CHOOSE(StandBer,COUNTIF(BQ40:CB40,"g")+COUNTIF(BZ31:BZ42,"g")+COUNTIF(CD40:CO40,"g")+COUNTIF(CM31:CM42,"g"),COUNTIF(BQ40:CB40,"g")+COUNTIF(BZ31:BZ42,"g"),COUNTIF(CD40:CO40,"g")+COUNTIF(CM31:CM42,"g"),COUNTIF(BQ40:CB40,"g")+COUNTIF(CD40:CO40,"g"),COUNTIF(BZ31:BZ42,"g")+COUNTIF(CM31:CM42,"g")) -> 3 | BI14: =CHOOSE(StandBer,SUM(BQ14:CB14)+SUM(BZ18:BZ29)+SUM(CD14:CO14)+SUM(CM18:CM29),SUM(BQ14:CB14)+SUM(BZ18:BZ29),SUM(CD14:CO14)+SUM(CM18:CM29),SUM(BQ14:CB14)+SUM(CD14:CO14),SUM(BZ18:BZ29)+SUM(CM18:CM29))-5*BL14 -> 55 | BJ14: =CHOOSE(StandBer,SUM(BZ5:BZ16)+SUM(BQ27:CB27)+SUM(CM5:CM16)+SUM(CD27:CO27),SUM(BZ5:BZ16)+SUM(BQ27:CB27),SUM(CM5:CM16)+SUM(CD27:CO27),SUM(BZ5:BZ16)+SUM(CM5:CM16),SUM(BQ27:CB27)+SUM(CD27:CO27)) -> 37 | BK14: 18 | BL14: =CHOOSE(StandBer,COUNTIF(BQ40:CB40,"ff")+COUNTIF(BZ31:BZ42,"ff")+COUNTIF(CD40:CO40,"ff")+COUNTIF(CM31:CM42,"ff"),COUNTIF(BQ40:CB40,"ff")+COUNTIF(BZ31:BZ42,"ff"),COUNTIF(CD40:CO40,"ff")+COUNTIF(CM31:CM42,"ff"),COUNTIF(BQ40:CB40,"ff")+COUNTIF(CD40:CO40,"ff"),COUNTIF(BZ31:BZ42,"ff")+COUNTIF(CM31:CM42,"ff")) -> 0 | BM14: 10 | BN14: 9.920910101 | BP14: 10 | BQ14: =IF(OR(ISERROR(FIND("-",Q14)),AC14>'export html'!$AR$7),"",IF(LEFT(Q14,1)<>"*",LEFT(Q14,FIND("-",Q14)-1)-0,MID(Q14,2,FIND("-",Q14)-2)-0)) ->  | BR14: =IF(OR(ISERROR(FIND("-",R14)),AD14>'export html'!$AR$7),"",IF(LEFT(R14,1)<>"*",LEFT(R14,FIND("-",R14)-1)-0,MID(R14,2,FIND("-",R14)-2)-0)) -> 6 | BS14: =IF(OR(ISERROR(FIND("-",S14)),AE14>'export html'!$AR$7),"",IF(LEFT(S14,1)<>"*",LEFT(S14,FIND("-",S14)-1)-0,MID(S14,2,FIND("-",S14)-2)-0)) ->  | BT14: =IF(OR(ISERROR(FIND("-",T14)),AF14>'export html'!$AR$7),"",IF(LEFT(T14,1)<>"*",LEFT(T14,FIND("-",T14)-1)-0,MID(T14,2,FIND("-",T14)-2)-0)) ->  | BU14: =IF(OR(ISERROR(FIND("-",U14)),AG14>'export html'!$AR$7),"",IF(LEFT(U14,1)<>"*",LEFT(U14,FIND("-",U14)-1)-0,MID(U14,2,FIND("-",U14)-2)-0)) ->  | BV14: =IF(OR(ISERROR(FIND("-",V14)),AH14>'export html'!$AR$7),"",IF(LEFT(V14,1)<>"*",LEFT(V14,FIND("-",V14)-1)-0,MID(V14,2,FIND("-",V14)-2)-0)) ->  | BW14: =IF(OR(ISERROR(FIND("-",W14)),AI14>'export html'!$AR$7),"",IF(LEFT(W14,1)<>"*",LEFT(W14,FIND("-",W14)-1)-0,MID(W14,2,FIND("-",W14)-2)-0)) -> 2 | BX14: =IF(OR(ISERROR(FIND("-",X14)),AJ14>'export html'!$AR$7),"",IF(LEFT(X14,1)<>"*",LEFT(X14,FIND("-",X14)-1)-0,MID(X14,2,FIND("-",X14)-2)-0)) -> 3 | BY14: =IF(OR(ISERROR(FIND("-",Y14)),AK14>'export html'!$AR$7),"",IF(LEFT(Y14,1)<>"*",LEFT(Y14,FIND("-",Y14)-1)-0,MID(Y14,2,FIND("-",Y14)-2)-0)) -> 3 | CA14: =IF(OR(ISERROR(FIND("-",AA14)),AM14>'export html'!$AR$7),"",IF(LEFT(AA14,1)<>"*",LEFT(AA14,FIND("-",AA14)-1)-0,MID(AA14,2,FIND("-",AA14)-2)-0)) ->  | CB14: =IF(OR(ISERROR(FIND("-",AB14)),AN14>'export html'!$AR$7),"",IF(LEFT(AB14,1)<>"*",LEFT(AB14,FIND("-",AB14)-1)-0,MID(AB14,2,FIND("-",AB14)-2)-0)) ->  | CC14: 10 | CD14: =IF(OR(ISERROR(FIND("-",Q14)),AC14<='export html'!$AR$7),"",IF(LEFT(Q14,1)<>"*",LEFT(Q14,FIND("-",Q14)-1)-0,MID(Q14,2,FIND("-",Q14)-2)-0)) -> 1 | CE14: =IF(OR(ISERROR(FIND("-",R14)),AD14<='export html'!$AR$7),"",IF(LEFT(R14,1)<>"*",LEFT(R14,FIND("-",R14)-1)-0,MID(R14,2,FIND("-",R14)-2)-0)) ->  | CF14: =IF(OR(ISERROR(FIND("-",S14)),AE14<='export html'!$AR$7),"",IF(LEFT(S14,1)<>"*",LEFT(S14,FIND("-",S14)-1)-0,MID(S14,2,FIND("-",S14)-2)-0)) ->  | CG14: =IF(OR(ISERROR(FIND("-",T14)),AF14<='export html'!$AR$7),"",IF(LEFT(T14,1)<>"*",LEFT(T14,FIND("-",T14)-1)-0,MID(T14,2,FIND("-",T14)-2)-0)) ->  | CH14: =IF(OR(ISERROR(FIND("-",U14)),AG14<='export html'!$AR$7),"",IF(LEFT(U14,1)<>"*",LEFT(U14,FIND("-",U14)-1)-0,MID(U14,2,FIND("-",U14)-2)-0)) ->  | CI14: =IF(OR(ISERROR(FIND("-",V14)),AH14<='export html'!$AR$7),"",IF(LEFT(V14,1)<>"*",LEFT(V14,FIND("-",V14)-1)-0,MID(V14,2,FIND("-",V14)-2)-0)) -> 3 | CJ14: =IF(OR(ISERROR(FIND("-",W14)),AI14<='export html'!$AR$7),"",IF(LEFT(W14,1)<>"*",LEFT(W14,FIND("-",W14)-1)-0,MID(W14,2,FIND("-",W14)-2)-0)) ->  | CK14: =IF(OR(ISERROR(FIND("-",X14)),AJ14<='export html'!$AR$7),"",IF(LEFT(X14,1)<>"*",LEFT(X14,FIND("-",X14)-1)-0,MID(X14,2,FIND("-",X14)-2)-0)) ->  | CL14: =IF(OR(ISERROR(FIND("-",Y14)),AK14<='export html'!$AR$7),"",IF(LEFT(Y14,1)<>"*",LEFT(Y14,FIND("-",Y14)-1)-0,MID(Y14,2,FIND("-",Y14)-2)-0)) ->  | CN14: =IF(OR(ISERROR(FIND("-",AA14)),AM14<='export html'!$AR$7),"",IF(LEFT(AA14,1)<>"*",LEFT(AA14,FIND("-",AA14)-1)-0,MID(AA14,2,FIND("-",AA14)-2)-0)) -> 2 | CO14: =IF(OR(ISERROR(FIND("-",AB14)),AN14<='export html'!$AR$7),"",IF(LEFT(AB14,1)<>"*",LEFT(AB14,FIND("-",AB14)-1)-0,MID(AB14,2,FIND("-",AB14)-2)-0)) -> 5 | CP14: 10
C15: 11 | D15: Racing Emblem | E15: =3*H15+J15 -> 16 | F15: =SUM(H15:J15) -> 16 | G15: - | H15: 4 | I15: 8 | J15: 4 | K15: 29 | L15: 34 | M15: =K15-L15 -> -5 | N15: =3*F15-E15 -> 32 | P15: Racing Emblem | T15: 1-1 | U15: 0-1 | V15: 1-3 | W15: 1-1 | X15: 3-3 | Z15: 2-3 | AB15: 0-1 | AC15: 24 | AD15: 23 | AE15: 26 | AF15: 15 | AG15: 17 | AH15: 3 | AI15: 12 | AJ15: 5 | AK15: 21 | AL15: 7 | AN15: 9 | AO15: 2024-03-24 | AP15: 2024-03-17 | AQ15: 2024-04-14 | AR15: 2024-01-14 | AS15: 2024-01-28 | AT15: 2023-09-17 | AU15: 2023-11-19 | AV15: 2023-10-01 | AW15: 2024-03-03 | AX15: 2023-10-15 | AZ15: 2023-10-29 | BB15: 10.92110911 | BC15: Racing Emblem | BD15: 16 | BE15: 16 | BF15: =CHOOSE(StandBer,COUNTIF(BQ41:CB41,"t")+COUNTIF(CA31:CA42,"u")+COUNTIF(CD41:CO41,"t")+COUNTIF(CN31:CN42,"u"),COUNTIF(BQ41:CB41,"t")+COUNTIF(CA31:CA42,"u"),COUNTIF(CD41:CO41,"t")+COUNTIF(CN31:CN42,"u"),COUNTIF(BQ41:CB41,"t")+COUNTIF(CD41:CO41,"t"),COUNTIF(CA31:CA42,"u")+COUNTIF(CN31:CN42,"u")) -> 4 | BG15: =CHOOSE(StandBer,COUNTIF(BQ41:CB41,"u")+COUNTIF(CA31:CA42,"t")+COUNTIF(CD41:CO41,"u")+COUNTIF(CN31:CN42,"t"),COUNTIF(BQ41:CB41,"u")+COUNTIF(CA31:CA42,"t"),COUNTIF(CD41:CO41,"u")+COUNTIF(CN31:CN42,"t"),COUNTIF(BQ41:CB41,"u")+COUNTIF(CD41:CO41,"u"),COUNTIF(CA31:CA42,"t")+COUNTIF(CN31:CN42,"t"))+BL15 -> 8 | BH15: =CHOOSE(StandBer,COUNTIF(BQ41:CB41,"g")+COUNTIF(CA31:CA42,"g")+COUNTIF(CD41:CO41,"g")+COUNTIF(CN31:CN42,"g"),COUNTIF(BQ41:CB41,"g")+COUNTIF(CA31:CA42,"g"),COUNTIF(CD41:CO41,"g")+COUNTIF(CN31:CN42,"g"),COUNTIF(BQ41:CB41,"g")+COUNTIF(CD41:CO41,"g"),COUNTIF(CA31:CA42,"g")+COUNTIF(CN31:CN42,"g")) -> 4 | BI15: =CHOOSE(StandBer,SUM(BQ15:CB15)+SUM(CA18:CA29)+SUM(CD15:CO15)+SUM(CN18:CN29),SUM(BQ15:CB15)+SUM(CA18:CA29),SUM(CD15:CO15)+SUM(CN18:CN29),SUM(BQ15:CB15)+SUM(CD15:CO15),SUM(CA18:CA29)+SUM(CN18:CN29))-5*BL15 -> 29 | BJ15: =CHOOSE(StandBer,SUM(CA5:CA16)+SUM(BQ28:CB28)+SUM(CN5:CN16)+SUM(CD28:CO28),SUM(CA5:CA16)+SUM(BQ28:CB28),SUM(CN5:CN16)+SUM(CD28:CO28),SUM(CA5:CA16)+SUM(CN5:CN16),SUM(BQ28:CB28)+SUM(CD28:CO28)) -> 34 | BK15: -5 | BL15: =CHOOSE(StandBer,COUNTIF(BQ41:CB41,"ff")+COUNTIF(CA31:CA42,"ff")+COUNTIF(CD41:CO41,"ff")+COUNTIF(CN31:CN42,"ff"),COUNTIF(BQ41:CB41,"ff")+COUNTIF(CA31:CA42,"ff"),COUNTIF(CD41:CO41,"ff")+COUNTIF(CN31:CN42,"ff"),COUNTIF(BQ41:CB41,"ff")+COUNTIF(CD41:CO41,"ff"),COUNTIF(CA31:CA42,"ff")+COUNTIF(CN31:CN42,"ff")) -> 0 | BM15: 11 | BN15: 10.92110911 | BP15: 11 | BQ15: =IF(OR(ISERROR(FIND("-",Q15)),AC15>'export html'!$AR$7),"",IF(LEFT(Q15,1)<>"*",LEFT(Q15,FIND("-",Q15)-1)-0,MID(Q15,2,FIND("-",Q15)-2)-0)) ->  | BR15: =IF(OR(ISERROR(FIND("-",R15)),AD15>'export html'!$AR$7),"",IF(LEFT(R15,1)<>"*",LEFT(R15,FIND("-",R15)-1)-0,MID(R15,2,FIND("-",R15)-2)-0)) ->  | BS15: =IF(OR(ISERROR(FIND("-",S15)),AE15>'export html'!$AR$7),"",IF(LEFT(S15,1)<>"*",LEFT(S15,FIND("-",S15)-1)-0,MID(S15,2,FIND("-",S15)-2)-0)) ->  | BT15: =IF(OR(ISERROR(FIND("-",T15)),AF15>'export html'!$AR$7),"",IF(LEFT(T15,1)<>"*",LEFT(T15,FIND("-",T15)-1)-0,MID(T15,2,FIND("-",T15)-2)-0)) ->  | BU15: =IF(OR(ISERROR(FIND("-",U15)),AG15>'export html'!$AR$7),"",IF(LEFT(U15,1)<>"*",LEFT(U15,FIND("-",U15)-1)-0,MID(U15,2,FIND("-",U15)-2)-0)) ->  | BV15: =IF(OR(ISERROR(FIND("-",V15)),AH15>'export html'!$AR$7),"",IF(LEFT(V15,1)<>"*",LEFT(V15,FIND("-",V15)-1)-0,MID(V15,2,FIND("-",V15)-2)-0)) -> 1 | BW15: =IF(OR(ISERROR(FIND("-",W15)),AI15>'export html'!$AR$7),"",IF(LEFT(W15,1)<>"*",LEFT(W15,FIND("-",W15)-1)-0,MID(W15,2,FIND("-",W15)-2)-0)) ->  | BX15: =IF(OR(ISERROR(FIND("-",X15)),AJ15>'export html'!$AR$7),"",IF(LEFT(X15,1)<>"*",LEFT(X15,FIND("-",X15)-1)-0,MID(X15,2,FIND("-",X15)-2)-0)) -> 3 | BY15: =IF(OR(ISERROR(FIND("-",Y15)),AK15>'export html'!$AR$7),"",IF(LEFT(Y15,1)<>"*",LEFT(Y15,FIND("-",Y15)-1)-0,MID(Y15,2,FIND("-",Y15)-2)-0)) ->  | BZ15: =IF(OR(ISERROR(FIND("-",Z15)),AL15>'export html'!$AR$7),"",IF(LEFT(Z15,1)<>"*",LEFT(Z15,FIND("-",Z15)-1)-0,MID(Z15,2,FIND("-",Z15)-2)-0)) -> 2 | CB15: =IF(OR(ISERROR(FIND("-",AB15)),AN15>'export html'!$AR$7),"",IF(LEFT(AB15,1)<>"*",LEFT(AB15,FIND("-",AB15)-1)-0,MID(AB15,2,FIND("-",AB15)-2)-0)) -> 0 | CC15: 11 | CD15: =IF(OR(ISERROR(FIND("-",Q15)),AC15<='export html'!$AR$7),"",IF(LEFT(Q15,1)<>"*",LEFT(Q15,FIND("-",Q15)-1)-0,MID(Q15,2,FIND("-",Q15)-2)-0)) ->  | CE15: =IF(OR(ISERROR(FIND("-",R15)),AD15<='export html'!$AR$7),"",IF(LEFT(R15,1)<>"*",LEFT(R15,FIND("-",R15)-1)-0,MID(R15,2,FIND("-",R15)-2)-0)) ->  | CF15: =IF(OR(ISERROR(FIND("-",S15)),AE15<='export html'!$AR$7),"",IF(LEFT(S15,1)<>"*",LEFT(S15,FIND("-",S15)-1)-0,MID(S15,2,FIND("-",S15)-2)-0)) ->  | CG15: =IF(OR(ISERROR(FIND("-",T15)),AF15<='export html'!$AR$7),"",IF(LEFT(T15,1)<>"*",LEFT(T15,FIND("-",T15)-1)-0,MID(T15,2,FIND("-",T15)-2)-0)) -> 1 | CH15: =IF(OR(ISERROR(FIND("-",U15)),AG15<='export html'!$AR$7),"",IF(LEFT(U15,1)<>"*",LEFT(U15,FIND("-",U15)-1)-0,MID(U15,2,FIND("-",U15)-2)-0)) -> 0 | CI15: =IF(OR(ISERROR(FIND("-",V15)),AH15<='export html'!$AR$7),"",IF(LEFT(V15,1)<>"*",LEFT(V15,FIND("-",V15)-1)-0,MID(V15,2,FIND("-",V15)-2)-0)) ->  | CJ15: =IF(OR(ISERROR(FIND("-",W15)),AI15<='export html'!$AR$7),"",IF(LEFT(W15,1)<>"*",LEFT(W15,FIND("-",W15)-1)-0,MID(W15,2,FIND("-",W15)-2)-0)) -> 1 | CK15: =IF(OR(ISERROR(FIND("-",X15)),AJ15<='export html'!$AR$7),"",IF(LEFT(X15,1)<>"*",LEFT(X15,FIND("-",X15)-1)-0,MID(X15,2,FIND("-",X15)-2)-0)) ->  | CL15: =IF(OR(ISERROR(FIND("-",Y15)),AK15<='export html'!$AR$7),"",IF(LEFT(Y15,1)<>"*",LEFT(Y15,FIND("-",Y15)-1)-0,MID(Y15,2,FIND("-",Y15)-2)-0)) ->  | CM15: =IF(OR(ISERROR(FIND("-",Z15)),AL15<='export html'!$AR$7),"",IF(LEFT(Z15,1)<>"*",LEFT(Z15,FIND("-",Z15)-1)-0,MID(Z15,2,FIND("-",Z15)-2)-0)) ->  | CO15: =IF(OR(ISERROR(FIND("-",AB15)),AN15<='export html'!$AR$7),"",IF(LEFT(AB15,1)<>"*",LEFT(AB15,FIND("-",AB15)-1)-0,MID(AB15,2,FIND("-",AB15)-2)-0)) ->  | CP15: 11
C16: 12 | D16: Jolika | E16: 6 | F16: 16 | G16: - | H16: 1 | I16: 12 | J16: 3 | K16: 13 | L16: 43 | M16: -30 | N16: 42 | P16: De Vrede | Q16: 5-0 | R16: 2-1 | U16: 2-3 | V16: 6-2 | W16: 2-1 | X16: 4-1 | Y16: 1-1 | Z16: 1-1 | AC16: 20 | AD16: 8 | AE16: 24 | AF16: 26 | AG16: 15 | AH16: 1 | AI16: 10 | AJ16: 3 | AK16: 19 | AL16: 5 | AM16: 22 | AO16: 2024-02-25 | AP16: 2023-10-22 | AQ16: 2024-03-24 | AR16: 2024-04-14 | AS16: 2024-01-14 | AT16: 2023-09-03 | AU16: 2023-11-05 | AV16: 2023-09-17 | AW16: 2024-02-18 | AX16: 2023-10-01 | AY16: 2024-03-10 | BB16: 5.980606071 | BC16: De Vrede | BD16: 22 | BE16: 17 | BF16: =CHOOSE(StandBer,COUNTIF(BQ42:CB42,"t")+COUNTIF(CB31:CB42,"u")+COUNTIF(CD42:CO42,"t")+COUNTIF(CO31:CO42,"u"),COUNTIF(BQ42:CB42,"t")+COUNTIF(CB31:CB42,"u"),COUNTIF(CD42:CO42,"t")+COUNTIF(CO31:CO42,"u"),COUNTIF(BQ42:CB42,"t")+COUNTIF(CD42:CO42,"t"),COUNTIF(CB31:CB42,"u")+COUNTIF(CO31:CO42,"u")) -> 6 | BG16: =CHOOSE(StandBer,COUNTIF(BQ42:CB42,"u")+COUNTIF(CB31:CB42,"t")+COUNTIF(CD42:CO42,"u")+COUNTIF(CO31:CO42,"t"),COUNTIF(BQ42:CB42,"u")+COUNTIF(CB31:CB42,"t"),COUNTIF(CD42:CO42,"u")+COUNTIF(CO31:CO42,"t"),COUNTIF(BQ42:CB42,"u")+COUNTIF(CD42:CO42,"u"),COUNTIF(CB31:CB42,"t")+COUNTIF(CO31:CO42,"t"))+BL16 -> 7 | BH16: =CHOOSE(StandBer,COUNTIF(BQ42:CB42,"g")+COUNTIF(CB31:CB42,"g")+COUNTIF(CD42:CO42,"g")+COUNTIF(CO31:CO42,"g"),COUNTIF(BQ42:CB42,"g")+COUNTIF(CB31:CB42,"g"),COUNTIF(CD42:CO42,"g")+COUNTIF(CO31:CO42,"g"),COUNTIF(BQ42:CB42,"g")+COUNTIF(CD42:CO42,"g"),COUNTIF(CB31:CB42,"g")+COUNTIF(CO31:CO42,"g")) -> 4 | BI16: =CHOOSE(StandBer,SUM(BQ16:CB16)+SUM(CB18:CB29)+SUM(CD16:CO16)+SUM(CO18:CO29),SUM(BQ16:CB16)+SUM(CB18:CB29),SUM(CD16:CO16)+SUM(CO18:CO29),SUM(BQ16:CB16)+SUM(CD16:CO16),SUM(CB18:CB29)+SUM(CO18:CO29))-5*BL16 -> 43 | BJ16: =CHOOSE(StandBer,SUM(CB5:CB16)+SUM(BQ29:CB29)+SUM(CO5:CO16)+SUM(CD29:CO29),SUM(CB5:CB16)+SUM(BQ29:CB29),SUM(CO5:CO16)+SUM(CD29:CO29),SUM(CB5:CB16)+SUM(CO5:CO16),SUM(BQ29:CB29)+SUM(CD29:CO29)) -> 42 | BK16: 1 | BL16: =CHOOSE(StandBer,COUNTIF(BQ42:CB42,"ff")+COUNTIF(CB31:CB42,"ff")+COUNTIF(CD42:CO42,"ff")+COUNTIF(CO31:CO42,"ff"),COUNTIF(BQ42:CB42,"ff")+COUNTIF(CB31:CB42,"ff"),COUNTIF(CD42:CO42,"ff")+COUNTIF(CO31:CO42,"ff"),COUNTIF(BQ42:CB42,"ff")+COUNTIF(CD42:CO42,"ff"),COUNTIF(CB31:CB42,"ff")+COUNTIF(CO31:CO42,"ff")) -> 0 | BM16: 12 | BN16: 11.92121212 | BP16: 12 | BQ16: =IF(OR(ISERROR(FIND("-",Q16)),AC16>'export html'!$AR$7),"",IF(LEFT(Q16,1)<>"*",LEFT(Q16,FIND("-",Q16)-1)-0,MID(Q16,2,FIND("-",Q16)-2)-0)) ->  | BR16: =IF(OR(ISERROR(FIND("-",R16)),AD16>'export html'!$AR$7),"",IF(LEFT(R16,1)<>"*",LEFT(R16,FIND("-",R16)-1)-0,MID(R16,2,FIND("-",R16)-2)-0)) -> 2 | BS16: =IF(OR(ISERROR(FIND("-",S16)),AE16>'export html'!$AR$7),"",IF(LEFT(S16,1)<>"*",LEFT(S16,FIND("-",S16)-1)-0,MID(S16,2,FIND("-",S16)-2)-0)) ->  | BT16: =IF(OR(ISERROR(FIND("-",T16)),AF16>'export html'!$AR$7),"",IF(LEFT(T16,1)<>"*",LEFT(T16,FIND("-",T16)-1)-0,MID(T16,2,FIND("-",T16)-2)-0)) ->  | BU16: =IF(OR(ISERROR(FIND("-",U16)),AG16>'export html'!$AR$7),"",IF(LEFT(U16,1)<>"*",LEFT(U16,FIND("-",U16)-1)-0,MID(U16,2,FIND("-",U16)-2)-0)) ->  | BV16: =IF(OR(ISERROR(FIND("-",V16)),AH16>'export html'!$AR$7),"",IF(LEFT(V16,1)<>"*",LEFT(V16,FIND("-",V16)-1)-0,MID(V16,2,FIND("-",V16)-2)-0)) -> 6 | BW16: =IF(OR(ISERROR(FIND("-",W16)),AI16>'export html'!$AR$7),"",IF(LEFT(W16,1)<>"*",LEFT(W16,FIND("-",W16)-1)-0,MID(W16,2,FIND("-",W16)-2)-0)) -> 2 | BX16: =IF(OR(ISERROR(FIND("-",X16)),AJ16>'export html'!$AR$7),"",IF(LEFT(X16,1)<>"*",LEFT(X16,FIND("-",X16)-1)-0,MID(X16,2,FIND("-",X16)-2)-0)) -> 4 | BY16: =IF(OR(ISERROR(FIND("-",Y16)),AK16>'export html'!$AR$7),"",IF(LEFT(Y16,1)<>"*",LEFT(Y16,FIND("-",Y16)-1)-0,MID(Y16,2,FIND("-",Y16)-2)-0)) ->  | BZ16: =IF(OR(ISERROR(FIND("-",Z16)),AL16>'export html'!$AR$7),"",IF(LEFT(Z16,1)<>"*",LEFT(Z16,FIND("-",Z16)-1)-0,MID(Z16,2,FIND("-",Z16)-2)-0)) -> 1 | CA16: =IF(OR(ISERROR(FIND("-",AA16)),AM16>'export html'!$AR$7),"",IF(LEFT(AA16,1)<>"*",LEFT(AA16,FIND("-",AA16)-1)-0,MID(AA16,2,FIND("-",AA16)-2)-0)) ->  | CC16: 12 | CD16: =IF(OR(ISERROR(FIND("-",Q16)),AC16<='export html'!$AR$7),"",IF(LEFT(Q16,1)<>"*",LEFT(Q16,FIND("-",Q16)-1)-0,MID(Q16,2,FIND("-",Q16)-2)-0)) -> 5 | CE16: =IF(OR(ISERROR(FIND("-",R16)),AD16<='export html'!$AR$7),"",IF(LEFT(R16,1)<>"*",LEFT(R16,FIND("-",R16)-1)-0,MID(R16,2,FIND("-",R16)-2)-0)) ->  | CF16: =IF(OR(ISERROR(FIND("-",S16)),AE16<='export html'!$AR$7),"",IF(LEFT(S16,1)<>"*",LEFT(S16,FIND("-",S16)-1)-0,MID(S16,2,FIND("-",S16)-2)-0)) ->  | CG16: =IF(OR(ISERROR(FIND("-",T16)),AF16<='export html'!$AR$7),"",IF(LEFT(T16,1)<>"*",LEFT(T16,FIND("-",T16)-1)-0,MID(T16,2,FIND("-",T16)-2)-0)) ->  | CH16: =IF(OR(ISERROR(FIND("-",U16)),AG16<='export html'!$AR$7),"",IF(LEFT(U16,1)<>"*",LEFT(U16,FIND("-",U16)-1)-0,MID(U16,2,FIND("-",U16)-2)-0)) -> 2 | CI16: =IF(OR(ISERROR(FIND("-",V16)),AH16<='export html'!$AR$7),"",IF(LEFT(V16,1)<>"*",LEFT(V16,FIND("-",V16)-1)-0,MID(V16,2,FIND("-",V16)-2)-0)) ->  | CJ16: =IF(OR(ISERROR(FIND("-",W16)),AI16<='export html'!$AR$7),"",IF(LEFT(W16,1)<>"*",LEFT(W16,FIND("-",W16)-1)-0,MID(W16,2,FIND("-",W16)-2)-0)) ->  | CK16: =IF(OR(ISERROR(FIND("-",X16)),AJ16<='export html'!$AR$7),"",IF(LEFT(X16,1)<>"*",LEFT(X16,FIND("-",X16)-1)-0,MID(X16,2,FIND("-",X16)-2)-0)) ->  | CL16: =IF(OR(ISERROR(FIND("-",Y16)),AK16<='export html'!$AR$7),"",IF(LEFT(Y16,1)<>"*",LEFT(Y16,FIND("-",Y16)-1)-0,MID(Y16,2,FIND("-",Y16)-2)-0)) -> 1 | CM16: =IF(OR(ISERROR(FIND("-",Z16)),AL16<='export html'!$AR$7),"",IF(LEFT(Z16,1)<>"*",LEFT(Z16,FIND("-",Z16)-1)-0,MID(Z16,2,FIND("-",Z16)-2)-0)) ->  | CN16: =IF(OR(ISERROR(FIND("-",AA16)),AM16<='export html'!$AR$7),"",IF(LEFT(AA16,1)<>"*",LEFT(AA16,FIND("-",AA16)-1)-0,MID(AA16,2,FIND("-",AA16)-2)-0)) ->  | CP16: 12
R17: * regeling forfaits | BQ17: 1 | BR17: 2 | BS17: 3 | BT17: 4 | BU17: 5 | BV17: 6 | BW17: 7 | BX17: 8 | BY17: 9 | BZ17: 10 | CA17: 11 | CB17: 12 | CD17: 1 | CE17: 2 | CF17: 3 | CG17: 4 | CH17: 5 | CI17: 6 | CJ17: 7 | CK17: 8 | CL17: 9 | CM17: 10 | CN17: 11 | CO17: 12
BP18: 1 | BR18: =IF(OR(ISERROR(FIND("-",R5)),AD5>'export html'!$AR$7),"",IF(RIGHT(R5)<>"*",MID(R5,FIND("-",R5)+1,LEN(R5)-FIND("-",R5))-0,MID(R5,FIND("-",R5)+1,LEN(R5)-FIND("-",R5)-1)-0)) -> 1 | BS18: =IF(OR(ISERROR(FIND("-",S5)),AE5>'export html'!$AR$7),"",IF(RIGHT(S5)<>"*",MID(S5,FIND("-",S5)+1,LEN(S5)-FIND("-",S5))-0,MID(S5,FIND("-",S5)+1,LEN(S5)-FIND("-",S5)-1)-0)) ->  | BT18: =IF(OR(ISERROR(FIND("-",T5)),AF5>'export html'!$AR$7),"",IF(RIGHT(T5)<>"*",MID(T5,FIND("-",T5)+1,LEN(T5)-FIND("-",T5))-0,MID(T5,FIND("-",T5)+1,LEN(T5)-FIND("-",T5)-1)-0)) ->  | BU18: =IF(OR(ISERROR(FIND("-",U5)),AG5>'export html'!$AR$7),"",IF(RIGHT(U5)<>"*",MID(U5,FIND("-",U5)+1,LEN(U5)-FIND("-",U5))-0,MID(U5,FIND("-",U5)+1,LEN(U5)-FIND("-",U5)-1)-0)) ->  | BV18: =IF(OR(ISERROR(FIND("-",V5)),AH5>'export html'!$AR$7),"",IF(RIGHT(V5)<>"*",MID(V5,FIND("-",V5)+1,LEN(V5)-FIND("-",V5))-0,MID(V5,FIND("-",V5)+1,LEN(V5)-FIND("-",V5)-1)-0)) ->  | BW18: =IF(OR(ISERROR(FIND("-",W5)),AI5>'export html'!$AR$7),"",IF(RIGHT(W5)<>"*",MID(W5,FIND("-",W5)+1,LEN(W5)-FIND("-",W5))-0,MID(W5,FIND("-",W5)+1,LEN(W5)-FIND("-",W5)-1)-0)) ->  | BX18: =IF(OR(ISERROR(FIND("-",X5)),AJ5>'export html'!$AR$7),"",IF(RIGHT(X5)<>"*",MID(X5,FIND("-",X5)+1,LEN(X5)-FIND("-",X5))-0,MID(X5,FIND("-",X5)+1,LEN(X5)-FIND("-",X5)-1)-0)) ->  | BY18: =IF(OR(ISERROR(FIND("-",Y5)),AK5>'export html'!$AR$7),"",IF(RIGHT(Y5)<>"*",MID(Y5,FIND("-",Y5)+1,LEN(Y5)-FIND("-",Y5))-0,MID(Y5,FIND("-",Y5)+1,LEN(Y5)-FIND("-",Y5)-1)-0)) -> 2 | BZ18: =IF(OR(ISERROR(FIND("-",Z5)),AL5>'export html'!$AR$7),"",IF(RIGHT(Z5)<>"*",MID(Z5,FIND("-",Z5)+1,LEN(Z5)-FIND("-",Z5))-0,MID(Z5,FIND("-",Z5)+1,LEN(Z5)-FIND("-",Z5)-1)-0)) -> 3 | CA18: =IF(OR(ISERROR(FIND("-",AA5)),AM5>'export html'!$AR$7),"",IF(RIGHT(AA5)<>"*",MID(AA5,FIND("-",AA5)+1,LEN(AA5)-FIND("-",AA5))-0,MID(AA5,FIND("-",AA5)+1,LEN(AA5)-FIND("-",AA5)-1)-0)) -> 4 | CB18: =IF(OR(ISERROR(FIND("-",AB5)),AN5>'export html'!$AR$7),"",IF(RIGHT(AB5)<>"*",MID(AB5,FIND("-",AB5)+1,LEN(AB5)-FIND("-",AB5))-0,MID(AB5,FIND("-",AB5)+1,LEN(AB5)-FIND("-",AB5)-1)-0)) -> 3 | CC18: 1 | CE18: =IF(OR(ISERROR(FIND("-",R5)),AD5<='export html'!$AR$7),"",IF(RIGHT(R5)<>"*",MID(R5,FIND("-",R5)+1,LEN(R5)-FIND("-",R5))-0,MID(R5,FIND("-",R5)+1,LEN(R5)-FIND("-",R5)-1)-0)) ->  | CF18: =IF(OR(ISERROR(FIND("-",S5)),AE5<='export html'!$AR$7),"",IF(RIGHT(S5)<>"*",MID(S5,FIND("-",S5)+1,LEN(S5)-FIND("-",S5))-0,MID(S5,FIND("-",S5)+1,LEN(S5)-FIND("-",S5)-1)-0)) -> 3 | CG18: =IF(OR(ISERROR(FIND("-",T5)),AF5<='export html'!$AR$7),"",IF(RIGHT(T5)<>"*",MID(T5,FIND("-",T5)+1,LEN(T5)-FIND("-",T5))-0,MID(T5,FIND("-",T5)+1,LEN(T5)-FIND("-",T5)-1)-0)) -> 2 | CH18: =IF(OR(ISERROR(FIND("-",U5)),AG5<='export html'!$AR$7),"",IF(RIGHT(U5)<>"*",MID(U5,FIND("-",U5)+1,LEN(U5)-FIND("-",U5))-0,MID(U5,FIND("-",U5)+1,LEN(U5)-FIND("-",U5)-1)-0)) ->  | CI18: =IF(OR(ISERROR(FIND("-",V5)),AH5<='export html'!$AR$7),"",IF(RIGHT(V5)<>"*",MID(V5,FIND("-",V5)+1,LEN(V5)-FIND("-",V5))-0,MID(V5,FIND("-",V5)+1,LEN(V5)-FIND("-",V5)-1)-0)) ->  | CJ18: =IF(OR(ISERROR(FIND("-",W5)),AI5<='export html'!$AR$7),"",IF(RIGHT(W5)<>"*",MID(W5,FIND("-",W5)+1,LEN(W5)-FIND("-",W5))-0,MID(W5,FIND("-",W5)+1,LEN(W5)-FIND("-",W5)-1)-0)) ->  | CK18: =IF(OR(ISERROR(FIND("-",X5)),AJ5<='export html'!$AR$7),"",IF(RIGHT(X5)<>"*",MID(X5,FIND("-",X5)+1,LEN(X5)-FIND("-",X5))-0,MID(X5,FIND("-",X5)+1,LEN(X5)-FIND("-",X5)-1)-0)) -> 5 | CL18: =IF(OR(ISERROR(FIND("-",Y5)),AK5<='export html'!$AR$7),"",IF(RIGHT(Y5)<>"*",MID(Y5,FIND("-",Y5)+1,LEN(Y5)-FIND("-",Y5))-0,MID(Y5,FIND("-",Y5)+1,LEN(Y5)-FIND("-",Y5)-1)-0)) ->  | CM18: =IF(OR(ISERROR(FIND("-",Z5)),AL5<='export html'!$AR$7),"",IF(RIGHT(Z5)<>"*",MID(Z5,FIND("-",Z5)+1,LEN(Z5)-FIND("-",Z5))-0,MID(Z5,FIND("-",Z5)+1,LEN(Z5)-FIND("-",Z5)-1)-0)) ->  | CN18: =IF(OR(ISERROR(FIND("-",AA5)),AM5<='export html'!$AR$7),"",IF(RIGHT(AA5)<>"*",MID(AA5,FIND("-",AA5)+1,LEN(AA5)-FIND("-",AA5))-0,MID(AA5,FIND("-",AA5)+1,LEN(AA5)-FIND("-",AA5)-1)-0)) ->  | CO18: =IF(OR(ISERROR(FIND("-",AB5)),AN5<='export html'!$AR$7),"",IF(RIGHT(AB5)<>"*",MID(AB5,FIND("-",AB5)+1,LEN(AB5)-FIND("-",AB5))-0,MID(AB5,FIND("-",AB5)+1,LEN(AB5)-FIND("-",AB5)-1)-0)) ->  | CP18: 1
E19: ='export html'!V1 -> Recentste duels op | F19: 2024-02-27 | Q19: Topschutters: | T19: ="(na " & SUM(spelersstatistieken!AI1) & " match" & IF(SUM(spelersstatistieken!AI1) = 1, "", "en" ) & ")" -> (na 18 matchen) | X19: Man van het Seizoen: | AB19: ="(na " & COUNTIF( spelersstatistieken!AL40:BG40, ">0" ) & " match" & IF( COUNTIF( spelersstatistieken!AL40:BG40, ">0" ) = 1, "", "en" ) & ")" -> (na 18 matchen) | BP19: 2 | BQ19: =IF(OR(ISERROR(FIND("-",Q6)),AC6>'export html'!$AR$7),"",IF(RIGHT(Q6)<>"*",MID(Q6,FIND("-",Q6)+1,LEN(Q6)-FIND("-",Q6))-0,MID(Q6,FIND("-",Q6)+1,LEN(Q6)-FIND("-",Q6)-1)-0)) ->  | BS19: =IF(OR(ISERROR(FIND("-",S6)),AE6>'export html'!$AR$7),"",IF(RIGHT(S6)<>"*",MID(S6,FIND("-",S6)+1,LEN(S6)-FIND("-",S6))-0,MID(S6,FIND("-",S6)+1,LEN(S6)-FIND("-",S6)-1)-0)) ->  | BT19: =IF(OR(ISERROR(FIND("-",T6)),AF6>'export html'!$AR$7),"",IF(RIGHT(T6)<>"*",MID(T6,FIND("-",T6)+1,LEN(T6)-FIND("-",T6))-0,MID(T6,FIND("-",T6)+1,LEN(T6)-FIND("-",T6)-1)-0)) -> 0 | BU19: =IF(OR(ISERROR(FIND("-",U6)),AG6>'export html'!$AR$7),"",IF(RIGHT(U6)<>"*",MID(U6,FIND("-",U6)+1,LEN(U6)-FIND("-",U6))-0,MID(U6,FIND("-",U6)+1,LEN(U6)-FIND("-",U6)-1)-0)) -> 0 | BV19: =IF(OR(ISERROR(FIND("-",V6)),AH6>'export html'!$AR$7),"",IF(RIGHT(V6)<>"*",MID(V6,FIND("-",V6)+1,LEN(V6)-FIND("-",V6))-0,MID(V6,FIND("-",V6)+1,LEN(V6)-FIND("-",V6)-1)-0)) ->  | BW19: =IF(OR(ISERROR(FIND("-",W6)),AI6>'export html'!$AR$7),"",IF(RIGHT(W6)<>"*",MID(W6,FIND("-",W6)+1,LEN(W6)-FIND("-",W6))-0,MID(W6,FIND("-",W6)+1,LEN(W6)-FIND("-",W6)-1)-0)) ->  | BX19: =IF(OR(ISERROR(FIND("-",X6)),AJ6>'export html'!$AR$7),"",IF(RIGHT(X6)<>"*",MID(X6,FIND("-",X6)+1,LEN(X6)-FIND("-",X6))-0,MID(X6,FIND("-",X6)+1,LEN(X6)-FIND("-",X6)-1)-0)) ->  | BY19: =IF(OR(ISERROR(FIND("-",Y6)),AK6>'export html'!$AR$7),"",IF(RIGHT(Y6)<>"*",MID(Y6,FIND("-",Y6)+1,LEN(Y6)-FIND("-",Y6))-0,MID(Y6,FIND("-",Y6)+1,LEN(Y6)-FIND("-",Y6)-1)-0)) -> 0 | BZ19: =IF(OR(ISERROR(FIND("-",Z6)),AL6>'export html'!$AR$7),"",IF(RIGHT(Z6)<>"*",MID(Z6,FIND("-",Z6)+1,LEN(Z6)-FIND("-",Z6))-0,MID(Z6,FIND("-",Z6)+1,LEN(Z6)-FIND("-",Z6)-1)-0)) ->  | CA19: =IF(OR(ISERROR(FIND("-",AA6)),AM6>'export html'!$AR$7),"",IF(RIGHT(AA6)<>"*",MID(AA6,FIND("-",AA6)+1,LEN(AA6)-FIND("-",AA6))-0,MID(AA6,FIND("-",AA6)+1,LEN(AA6)-FIND("-",AA6)-1)-0)) -> 3 | CB19: =IF(OR(ISERROR(FIND("-",AB6)),AN6>'export html'!$AR$7),"",IF(RIGHT(AB6)<>"*",MID(AB6,FIND("-",AB6)+1,LEN(AB6)-FIND("-",AB6))-0,MID(AB6,FIND("-",AB6)+1,LEN(AB6)-FIND("-",AB6)-1)-0)) ->  | CC19: 2 | CD19: =IF(OR(ISERROR(FIND("-",Q6)),AC6<='export html'!$AR$7),"",IF(RIGHT(Q6)<>"*",MID(Q6,FIND("-",Q6)+1,LEN(Q6)-FIND("-",Q6))-0,MID(Q6,FIND("-",Q6)+1,LEN(Q6)-FIND("-",Q6)-1)-0)) ->  | CF19: =IF(OR(ISERROR(FIND("-",S6)),AE6<='export html'!$AR$7),"",IF(RIGHT(S6)<>"*",MID(S6,FIND("-",S6)+1,LEN(S6)-FIND("-",S6))-0,MID(S6,FIND("-",S6)+1,LEN(S6)-FIND("-",S6)-1)-0)) ->  | CG19: =IF(OR(ISERROR(FIND("-",T6)),AF6<='export html'!$AR$7),"",IF(RIGHT(T6)<>"*",MID(T6,FIND("-",T6)+1,LEN(T6)-FIND("-",T6))-0,MID(T6,FIND("-",T6)+1,LEN(T6)-FIND("-",T6)-1)-0)) ->  | CH19: =IF(OR(ISERROR(FIND("-",U6)),AG6<='export html'!$AR$7),"",IF(RIGHT(U6)<>"*",MID(U6,FIND("-",U6)+1,LEN(U6)-FIND("-",U6))-0,MID(U6,FIND("-",U6)+1,LEN(U6)-FIND("-",U6)-1)-0)) ->  | CI19: =IF(OR(ISERROR(FIND("-",V6)),AH6<='export html'!$AR$7),"",IF(RIGHT(V6)<>"*",MID(V6,FIND("-",V6)+1,LEN(V6)-FIND("-",V6))-0,MID(V6,FIND("-",V6)+1,LEN(V6)-FIND("-",V6)-1)-0)) -> 0 | CJ19: =IF(OR(ISERROR(FIND("-",W6)),AI6<='export html'!$AR$7),"",IF(RIGHT(W6)<>"*",MID(W6,FIND("-",W6)+1,LEN(W6)-FIND("-",W6))-0,MID(W6,FIND("-",W6)+1,LEN(W6)-FIND("-",W6)-1)-0)) ->  | CK19: =IF(OR(ISERROR(FIND("-",X6)),AJ6<='export html'!$AR$7),"",IF(RIGHT(X6)<>"*",MID(X6,FIND("-",X6)+1,LEN(X6)-FIND("-",X6))-0,MID(X6,FIND("-",X6)+1,LEN(X6)-FIND("-",X6)-1)-0)) -> 1 | CL19: =IF(OR(ISERROR(FIND("-",Y6)),AK6<='export html'!$AR$7),"",IF(RIGHT(Y6)<>"*",MID(Y6,FIND("-",Y6)+1,LEN(Y6)-FIND("-",Y6))-0,MID(Y6,FIND("-",Y6)+1,LEN(Y6)-FIND("-",Y6)-1)-0)) ->  | CM19: =IF(OR(ISERROR(FIND("-",Z6)),AL6<='export html'!$AR$7),"",IF(RIGHT(Z6)<>"*",MID(Z6,FIND("-",Z6)+1,LEN(Z6)-FIND("-",Z6))-0,MID(Z6,FIND("-",Z6)+1,LEN(Z6)-FIND("-",Z6)-1)-0)) -> 2 | CN19: =IF(OR(ISERROR(FIND("-",AA6)),AM6<='export html'!$AR$7),"",IF(RIGHT(AA6)<>"*",MID(AA6,FIND("-",AA6)+1,LEN(AA6)-FIND("-",AA6))-0,MID(AA6,FIND("-",AA6)+1,LEN(AA6)-FIND("-",AA6)-1)-0)) ->  | CO19: =IF(OR(ISERROR(FIND("-",AB6)),AN6<='export html'!$AR$7),"",IF(RIGHT(AB6)<>"*",MID(AB6,FIND("-",AB6)+1,LEN(AB6)-FIND("-",AB6))-0,MID(AB6,FIND("-",AB6)+1,LEN(AB6)-FIND("-",AB6)-1)-0)) ->  | CP19: 2
BP20: 3 | BQ20: =IF(OR(ISERROR(FIND("-",Q7)),AC7>'export html'!$AR$7),"",IF(RIGHT(Q7)<>"*",MID(Q7,FIND("-",Q7)+1,LEN(Q7)-FIND("-",Q7))-0,MID(Q7,FIND("-",Q7)+1,LEN(Q7)-FIND("-",Q7)-1)-0)) -> 1 | BR20: =IF(OR(ISERROR(FIND("-",R7)),AD7>'export html'!$AR$7),"",IF(RIGHT(R7)<>"*",MID(R7,FIND("-",R7)+1,LEN(R7)-FIND("-",R7))-0,MID(R7,FIND("-",R7)+1,LEN(R7)-FIND("-",R7)-1)-0)) ->  | BT20: =IF(OR(ISERROR(FIND("-",T7)),AF7>'export html'!$AR$7),"",IF(RIGHT(T7)<>"*",MID(T7,FIND("-",T7)+1,LEN(T7)-FIND("-",T7))-0,MID(T7,FIND("-",T7)+1,LEN(T7)-FIND("-",T7)-1)-0)) ->  | BU20: =IF(OR(ISERROR(FIND("-",U7)),AG7>'export html'!$AR$7),"",IF(RIGHT(U7)<>"*",MID(U7,FIND("-",U7)+1,LEN(U7)-FIND("-",U7))-0,MID(U7,FIND("-",U7)+1,LEN(U7)-FIND("-",U7)-1)-0)) ->  | BV20: =IF(OR(ISERROR(FIND("-",V7)),AH7>'export html'!$AR$7),"",IF(RIGHT(V7)<>"*",MID(V7,FIND("-",V7)+1,LEN(V7)-FIND("-",V7))-0,MID(V7,FIND("-",V7)+1,LEN(V7)-FIND("-",V7)-1)-0)) -> 2 | BW20: =IF(OR(ISERROR(FIND("-",W7)),AI7>'export html'!$AR$7),"",IF(RIGHT(W7)<>"*",MID(W7,FIND("-",W7)+1,LEN(W7)-FIND("-",W7))-0,MID(W7,FIND("-",W7)+1,LEN(W7)-FIND("-",W7)-1)-0)) ->  | BX20: =IF(OR(ISERROR(FIND("-",X7)),AJ7>'export html'!$AR$7),"",IF(RIGHT(X7)<>"*",MID(X7,FIND("-",X7)+1,LEN(X7)-FIND("-",X7))-0,MID(X7,FIND("-",X7)+1,LEN(X7)-FIND("-",X7)-1)-0)) -> 0 | BY20: =IF(OR(ISERROR(FIND("-",Y7)),AK7>'export html'!$AR$7),"",IF(RIGHT(Y7)<>"*",MID(Y7,FIND("-",Y7)+1,LEN(Y7)-FIND("-",Y7))-0,MID(Y7,FIND("-",Y7)+1,LEN(Y7)-FIND("-",Y7)-1)-0)) ->  | BZ20: =IF(OR(ISERROR(FIND("-",Z7)),AL7>'export html'!$AR$7),"",IF(RIGHT(Z7)<>"*",MID(Z7,FIND("-",Z7)+1,LEN(Z7)-FIND("-",Z7))-0,MID(Z7,FIND("-",Z7)+1,LEN(Z7)-FIND("-",Z7)-1)-0)) -> 3 | CA20: =IF(OR(ISERROR(FIND("-",AA7)),AM7>'export html'!$AR$7),"",IF(RIGHT(AA7)<>"*",MID(AA7,FIND("-",AA7)+1,LEN(AA7)-FIND("-",AA7))-0,MID(AA7,FIND("-",AA7)+1,LEN(AA7)-FIND("-",AA7)-1)-0)) ->  | CB20: =IF(OR(ISERROR(FIND("-",AB7)),AN7>'export html'!$AR$7),"",IF(RIGHT(AB7)<>"*",MID(AB7,FIND("-",AB7)+1,LEN(AB7)-FIND("-",AB7))-0,MID(AB7,FIND("-",AB7)+1,LEN(AB7)-FIND("-",AB7)-1)-0)) -> 2 | CC20: 3 | CD20: =IF(OR(ISERROR(FIND("-",Q7)),AC7<='export html'!$AR$7),"",IF(RIGHT(Q7)<>"*",MID(Q7,FIND("-",Q7)+1,LEN(Q7)-FIND("-",Q7))-0,MID(Q7,FIND("-",Q7)+1,LEN(Q7)-FIND("-",Q7)-1)-0)) ->  | CE20: =IF(OR(ISERROR(FIND("-",R7)),AD7<='export html'!$AR$7),"",IF(RIGHT(R7)<>"*",MID(R7,FIND("-",R7)+1,LEN(R7)-FIND("-",R7))-0,MID(R7,FIND("-",R7)+1,LEN(R7)-FIND("-",R7)-1)-0)) -> 0 | CG20: =IF(OR(ISERROR(FIND("-",T7)),AF7<='export html'!$AR$7),"",IF(RIGHT(T7)<>"*",MID(T7,FIND("-",T7)+1,LEN(T7)-FIND("-",T7))-0,MID(T7,FIND("-",T7)+1,LEN(T7)-FIND("-",T7)-1)-0)) -> 0 | CH20: =IF(OR(ISERROR(FIND("-",U7)),AG7<='export html'!$AR$7),"",IF(RIGHT(U7)<>"*",MID(U7,FIND("-",U7)+1,LEN(U7)-FIND("-",U7))-0,MID(U7,FIND("-",U7)+1,LEN(U7)-FIND("-",U7)-1)-0)) -> 4 | CI20: =IF(OR(ISERROR(FIND("-",V7)),AH7<='export html'!$AR$7),"",IF(RIGHT(V7)<>"*",MID(V7,FIND("-",V7)+1,LEN(V7)-FIND("-",V7))-0,MID(V7,FIND("-",V7)+1,LEN(V7)-FIND("-",V7)-1)-0)) ->  | CJ20: =IF(OR(ISERROR(FIND("-",W7)),AI7<='export html'!$AR$7),"",IF(RIGHT(W7)<>"*",MID(W7,FIND("-",W7)+1,LEN(W7)-FIND("-",W7))-0,MID(W7,FIND("-",W7)+1,LEN(W7)-FIND("-",W7)-1)-0)) -> 0 | CK20: =IF(OR(ISERROR(FIND("-",X7)),AJ7<='export html'!$AR$7),"",IF(RIGHT(X7)<>"*",MID(X7,FIND("-",X7)+1,LEN(X7)-FIND("-",X7))-0,MID(X7,FIND("-",X7)+1,LEN(X7)-FIND("-",X7)-1)-0)) ->  | CL20: =IF(OR(ISERROR(FIND("-",Y7)),AK7<='export html'!$AR$7),"",IF(RIGHT(Y7)<>"*",MID(Y7,FIND("-",Y7)+1,LEN(Y7)-FIND("-",Y7))-0,MID(Y7,FIND("-",Y7)+1,LEN(Y7)-FIND("-",Y7)-1)-0)) ->  | CM20: =IF(OR(ISERROR(FIND("-",Z7)),AL7<='export html'!$AR$7),"",IF(RIGHT(Z7)<>"*",MID(Z7,FIND("-",Z7)+1,LEN(Z7)-FIND("-",Z7))-0,MID(Z7,FIND("-",Z7)+1,LEN(Z7)-FIND("-",Z7)-1)-0)) ->  | CN20: =IF(OR(ISERROR(FIND("-",AA7)),AM7<='export html'!$AR$7),"",IF(RIGHT(AA7)<>"*",MID(AA7,FIND("-",AA7)+1,LEN(AA7)-FIND("-",AA7))-0,MID(AA7,FIND("-",AA7)+1,LEN(AA7)-FIND("-",AA7)-1)-0)) -> 1 | CO20: =IF(OR(ISERROR(FIND("-",AB7)),AN7<='export html'!$AR$7),"",IF(RIGHT(AB7)<>"*",MID(AB7,FIND("-",AB7)+1,LEN(AB7)-FIND("-",AB7))-0,MID(AB7,FIND("-",AB7)+1,LEN(AB7)-FIND("-",AB7)-1)-0)) ->  | CP20: 3
D21: =IF('export html'!T3="","",'export html'!T3) -> 2024-02-25 | E21: =IF('export html'!U3="","",'export html'!U3) -> 20 | F21: =IF('export html'!V3="","",'export html'!V3) -> Lucyvo - Boerenbond | N21: =IF('export html'!W3="","",'export html'!W3) -> 2-7 | Q21: =_xlfn.CHOOSECOLS(_xlfn.ANCHORARRAY( 'export html'!AF3), 2, 1 ) -> 12 | R21: Stijn Hofmans | X21: =_xlfn.CHOOSECOLS(_xlfn.ANCHORARRAY( spelersstatistieken!AG301), 2, 1 ) -> 187.5862765 | Y21: Stijn Hofmans | BP21: 4 | BQ21: =IF(OR(ISERROR(FIND("-",Q8)),AC8>'export html'!$AR$7),"",IF(RIGHT(Q8)<>"*",MID(Q8,FIND("-",Q8)+1,LEN(Q8)-FIND("-",Q8))-0,MID(Q8,FIND("-",Q8)+1,LEN(Q8)-FIND("-",Q8)-1)-0)) -> 1 | BR21: =IF(OR(ISERROR(FIND("-",R8)),AD8>'export html'!$AR$7),"",IF(RIGHT(R8)<>"*",MID(R8,FIND("-",R8)+1,LEN(R8)-FIND("-",R8))-0,MID(R8,FIND("-",R8)+1,LEN(R8)-FIND("-",R8)-1)-0)) ->  | BS21: =IF(OR(ISERROR(FIND("-",S8)),AE8>'export html'!$AR$7),"",IF(RIGHT(S8)<>"*",MID(S8,FIND("-",S8)+1,LEN(S8)-FIND("-",S8))-0,MID(S8,FIND("-",S8)+1,LEN(S8)-FIND("-",S8)-1)-0)) -> 2 | BU21: =IF(OR(ISERROR(FIND("-",U8)),AG8>'export html'!$AR$7),"",IF(RIGHT(U8)<>"*",MID(U8,FIND("-",U8)+1,LEN(U8)-FIND("-",U8))-0,MID(U8,FIND("-",U8)+1,LEN(U8)-FIND("-",U8)-1)-0)) ->  | BV21: =IF(OR(ISERROR(FIND("-",V8)),AH8>'export html'!$AR$7),"",IF(RIGHT(V8)<>"*",MID(V8,FIND("-",V8)+1,LEN(V8)-FIND("-",V8))-0,MID(V8,FIND("-",V8)+1,LEN(V8)-FIND("-",V8)-1)-0)) -> 0 | BW21: =IF(OR(ISERROR(FIND("-",W8)),AI8>'export html'!$AR$7),"",IF(RIGHT(W8)<>"*",MID(W8,FIND("-",W8)+1,LEN(W8)-FIND("-",W8))-0,MID(W8,FIND("-",W8)+1,LEN(W8)-FIND("-",W8)-1)-0)) ->  | BX21: =IF(OR(ISERROR(FIND("-",X8)),AJ8>'export html'!$AR$7),"",IF(RIGHT(X8)<>"*",MID(X8,FIND("-",X8)+1,LEN(X8)-FIND("-",X8))-0,MID(X8,FIND("-",X8)+1,LEN(X8)-FIND("-",X8)-1)-0)) -> 2 | BY21: =IF(OR(ISERROR(FIND("-",Y8)),AK8>'export html'!$AR$7),"",IF(RIGHT(Y8)<>"*",MID(Y8,FIND("-",Y8)+1,LEN(Y8)-FIND("-",Y8))-0,MID(Y8,FIND("-",Y8)+1,LEN(Y8)-FIND("-",Y8)-1)-0)) ->  | BZ21: =IF(OR(ISERROR(FIND("-",Z8)),AL8>'export html'!$AR$7),"",IF(RIGHT(Z8)<>"*",MID(Z8,FIND("-",Z8)+1,LEN(Z8)-FIND("-",Z8))-0,MID(Z8,FIND("-",Z8)+1,LEN(Z8)-FIND("-",Z8)-1)-0)) -> 5 | CA21: =IF(OR(ISERROR(FIND("-",AA8)),AM8>'export html'!$AR$7),"",IF(RIGHT(AA8)<>"*",MID(AA8,FIND("-",AA8)+1,LEN(AA8)-FIND("-",AA8))-0,MID(AA8,FIND("-",AA8)+1,LEN(AA8)-FIND("-",AA8)-1)-0)) -> 1 | CB21: =IF(OR(ISERROR(FIND("-",AB8)),AN8>'export html'!$AR$7),"",IF(RIGHT(AB8)<>"*",MID(AB8,FIND("-",AB8)+1,LEN(AB8)-FIND("-",AB8))-0,MID(AB8,FIND("-",AB8)+1,LEN(AB8)-FIND("-",AB8)-1)-0)) ->  | CC21: 4 | CD21: =IF(OR(ISERROR(FIND("-",Q8)),AC8<='export html'!$AR$7),"",IF(RIGHT(Q8)<>"*",MID(Q8,FIND("-",Q8)+1,LEN(Q8)-FIND("-",Q8))-0,MID(Q8,FIND("-",Q8)+1,LEN(Q8)-FIND("-",Q8)-1)-0)) ->  | CE21: =IF(OR(ISERROR(FIND("-",R8)),AD8<='export html'!$AR$7),"",IF(RIGHT(R8)<>"*",MID(R8,FIND("-",R8)+1,LEN(R8)-FIND("-",R8))-0,MID(R8,FIND("-",R8)+1,LEN(R8)-FIND("-",R8)-1)-0)) -> 2 | CF21: =IF(OR(ISERROR(FIND("-",S8)),AE8<='export html'!$AR$7),"",IF(RIGHT(S8)<>"*",MID(S8,FIND("-",S8)+1,LEN(S8)-FIND("-",S8))-0,MID(S8,FIND("-",S8)+1,LEN(S8)-FIND("-",S8)-1)-0)) ->  | CH21: =IF(OR(ISERROR(FIND("-",U8)),AG8<='export html'!$AR$7),"",IF(RIGHT(U8)<>"*",MID(U8,FIND("-",U8)+1,LEN(U8)-FIND("-",U8))-0,MID(U8,FIND("-",U8)+1,LEN(U8)-FIND("-",U8)-1)-0)) ->  | CI21: =IF(OR(ISERROR(FIND("-",V8)),AH8<='export html'!$AR$7),"",IF(RIGHT(V8)<>"*",MID(V8,FIND("-",V8)+1,LEN(V8)-FIND("-",V8))-0,MID(V8,FIND("-",V8)+1,LEN(V8)-FIND("-",V8)-1)-0)) ->  | CJ21: =IF(OR(ISERROR(FIND("-",W8)),AI8<='export html'!$AR$7),"",IF(RIGHT(W8)<>"*",MID(W8,FIND("-",W8)+1,LEN(W8)-FIND("-",W8))-0,MID(W8,FIND("-",W8)+1,LEN(W8)-FIND("-",W8)-1)-0)) -> 1 | CK21: =IF(OR(ISERROR(FIND("-",X8)),AJ8<='export html'!$AR$7),"",IF(RIGHT(X8)<>"*",MID(X8,FIND("-",X8)+1,LEN(X8)-FIND("-",X8))-0,MID(X8,FIND("-",X8)+1,LEN(X8)-FIND("-",X8)-1)-0)) ->  | CL21: =IF(OR(ISERROR(FIND("-",Y8)),AK8<='export html'!$AR$7),"",IF(RIGHT(Y8)<>"*",MID(Y8,FIND("-",Y8)+1,LEN(Y8)-FIND("-",Y8))-0,MID(Y8,FIND("-",Y8)+1,LEN(Y8)-FIND("-",Y8)-1)-0)) ->  | CM21: =IF(OR(ISERROR(FIND("-",Z8)),AL8<='export html'!$AR$7),"",IF(RIGHT(Z8)<>"*",MID(Z8,FIND("-",Z8)+1,LEN(Z8)-FIND("-",Z8))-0,MID(Z8,FIND("-",Z8)+1,LEN(Z8)-FIND("-",Z8)-1)-0)) ->  | CN21: =IF(OR(ISERROR(FIND("-",AA8)),AM8<='export html'!$AR$7),"",IF(RIGHT(AA8)<>"*",MID(AA8,FIND("-",AA8)+1,LEN(AA8)-FIND("-",AA8))-0,MID(AA8,FIND("-",AA8)+1,LEN(AA8)-FIND("-",AA8)-1)-0)) ->  | CO21: =IF(OR(ISERROR(FIND("-",AB8)),AN8<='export html'!$AR$7),"",IF(RIGHT(AB8)<>"*",MID(AB8,FIND("-",AB8)+1,LEN(AB8)-FIND("-",AB8))-0,MID(AB8,FIND("-",AB8)+1,LEN(AB8)-FIND("-",AB8)-1)-0)) -> 2 | CP21: 4
D22: =IF('export html'!T4="","",'export html'!T4) -> 2024-02-18 | E22: =IF('export html'!U4="","",'export html'!U4) -> 19 | F22: =IF('export html'!V4="","",'export html'!V4) -> Jolika - Lucyvo | N22: =IF('export html'!W4="","",'export html'!W4) -> 1-2 | Q22: 11 | R22: Glenn De Vinster | X22: 183.2687868 | Y22: Maarten De Groof | BP22: 5 | BQ22: =IF(OR(ISERROR(FIND("-",Q9)),AC9>'export html'!$AR$7),"",IF(RIGHT(Q9)<>"*",MID(Q9,FIND("-",Q9)+1,LEN(Q9)-FIND("-",Q9))-0,MID(Q9,FIND("-",Q9)+1,LEN(Q9)-FIND("-",Q9)-1)-0)) -> 0 | BR22: =IF(OR(ISERROR(FIND("-",R9)),AD9>'export html'!$AR$7),"",IF(RIGHT(R9)<>"*",MID(R9,FIND("-",R9)+1,LEN(R9)-FIND("-",R9))-0,MID(R9,FIND("-",R9)+1,LEN(R9)-FIND("-",R9)-1)-0)) ->  | BS22: =IF(OR(ISERROR(FIND("-",S9)),AE9>'export html'!$AR$7),"",IF(RIGHT(S9)<>"*",MID(S9,FIND("-",S9)+1,LEN(S9)-FIND("-",S9))-0,MID(S9,FIND("-",S9)+1,LEN(S9)-FIND("-",S9)-1)-0)) -> 1 | BT22: =IF(OR(ISERROR(FIND("-",T9)),AF9>'export html'!$AR$7),"",IF(RIGHT(T9)<>"*",MID(T9,FIND("-",T9)+1,LEN(T9)-FIND("-",T9))-0,MID(T9,FIND("-",T9)+1,LEN(T9)-FIND("-",T9)-1)-0)) -> 0 | BV22: =IF(OR(ISERROR(FIND("-",V9)),AH9>'export html'!$AR$7),"",IF(RIGHT(V9)<>"*",MID(V9,FIND("-",V9)+1,LEN(V9)-FIND("-",V9))-0,MID(V9,FIND("-",V9)+1,LEN(V9)-FIND("-",V9)-1)-0)) ->  | BW22: =IF(OR(ISERROR(FIND("-",W9)),AI9>'export html'!$AR$7),"",IF(RIGHT(W9)<>"*",MID(W9,FIND("-",W9)+1,LEN(W9)-FIND("-",W9))-0,MID(W9,FIND("-",W9)+1,LEN(W9)-FIND("-",W9)-1)-0)) ->  | BX22: =IF(OR(ISERROR(FIND("-",X9)),AJ9>'export html'!$AR$7),"",IF(RIGHT(X9)<>"*",MID(X9,FIND("-",X9)+1,LEN(X9)-FIND("-",X9))-0,MID(X9,FIND("-",X9)+1,LEN(X9)-FIND("-",X9)-1)-0)) -> 2 | BY22: =IF(OR(ISERROR(FIND("-",Y9)),AK9>'export html'!$AR$7),"",IF(RIGHT(Y9)<>"*",MID(Y9,FIND("-",Y9)+1,LEN(Y9)-FIND("-",Y9))-0,MID(Y9,FIND("-",Y9)+1,LEN(Y9)-FIND("-",Y9)-1)-0)) ->  | BZ22: =IF(OR(ISERROR(FIND("-",Z9)),AL9>'export html'!$AR$7),"",IF(RIGHT(Z9)<>"*",MID(Z9,FIND("-",Z9)+1,LEN(Z9)-FIND("-",Z9))-0,MID(Z9,FIND("-",Z9)+1,LEN(Z9)-FIND("-",Z9)-1)-0)) ->  | CA22: =IF(OR(ISERROR(FIND("-",AA9)),AM9>'export html'!$AR$7),"",IF(RIGHT(AA9)<>"*",MID(AA9,FIND("-",AA9)+1,LEN(AA9)-FIND("-",AA9))-0,MID(AA9,FIND("-",AA9)+1,LEN(AA9)-FIND("-",AA9)-1)-0)) -> 1 | CB22: =IF(OR(ISERROR(FIND("-",AB9)),AN9>'export html'!$AR$7),"",IF(RIGHT(AB9)<>"*",MID(AB9,FIND("-",AB9)+1,LEN(AB9)-FIND("-",AB9))-0,MID(AB9,FIND("-",AB9)+1,LEN(AB9)-FIND("-",AB9)-1)-0)) -> 4 | CC22: 5 | CD22: =IF(OR(ISERROR(FIND("-",Q9)),AC9<='export html'!$AR$7),"",IF(RIGHT(Q9)<>"*",MID(Q9,FIND("-",Q9)+1,LEN(Q9)-FIND("-",Q9))-0,MID(Q9,FIND("-",Q9)+1,LEN(Q9)-FIND("-",Q9)-1)-0)) ->  | CE22: =IF(OR(ISERROR(FIND("-",R9)),AD9<='export html'!$AR$7),"",IF(RIGHT(R9)<>"*",MID(R9,FIND("-",R9)+1,LEN(R9)-FIND("-",R9))-0,MID(R9,FIND("-",R9)+1,LEN(R9)-FIND("-",R9)-1)-0)) -> 1 | CF22: =IF(OR(ISERROR(FIND("-",S9)),AE9<='export html'!$AR$7),"",IF(RIGHT(S9)<>"*",MID(S9,FIND("-",S9)+1,LEN(S9)-FIND("-",S9))-0,MID(S9,FIND("-",S9)+1,LEN(S9)-FIND("-",S9)-1)-0)) ->  | CG22: =IF(OR(ISERROR(FIND("-",T9)),AF9<='export html'!$AR$7),"",IF(RIGHT(T9)<>"*",MID(T9,FIND("-",T9)+1,LEN(T9)-FIND("-",T9))-0,MID(T9,FIND("-",T9)+1,LEN(T9)-FIND("-",T9)-1)-0)) ->  | CI22: =IF(OR(ISERROR(FIND("-",V9)),AH9<='export html'!$AR$7),"",IF(RIGHT(V9)<>"*",MID(V9,FIND("-",V9)+1,LEN(V9)-FIND("-",V9))-0,MID(V9,FIND("-",V9)+1,LEN(V9)-FIND("-",V9)-1)-0)) ->  | CJ22: =IF(OR(ISERROR(FIND("-",W9)),AI9<='export html'!$AR$7),"",IF(RIGHT(W9)<>"*",MID(W9,FIND("-",W9)+1,LEN(W9)-FIND("-",W9))-0,MID(W9,FIND("-",W9)+1,LEN(W9)-FIND("-",W9)-1)-0)) -> 0 | CK22: =IF(OR(ISERROR(FIND("-",X9)),AJ9<='export html'!$AR$7),"",IF(RIGHT(X9)<>"*",MID(X9,FIND("-",X9)+1,LEN(X9)-FIND("-",X9))-0,MID(X9,FIND("-",X9)+1,LEN(X9)-FIND("-",X9)-1)-0)) ->  | CL22: =IF(OR(ISERROR(FIND("-",Y9)),AK9<='export html'!$AR$7),"",IF(RIGHT(Y9)<>"*",MID(Y9,FIND("-",Y9)+1,LEN(Y9)-FIND("-",Y9))-0,MID(Y9,FIND("-",Y9)+1,LEN(Y9)-FIND("-",Y9)-1)-0)) -> 1 | CM22: =IF(OR(ISERROR(FIND("-",Z9)),AL9<='export html'!$AR$7),"",IF(RIGHT(Z9)<>"*",MID(Z9,FIND("-",Z9)+1,LEN(Z9)-FIND("-",Z9))-0,MID(Z9,FIND("-",Z9)+1,LEN(Z9)-FIND("-",Z9)-1)-0)) -> 3 | CN22: =IF(OR(ISERROR(FIND("-",AA9)),AM9<='export html'!$AR$7),"",IF(RIGHT(AA9)<>"*",MID(AA9,FIND("-",AA9)+1,LEN(AA9)-FIND("-",AA9))-0,MID(AA9,FIND("-",AA9)+1,LEN(AA9)-FIND("-",AA9)-1)-0)) ->  | CO22: =IF(OR(ISERROR(FIND("-",AB9)),AN9<='export html'!$AR$7),"",IF(RIGHT(AB9)<>"*",MID(AB9,FIND("-",AB9)+1,LEN(AB9)-FIND("-",AB9))-0,MID(AB9,FIND("-",AB9)+1,LEN(AB9)-FIND("-",AB9)-1)-0)) ->  | CP22: 5
D23: =IF('export html'!T5="","",'export html'!T5) -> 2024-02-11 | E23: =IF('export html'!U5="","",'export html'!U5) -> 16 | F23: =IF('export html'!V5="","",'export html'!V5) -> Lucyvo - De Vrede | N23: =IF('export html'!W5="","",'export html'!W5) -> 6-5 | Q23: 6 | R23: Maarten De Groof | X23: 152.1054011 | Y23: Kaïn Verlooy | BP23: 6 | BQ23: =IF(OR(ISERROR(FIND("-",Q10)),AC10>'export html'!$AR$7),"",IF(RIGHT(Q10)<>"*",MID(Q10,FIND("-",Q10)+1,LEN(Q10)-FIND("-",Q10))-0,MID(Q10,FIND("-",Q10)+1,LEN(Q10)-FIND("-",Q10)-1)-0)) -> 1 | BR23: =IF(OR(ISERROR(FIND("-",R10)),AD10>'export html'!$AR$7),"",IF(RIGHT(R10)<>"*",MID(R10,FIND("-",R10)+1,LEN(R10)-FIND("-",R10))-0,MID(R10,FIND("-",R10)+1,LEN(R10)-FIND("-",R10)-1)-0)) -> 1 | BS23: =IF(OR(ISERROR(FIND("-",S10)),AE10>'export html'!$AR$7),"",IF(RIGHT(S10)<>"*",MID(S10,FIND("-",S10)+1,LEN(S10)-FIND("-",S10))-0,MID(S10,FIND("-",S10)+1,LEN(S10)-FIND("-",S10)-1)-0)) ->  | BT23: =IF(OR(ISERROR(FIND("-",T10)),AF10>'export html'!$AR$7),"",IF(RIGHT(T10)<>"*",MID(T10,FIND("-",T10)+1,LEN(T10)-FIND("-",T10))-0,MID(T10,FIND("-",T10)+1,LEN(T10)-FIND("-",T10)-1)-0)) ->  | BU23: =IF(OR(ISERROR(FIND("-",U10)),AG10>'export html'!$AR$7),"",IF(RIGHT(U10)<>"*",MID(U10,FIND("-",U10)+1,LEN(U10)-FIND("-",U10))-0,MID(U10,FIND("-",U10)+1,LEN(U10)-FIND("-",U10)-1)-0)) -> 7 | BW23: =IF(OR(ISERROR(FIND("-",W10)),AI10>'export html'!$AR$7),"",IF(RIGHT(W10)<>"*",MID(W10,FIND("-",W10)+1,LEN(W10)-FIND("-",W10))-0,MID(W10,FIND("-",W10)+1,LEN(W10)-FIND("-",W10)-1)-0)) -> 1 | BX23: =IF(OR(ISERROR(FIND("-",X10)),AJ10>'export html'!$AR$7),"",IF(RIGHT(X10)<>"*",MID(X10,FIND("-",X10)+1,LEN(X10)-FIND("-",X10))-0,MID(X10,FIND("-",X10)+1,LEN(X10)-FIND("-",X10)-1)-0)) ->  | BY23: =IF(OR(ISERROR(FIND("-",Y10)),AK10>'export html'!$AR$7),"",IF(RIGHT(Y10)<>"*",MID(Y10,FIND("-",Y10)+1,LEN(Y10)-FIND("-",Y10))-0,MID(Y10,FIND("-",Y10)+1,LEN(Y10)-FIND("-",Y10)-1)-0)) ->  | BZ23: =IF(OR(ISERROR(FIND("-",Z10)),AL10>'export html'!$AR$7),"",IF(RIGHT(Z10)<>"*",MID(Z10,FIND("-",Z10)+1,LEN(Z10)-FIND("-",Z10))-0,MID(Z10,FIND("-",Z10)+1,LEN(Z10)-FIND("-",Z10)-1)-0)) ->  | CA23: =IF(OR(ISERROR(FIND("-",AA10)),AM10>'export html'!$AR$7),"",IF(RIGHT(AA10)<>"*",MID(AA10,FIND("-",AA10)+1,LEN(AA10)-FIND("-",AA10))-0,MID(AA10,FIND("-",AA10)+1,LEN(AA10)-FIND("-",AA10)-1)-0)) ->  | CB23: =IF(OR(ISERROR(FIND("-",AB10)),AN10>'export html'!$AR$7),"",IF(RIGHT(AB10)<>"*",MID(AB10,FIND("-",AB10)+1,LEN(AB10)-FIND("-",AB10))-0,MID(AB10,FIND("-",AB10)+1,LEN(AB10)-FIND("-",AB10)-1)-0)) ->  | CC23: 6 | CD23: =IF(OR(ISERROR(FIND("-",Q10)),AC10<='export html'!$AR$7),"",IF(RIGHT(Q10)<>"*",MID(Q10,FIND("-",Q10)+1,LEN(Q10)-FIND("-",Q10))-0,MID(Q10,FIND("-",Q10)+1,LEN(Q10)-FIND("-",Q10)-1)-0)) ->  | CE23: =IF(OR(ISERROR(FIND("-",R10)),AD10<='export html'!$AR$7),"",IF(RIGHT(R10)<>"*",MID(R10,FIND("-",R10)+1,LEN(R10)-FIND("-",R10))-0,MID(R10,FIND("-",R10)+1,LEN(R10)-FIND("-",R10)-1)-0)) ->  | CF23: =IF(OR(ISERROR(FIND("-",S10)),AE10<='export html'!$AR$7),"",IF(RIGHT(S10)<>"*",MID(S10,FIND("-",S10)+1,LEN(S10)-FIND("-",S10))-0,MID(S10,FIND("-",S10)+1,LEN(S10)-FIND("-",S10)-1)-0)) -> 1 | CG23: =IF(OR(ISERROR(FIND("-",T10)),AF10<='export html'!$AR$7),"",IF(RIGHT(T10)<>"*",MID(T10,FIND("-",T10)+1,LEN(T10)-FIND("-",T10))-0,MID(T10,FIND("-",T10)+1,LEN(T10)-FIND("-",T10)-1)-0)) -> 1 | CH23: =IF(OR(ISERROR(FIND("-",U10)),AG10<='export html'!$AR$7),"",IF(RIGHT(U10)<>"*",MID(U10,FIND("-",U10)+1,LEN(U10)-FIND("-",U10))-0,MID(U10,FIND("-",U10)+1,LEN(U10)-FIND("-",U10)-1)-0)) ->  | CJ23: =IF(OR(ISERROR(FIND("-",W10)),AI10<='export html'!$AR$7),"",IF(RIGHT(W10)<>"*",MID(W10,FIND("-",W10)+1,LEN(W10)-FIND("-",W10))-0,MID(W10,FIND("-",W10)+1,LEN(W10)-FIND("-",W10)-1)-0)) ->  | CK23: =IF(OR(ISERROR(FIND("-",X10)),AJ10<='export html'!$AR$7),"",IF(RIGHT(X10)<>"*",MID(X10,FIND("-",X10)+1,LEN(X10)-FIND("-",X10))-0,MID(X10,FIND("-",X10)+1,LEN(X10)-FIND("-",X10)-1)-0)) ->  | CL23: =IF(OR(ISERROR(FIND("-",Y10)),AK10<='export html'!$AR$7),"",IF(RIGHT(Y10)<>"*",MID(Y10,FIND("-",Y10)+1,LEN(Y10)-FIND("-",Y10))-0,MID(Y10,FIND("-",Y10)+1,LEN(Y10)-FIND("-",Y10)-1)-0)) -> 2 | CM23: =IF(OR(ISERROR(FIND("-",Z10)),AL10<='export html'!$AR$7),"",IF(RIGHT(Z10)<>"*",MID(Z10,FIND("-",Z10)+1,LEN(Z10)-FIND("-",Z10))-0,MID(Z10,FIND("-",Z10)+1,LEN(Z10)-FIND("-",Z10)-1)-0)) ->  | CN23: =IF(OR(ISERROR(FIND("-",AA10)),AM10<='export html'!$AR$7),"",IF(RIGHT(AA10)<>"*",MID(AA10,FIND("-",AA10)+1,LEN(AA10)-FIND("-",AA10))-0,MID(AA10,FIND("-",AA10)+1,LEN(AA10)-FIND("-",AA10)-1)-0)) -> 2 | CO23: =IF(OR(ISERROR(FIND("-",AB10)),AN10<='export html'!$AR$7),"",IF(RIGHT(AB10)<>"*",MID(AB10,FIND("-",AB10)+1,LEN(AB10)-FIND("-",AB10))-0,MID(AB10,FIND("-",AB10)+1,LEN(AB10)-FIND("-",AB10)-1)-0)) -> 1 | CP23: 6
D24: =IF('export html'!T6="","",'export html'!T6) -> 2024-02-04 | E24: =IF('export html'!U6="","",'export html'!U6) -> 18 | F24: =IF('export html'!V6="","",'export html'!V6) -> Lucyvo - Racing Emblem | N24: =IF('export html'!W6="","",'export html'!W6) -> 3-5 | Q24: 6 | R24: Jason Vermeylen | X24: 145.7907599 | Y24: Glenn De Vinster | BP24: 7 | BQ24: =IF(OR(ISERROR(FIND("-",Q11)),AC11>'export html'!$AR$7),"",IF(RIGHT(Q11)<>"*",MID(Q11,FIND("-",Q11)+1,LEN(Q11)-FIND("-",Q11))-0,MID(Q11,FIND("-",Q11)+1,LEN(Q11)-FIND("-",Q11)-1)-0)) ->  | BR24: =IF(OR(ISERROR(FIND("-",R11)),AD11>'export html'!$AR$7),"",IF(RIGHT(R11)<>"*",MID(R11,FIND("-",R11)+1,LEN(R11)-FIND("-",R11))-0,MID(R11,FIND("-",R11)+1,LEN(R11)-FIND("-",R11)-1)-0)) -> 4 | BS24: =IF(OR(ISERROR(FIND("-",S11)),AE11>'export html'!$AR$7),"",IF(RIGHT(S11)<>"*",MID(S11,FIND("-",S11)+1,LEN(S11)-FIND("-",S11))-0,MID(S11,FIND("-",S11)+1,LEN(S11)-FIND("-",S11)-1)-0)) -> 1 | BT24: =IF(OR(ISERROR(FIND("-",T11)),AF11>'export html'!$AR$7),"",IF(RIGHT(T11)<>"*",MID(T11,FIND("-",T11)+1,LEN(T11)-FIND("-",T11))-0,MID(T11,FIND("-",T11)+1,LEN(T11)-FIND("-",T11)-1)-0)) -> 5 | BU24: =IF(OR(ISERROR(FIND("-",U11)),AG11>'export html'!$AR$7),"",IF(RIGHT(U11)<>"*",MID(U11,FIND("-",U11)+1,LEN(U11)-FIND("-",U11))-0,MID(U11,FIND("-",U11)+1,LEN(U11)-FIND("-",U11)-1)-0)) -> 1 | BV24: =IF(OR(ISERROR(FIND("-",V11)),AH11>'export html'!$AR$7),"",IF(RIGHT(V11)<>"*",MID(V11,FIND("-",V11)+1,LEN(V11)-FIND("-",V11))-0,MID(V11,FIND("-",V11)+1,LEN(V11)-FIND("-",V11)-1)-0)) ->  | BX24: =IF(OR(ISERROR(FIND("-",X11)),AJ11>'export html'!$AR$7),"",IF(RIGHT(X11)<>"*",MID(X11,FIND("-",X11)+1,LEN(X11)-FIND("-",X11))-0,MID(X11,FIND("-",X11)+1,LEN(X11)-FIND("-",X11)-1)-0)) ->  | BY24: =IF(OR(ISERROR(FIND("-",Y11)),AK11>'export html'!$AR$7),"",IF(RIGHT(Y11)<>"*",MID(Y11,FIND("-",Y11)+1,LEN(Y11)-FIND("-",Y11))-0,MID(Y11,FIND("-",Y11)+1,LEN(Y11)-FIND("-",Y11)-1)-0)) -> 1 | BZ24: =IF(OR(ISERROR(FIND("-",Z11)),AL11>'export html'!$AR$7),"",IF(RIGHT(Z11)<>"*",MID(Z11,FIND("-",Z11)+1,LEN(Z11)-FIND("-",Z11))-0,MID(Z11,FIND("-",Z11)+1,LEN(Z11)-FIND("-",Z11)-1)-0)) ->  | CA24: =IF(OR(ISERROR(FIND("-",AA11)),AM11>'export html'!$AR$7),"",IF(RIGHT(AA11)<>"*",MID(AA11,FIND("-",AA11)+1,LEN(AA11)-FIND("-",AA11))-0,MID(AA11,FIND("-",AA11)+1,LEN(AA11)-FIND("-",AA11)-1)-0)) ->  | CB24: =IF(OR(ISERROR(FIND("-",AB11)),AN11>'export html'!$AR$7),"",IF(RIGHT(AB11)<>"*",MID(AB11,FIND("-",AB11)+1,LEN(AB11)-FIND("-",AB11))-0,MID(AB11,FIND("-",AB11)+1,LEN(AB11)-FIND("-",AB11)-1)-0)) ->  | CC24: 7 | CD24: =IF(OR(ISERROR(FIND("-",Q11)),AC11<='export html'!$AR$7),"",IF(RIGHT(Q11)<>"*",MID(Q11,FIND("-",Q11)+1,LEN(Q11)-FIND("-",Q11))-0,MID(Q11,FIND("-",Q11)+1,LEN(Q11)-FIND("-",Q11)-1)-0)) -> 5 | CE24: =IF(OR(ISERROR(FIND("-",R11)),AD11<='export html'!$AR$7),"",IF(RIGHT(R11)<>"*",MID(R11,FIND("-",R11)+1,LEN(R11)-FIND("-",R11))-0,MID(R11,FIND("-",R11)+1,LEN(R11)-FIND("-",R11)-1)-0)) ->  | CF24: =IF(OR(ISERROR(FIND("-",S11)),AE11<='export html'!$AR$7),"",IF(RIGHT(S11)<>"*",MID(S11,FIND("-",S11)+1,LEN(S11)-FIND("-",S11))-0,MID(S11,FIND("-",S11)+1,LEN(S11)-FIND("-",S11)-1)-0)) ->  | CG24: =IF(OR(ISERROR(FIND("-",T11)),AF11<='export html'!$AR$7),"",IF(RIGHT(T11)<>"*",MID(T11,FIND("-",T11)+1,LEN(T11)-FIND("-",T11))-0,MID(T11,FIND("-",T11)+1,LEN(T11)-FIND("-",T11)-1)-0)) ->  | CH24: =IF(OR(ISERROR(FIND("-",U11)),AG11<='export html'!$AR$7),"",IF(RIGHT(U11)<>"*",MID(U11,FIND("-",U11)+1,LEN(U11)-FIND("-",U11))-0,MID(U11,FIND("-",U11)+1,LEN(U11)-FIND("-",U11)-1)-0)) ->  | CI24: =IF(OR(ISERROR(FIND("-",V11)),AH11<='export html'!$AR$7),"",IF(RIGHT(V11)<>"*",MID(V11,FIND("-",V11)+1,LEN(V11)-FIND("-",V11))-0,MID(V11,FIND("-",V11)+1,LEN(V11)-FIND("-",V11)-1)-0)) -> 1 | CK24: =IF(OR(ISERROR(FIND("-",X11)),AJ11<='export html'!$AR$7),"",IF(RIGHT(X11)<>"*",MID(X11,FIND("-",X11)+1,LEN(X11)-FIND("-",X11))-0,MID(X11,FIND("-",X11)+1,LEN(X11)-FIND("-",X11)-1)-0)) -> 2 | CL24: =IF(OR(ISERROR(FIND("-",Y11)),AK11<='export html'!$AR$7),"",IF(RIGHT(Y11)<>"*",MID(Y11,FIND("-",Y11)+1,LEN(Y11)-FIND("-",Y11))-0,MID(Y11,FIND("-",Y11)+1,LEN(Y11)-FIND("-",Y11)-1)-0)) ->  | CM24: =IF(OR(ISERROR(FIND("-",Z11)),AL11<='export html'!$AR$7),"",IF(RIGHT(Z11)<>"*",MID(Z11,FIND("-",Z11)+1,LEN(Z11)-FIND("-",Z11))-0,MID(Z11,FIND("-",Z11)+1,LEN(Z11)-FIND("-",Z11)-1)-0)) ->  | CN24: =IF(OR(ISERROR(FIND("-",AA11)),AM11<='export html'!$AR$7),"",IF(RIGHT(AA11)<>"*",MID(AA11,FIND("-",AA11)+1,LEN(AA11)-FIND("-",AA11))-0,MID(AA11,FIND("-",AA11)+1,LEN(AA11)-FIND("-",AA11)-1)-0)) ->  | CO24: =IF(OR(ISERROR(FIND("-",AB11)),AN11<='export html'!$AR$7),"",IF(RIGHT(AB11)<>"*",MID(AB11,FIND("-",AB11)+1,LEN(AB11)-FIND("-",AB11))-0,MID(AB11,FIND("-",AB11)+1,LEN(AB11)-FIND("-",AB11)-1)-0)) ->  | CP24: 7
D25: =IF('export html'!T7="","",'export html'!T7) -> 2024-01-28 | E25: =IF('export html'!U7="","",'export html'!U7) -> 17 | F25: =IF('export html'!V7="","",'export html'!V7) -> Bariton - Lucyvo | N25: =IF('export html'!W7="","",'export html'!W7) -> 8-1 | Q25: 4 | R25: Steven De Groof | X25: 144.0908275 | Y25: Steven De Groof | BP25: 8 | BQ25: =IF(OR(ISERROR(FIND("-",Q12)),AC12>'export html'!$AR$7),"",IF(RIGHT(Q12)<>"*",MID(Q12,FIND("-",Q12)+1,LEN(Q12)-FIND("-",Q12))-0,MID(Q12,FIND("-",Q12)+1,LEN(Q12)-FIND("-",Q12)-1)-0)) ->  | BR25: =IF(OR(ISERROR(FIND("-",R12)),AD12>'export html'!$AR$7),"",IF(RIGHT(R12)<>"*",MID(R12,FIND("-",R12)+1,LEN(R12)-FIND("-",R12))-0,MID(R12,FIND("-",R12)+1,LEN(R12)-FIND("-",R12)-1)-0)) -> 1 | BS25: =IF(OR(ISERROR(FIND("-",S12)),AE12>'export html'!$AR$7),"",IF(RIGHT(S12)<>"*",MID(S12,FIND("-",S12)+1,LEN(S12)-FIND("-",S12))-0,MID(S12,FIND("-",S12)+1,LEN(S12)-FIND("-",S12)-1)-0)) ->  | BT25: =IF(OR(ISERROR(FIND("-",T12)),AF12>'export html'!$AR$7),"",IF(RIGHT(T12)<>"*",MID(T12,FIND("-",T12)+1,LEN(T12)-FIND("-",T12))-0,MID(T12,FIND("-",T12)+1,LEN(T12)-FIND("-",T12)-1)-0)) ->  | BU25: =IF(OR(ISERROR(FIND("-",U12)),AG12>'export html'!$AR$7),"",IF(RIGHT(U12)<>"*",MID(U12,FIND("-",U12)+1,LEN(U12)-FIND("-",U12))-0,MID(U12,FIND("-",U12)+1,LEN(U12)-FIND("-",U12)-1)-0)) ->  | BV25: =IF(OR(ISERROR(FIND("-",V12)),AH12>'export html'!$AR$7),"",IF(RIGHT(V12)<>"*",MID(V12,FIND("-",V12)+1,LEN(V12)-FIND("-",V12))-0,MID(V12,FIND("-",V12)+1,LEN(V12)-FIND("-",V12)-1)-0)) -> 1 | BW25: =IF(OR(ISERROR(FIND("-",W12)),AI12>'export html'!$AR$7),"",IF(RIGHT(W12)<>"*",MID(W12,FIND("-",W12)+1,LEN(W12)-FIND("-",W12))-0,MID(W12,FIND("-",W12)+1,LEN(W12)-FIND("-",W12)-1)-0)) -> 0 | BY25: =IF(OR(ISERROR(FIND("-",Y12)),AK12>'export html'!$AR$7),"",IF(RIGHT(Y12)<>"*",MID(Y12,FIND("-",Y12)+1,LEN(Y12)-FIND("-",Y12))-0,MID(Y12,FIND("-",Y12)+1,LEN(Y12)-FIND("-",Y12)-1)-0)) -> 6 | BZ25: =IF(OR(ISERROR(FIND("-",Z12)),AL12>'export html'!$AR$7),"",IF(RIGHT(Z12)<>"*",MID(Z12,FIND("-",Z12)+1,LEN(Z12)-FIND("-",Z12))-0,MID(Z12,FIND("-",Z12)+1,LEN(Z12)-FIND("-",Z12)-1)-0)) ->  | CA25: =IF(OR(ISERROR(FIND("-",AA12)),AM12>'export html'!$AR$7),"",IF(RIGHT(AA12)<>"*",MID(AA12,FIND("-",AA12)+1,LEN(AA12)-FIND("-",AA12))-0,MID(AA12,FIND("-",AA12)+1,LEN(AA12)-FIND("-",AA12)-1)-0)) ->  | CB25: =IF(OR(ISERROR(FIND("-",AB12)),AN12>'export html'!$AR$7),"",IF(RIGHT(AB12)<>"*",MID(AB12,FIND("-",AB12)+1,LEN(AB12)-FIND("-",AB12))-0,MID(AB12,FIND("-",AB12)+1,LEN(AB12)-FIND("-",AB12)-1)-0)) ->  | CC25: 8 | CD25: =IF(OR(ISERROR(FIND("-",Q12)),AC12<='export html'!$AR$7),"",IF(RIGHT(Q12)<>"*",MID(Q12,FIND("-",Q12)+1,LEN(Q12)-FIND("-",Q12))-0,MID(Q12,FIND("-",Q12)+1,LEN(Q12)-FIND("-",Q12)-1)-0)) ->  | CE25: =IF(OR(ISERROR(FIND("-",R12)),AD12<='export html'!$AR$7),"",IF(RIGHT(R12)<>"*",MID(R12,FIND("-",R12)+1,LEN(R12)-FIND("-",R12))-0,MID(R12,FIND("-",R12)+1,LEN(R12)-FIND("-",R12)-1)-0)) ->  | CF25: =IF(OR(ISERROR(FIND("-",S12)),AE12<='export html'!$AR$7),"",IF(RIGHT(S12)<>"*",MID(S12,FIND("-",S12)+1,LEN(S12)-FIND("-",S12))-0,MID(S12,FIND("-",S12)+1,LEN(S12)-FIND("-",S12)-1)-0)) -> 7 | CG25: =IF(OR(ISERROR(FIND("-",T12)),AF12<='export html'!$AR$7),"",IF(RIGHT(T12)<>"*",MID(T12,FIND("-",T12)+1,LEN(T12)-FIND("-",T12))-0,MID(T12,FIND("-",T12)+1,LEN(T12)-FIND("-",T12)-1)-0)) ->  | CH25: =IF(OR(ISERROR(FIND("-",U12)),AG12<='export html'!$AR$7),"",IF(RIGHT(U12)<>"*",MID(U12,FIND("-",U12)+1,LEN(U12)-FIND("-",U12))-0,MID(U12,FIND("-",U12)+1,LEN(U12)-FIND("-",U12)-1)-0)) ->  | CI25: =IF(OR(ISERROR(FIND("-",V12)),AH12<='export html'!$AR$7),"",IF(RIGHT(V12)<>"*",MID(V12,FIND("-",V12)+1,LEN(V12)-FIND("-",V12))-0,MID(V12,FIND("-",V12)+1,LEN(V12)-FIND("-",V12)-1)-0)) ->  | CJ25: =IF(OR(ISERROR(FIND("-",W12)),AI12<='export html'!$AR$7),"",IF(RIGHT(W12)<>"*",MID(W12,FIND("-",W12)+1,LEN(W12)-FIND("-",W12))-0,MID(W12,FIND("-",W12)+1,LEN(W12)-FIND("-",W12)-1)-0)) ->  | CL25: =IF(OR(ISERROR(FIND("-",Y12)),AK12<='export html'!$AR$7),"",IF(RIGHT(Y12)<>"*",MID(Y12,FIND("-",Y12)+1,LEN(Y12)-FIND("-",Y12))-0,MID(Y12,FIND("-",Y12)+1,LEN(Y12)-FIND("-",Y12)-1)-0)) ->  | CM25: =IF(OR(ISERROR(FIND("-",Z12)),AL12<='export html'!$AR$7),"",IF(RIGHT(Z12)<>"*",MID(Z12,FIND("-",Z12)+1,LEN(Z12)-FIND("-",Z12))-0,MID(Z12,FIND("-",Z12)+1,LEN(Z12)-FIND("-",Z12)-1)-0)) -> 4 | CN25: =IF(OR(ISERROR(FIND("-",AA12)),AM12<='export html'!$AR$7),"",IF(RIGHT(AA12)<>"*",MID(AA12,FIND("-",AA12)+1,LEN(AA12)-FIND("-",AA12))-0,MID(AA12,FIND("-",AA12)+1,LEN(AA12)-FIND("-",AA12)-1)-0)) -> 5 | CO25: =IF(OR(ISERROR(FIND("-",AB12)),AN12<='export html'!$AR$7),"",IF(RIGHT(AB12)<>"*",MID(AB12,FIND("-",AB12)+1,LEN(AB12)-FIND("-",AB12))-0,MID(AB12,FIND("-",AB12)+1,LEN(AB12)-FIND("-",AB12)-1)-0)) -> 5 | CP25: 8
D26: =IF('export html'!T8="","",'export html'!T8) ->  | E26: =IF('export html'!U8="","",'export html'!U8) ->  | F26: =IF('export html'!V8="","",'export html'!V8) ->  | N26: =IF('export html'!W8="","",'export html'!W8) ->  | BP26: 9 | BQ26: =IF(OR(ISERROR(FIND("-",Q13)),AC13>'export html'!$AR$7),"",IF(RIGHT(Q13)<>"*",MID(Q13,FIND("-",Q13)+1,LEN(Q13)-FIND("-",Q13))-0,MID(Q13,FIND("-",Q13)+1,LEN(Q13)-FIND("-",Q13)-1)-0)) ->  | BR26: =IF(OR(ISERROR(FIND("-",R13)),AD13>'export html'!$AR$7),"",IF(RIGHT(R13)<>"*",MID(R13,FIND("-",R13)+1,LEN(R13)-FIND("-",R13))-0,MID(R13,FIND("-",R13)+1,LEN(R13)-FIND("-",R13)-1)-0)) ->  | BS26: =IF(OR(ISERROR(FIND("-",S13)),AE13>'export html'!$AR$7),"",IF(RIGHT(S13)<>"*",MID(S13,FIND("-",S13)+1,LEN(S13)-FIND("-",S13))-0,MID(S13,FIND("-",S13)+1,LEN(S13)-FIND("-",S13)-1)-0)) -> 2 | BT26: =IF(OR(ISERROR(FIND("-",T13)),AF13>'export html'!$AR$7),"",IF(RIGHT(T13)<>"*",MID(T13,FIND("-",T13)+1,LEN(T13)-FIND("-",T13))-0,MID(T13,FIND("-",T13)+1,LEN(T13)-FIND("-",T13)-1)-0)) ->  | BU26: =IF(OR(ISERROR(FIND("-",U13)),AG13>'export html'!$AR$7),"",IF(RIGHT(U13)<>"*",MID(U13,FIND("-",U13)+1,LEN(U13)-FIND("-",U13))-0,MID(U13,FIND("-",U13)+1,LEN(U13)-FIND("-",U13)-1)-0)) -> 3 | BV26: =IF(OR(ISERROR(FIND("-",V13)),AH13>'export html'!$AR$7),"",IF(RIGHT(V13)<>"*",MID(V13,FIND("-",V13)+1,LEN(V13)-FIND("-",V13))-0,MID(V13,FIND("-",V13)+1,LEN(V13)-FIND("-",V13)-1)-0)) ->  | BW26: =IF(OR(ISERROR(FIND("-",W13)),AI13>'export html'!$AR$7),"",IF(RIGHT(W13)<>"*",MID(W13,FIND("-",W13)+1,LEN(W13)-FIND("-",W13))-0,MID(W13,FIND("-",W13)+1,LEN(W13)-FIND("-",W13)-1)-0)) ->  | BX26: =IF(OR(ISERROR(FIND("-",X13)),AJ13>'export html'!$AR$7),"",IF(RIGHT(X13)<>"*",MID(X13,FIND("-",X13)+1,LEN(X13)-FIND("-",X13))-0,MID(X13,FIND("-",X13)+1,LEN(X13)-FIND("-",X13)-1)-0)) ->  | BZ26: =IF(OR(ISERROR(FIND("-",Z13)),AL13>'export html'!$AR$7),"",IF(RIGHT(Z13)<>"*",MID(Z13,FIND("-",Z13)+1,LEN(Z13)-FIND("-",Z13))-0,MID(Z13,FIND("-",Z13)+1,LEN(Z13)-FIND("-",Z13)-1)-0)) ->  | CA26: =IF(OR(ISERROR(FIND("-",AA13)),AM13>'export html'!$AR$7),"",IF(RIGHT(AA13)<>"*",MID(AA13,FIND("-",AA13)+1,LEN(AA13)-FIND("-",AA13))-0,MID(AA13,FIND("-",AA13)+1,LEN(AA13)-FIND("-",AA13)-1)-0)) -> 2 | CB26: =IF(OR(ISERROR(FIND("-",AB13)),AN13>'export html'!$AR$7),"",IF(RIGHT(AB13)<>"*",MID(AB13,FIND("-",AB13)+1,LEN(AB13)-FIND("-",AB13))-0,MID(AB13,FIND("-",AB13)+1,LEN(AB13)-FIND("-",AB13)-1)-0)) -> 2 | CC26: 9 | CD26: =IF(OR(ISERROR(FIND("-",Q13)),AC13<='export html'!$AR$7),"",IF(RIGHT(Q13)<>"*",MID(Q13,FIND("-",Q13)+1,LEN(Q13)-FIND("-",Q13))-0,MID(Q13,FIND("-",Q13)+1,LEN(Q13)-FIND("-",Q13)-1)-0)) -> 5 | CE26: =IF(OR(ISERROR(FIND("-",R13)),AD13<='export html'!$AR$7),"",IF(RIGHT(R13)<>"*",MID(R13,FIND("-",R13)+1,LEN(R13)-FIND("-",R13))-0,MID(R13,FIND("-",R13)+1,LEN(R13)-FIND("-",R13)-1)-0)) ->  | CF26: =IF(OR(ISERROR(FIND("-",S13)),AE13<='export html'!$AR$7),"",IF(RIGHT(S13)<>"*",MID(S13,FIND("-",S13)+1,LEN(S13)-FIND("-",S13))-0,MID(S13,FIND("-",S13)+1,LEN(S13)-FIND("-",S13)-1)-0)) ->  | CG26: =IF(OR(ISERROR(FIND("-",T13)),AF13<='export html'!$AR$7),"",IF(RIGHT(T13)<>"*",MID(T13,FIND("-",T13)+1,LEN(T13)-FIND("-",T13))-0,MID(T13,FIND("-",T13)+1,LEN(T13)-FIND("-",T13)-1)-0)) -> 2 | CH26: =IF(OR(ISERROR(FIND("-",U13)),AG13<='export html'!$AR$7),"",IF(RIGHT(U13)<>"*",MID(U13,FIND("-",U13)+1,LEN(U13)-FIND("-",U13))-0,MID(U13,FIND("-",U13)+1,LEN(U13)-FIND("-",U13)-1)-0)) ->  | CI26: =IF(OR(ISERROR(FIND("-",V13)),AH13<='export html'!$AR$7),"",IF(RIGHT(V13)<>"*",MID(V13,FIND("-",V13)+1,LEN(V13)-FIND("-",V13))-0,MID(V13,FIND("-",V13)+1,LEN(V13)-FIND("-",V13)-1)-0)) ->  | CJ26: =IF(OR(ISERROR(FIND("-",W13)),AI13<='export html'!$AR$7),"",IF(RIGHT(W13)<>"*",MID(W13,FIND("-",W13)+1,LEN(W13)-FIND("-",W13))-0,MID(W13,FIND("-",W13)+1,LEN(W13)-FIND("-",W13)-1)-0)) ->  | CK26: =IF(OR(ISERROR(FIND("-",X13)),AJ13<='export html'!$AR$7),"",IF(RIGHT(X13)<>"*",MID(X13,FIND("-",X13)+1,LEN(X13)-FIND("-",X13))-0,MID(X13,FIND("-",X13)+1,LEN(X13)-FIND("-",X13)-1)-0)) -> 1 | CM26: =IF(OR(ISERROR(FIND("-",Z13)),AL13<='export html'!$AR$7),"",IF(RIGHT(Z13)<>"*",MID(Z13,FIND("-",Z13)+1,LEN(Z13)-FIND("-",Z13))-0,MID(Z13,FIND("-",Z13)+1,LEN(Z13)-FIND("-",Z13)-1)-0)) -> 6 | CN26: =IF(OR(ISERROR(FIND("-",AA13)),AM13<='export html'!$AR$7),"",IF(RIGHT(AA13)<>"*",MID(AA13,FIND("-",AA13)+1,LEN(AA13)-FIND("-",AA13))-0,MID(AA13,FIND("-",AA13)+1,LEN(AA13)-FIND("-",AA13)-1)-0)) ->  | CO26: =IF(OR(ISERROR(FIND("-",AB13)),AN13<='export html'!$AR$7),"",IF(RIGHT(AB13)<>"*",MID(AB13,FIND("-",AB13)+1,LEN(AB13)-FIND("-",AB13))-0,MID(AB13,FIND("-",AB13)+1,LEN(AB13)-FIND("-",AB13)-1)-0)) ->  | CP26: 9
BP27: 10 | BQ27: =IF(OR(ISERROR(FIND("-",Q14)),AC14>'export html'!$AR$7),"",IF(RIGHT(Q14)<>"*",MID(Q14,FIND("-",Q14)+1,LEN(Q14)-FIND("-",Q14))-0,MID(Q14,FIND("-",Q14)+1,LEN(Q14)-FIND("-",Q14)-1)-0)) ->  | BR27: =IF(OR(ISERROR(FIND("-",R14)),AD14>'export html'!$AR$7),"",IF(RIGHT(R14)<>"*",MID(R14,FIND("-",R14)+1,LEN(R14)-FIND("-",R14))-0,MID(R14,FIND("-",R14)+1,LEN(R14)-FIND("-",R14)-1)-0)) -> 1 | BS27: =IF(OR(ISERROR(FIND("-",S14)),AE14>'export html'!$AR$7),"",IF(RIGHT(S14)<>"*",MID(S14,FIND("-",S14)+1,LEN(S14)-FIND("-",S14))-0,MID(S14,FIND("-",S14)+1,LEN(S14)-FIND("-",S14)-1)-0)) ->  | BT27: =IF(OR(ISERROR(FIND("-",T14)),AF14>'export html'!$AR$7),"",IF(RIGHT(T14)<>"*",MID(T14,FIND("-",T14)+1,LEN(T14)-FIND("-",T14))-0,MID(T14,FIND("-",T14)+1,LEN(T14)-FIND("-",T14)-1)-0)) ->  | BU27: =IF(OR(ISERROR(FIND("-",U14)),AG14>'export html'!$AR$7),"",IF(RIGHT(U14)<>"*",MID(U14,FIND("-",U14)+1,LEN(U14)-FIND("-",U14))-0,MID(U14,FIND("-",U14)+1,LEN(U14)-FIND("-",U14)-1)-0)) ->  | BV27: =IF(OR(ISERROR(FIND("-",V14)),AH14>'export html'!$AR$7),"",IF(RIGHT(V14)<>"*",MID(V14,FIND("-",V14)+1,LEN(V14)-FIND("-",V14))-0,MID(V14,FIND("-",V14)+1,LEN(V14)-FIND("-",V14)-1)-0)) ->  | BW27: =IF(OR(ISERROR(FIND("-",W14)),AI14>'export html'!$AR$7),"",IF(RIGHT(W14)<>"*",MID(W14,FIND("-",W14)+1,LEN(W14)-FIND("-",W14))-0,MID(W14,FIND("-",W14)+1,LEN(W14)-FIND("-",W14)-1)-0)) -> 0 | BX27: =IF(OR(ISERROR(FIND("-",X14)),AJ14>'export html'!$AR$7),"",IF(RIGHT(X14)<>"*",MID(X14,FIND("-",X14)+1,LEN(X14)-FIND("-",X14))-0,MID(X14,FIND("-",X14)+1,LEN(X14)-FIND("-",X14)-1)-0)) -> 2 | BY27: =IF(OR(ISERROR(FIND("-",Y14)),AK14>'export html'!$AR$7),"",IF(RIGHT(Y14)<>"*",MID(Y14,FIND("-",Y14)+1,LEN(Y14)-FIND("-",Y14))-0,MID(Y14,FIND("-",Y14)+1,LEN(Y14)-FIND("-",Y14)-1)-0)) -> 2 | CA27: =IF(OR(ISERROR(FIND("-",AA14)),AM14>'export html'!$AR$7),"",IF(RIGHT(AA14)<>"*",MID(AA14,FIND("-",AA14)+1,LEN(AA14)-FIND("-",AA14))-0,MID(AA14,FIND("-",AA14)+1,LEN(AA14)-FIND("-",AA14)-1)-0)) ->  | CB27: =IF(OR(ISERROR(FIND("-",AB14)),AN14>'export html'!$AR$7),"",IF(RIGHT(AB14)<>"*",MID(AB14,FIND("-",AB14)+1,LEN(AB14)-FIND("-",AB14))-0,MID(AB14,FIND("-",AB14)+1,LEN(AB14)-FIND("-",AB14)-1)-0)) ->  | CC27: 10 | CD27: =IF(OR(ISERROR(FIND("-",Q14)),AC14<='export html'!$AR$7),"",IF(RIGHT(Q14)<>"*",MID(Q14,FIND("-",Q14)+1,LEN(Q14)-FIND("-",Q14))-0,MID(Q14,FIND("-",Q14)+1,LEN(Q14)-FIND("-",Q14)-1)-0)) -> 8 | CE27: =IF(OR(ISERROR(FIND("-",R14)),AD14<='export html'!$AR$7),"",IF(RIGHT(R14)<>"*",MID(R14,FIND("-",R14)+1,LEN(R14)-FIND("-",R14))-0,MID(R14,FIND("-",R14)+1,LEN(R14)-FIND("-",R14)-1)-0)) ->  | CF27: =IF(OR(ISERROR(FIND("-",S14)),AE14<='export html'!$AR$7),"",IF(RIGHT(S14)<>"*",MID(S14,FIND("-",S14)+1,LEN(S14)-FIND("-",S14))-0,MID(S14,FIND("-",S14)+1,LEN(S14)-FIND("-",S14)-1)-0)) ->  | CG27: =IF(OR(ISERROR(FIND("-",T14)),AF14<='export html'!$AR$7),"",IF(RIGHT(T14)<>"*",MID(T14,FIND("-",T14)+1,LEN(T14)-FIND("-",T14))-0,MID(T14,FIND("-",T14)+1,LEN(T14)-FIND("-",T14)-1)-0)) ->  | CH27: =IF(OR(ISERROR(FIND("-",U14)),AG14<='export html'!$AR$7),"",IF(RIGHT(U14)<>"*",MID(U14,FIND("-",U14)+1,LEN(U14)-FIND("-",U14))-0,MID(U14,FIND("-",U14)+1,LEN(U14)-FIND("-",U14)-1)-0)) ->  | CI27: =IF(OR(ISERROR(FIND("-",V14)),AH14<='export html'!$AR$7),"",IF(RIGHT(V14)<>"*",MID(V14,FIND("-",V14)+1,LEN(V14)-FIND("-",V14))-0,MID(V14,FIND("-",V14)+1,LEN(V14)-FIND("-",V14)-1)-0)) -> 1 | CJ27: =IF(OR(ISERROR(FIND("-",W14)),AI14<='export html'!$AR$7),"",IF(RIGHT(W14)<>"*",MID(W14,FIND("-",W14)+1,LEN(W14)-FIND("-",W14))-0,MID(W14,FIND("-",W14)+1,LEN(W14)-FIND("-",W14)-1)-0)) ->  | CK27: =IF(OR(ISERROR(FIND("-",X14)),AJ14<='export html'!$AR$7),"",IF(RIGHT(X14)<>"*",MID(X14,FIND("-",X14)+1,LEN(X14)-FIND("-",X14))-0,MID(X14,FIND("-",X14)+1,LEN(X14)-FIND("-",X14)-1)-0)) ->  | CL27: =IF(OR(ISERROR(FIND("-",Y14)),AK14<='export html'!$AR$7),"",IF(RIGHT(Y14)<>"*",MID(Y14,FIND("-",Y14)+1,LEN(Y14)-FIND("-",Y14))-0,MID(Y14,FIND("-",Y14)+1,LEN(Y14)-FIND("-",Y14)-1)-0)) ->  | CN27: =IF(OR(ISERROR(FIND("-",AA14)),AM14<='export html'!$AR$7),"",IF(RIGHT(AA14)<>"*",MID(AA14,FIND("-",AA14)+1,LEN(AA14)-FIND("-",AA14))-0,MID(AA14,FIND("-",AA14)+1,LEN(AA14)-FIND("-",AA14)-1)-0)) -> 2 | CO27: =IF(OR(ISERROR(FIND("-",AB14)),AN14<='export html'!$AR$7),"",IF(RIGHT(AB14)<>"*",MID(AB14,FIND("-",AB14)+1,LEN(AB14)-FIND("-",AB14))-0,MID(AB14,FIND("-",AB14)+1,LEN(AB14)-FIND("-",AB14)-1)-0)) -> 0 | CP27: 10
BP28: 11 | BQ28: =IF(OR(ISERROR(FIND("-",Q15)),AC15>'export html'!$AR$7),"",IF(RIGHT(Q15)<>"*",MID(Q15,FIND("-",Q15)+1,LEN(Q15)-FIND("-",Q15))-0,MID(Q15,FIND("-",Q15)+1,LEN(Q15)-FIND("-",Q15)-1)-0)) ->  | BR28: =IF(OR(ISERROR(FIND("-",R15)),AD15>'export html'!$AR$7),"",IF(RIGHT(R15)<>"*",MID(R15,FIND("-",R15)+1,LEN(R15)-FIND("-",R15))-0,MID(R15,FIND("-",R15)+1,LEN(R15)-FIND("-",R15)-1)-0)) ->  | BS28: =IF(OR(ISERROR(FIND("-",S15)),AE15>'export html'!$AR$7),"",IF(RIGHT(S15)<>"*",MID(S15,FIND("-",S15)+1,LEN(S15)-FIND("-",S15))-0,MID(S15,FIND("-",S15)+1,LEN(S15)-FIND("-",S15)-1)-0)) ->  | BT28: =IF(OR(ISERROR(FIND("-",T15)),AF15>'export html'!$AR$7),"",IF(RIGHT(T15)<>"*",MID(T15,FIND("-",T15)+1,LEN(T15)-FIND("-",T15))-0,MID(T15,FIND("-",T15)+1,LEN(T15)-FIND("-",T15)-1)-0)) ->  | BU28: =IF(OR(ISERROR(FIND("-",U15)),AG15>'export html'!$AR$7),"",IF(RIGHT(U15)<>"*",MID(U15,FIND("-",U15)+1,LEN(U15)-FIND("-",U15))-0,MID(U15,FIND("-",U15)+1,LEN(U15)-FIND("-",U15)-1)-0)) ->  | BV28: =IF(OR(ISERROR(FIND("-",V15)),AH15>'export html'!$AR$7),"",IF(RIGHT(V15)<>"*",MID(V15,FIND("-",V15)+1,LEN(V15)-FIND("-",V15))-0,MID(V15,FIND("-",V15)+1,LEN(V15)-FIND("-",V15)-1)-0)) -> 3 | BW28: =IF(OR(ISERROR(FIND("-",W15)),AI15>'export html'!$AR$7),"",IF(RIGHT(W15)<>"*",MID(W15,FIND("-",W15)+1,LEN(W15)-FIND("-",W15))-0,MID(W15,FIND("-",W15)+1,LEN(W15)-FIND("-",W15)-1)-0)) ->  | BX28: =IF(OR(ISERROR(FIND("-",X15)),AJ15>'export html'!$AR$7),"",IF(RIGHT(X15)<>"*",MID(X15,FIND("-",X15)+1,LEN(X15)-FIND("-",X15))-0,MID(X15,FIND("-",X15)+1,LEN(X15)-FIND("-",X15)-1)-0)) -> 3 | BY28: =IF(OR(ISERROR(FIND("-",Y15)),AK15>'export html'!$AR$7),"",IF(RIGHT(Y15)<>"*",MID(Y15,FIND("-",Y15)+1,LEN(Y15)-FIND("-",Y15))-0,MID(Y15,FIND("-",Y15)+1,LEN(Y15)-FIND("-",Y15)-1)-0)) ->  | BZ28: =IF(OR(ISERROR(FIND("-",Z15)),AL15>'export html'!$AR$7),"",IF(RIGHT(Z15)<>"*",MID(Z15,FIND("-",Z15)+1,LEN(Z15)-FIND("-",Z15))-0,MID(Z15,FIND("-",Z15)+1,LEN(Z15)-FIND("-",Z15)-1)-0)) -> 3 | CB28: =IF(OR(ISERROR(FIND("-",AB15)),AN15>'export html'!$AR$7),"",IF(RIGHT(AB15)<>"*",MID(AB15,FIND("-",AB15)+1,LEN(AB15)-FIND("-",AB15))-0,MID(AB15,FIND("-",AB15)+1,LEN(AB15)-FIND("-",AB15)-1)-0)) -> 1 | CC28: 11 | CD28: =IF(OR(ISERROR(FIND("-",Q15)),AC15<='export html'!$AR$7),"",IF(RIGHT(Q15)<>"*",MID(Q15,FIND("-",Q15)+1,LEN(Q15)-FIND("-",Q15))-0,MID(Q15,FIND("-",Q15)+1,LEN(Q15)-FIND("-",Q15)-1)-0)) ->  | CE28: =IF(OR(ISERROR(FIND("-",R15)),AD15<='export html'!$AR$7),"",IF(RIGHT(R15)<>"*",MID(R15,FIND("-",R15)+1,LEN(R15)-FIND("-",R15))-0,MID(R15,FIND("-",R15)+1,LEN(R15)-FIND("-",R15)-1)-0)) ->  | CF28: =IF(OR(ISERROR(FIND("-",S15)),AE15<='export html'!$AR$7),"",IF(RIGHT(S15)<>"*",MID(S15,FIND("-",S15)+1,LEN(S15)-FIND("-",S15))-0,MID(S15,FIND("-",S15)+1,LEN(S15)-FIND("-",S15)-1)-0)) ->  | CG28: =IF(OR(ISERROR(FIND("-",T15)),AF15<='export html'!$AR$7),"",IF(RIGHT(T15)<>"*",MID(T15,FIND("-",T15)+1,LEN(T15)-FIND("-",T15))-0,MID(T15,FIND("-",T15)+1,LEN(T15)-FIND("-",T15)-1)-0)) -> 1 | CH28: =IF(OR(ISERROR(FIND("-",U15)),AG15<='export html'!$AR$7),"",IF(RIGHT(U15)<>"*",MID(U15,FIND("-",U15)+1,LEN(U15)-FIND("-",U15))-0,MID(U15,FIND("-",U15)+1,LEN(U15)-FIND("-",U15)-1)-0)) -> 1 | CI28: =IF(OR(ISERROR(FIND("-",V15)),AH15<='export html'!$AR$7),"",IF(RIGHT(V15)<>"*",MID(V15,FIND("-",V15)+1,LEN(V15)-FIND("-",V15))-0,MID(V15,FIND("-",V15)+1,LEN(V15)-FIND("-",V15)-1)-0)) ->  | CJ28: =IF(OR(ISERROR(FIND("-",W15)),AI15<='export html'!$AR$7),"",IF(RIGHT(W15)<>"*",MID(W15,FIND("-",W15)+1,LEN(W15)-FIND("-",W15))-0,MID(W15,FIND("-",W15)+1,LEN(W15)-FIND("-",W15)-1)-0)) -> 1 | CK28: =IF(OR(ISERROR(FIND("-",X15)),AJ15<='export html'!$AR$7),"",IF(RIGHT(X15)<>"*",MID(X15,FIND("-",X15)+1,LEN(X15)-FIND("-",X15))-0,MID(X15,FIND("-",X15)+1,LEN(X15)-FIND("-",X15)-1)-0)) ->  | CL28: =IF(OR(ISERROR(FIND("-",Y15)),AK15<='export html'!$AR$7),"",IF(RIGHT(Y15)<>"*",MID(Y15,FIND("-",Y15)+1,LEN(Y15)-FIND("-",Y15))-0,MID(Y15,FIND("-",Y15)+1,LEN(Y15)-FIND("-",Y15)-1)-0)) ->  | CM28: =IF(OR(ISERROR(FIND("-",Z15)),AL15<='export html'!$AR$7),"",IF(RIGHT(Z15)<>"*",MID(Z15,FIND("-",Z15)+1,LEN(Z15)-FIND("-",Z15))-0,MID(Z15,FIND("-",Z15)+1,LEN(Z15)-FIND("-",Z15)-1)-0)) ->  | CO28: =IF(OR(ISERROR(FIND("-",AB15)),AN15<='export html'!$AR$7),"",IF(RIGHT(AB15)<>"*",MID(AB15,FIND("-",AB15)+1,LEN(AB15)-FIND("-",AB15))-0,MID(AB15,FIND("-",AB15)+1,LEN(AB15)-FIND("-",AB15)-1)-0)) ->  | CP28: 11
D29: ='export html'!C2 -> Matchen van speeldag 20 | F29: 20 | BP29: 12 | BQ29: =IF(OR(ISERROR(FIND("-",Q16)),AC16>'export html'!$AR$7),"",IF(RIGHT(Q16)<>"*",MID(Q16,FIND("-",Q16)+1,LEN(Q16)-FIND("-",Q16))-0,MID(Q16,FIND("-",Q16)+1,LEN(Q16)-FIND("-",Q16)-1)-0)) ->  | BR29: =IF(OR(ISERROR(FIND("-",R16)),AD16>'export html'!$AR$7),"",IF(RIGHT(R16)<>"*",MID(R16,FIND("-",R16)+1,LEN(R16)-FIND("-",R16))-0,MID(R16,FIND("-",R16)+1,LEN(R16)-FIND("-",R16)-1)-0)) -> 1 | BS29: =IF(OR(ISERROR(FIND("-",S16)),AE16>'export html'!$AR$7),"",IF(RIGHT(S16)<>"*",MID(S16,FIND("-",S16)+1,LEN(S16)-FIND("-",S16))-0,MID(S16,FIND("-",S16)+1,LEN(S16)-FIND("-",S16)-1)-0)) ->  | BT29: =IF(OR(ISERROR(FIND("-",T16)),AF16>'export html'!$AR$7),"",IF(RIGHT(T16)<>"*",MID(T16,FIND("-",T16)+1,LEN(T16)-FIND("-",T16))-0,MID(T16,FIND("-",T16)+1,LEN(T16)-FIND("-",T16)-1)-0)) ->  | BU29: =IF(OR(ISERROR(FIND("-",U16)),AG16>'export html'!$AR$7),"",IF(RIGHT(U16)<>"*",MID(U16,FIND("-",U16)+1,LEN(U16)-FIND("-",U16))-0,MID(U16,FIND("-",U16)+1,LEN(U16)-FIND("-",U16)-1)-0)) ->  | BV29: =IF(OR(ISERROR(FIND("-",V16)),AH16>'export html'!$AR$7),"",IF(RIGHT(V16)<>"*",MID(V16,FIND("-",V16)+1,LEN(V16)-FIND("-",V16))-0,MID(V16,FIND("-",V16)+1,LEN(V16)-FIND("-",V16)-1)-0)) -> 2 | BW29: =IF(OR(ISERROR(FIND("-",W16)),AI16>'export html'!$AR$7),"",IF(RIGHT(W16)<>"*",MID(W16,FIND("-",W16)+1,LEN(W16)-FIND("-",W16))-0,MID(W16,FIND("-",W16)+1,LEN(W16)-FIND("-",W16)-1)-0)) -> 1 | BX29: =IF(OR(ISERROR(FIND("-",X16)),AJ16>'export html'!$AR$7),"",IF(RIGHT(X16)<>"*",MID(X16,FIND("-",X16)+1,LEN(X16)-FIND("-",X16))-0,MID(X16,FIND("-",X16)+1,LEN(X16)-FIND("-",X16)-1)-0)) -> 1 | BY29: =IF(OR(ISERROR(FIND("-",Y16)),AK16>'export html'!$AR$7),"",IF(RIGHT(Y16)<>"*",MID(Y16,FIND("-",Y16)+1,LEN(Y16)-FIND("-",Y16))-0,MID(Y16,FIND("-",Y16)+1,LEN(Y16)-FIND("-",Y16)-1)-0)) ->  | BZ29: =IF(OR(ISERROR(FIND("-",Z16)),AL16>'export html'!$AR$7),"",IF(RIGHT(Z16)<>"*",MID(Z16,FIND("-",Z16)+1,LEN(Z16)-FIND("-",Z16))-0,MID(Z16,FIND("-",Z16)+1,LEN(Z16)-FIND("-",Z16)-1)-0)) -> 1 | CA29: =IF(OR(ISERROR(FIND("-",AA16)),AM16>'export html'!$AR$7),"",IF(RIGHT(AA16)<>"*",MID(AA16,FIND("-",AA16)+1,LEN(AA16)-FIND("-",AA16))-0,MID(AA16,FIND("-",AA16)+1,LEN(AA16)-FIND("-",AA16)-1)-0)) ->  | CC29: 12 | CD29: =IF(OR(ISERROR(FIND("-",Q16)),AC16<='export html'!$AR$7),"",IF(RIGHT(Q16)<>"*",MID(Q16,FIND("-",Q16)+1,LEN(Q16)-FIND("-",Q16))-0,MID(Q16,FIND("-",Q16)+1,LEN(Q16)-FIND("-",Q16)-1)-0)) -> 0 | CE29: =IF(OR(ISERROR(FIND("-",R16)),AD16<='export html'!$AR$7),"",IF(RIGHT(R16)<>"*",MID(R16,FIND("-",R16)+1,LEN(R16)-FIND("-",R16))-0,MID(R16,FIND("-",R16)+1,LEN(R16)-FIND("-",R16)-1)-0)) ->  | CF29: =IF(OR(ISERROR(FIND("-",S16)),AE16<='export html'!$AR$7),"",IF(RIGHT(S16)<>"*",MID(S16,FIND("-",S16)+1,LEN(S16)-FIND("-",S16))-0,MID(S16,FIND("-",S16)+1,LEN(S16)-FIND("-",S16)-1)-0)) ->  | CG29: =IF(OR(ISERROR(FIND("-",T16)),AF16<='export html'!$AR$7),"",IF(RIGHT(T16)<>"*",MID(T16,FIND("-",T16)+1,LEN(T16)-FIND("-",T16))-0,MID(T16,FIND("-",T16)+1,LEN(T16)-FIND("-",T16)-1)-0)) ->  | CH29: =IF(OR(ISERROR(FIND("-",U16)),AG16<='export html'!$AR$7),"",IF(RIGHT(U16)<>"*",MID(U16,FIND("-",U16)+1,LEN(U16)-FIND("-",U16))-0,MID(U16,FIND("-",U16)+1,LEN(U16)-FIND("-",U16)-1)-0)) -> 3 | CI29: =IF(OR(ISERROR(FIND("-",V16)),AH16<='export html'!$AR$7),"",IF(RIGHT(V16)<>"*",MID(V16,FIND("-",V16)+1,LEN(V16)-FIND("-",V16))-0,MID(V16,FIND("-",V16)+1,LEN(V16)-FIND("-",V16)-1)-0)) ->  | CJ29: =IF(OR(ISERROR(FIND("-",W16)),AI16<='export html'!$AR$7),"",IF(RIGHT(W16)<>"*",MID(W16,FIND("-",W16)+1,LEN(W16)-FIND("-",W16))-0,MID(W16,FIND("-",W16)+1,LEN(W16)-FIND("-",W16)-1)-0)) ->  | CK29: =IF(OR(ISERROR(FIND("-",X16)),AJ16<='export html'!$AR$7),"",IF(RIGHT(X16)<>"*",MID(X16,FIND("-",X16)+1,LEN(X16)-FIND("-",X16))-0,MID(X16,FIND("-",X16)+1,LEN(X16)-FIND("-",X16)-1)-0)) ->  | CL29: =IF(OR(ISERROR(FIND("-",Y16)),AK16<='export html'!$AR$7),"",IF(RIGHT(Y16)<>"*",MID(Y16,FIND("-",Y16)+1,LEN(Y16)-FIND("-",Y16))-0,MID(Y16,FIND("-",Y16)+1,LEN(Y16)-FIND("-",Y16)-1)-0)) -> 1 | CM29: =IF(OR(ISERROR(FIND("-",Z16)),AL16<='export html'!$AR$7),"",IF(RIGHT(Z16)<>"*",MID(Z16,FIND("-",Z16)+1,LEN(Z16)-FIND("-",Z16))-0,MID(Z16,FIND("-",Z16)+1,LEN(Z16)-FIND("-",Z16)-1)-0)) ->  | CN29: =IF(OR(ISERROR(FIND("-",AA16)),AM16<='export html'!$AR$7),"",IF(RIGHT(AA16)<>"*",MID(AA16,FIND("-",AA16)+1,LEN(AA16)-FIND("-",AA16))-0,MID(AA16,FIND("-",AA16)+1,LEN(AA16)-FIND("-",AA16)-1)-0)) ->  | CP29: 12
BQ30: 1 | BR30: 2 | BS30: 3 | BT30: 4 | BU30: 5 | BV30: 6 | BW30: 7 | BX30: 8 | BY30: 9 | BZ30: 10 | CA30: 11 | CB30: 12 | CD30: 1 | CE30: 2 | CF30: 3 | CG30: 4 | CH30: 5 | CI30: 6 | CJ30: 7 | CK30: 8 | CL30: 9 | CM30: 10 | CN30: 11 | CO30: 12
D31: =IF('export html'!A3="","",'export html'!A3) -> 2024-02-25 | E31: =IF('export html'!B3="","",'export html'!B3) -> 20 | F31: =IF('export html'!C3="","",'export html'!C3) -> Hombeek - Goka | N31: =IF('export html'!D3="","",'export html'!D3) -> 4-1 | BP31: 1 | BR31: =IF(OR(ISERROR(FIND("-",R5)),AD5>'export html'!$AR$7),"",IF(AND(LEFT(R5)="*",RIGHT(R5)="*"),"ff",IF(BR5>BR18,"t",IF(BR5<BR18,"u","g")))) -> t | BS31: =IF(OR(ISERROR(FIND("-",S5)),AE5>'export html'!$AR$7),"",IF(AND(LEFT(S5)="*",RIGHT(S5)="*"),"ff",IF(BS5>BS18,"t",IF(BS5<BS18,"u","g")))) ->  | BT31: =IF(OR(ISERROR(FIND("-",T5)),AF5>'export html'!$AR$7),"",IF(AND(LEFT(T5)="*",RIGHT(T5)="*"),"ff",IF(BT5>BT18,"t",IF(BT5<BT18,"u","g")))) ->  | BU31: =IF(OR(ISERROR(FIND("-",U5)),AG5>'export html'!$AR$7),"",IF(AND(LEFT(U5)="*",RIGHT(U5)="*"),"ff",IF(BU5>BU18,"t",IF(BU5<BU18,"u","g")))) ->  | BV31: =IF(OR(ISERROR(FIND("-",V5)),AH5>'export html'!$AR$7),"",IF(AND(LEFT(V5)="*",RIGHT(V5)="*"),"ff",IF(BV5>BV18,"t",IF(BV5<BV18,"u","g")))) ->  | BW31: =IF(OR(ISERROR(FIND("-",W5)),AI5>'export html'!$AR$7),"",IF(AND(LEFT(W5)="*",RIGHT(W5)="*"),"ff",IF(BW5>BW18,"t",IF(BW5<BW18,"u","g")))) ->  | BX31: =IF(OR(ISERROR(FIND("-",X5)),AJ5>'export html'!$AR$7),"",IF(AND(LEFT(X5)="*",RIGHT(X5)="*"),"ff",IF(BX5>BX18,"t",IF(BX5<BX18,"u","g")))) ->  | BY31: =IF(OR(ISERROR(FIND("-",Y5)),AK5>'export html'!$AR$7),"",IF(AND(LEFT(Y5)="*",RIGHT(Y5)="*"),"ff",IF(BY5>BY18,"t",IF(BY5<BY18,"u","g")))) -> t | BZ31: =IF(OR(ISERROR(FIND("-",Z5)),AL5>'export html'!$AR$7),"",IF(AND(LEFT(Z5)="*",RIGHT(Z5)="*"),"ff",IF(BZ5>BZ18,"t",IF(BZ5<BZ18,"u","g")))) -> u | CA31: =IF(OR(ISERROR(FIND("-",AA5)),AM5>'export html'!$AR$7),"",IF(AND(LEFT(AA5)="*",RIGHT(AA5)="*"),"ff",IF(CA5>CA18,"t",IF(CA5<CA18,"u","g")))) -> u | CB31: =IF(OR(ISERROR(FIND("-",AB5)),AN5>'export html'!$AR$7),"",IF(AND(LEFT(AB5)="*",RIGHT(AB5)="*"),"ff",IF(CB5>CB18,"t",IF(CB5<CB18,"u","g")))) -> t | CC31: 1 | CE31: =IF(OR(ISERROR(FIND("-",R5)),AD5<='export html'!$AR$7),"",IF(AND(LEFT(R5)="*",RIGHT(R5)="*"),"ff",IF(CE5>CE18,"t",IF(CE5<CE18,"u","g")))) ->  | CF31: =IF(OR(ISERROR(FIND("-",S5)),AE5<='export html'!$AR$7),"",IF(AND(LEFT(S5)="*",RIGHT(S5)="*"),"ff",IF(CF5>CF18,"t",IF(CF5<CF18,"u","g")))) -> u | CG31: =IF(OR(ISERROR(FIND("-",T5)),AF5<='export html'!$AR$7),"",IF(AND(LEFT(T5)="*",RIGHT(T5)="*"),"ff",IF(CG5>CG18,"t",IF(CG5<CG18,"u","g")))) -> t | CH31: =IF(OR(ISERROR(FIND("-",U5)),AG5<='export html'!$AR$7),"",IF(AND(LEFT(U5)="*",RIGHT(U5)="*"),"ff",IF(CH5>CH18,"t",IF(CH5<CH18,"u","g")))) ->  | CI31: =IF(OR(ISERROR(FIND("-",V5)),AH5<='export html'!$AR$7),"",IF(AND(LEFT(V5)="*",RIGHT(V5)="*"),"ff",IF(CI5>CI18,"t",IF(CI5<CI18,"u","g")))) ->  | CJ31: =IF(OR(ISERROR(FIND("-",W5)),AI5<='export html'!$AR$7),"",IF(AND(LEFT(W5)="*",RIGHT(W5)="*"),"ff",IF(CJ5>CJ18,"t",IF(CJ5<CJ18,"u","g")))) ->  | CK31: =IF(OR(ISERROR(FIND("-",X5)),AJ5<='export html'!$AR$7),"",IF(AND(LEFT(X5)="*",RIGHT(X5)="*"),"ff",IF(CK5>CK18,"t",IF(CK5<CK18,"u","g")))) -> g | CL31: =IF(OR(ISERROR(FIND("-",Y5)),AK5<='export html'!$AR$7),"",IF(AND(LEFT(Y5)="*",RIGHT(Y5)="*"),"ff",IF(CL5>CL18,"t",IF(CL5<CL18,"u","g")))) ->  | CM31: =IF(OR(ISERROR(FIND("-",Z5)),AL5<='export html'!$AR$7),"",IF(AND(LEFT(Z5)="*",RIGHT(Z5)="*"),"ff",IF(CM5>CM18,"t",IF(CM5<CM18,"u","g")))) ->  | CN31: =IF(OR(ISERROR(FIND("-",AA5)),AM5<='export html'!$AR$7),"",IF(AND(LEFT(AA5)="*",RIGHT(AA5)="*"),"ff",IF(CN5>CN18,"t",IF(CN5<CN18,"u","g")))) ->  | CO31: =IF(OR(ISERROR(FIND("-",AB5)),AN5<='export html'!$AR$7),"",IF(AND(LEFT(AB5)="*",RIGHT(AB5)="*"),"ff",IF(CO5>CO18,"t",IF(CO5<CO18,"u","g")))) ->  | CP31: 1
D32: =IF('export html'!A4="","",'export html'!A4) -> 2024-02-25 | E32: =IF('export html'!B4="","",'export html'!B4) -> 20 | F32: =IF('export html'!C4="","",'export html'!C4) -> Lucyvo - Boerenbond | N32: =IF('export html'!D4="","",'export html'!D4) -> 2-7 | BP32: 2 | BQ32: =IF(OR(ISERROR(FIND("-",Q6)),AC6>'export html'!$AR$7),"",IF(AND(LEFT(Q6)="*",RIGHT(Q6)="*"),"ff",IF(BQ6>BQ19,"t",IF(BQ6<BQ19,"u","g")))) ->  | BS32: =IF(OR(ISERROR(FIND("-",S6)),AE6>'export html'!$AR$7),"",IF(AND(LEFT(S6)="*",RIGHT(S6)="*"),"ff",IF(BS6>BS19,"t",IF(BS6<BS19,"u","g")))) ->  | BT32: =IF(OR(ISERROR(FIND("-",T6)),AF6>'export html'!$AR$7),"",IF(AND(LEFT(T6)="*",RIGHT(T6)="*"),"ff",IF(BT6>BT19,"t",IF(BT6<BT19,"u","g")))) -> t | BU32: =IF(OR(ISERROR(FIND("-",U6)),AG6>'export html'!$AR$7),"",IF(AND(LEFT(U6)="*",RIGHT(U6)="*"),"ff",IF(BU6>BU19,"t",IF(BU6<BU19,"u","g")))) -> t | BV32: =IF(OR(ISERROR(FIND("-",V6)),AH6>'export html'!$AR$7),"",IF(AND(LEFT(V6)="*",RIGHT(V6)="*"),"ff",IF(BV6>BV19,"t",IF(BV6<BV19,"u","g")))) ->  | BW32: =IF(OR(ISERROR(FIND("-",W6)),AI6>'export html'!$AR$7),"",IF(AND(LEFT(W6)="*",RIGHT(W6)="*"),"ff",IF(BW6>BW19,"t",IF(BW6<BW19,"u","g")))) ->  | BX32: =IF(OR(ISERROR(FIND("-",X6)),AJ6>'export html'!$AR$7),"",IF(AND(LEFT(X6)="*",RIGHT(X6)="*"),"ff",IF(BX6>BX19,"t",IF(BX6<BX19,"u","g")))) ->  | BY32: =IF(OR(ISERROR(FIND("-",Y6)),AK6>'export html'!$AR$7),"",IF(AND(LEFT(Y6)="*",RIGHT(Y6)="*"),"ff",IF(BY6>BY19,"t",IF(BY6<BY19,"u","g")))) -> t | BZ32: =IF(OR(ISERROR(FIND("-",Z6)),AL6>'export html'!$AR$7),"",IF(AND(LEFT(Z6)="*",RIGHT(Z6)="*"),"ff",IF(BZ6>BZ19,"t",IF(BZ6<BZ19,"u","g")))) ->  | CA32: =IF(OR(ISERROR(FIND("-",AA6)),AM6>'export html'!$AR$7),"",IF(AND(LEFT(AA6)="*",RIGHT(AA6)="*"),"ff",IF(CA6>CA19,"t",IF(CA6<CA19,"u","g")))) -> u | CB32: =IF(OR(ISERROR(FIND("-",AB6)),AN6>'export html'!$AR$7),"",IF(AND(LEFT(AB6)="*",RIGHT(AB6)="*"),"ff",IF(CB6>CB19,"t",IF(CB6<CB19,"u","g")))) ->  | CC32: 2 | CD32: =IF(OR(ISERROR(FIND("-",Q6)),AC6<='export html'!$AR$7),"",IF(AND(LEFT(Q6)="*",RIGHT(Q6)="*"),"ff",IF(CD6>CD19,"t",IF(CD6<CD19,"u","g")))) ->  | CF32: =IF(OR(ISERROR(FIND("-",S6)),AE6<='export html'!$AR$7),"",IF(AND(LEFT(S6)="*",RIGHT(S6)="*"),"ff",IF(CF6>CF19,"t",IF(CF6<CF19,"u","g")))) ->  | CG32: =IF(OR(ISERROR(FIND("-",T6)),AF6<='export html'!$AR$7),"",IF(AND(LEFT(T6)="*",RIGHT(T6)="*"),"ff",IF(CG6>CG19,"t",IF(CG6<CG19,"u","g")))) ->  | CH32: =IF(OR(ISERROR(FIND("-",U6)),AG6<='export html'!$AR$7),"",IF(AND(LEFT(U6)="*",RIGHT(U6)="*"),"ff",IF(CH6>CH19,"t",IF(CH6<CH19,"u","g")))) ->  | CI32: =IF(OR(ISERROR(FIND("-",V6)),AH6<='export html'!$AR$7),"",IF(AND(LEFT(V6)="*",RIGHT(V6)="*"),"ff",IF(CI6>CI19,"t",IF(CI6<CI19,"u","g")))) -> t | CJ32: =IF(OR(ISERROR(FIND("-",W6)),AI6<='export html'!$AR$7),"",IF(AND(LEFT(W6)="*",RIGHT(W6)="*"),"ff",IF(CJ6>CJ19,"t",IF(CJ6<CJ19,"u","g")))) ->  | CK32: =IF(OR(ISERROR(FIND("-",X6)),AJ6<='export html'!$AR$7),"",IF(AND(LEFT(X6)="*",RIGHT(X6)="*"),"ff",IF(CK6>CK19,"t",IF(CK6<CK19,"u","g")))) -> t | CL32: =IF(OR(ISERROR(FIND("-",Y6)),AK6<='export html'!$AR$7),"",IF(AND(LEFT(Y6)="*",RIGHT(Y6)="*"),"ff",IF(CL6>CL19,"t",IF(CL6<CL19,"u","g")))) ->  | CM32: =IF(OR(ISERROR(FIND("-",Z6)),AL6<='export html'!$AR$7),"",IF(AND(LEFT(Z6)="*",RIGHT(Z6)="*"),"ff",IF(CM6>CM19,"t",IF(CM6<CM19,"u","g")))) -> t | CN32: =IF(OR(ISERROR(FIND("-",AA6)),AM6<='export html'!$AR$7),"",IF(AND(LEFT(AA6)="*",RIGHT(AA6)="*"),"ff",IF(CN6>CN19,"t",IF(CN6<CN19,"u","g")))) ->  | CO32: =IF(OR(ISERROR(FIND("-",AB6)),AN6<='export html'!$AR$7),"",IF(AND(LEFT(AB6)="*",RIGHT(AB6)="*"),"ff",IF(CO6>CO19,"t",IF(CO6<CO19,"u","g")))) ->  | CP32: 2
D33: =IF('export html'!A5="","",'export html'!A5) -> 2024-02-25 | E33: =IF('export html'!B5="","",'export html'!B5) -> 20 | F33: =IF('export html'!C5="","",'export html'!C5) -> Paradeske - Bariton | N33: =IF('export html'!D5="","",'export html'!D5) ->  | BP33: 3 | BQ33: =IF(OR(ISERROR(FIND("-",Q7)),AC7>'export html'!$AR$7),"",IF(AND(LEFT(Q7)="*",RIGHT(Q7)="*"),"ff",IF(BQ7>BQ20,"t",IF(BQ7<BQ20,"u","g")))) -> t | BR33: =IF(OR(ISERROR(FIND("-",R7)),AD7>'export html'!$AR$7),"",IF(AND(LEFT(R7)="*",RIGHT(R7)="*"),"ff",IF(BR7>BR20,"t",IF(BR7<BR20,"u","g")))) ->  | BT33: =IF(OR(ISERROR(FIND("-",T7)),AF7>'export html'!$AR$7),"",IF(AND(LEFT(T7)="*",RIGHT(T7)="*"),"ff",IF(BT7>BT20,"t",IF(BT7<BT20,"u","g")))) ->  | BU33: =IF(OR(ISERROR(FIND("-",U7)),AG7>'export html'!$AR$7),"",IF(AND(LEFT(U7)="*",RIGHT(U7)="*"),"ff",IF(BU7>BU20,"t",IF(BU7<BU20,"u","g")))) ->  | BV33: =IF(OR(ISERROR(FIND("-",V7)),AH7>'export html'!$AR$7),"",IF(AND(LEFT(V7)="*",RIGHT(V7)="*"),"ff",IF(BV7>BV20,"t",IF(BV7<BV20,"u","g")))) -> g | BW33: =IF(OR(ISERROR(FIND("-",W7)),AI7>'export html'!$AR$7),"",IF(AND(LEFT(W7)="*",RIGHT(W7)="*"),"ff",IF(BW7>BW20,"t",IF(BW7<BW20,"u","g")))) ->  | BX33: =IF(OR(ISERROR(FIND("-",X7)),AJ7>'export html'!$AR$7),"",IF(AND(LEFT(X7)="*",RIGHT(X7)="*"),"ff",IF(BX7>BX20,"t",IF(BX7<BX20,"u","g")))) -> t | BY33: =IF(OR(ISERROR(FIND("-",Y7)),AK7>'export html'!$AR$7),"",IF(AND(LEFT(Y7)="*",RIGHT(Y7)="*"),"ff",IF(BY7>BY20,"t",IF(BY7<BY20,"u","g")))) ->  | BZ33: =IF(OR(ISERROR(FIND("-",Z7)),AL7>'export html'!$AR$7),"",IF(AND(LEFT(Z7)="*",RIGHT(Z7)="*"),"ff",IF(BZ7>BZ20,"t",IF(BZ7<BZ20,"u","g")))) -> u | CA33: =IF(OR(ISERROR(FIND("-",AA7)),AM7>'export html'!$AR$7),"",IF(AND(LEFT(AA7)="*",RIGHT(AA7)="*"),"ff",IF(CA7>CA20,"t",IF(CA7<CA20,"u","g")))) ->  | CB33: =IF(OR(ISERROR(FIND("-",AB7)),AN7>'export html'!$AR$7),"",IF(AND(LEFT(AB7)="*",RIGHT(AB7)="*"),"ff",IF(CB7>CB20,"t",IF(CB7<CB20,"u","g")))) -> t | CC33: 3 | CD33: =IF(OR(ISERROR(FIND("-",Q7)),AC7<='export html'!$AR$7),"",IF(AND(LEFT(Q7)="*",RIGHT(Q7)="*"),"ff",IF(CD7>CD20,"t",IF(CD7<CD20,"u","g")))) ->  | CE33: =IF(OR(ISERROR(FIND("-",R7)),AD7<='export html'!$AR$7),"",IF(AND(LEFT(R7)="*",RIGHT(R7)="*"),"ff",IF(CE7>CE20,"t",IF(CE7<CE20,"u","g")))) -> t | CG33: =IF(OR(ISERROR(FIND("-",T7)),AF7<='export html'!$AR$7),"",IF(AND(LEFT(T7)="*",RIGHT(T7)="*"),"ff",IF(CG7>CG20,"t",IF(CG7<CG20,"u","g")))) -> t | CH33: =IF(OR(ISERROR(FIND("-",U7)),AG7<='export html'!$AR$7),"",IF(AND(LEFT(U7)="*",RIGHT(U7)="*"),"ff",IF(CH7>CH20,"t",IF(CH7<CH20,"u","g")))) -> u | CI33: =IF(OR(ISERROR(FIND("-",V7)),AH7<='export html'!$AR$7),"",IF(AND(LEFT(V7)="*",RIGHT(V7)="*"),"ff",IF(CI7>CI20,"t",IF(CI7<CI20,"u","g")))) ->  | CJ33: =IF(OR(ISERROR(FIND("-",W7)),AI7<='export html'!$AR$7),"",IF(AND(LEFT(W7)="*",RIGHT(W7)="*"),"ff",IF(CJ7>CJ20,"t",IF(CJ7<CJ20,"u","g")))) -> t | CK33: =IF(OR(ISERROR(FIND("-",X7)),AJ7<='export html'!$AR$7),"",IF(AND(LEFT(X7)="*",RIGHT(X7)="*"),"ff",IF(CK7>CK20,"t",IF(CK7<CK20,"u","g")))) ->  | CL33: =IF(OR(ISERROR(FIND("-",Y7)),AK7<='export html'!$AR$7),"",IF(AND(LEFT(Y7)="*",RIGHT(Y7)="*"),"ff",IF(CL7>CL20,"t",IF(CL7<CL20,"u","g")))) ->  | CM33: =IF(OR(ISERROR(FIND("-",Z7)),AL7<='export html'!$AR$7),"",IF(AND(LEFT(Z7)="*",RIGHT(Z7)="*"),"ff",IF(CM7>CM20,"t",IF(CM7<CM20,"u","g")))) ->  | CN33: =IF(OR(ISERROR(FIND("-",AA7)),AM7<='export html'!$AR$7),"",IF(AND(LEFT(AA7)="*",RIGHT(AA7)="*"),"ff",IF(CN7>CN20,"t",IF(CN7<CN20,"u","g")))) -> t | CO33: =IF(OR(ISERROR(FIND("-",AB7)),AN7<='export html'!$AR$7),"",IF(AND(LEFT(AB7)="*",RIGHT(AB7)="*"),"ff",IF(CO7>CO20,"t",IF(CO7<CO20,"u","g")))) ->  | CP33: 3
D34: =IF('export html'!A6="","",'export html'!A6) -> 2024-02-25 | E34: =IF('export html'!B6="","",'export html'!B6) -> 20 | F34: =IF('export html'!C6="","",'export html'!C6) -> Pouma United - Racing Emblem | N34: =IF('export html'!D6="","",'export html'!D6) -> 2-2 | BP34: 4 | BQ34: =IF(OR(ISERROR(FIND("-",Q8)),AC8>'export html'!$AR$7),"",IF(AND(LEFT(Q8)="*",RIGHT(Q8)="*"),"ff",IF(BQ8>BQ21,"t",IF(BQ8<BQ21,"u","g")))) -> u | BR34: =IF(OR(ISERROR(FIND("-",R8)),AD8>'export html'!$AR$7),"",IF(AND(LEFT(R8)="*",RIGHT(R8)="*"),"ff",IF(BR8>BR21,"t",IF(BR8<BR21,"u","g")))) ->  | BS34: =IF(OR(ISERROR(FIND("-",S8)),AE8>'export html'!$AR$7),"",IF(AND(LEFT(S8)="*",RIGHT(S8)="*"),"ff",IF(BS8>BS21,"t",IF(BS8<BS21,"u","g")))) -> g | BU34: =IF(OR(ISERROR(FIND("-",U8)),AG8>'export html'!$AR$7),"",IF(AND(LEFT(U8)="*",RIGHT(U8)="*"),"ff",IF(BU8>BU21,"t",IF(BU8<BU21,"u","g")))) ->  | BV34: =IF(OR(ISERROR(FIND("-",V8)),AH8>'export html'!$AR$7),"",IF(AND(LEFT(V8)="*",RIGHT(V8)="*"),"ff",IF(BV8>BV21,"t",IF(BV8<BV21,"u","g")))) -> t | BW34: =IF(OR(ISERROR(FIND("-",W8)),AI8>'export html'!$AR$7),"",IF(AND(LEFT(W8)="*",RIGHT(W8)="*"),"ff",IF(BW8>BW21,"t",IF(BW8<BW21,"u","g")))) ->  | BX34: =IF(OR(ISERROR(FIND("-",X8)),AJ8>'export html'!$AR$7),"",IF(AND(LEFT(X8)="*",RIGHT(X8)="*"),"ff",IF(BX8>BX21,"t",IF(BX8<BX21,"u","g")))) -> t | BY34: =IF(OR(ISERROR(FIND("-",Y8)),AK8>'export html'!$AR$7),"",IF(AND(LEFT(Y8)="*",RIGHT(Y8)="*"),"ff",IF(BY8>BY21,"t",IF(BY8<BY21,"u","g")))) ->  | BZ34: =IF(OR(ISERROR(FIND("-",Z8)),AL8>'export html'!$AR$7),"",IF(AND(LEFT(Z8)="*",RIGHT(Z8)="*"),"ff",IF(BZ8>BZ21,"t",IF(BZ8<BZ21,"u","g")))) -> u | CA34: =IF(OR(ISERROR(FIND("-",AA8)),AM8>'export html'!$AR$7),"",IF(AND(LEFT(AA8)="*",RIGHT(AA8)="*"),"ff",IF(CA8>CA21,"t",IF(CA8<CA21,"u","g")))) -> t | CB34: =IF(OR(ISERROR(FIND("-",AB8)),AN8>'export html'!$AR$7),"",IF(AND(LEFT(AB8)="*",RIGHT(AB8)="*"),"ff",IF(CB8>CB21,"t",IF(CB8<CB21,"u","g")))) ->  | CC34: 4 | CD34: =IF(OR(ISERROR(FIND("-",Q8)),AC8<='export html'!$AR$7),"",IF(AND(LEFT(Q8)="*",RIGHT(Q8)="*"),"ff",IF(CD8>CD21,"t",IF(CD8<CD21,"u","g")))) ->  | CE34: =IF(OR(ISERROR(FIND("-",R8)),AD8<='export html'!$AR$7),"",IF(AND(LEFT(R8)="*",RIGHT(R8)="*"),"ff",IF(CE8>CE21,"t",IF(CE8<CE21,"u","g")))) -> g | CF34: =IF(OR(ISERROR(FIND("-",S8)),AE8<='export html'!$AR$7),"",IF(AND(LEFT(S8)="*",RIGHT(S8)="*"),"ff",IF(CF8>CF21,"t",IF(CF8<CF21,"u","g")))) ->  | CH34: =IF(OR(ISERROR(FIND("-",U8)),AG8<='export html'!$AR$7),"",IF(AND(LEFT(U8)="*",RIGHT(U8)="*"),"ff",IF(CH8>CH21,"t",IF(CH8<CH21,"u","g")))) ->  | CI34: =IF(OR(ISERROR(FIND("-",V8)),AH8<='export html'!$AR$7),"",IF(AND(LEFT(V8)="*",RIGHT(V8)="*"),"ff",IF(CI8>CI21,"t",IF(CI8<CI21,"u","g")))) ->  | CJ34: =IF(OR(ISERROR(FIND("-",W8)),AI8<='export html'!$AR$7),"",IF(AND(LEFT(W8)="*",RIGHT(W8)="*"),"ff",IF(CJ8>CJ21,"t",IF(CJ8<CJ21,"u","g")))) -> t | CK34: =IF(OR(ISERROR(FIND("-",X8)),AJ8<='export html'!$AR$7),"",IF(AND(LEFT(X8)="*",RIGHT(X8)="*"),"ff",IF(CK8>CK21,"t",IF(CK8<CK21,"u","g")))) ->  | CL34: =IF(OR(ISERROR(FIND("-",Y8)),AK8<='export html'!$AR$7),"",IF(AND(LEFT(Y8)="*",RIGHT(Y8)="*"),"ff",IF(CL8>CL21,"t",IF(CL8<CL21,"u","g")))) ->  | CM34: =IF(OR(ISERROR(FIND("-",Z8)),AL8<='export html'!$AR$7),"",IF(AND(LEFT(Z8)="*",RIGHT(Z8)="*"),"ff",IF(CM8>CM21,"t",IF(CM8<CM21,"u","g")))) ->  | CN34: =IF(OR(ISERROR(FIND("-",AA8)),AM8<='export html'!$AR$7),"",IF(AND(LEFT(AA8)="*",RIGHT(AA8)="*"),"ff",IF(CN8>CN21,"t",IF(CN8<CN21,"u","g")))) ->  | CO34: =IF(OR(ISERROR(FIND("-",AB8)),AN8<='export html'!$AR$7),"",IF(AND(LEFT(AB8)="*",RIGHT(AB8)="*"),"ff",IF(CO8>CO21,"t",IF(CO8<CO21,"u","g")))) -> t | CP34: 4
D35: =IF('export html'!A7="","",'export html'!A7) -> 2024-02-25 | E35: =IF('export html'!B7="","",'export html'!B7) -> 20 | F35: =IF('export html'!C7="","",'export html'!C7) -> De Vrede - Antverpia 98 | N35: =IF('export html'!D7="","",'export html'!D7) -> 5-0 | BP35: 5 | BQ35: =IF(OR(ISERROR(FIND("-",Q9)),AC9>'export html'!$AR$7),"",IF(AND(LEFT(Q9)="*",RIGHT(Q9)="*"),"ff",IF(BQ9>BQ22,"t",IF(BQ9<BQ22,"u","g")))) -> t | BR35: =IF(OR(ISERROR(FIND("-",R9)),AD9>'export html'!$AR$7),"",IF(AND(LEFT(R9)="*",RIGHT(R9)="*"),"ff",IF(BR9>BR22,"t",IF(BR9<BR22,"u","g")))) ->  | BS35: =IF(OR(ISERROR(FIND("-",S9)),AE9>'export html'!$AR$7),"",IF(AND(LEFT(S9)="*",RIGHT(S9)="*"),"ff",IF(BS9>BS22,"t",IF(BS9<BS22,"u","g")))) -> t | BT35: =IF(OR(ISERROR(FIND("-",T9)),AF9>'export html'!$AR$7),"",IF(AND(LEFT(T9)="*",RIGHT(T9)="*"),"ff",IF(BT9>BT22,"t",IF(BT9<BT22,"u","g")))) -> t | BV35: =IF(OR(ISERROR(FIND("-",V9)),AH9>'export html'!$AR$7),"",IF(AND(LEFT(V9)="*",RIGHT(V9)="*"),"ff",IF(BV9>BV22,"t",IF(BV9<BV22,"u","g")))) ->  | BW35: =IF(OR(ISERROR(FIND("-",W9)),AI9>'export html'!$AR$7),"",IF(AND(LEFT(W9)="*",RIGHT(W9)="*"),"ff",IF(BW9>BW22,"t",IF(BW9<BW22,"u","g")))) ->  | BX35: =IF(OR(ISERROR(FIND("-",X9)),AJ9>'export html'!$AR$7),"",IF(AND(LEFT(X9)="*",RIGHT(X9)="*"),"ff",IF(BX9>BX22,"t",IF(BX9<BX22,"u","g")))) -> t | BY35: =IF(OR(ISERROR(FIND("-",Y9)),AK9>'export html'!$AR$7),"",IF(AND(LEFT(Y9)="*",RIGHT(Y9)="*"),"ff",IF(BY9>BY22,"t",IF(BY9<BY22,"u","g")))) ->  | BZ35: =IF(OR(ISERROR(FIND("-",Z9)),AL9>'export html'!$AR$7),"",IF(AND(LEFT(Z9)="*",RIGHT(Z9)="*"),"ff",IF(BZ9>BZ22,"t",IF(BZ9<BZ22,"u","g")))) ->  | CA35: =IF(OR(ISERROR(FIND("-",AA9)),AM9>'export html'!$AR$7),"",IF(AND(LEFT(AA9)="*",RIGHT(AA9)="*"),"ff",IF(CA9>CA22,"t",IF(CA9<CA22,"u","g")))) -> t | CB35: =IF(OR(ISERROR(FIND("-",AB9)),AN9>'export html'!$AR$7),"",IF(AND(LEFT(AB9)="*",RIGHT(AB9)="*"),"ff",IF(CB9>CB22,"t",IF(CB9<CB22,"u","g")))) -> g | CC35: 5 | CD35: =IF(OR(ISERROR(FIND("-",Q9)),AC9<='export html'!$AR$7),"",IF(AND(LEFT(Q9)="*",RIGHT(Q9)="*"),"ff",IF(CD9>CD22,"t",IF(CD9<CD22,"u","g")))) ->  | CE35: =IF(OR(ISERROR(FIND("-",R9)),AD9<='export html'!$AR$7),"",IF(AND(LEFT(R9)="*",RIGHT(R9)="*"),"ff",IF(CE9>CE22,"t",IF(CE9<CE22,"u","g")))) -> t | CF35: =IF(OR(ISERROR(FIND("-",S9)),AE9<='export html'!$AR$7),"",IF(AND(LEFT(S9)="*",RIGHT(S9)="*"),"ff",IF(CF9>CF22,"t",IF(CF9<CF22,"u","g")))) ->  | CG35: =IF(OR(ISERROR(FIND("-",T9)),AF9<='export html'!$AR$7),"",IF(AND(LEFT(T9)="*",RIGHT(T9)="*"),"ff",IF(CG9>CG22,"t",IF(CG9<CG22,"u","g")))) ->  | CI35: =IF(OR(ISERROR(FIND("-",V9)),AH9<='export html'!$AR$7),"",IF(AND(LEFT(V9)="*",RIGHT(V9)="*"),"ff",IF(CI9>CI22,"t",IF(CI9<CI22,"u","g")))) ->  | CJ35: =IF(OR(ISERROR(FIND("-",W9)),AI9<='export html'!$AR$7),"",IF(AND(LEFT(W9)="*",RIGHT(W9)="*"),"ff",IF(CJ9>CJ22,"t",IF(CJ9<CJ22,"u","g")))) -> t | CK35: =IF(OR(ISERROR(FIND("-",X9)),AJ9<='export html'!$AR$7),"",IF(AND(LEFT(X9)="*",RIGHT(X9)="*"),"ff",IF(CK9>CK22,"t",IF(CK9<CK22,"u","g")))) ->  | CL35: =IF(OR(ISERROR(FIND("-",Y9)),AK9<='export html'!$AR$7),"",IF(AND(LEFT(Y9)="*",RIGHT(Y9)="*"),"ff",IF(CL9>CL22,"t",IF(CL9<CL22,"u","g")))) -> t | CM35: =IF(OR(ISERROR(FIND("-",Z9)),AL9<='export html'!$AR$7),"",IF(AND(LEFT(Z9)="*",RIGHT(Z9)="*"),"ff",IF(CM9>CM22,"t",IF(CM9<CM22,"u","g")))) -> t | CN35: =IF(OR(ISERROR(FIND("-",AA9)),AM9<='export html'!$AR$7),"",IF(AND(LEFT(AA9)="*",RIGHT(AA9)="*"),"ff",IF(CN9>CN22,"t",IF(CN9<CN22,"u","g")))) ->  | CO35: =IF(OR(ISERROR(FIND("-",AB9)),AN9<='export html'!$AR$7),"",IF(AND(LEFT(AB9)="*",RIGHT(AB9)="*"),"ff",IF(CO9>CO22,"t",IF(CO9<CO22,"u","g")))) ->  | CP35: 5
D36: =IF('export html'!A8="","",'export html'!A8) ->  | E36: =IF('export html'!B8="","",'export html'!B8) ->  | F36: =IF('export html'!C8="","",'export html'!C8) ->  | N36: =IF('export html'!D8="","",'export html'!D8) ->  | BP36: 6 | BQ36: =IF(OR(ISERROR(FIND("-",Q10)),AC10>'export html'!$AR$7),"",IF(AND(LEFT(Q10)="*",RIGHT(Q10)="*"),"ff",IF(BQ10>BQ23,"t",IF(BQ10<BQ23,"u","g")))) -> t | BR36: =IF(OR(ISERROR(FIND("-",R10)),AD10>'export html'!$AR$7),"",IF(AND(LEFT(R10)="*",RIGHT(R10)="*"),"ff",IF(BR10>BR23,"t",IF(BR10<BR23,"u","g")))) -> t | BS36: =IF(OR(ISERROR(FIND("-",S10)),AE10>'export html'!$AR$7),"",IF(AND(LEFT(S10)="*",RIGHT(S10)="*"),"ff",IF(BS10>BS23,"t",IF(BS10<BS23,"u","g")))) ->  | BT36: =IF(OR(ISERROR(FIND("-",T10)),AF10>'export html'!$AR$7),"",IF(AND(LEFT(T10)="*",RIGHT(T10)="*"),"ff",IF(BT10>BT23,"t",IF(BT10<BT23,"u","g")))) ->  | BU36: =IF(OR(ISERROR(FIND("-",U10)),AG10>'export html'!$AR$7),"",IF(AND(LEFT(U10)="*",RIGHT(U10)="*"),"ff",IF(BU10>BU23,"t",IF(BU10<BU23,"u","g")))) -> u | BW36: =IF(OR(ISERROR(FIND("-",W10)),AI10>'export html'!$AR$7),"",IF(AND(LEFT(W10)="*",RIGHT(W10)="*"),"ff",IF(BW10>BW23,"t",IF(BW10<BW23,"u","g")))) -> t | BX36: =IF(OR(ISERROR(FIND("-",X10)),AJ10>'export html'!$AR$7),"",IF(AND(LEFT(X10)="*",RIGHT(X10)="*"),"ff",IF(BX10>BX23,"t",IF(BX10<BX23,"u","g")))) ->  | BY36: =IF(OR(ISERROR(FIND("-",Y10)),AK10>'export html'!$AR$7),"",IF(AND(LEFT(Y10)="*",RIGHT(Y10)="*"),"ff",IF(BY10>BY23,"t",IF(BY10<BY23,"u","g")))) ->  | BZ36: =IF(OR(ISERROR(FIND("-",Z10)),AL10>'export html'!$AR$7),"",IF(AND(LEFT(Z10)="*",RIGHT(Z10)="*"),"ff",IF(BZ10>BZ23,"t",IF(BZ10<BZ23,"u","g")))) ->  | CA36: =IF(OR(ISERROR(FIND("-",AA10)),AM10>'export html'!$AR$7),"",IF(AND(LEFT(AA10)="*",RIGHT(AA10)="*"),"ff",IF(CA10>CA23,"t",IF(CA10<CA23,"u","g")))) ->  | CB36: =IF(OR(ISERROR(FIND("-",AB10)),AN10>'export html'!$AR$7),"",IF(AND(LEFT(AB10)="*",RIGHT(AB10)="*"),"ff",IF(CB10>CB23,"t",IF(CB10<CB23,"u","g")))) ->  | CC36: 6 | CD36: =IF(OR(ISERROR(FIND("-",Q10)),AC10<='export html'!$AR$7),"",IF(AND(LEFT(Q10)="*",RIGHT(Q10)="*"),"ff",IF(CD10>CD23,"t",IF(CD10<CD23,"u","g")))) ->  | CE36: =IF(OR(ISERROR(FIND("-",R10)),AD10<='export html'!$AR$7),"",IF(AND(LEFT(R10)="*",RIGHT(R10)="*"),"ff",IF(CE10>CE23,"t",IF(CE10<CE23,"u","g")))) ->  | CF36: =IF(OR(ISERROR(FIND("-",S10)),AE10<='export html'!$AR$7),"",IF(AND(LEFT(S10)="*",RIGHT(S10)="*"),"ff",IF(CF10>CF23,"t",IF(CF10<CF23,"u","g")))) -> t | CG36: =IF(OR(ISERROR(FIND("-",T10)),AF10<='export html'!$AR$7),"",IF(AND(LEFT(T10)="*",RIGHT(T10)="*"),"ff",IF(CG10>CG23,"t",IF(CG10<CG23,"u","g")))) -> t | CH36: =IF(OR(ISERROR(FIND("-",U10)),AG10<='export html'!$AR$7),"",IF(AND(LEFT(U10)="*",RIGHT(U10)="*"),"ff",IF(CH10>CH23,"t",IF(CH10<CH23,"u","g")))) ->  | CJ36: =IF(OR(ISERROR(FIND("-",W10)),AI10<='export html'!$AR$7),"",IF(AND(LEFT(W10)="*",RIGHT(W10)="*"),"ff",IF(CJ10>CJ23,"t",IF(CJ10<CJ23,"u","g")))) ->  | CK36: =IF(OR(ISERROR(FIND("-",X10)),AJ10<='export html'!$AR$7),"",IF(AND(LEFT(X10)="*",RIGHT(X10)="*"),"ff",IF(CK10>CK23,"t",IF(CK10<CK23,"u","g")))) ->  | CL36: =IF(OR(ISERROR(FIND("-",Y10)),AK10<='export html'!$AR$7),"",IF(AND(LEFT(Y10)="*",RIGHT(Y10)="*"),"ff",IF(CL10>CL23,"t",IF(CL10<CL23,"u","g")))) -> t | CM36: =IF(OR(ISERROR(FIND("-",Z10)),AL10<='export html'!$AR$7),"",IF(AND(LEFT(Z10)="*",RIGHT(Z10)="*"),"ff",IF(CM10>CM23,"t",IF(CM10<CM23,"u","g")))) ->  | CN36: =IF(OR(ISERROR(FIND("-",AA10)),AM10<='export html'!$AR$7),"",IF(AND(LEFT(AA10)="*",RIGHT(AA10)="*"),"ff",IF(CN10>CN23,"t",IF(CN10<CN23,"u","g")))) -> u | CO36: =IF(OR(ISERROR(FIND("-",AB10)),AN10<='export html'!$AR$7),"",IF(AND(LEFT(AB10)="*",RIGHT(AB10)="*"),"ff",IF(CO10>CO23,"t",IF(CO10<CO23,"u","g")))) -> t | CP36: 6
D37: =IF('export html'!A9="","",'export html'!A9) ->  | E37: =IF('export html'!B9="","",'export html'!B9) ->  | F37: =IF('export html'!C9="","",'export html'!C9) ->  | N37: =IF('export html'!D9="","",'export html'!D9) ->  | BP37: 7 | BQ37: =IF(OR(ISERROR(FIND("-",Q11)),AC11>'export html'!$AR$7),"",IF(AND(LEFT(Q11)="*",RIGHT(Q11)="*"),"ff",IF(BQ11>BQ24,"t",IF(BQ11<BQ24,"u","g")))) ->  | BR37: =IF(OR(ISERROR(FIND("-",R11)),AD11>'export html'!$AR$7),"",IF(AND(LEFT(R11)="*",RIGHT(R11)="*"),"ff",IF(BR11>BR24,"t",IF(BR11<BR24,"u","g")))) -> g | BS37: =IF(OR(ISERROR(FIND("-",S11)),AE11>'export html'!$AR$7),"",IF(AND(LEFT(S11)="*",RIGHT(S11)="*"),"ff",IF(BS11>BS24,"t",IF(BS11<BS24,"u","g")))) -> g | BT37: =IF(OR(ISERROR(FIND("-",T11)),AF11>'export html'!$AR$7),"",IF(AND(LEFT(T11)="*",RIGHT(T11)="*"),"ff",IF(BT11>BT24,"t",IF(BT11<BT24,"u","g")))) -> u | BU37: =IF(OR(ISERROR(FIND("-",U11)),AG11>'export html'!$AR$7),"",IF(AND(LEFT(U11)="*",RIGHT(U11)="*"),"ff",IF(BU11>BU24,"t",IF(BU11<BU24,"u","g")))) -> u | BV37: =IF(OR(ISERROR(FIND("-",V11)),AH11>'export html'!$AR$7),"",IF(AND(LEFT(V11)="*",RIGHT(V11)="*"),"ff",IF(BV11>BV24,"t",IF(BV11<BV24,"u","g")))) ->  | BX37: =IF(OR(ISERROR(FIND("-",X11)),AJ11>'export html'!$AR$7),"",IF(AND(LEFT(X11)="*",RIGHT(X11)="*"),"ff",IF(BX11>BX24,"t",IF(BX11<BX24,"u","g")))) ->  | BY37: =IF(OR(ISERROR(FIND("-",Y11)),AK11>'export html'!$AR$7),"",IF(AND(LEFT(Y11)="*",RIGHT(Y11)="*"),"ff",IF(BY11>BY24,"t",IF(BY11<BY24,"u","g")))) -> t | BZ37: =IF(OR(ISERROR(FIND("-",Z11)),AL11>'export html'!$AR$7),"",IF(AND(LEFT(Z11)="*",RIGHT(Z11)="*"),"ff",IF(BZ11>BZ24,"t",IF(BZ11<BZ24,"u","g")))) ->  | CA37: =IF(OR(ISERROR(FIND("-",AA11)),AM11>'export html'!$AR$7),"",IF(AND(LEFT(AA11)="*",RIGHT(AA11)="*"),"ff",IF(CA11>CA24,"t",IF(CA11<CA24,"u","g")))) ->  | CB37: =IF(OR(ISERROR(FIND("-",AB11)),AN11>'export html'!$AR$7),"",IF(AND(LEFT(AB11)="*",RIGHT(AB11)="*"),"ff",IF(CB11>CB24,"t",IF(CB11<CB24,"u","g")))) ->  | CC37: 7 | CD37: =IF(OR(ISERROR(FIND("-",Q11)),AC11<='export html'!$AR$7),"",IF(AND(LEFT(Q11)="*",RIGHT(Q11)="*"),"ff",IF(CD11>CD24,"t",IF(CD11<CD24,"u","g")))) -> u | CE37: =IF(OR(ISERROR(FIND("-",R11)),AD11<='export html'!$AR$7),"",IF(AND(LEFT(R11)="*",RIGHT(R11)="*"),"ff",IF(CE11>CE24,"t",IF(CE11<CE24,"u","g")))) ->  | CF37: =IF(OR(ISERROR(FIND("-",S11)),AE11<='export html'!$AR$7),"",IF(AND(LEFT(S11)="*",RIGHT(S11)="*"),"ff",IF(CF11>CF24,"t",IF(CF11<CF24,"u","g")))) ->  | CG37: =IF(OR(ISERROR(FIND("-",T11)),AF11<='export html'!$AR$7),"",IF(AND(LEFT(T11)="*",RIGHT(T11)="*"),"ff",IF(CG11>CG24,"t",IF(CG11<CG24,"u","g")))) ->  | CH37: =IF(OR(ISERROR(FIND("-",U11)),AG11<='export html'!$AR$7),"",IF(AND(LEFT(U11)="*",RIGHT(U11)="*"),"ff",IF(CH11>CH24,"t",IF(CH11<CH24,"u","g")))) ->  | CI37: =IF(OR(ISERROR(FIND("-",V11)),AH11<='export html'!$AR$7),"",IF(AND(LEFT(V11)="*",RIGHT(V11)="*"),"ff",IF(CI11>CI24,"t",IF(CI11<CI24,"u","g")))) -> u | CK37: =IF(OR(ISERROR(FIND("-",X11)),AJ11<='export html'!$AR$7),"",IF(AND(LEFT(X11)="*",RIGHT(X11)="*"),"ff",IF(CK11>CK24,"t",IF(CK11<CK24,"u","g")))) -> u | CL37: =IF(OR(ISERROR(FIND("-",Y11)),AK11<='export html'!$AR$7),"",IF(AND(LEFT(Y11)="*",RIGHT(Y11)="*"),"ff",IF(CL11>CL24,"t",IF(CL11<CL24,"u","g")))) ->  | CM37: =IF(OR(ISERROR(FIND("-",Z11)),AL11<='export html'!$AR$7),"",IF(AND(LEFT(Z11)="*",RIGHT(Z11)="*"),"ff",IF(CM11>CM24,"t",IF(CM11<CM24,"u","g")))) ->  | CN37: =IF(OR(ISERROR(FIND("-",AA11)),AM11<='export html'!$AR$7),"",IF(AND(LEFT(AA11)="*",RIGHT(AA11)="*"),"ff",IF(CN11>CN24,"t",IF(CN11<CN24,"u","g")))) ->  | CO37: =IF(OR(ISERROR(FIND("-",AB11)),AN11<='export html'!$AR$7),"",IF(AND(LEFT(AB11)="*",RIGHT(AB11)="*"),"ff",IF(CO11>CO24,"t",IF(CO11<CO24,"u","g")))) ->  | CP37: 7
BP38: 8 | BQ38: =IF(OR(ISERROR(FIND("-",Q12)),AC12>'export html'!$AR$7),"",IF(AND(LEFT(Q12)="*",RIGHT(Q12)="*"),"ff",IF(BQ12>BQ25,"t",IF(BQ12<BQ25,"u","g")))) ->  | BR38: =IF(OR(ISERROR(FIND("-",R12)),AD12>'export html'!$AR$7),"",IF(AND(LEFT(R12)="*",RIGHT(R12)="*"),"ff",IF(BR12>BR25,"t",IF(BR12<BR25,"u","g")))) -> t | BS38: =IF(OR(ISERROR(FIND("-",S12)),AE12>'export html'!$AR$7),"",IF(AND(LEFT(S12)="*",RIGHT(S12)="*"),"ff",IF(BS12>BS25,"t",IF(BS12<BS25,"u","g")))) ->  | BT38: =IF(OR(ISERROR(FIND("-",T12)),AF12>'export html'!$AR$7),"",IF(AND(LEFT(T12)="*",RIGHT(T12)="*"),"ff",IF(BT12>BT25,"t",IF(BT12<BT25,"u","g")))) ->  | BU38: =IF(OR(ISERROR(FIND("-",U12)),AG12>'export html'!$AR$7),"",IF(AND(LEFT(U12)="*",RIGHT(U12)="*"),"ff",IF(BU12>BU25,"t",IF(BU12<BU25,"u","g")))) ->  | BV38: =IF(OR(ISERROR(FIND("-",V12)),AH12>'export html'!$AR$7),"",IF(AND(LEFT(V12)="*",RIGHT(V12)="*"),"ff",IF(BV12>BV25,"t",IF(BV12<BV25,"u","g")))) -> t | BW38: =IF(OR(ISERROR(FIND("-",W12)),AI12>'export html'!$AR$7),"",IF(AND(LEFT(W12)="*",RIGHT(W12)="*"),"ff",IF(BW12>BW25,"t",IF(BW12<BW25,"u","g")))) -> t | BY38: =IF(OR(ISERROR(FIND("-",Y12)),AK12>'export html'!$AR$7),"",IF(AND(LEFT(Y12)="*",RIGHT(Y12)="*"),"ff",IF(BY12>BY25,"t",IF(BY12<BY25,"u","g")))) -> u | BZ38: =IF(OR(ISERROR(FIND("-",Z12)),AL12>'export html'!$AR$7),"",IF(AND(LEFT(Z12)="*",RIGHT(Z12)="*"),"ff",IF(BZ12>BZ25,"t",IF(BZ12<BZ25,"u","g")))) ->  | CA38: =IF(OR(ISERROR(FIND("-",AA12)),AM12>'export html'!$AR$7),"",IF(AND(LEFT(AA12)="*",RIGHT(AA12)="*"),"ff",IF(CA12>CA25,"t",IF(CA12<CA25,"u","g")))) ->  | CB38: =IF(OR(ISERROR(FIND("-",AB12)),AN12>'export html'!$AR$7),"",IF(AND(LEFT(AB12)="*",RIGHT(AB12)="*"),"ff",IF(CB12>CB25,"t",IF(CB12<CB25,"u","g")))) ->  | CC38: 8 | CD38: =IF(OR(ISERROR(FIND("-",Q12)),AC12<='export html'!$AR$7),"",IF(AND(LEFT(Q12)="*",RIGHT(Q12)="*"),"ff",IF(CD12>CD25,"t",IF(CD12<CD25,"u","g")))) ->  | CE38: =IF(OR(ISERROR(FIND("-",R12)),AD12<='export html'!$AR$7),"",IF(AND(LEFT(R12)="*",RIGHT(R12)="*"),"ff",IF(CE12>CE25,"t",IF(CE12<CE25,"u","g")))) ->  | CF38: =IF(OR(ISERROR(FIND("-",S12)),AE12<='export html'!$AR$7),"",IF(AND(LEFT(S12)="*",RIGHT(S12)="*"),"ff",IF(CF12>CF25,"t",IF(CF12<CF25,"u","g")))) -> u | CG38: =IF(OR(ISERROR(FIND("-",T12)),AF12<='export html'!$AR$7),"",IF(AND(LEFT(T12)="*",RIGHT(T12)="*"),"ff",IF(CG12>CG25,"t",IF(CG12<CG25,"u","g")))) ->  | CH38: =IF(OR(ISERROR(FIND("-",U12)),AG12<='export html'!$AR$7),"",IF(AND(LEFT(U12)="*",RIGHT(U12)="*"),"ff",IF(CH12>CH25,"t",IF(CH12<CH25,"u","g")))) ->  | CI38: =IF(OR(ISERROR(FIND("-",V12)),AH12<='export html'!$AR$7),"",IF(AND(LEFT(V12)="*",RIGHT(V12)="*"),"ff",IF(CI12>CI25,"t",IF(CI12<CI25,"u","g")))) ->  | CJ38: =IF(OR(ISERROR(FIND("-",W12)),AI12<='export html'!$AR$7),"",IF(AND(LEFT(W12)="*",RIGHT(W12)="*"),"ff",IF(CJ12>CJ25,"t",IF(CJ12<CJ25,"u","g")))) ->  | CL38: =IF(OR(ISERROR(FIND("-",Y12)),AK12<='export html'!$AR$7),"",IF(AND(LEFT(Y12)="*",RIGHT(Y12)="*"),"ff",IF(CL12>CL25,"t",IF(CL12<CL25,"u","g")))) ->  | CM38: =IF(OR(ISERROR(FIND("-",Z12)),AL12<='export html'!$AR$7),"",IF(AND(LEFT(Z12)="*",RIGHT(Z12)="*"),"ff",IF(CM12>CM25,"t",IF(CM12<CM25,"u","g")))) -> g | CN38: =IF(OR(ISERROR(FIND("-",AA12)),AM12<='export html'!$AR$7),"",IF(AND(LEFT(AA12)="*",RIGHT(AA12)="*"),"ff",IF(CN12>CN25,"t",IF(CN12<CN25,"u","g")))) -> u | CO38: =IF(OR(ISERROR(FIND("-",AB12)),AN12<='export html'!$AR$7),"",IF(AND(LEFT(AB12)="*",RIGHT(AB12)="*"),"ff",IF(CO12>CO25,"t",IF(CO12<CO25,"u","g")))) -> t | CP38: 8
BP39: 9 | BQ39: =IF(OR(ISERROR(FIND("-",Q13)),AC13>'export html'!$AR$7),"",IF(AND(LEFT(Q13)="*",RIGHT(Q13)="*"),"ff",IF(BQ13>BQ26,"t",IF(BQ13<BQ26,"u","g")))) ->  | BR39: =IF(OR(ISERROR(FIND("-",R13)),AD13>'export html'!$AR$7),"",IF(AND(LEFT(R13)="*",RIGHT(R13)="*"),"ff",IF(BR13>BR26,"t",IF(BR13<BR26,"u","g")))) ->  | BS39: =IF(OR(ISERROR(FIND("-",S13)),AE13>'export html'!$AR$7),"",IF(AND(LEFT(S13)="*",RIGHT(S13)="*"),"ff",IF(BS13>BS26,"t",IF(BS13<BS26,"u","g")))) -> t | BT39: =IF(OR(ISERROR(FIND("-",T13)),AF13>'export html'!$AR$7),"",IF(AND(LEFT(T13)="*",RIGHT(T13)="*"),"ff",IF(BT13>BT26,"t",IF(BT13<BT26,"u","g")))) ->  | BU39: =IF(OR(ISERROR(FIND("-",U13)),AG13>'export html'!$AR$7),"",IF(AND(LEFT(U13)="*",RIGHT(U13)="*"),"ff",IF(BU13>BU26,"t",IF(BU13<BU26,"u","g")))) -> u | BV39: =IF(OR(ISERROR(FIND("-",V13)),AH13>'export html'!$AR$7),"",IF(AND(LEFT(V13)="*",RIGHT(V13)="*"),"ff",IF(BV13>BV26,"t",IF(BV13<BV26,"u","g")))) ->  | BW39: =IF(OR(ISERROR(FIND("-",W13)),AI13>'export html'!$AR$7),"",IF(AND(LEFT(W13)="*",RIGHT(W13)="*"),"ff",IF(BW13>BW26,"t",IF(BW13<BW26,"u","g")))) ->  | BX39: =IF(OR(ISERROR(FIND("-",X13)),AJ13>'export html'!$AR$7),"",IF(AND(LEFT(X13)="*",RIGHT(X13)="*"),"ff",IF(BX13>BX26,"t",IF(BX13<BX26,"u","g")))) ->  | BZ39: =IF(OR(ISERROR(FIND("-",Z13)),AL13>'export html'!$AR$7),"",IF(AND(LEFT(Z13)="*",RIGHT(Z13)="*"),"ff",IF(BZ13>BZ26,"t",IF(BZ13<BZ26,"u","g")))) ->  | CA39: =IF(OR(ISERROR(FIND("-",AA13)),AM13>'export html'!$AR$7),"",IF(AND(LEFT(AA13)="*",RIGHT(AA13)="*"),"ff",IF(CA13>CA26,"t",IF(CA13<CA26,"u","g")))) -> t | CB39: =IF(OR(ISERROR(FIND("-",AB13)),AN13>'export html'!$AR$7),"",IF(AND(LEFT(AB13)="*",RIGHT(AB13)="*"),"ff",IF(CB13>CB26,"t",IF(CB13<CB26,"u","g")))) -> g | CC39: 9 | CD39: =IF(OR(ISERROR(FIND("-",Q13)),AC13<='export html'!$AR$7),"",IF(AND(LEFT(Q13)="*",RIGHT(Q13)="*"),"ff",IF(CD13>CD26,"t",IF(CD13<CD26,"u","g")))) -> u | CE39: =IF(OR(ISERROR(FIND("-",R13)),AD13<='export html'!$AR$7),"",IF(AND(LEFT(R13)="*",RIGHT(R13)="*"),"ff",IF(CE13>CE26,"t",IF(CE13<CE26,"u","g")))) ->  | CF39: =IF(OR(ISERROR(FIND("-",S13)),AE13<='export html'!$AR$7),"",IF(AND(LEFT(S13)="*",RIGHT(S13)="*"),"ff",IF(CF13>CF26,"t",IF(CF13<CF26,"u","g")))) ->  | CG39: =IF(OR(ISERROR(FIND("-",T13)),AF13<='export html'!$AR$7),"",IF(AND(LEFT(T13)="*",RIGHT(T13)="*"),"ff",IF(CG13>CG26,"t",IF(CG13<CG26,"u","g")))) -> t | CH39: =IF(OR(ISERROR(FIND("-",U13)),AG13<='export html'!$AR$7),"",IF(AND(LEFT(U13)="*",RIGHT(U13)="*"),"ff",IF(CH13>CH26,"t",IF(CH13<CH26,"u","g")))) ->  | CI39: =IF(OR(ISERROR(FIND("-",V13)),AH13<='export html'!$AR$7),"",IF(AND(LEFT(V13)="*",RIGHT(V13)="*"),"ff",IF(CI13>CI26,"t",IF(CI13<CI26,"u","g")))) ->  | CJ39: =IF(OR(ISERROR(FIND("-",W13)),AI13<='export html'!$AR$7),"",IF(AND(LEFT(W13)="*",RIGHT(W13)="*"),"ff",IF(CJ13>CJ26,"t",IF(CJ13<CJ26,"u","g")))) ->  | CK39: =IF(OR(ISERROR(FIND("-",X13)),AJ13<='export html'!$AR$7),"",IF(AND(LEFT(X13)="*",RIGHT(X13)="*"),"ff",IF(CK13>CK26,"t",IF(CK13<CK26,"u","g")))) -> t | CM39: =IF(OR(ISERROR(FIND("-",Z13)),AL13<='export html'!$AR$7),"",IF(AND(LEFT(Z13)="*",RIGHT(Z13)="*"),"ff",IF(CM13>CM26,"t",IF(CM13<CM26,"u","g")))) -> u | CN39: =IF(OR(ISERROR(FIND("-",AA13)),AM13<='export html'!$AR$7),"",IF(AND(LEFT(AA13)="*",RIGHT(AA13)="*"),"ff",IF(CN13>CN26,"t",IF(CN13<CN26,"u","g")))) ->  | CO39: =IF(OR(ISERROR(FIND("-",AB13)),AN13<='export html'!$AR$7),"",IF(AND(LEFT(AB13)="*",RIGHT(AB13)="*"),"ff",IF(CO13>CO26,"t",IF(CO13<CO26,"u","g")))) ->  | CP39: 9
BP40: 10 | BQ40: =IF(OR(ISERROR(FIND("-",Q14)),AC14>'export html'!$AR$7),"",IF(AND(LEFT(Q14)="*",RIGHT(Q14)="*"),"ff",IF(BQ14>BQ27,"t",IF(BQ14<BQ27,"u","g")))) ->  | BR40: =IF(OR(ISERROR(FIND("-",R14)),AD14>'export html'!$AR$7),"",IF(AND(LEFT(R14)="*",RIGHT(R14)="*"),"ff",IF(BR14>BR27,"t",IF(BR14<BR27,"u","g")))) -> t | BS40: =IF(OR(ISERROR(FIND("-",S14)),AE14>'export html'!$AR$7),"",IF(AND(LEFT(S14)="*",RIGHT(S14)="*"),"ff",IF(BS14>BS27,"t",IF(BS14<BS27,"u","g")))) ->  | BT40: =IF(OR(ISERROR(FIND("-",T14)),AF14>'export html'!$AR$7),"",IF(AND(LEFT(T14)="*",RIGHT(T14)="*"),"ff",IF(BT14>BT27,"t",IF(BT14<BT27,"u","g")))) ->  | BU40: =IF(OR(ISERROR(FIND("-",U14)),AG14>'export html'!$AR$7),"",IF(AND(LEFT(U14)="*",RIGHT(U14)="*"),"ff",IF(BU14>BU27,"t",IF(BU14<BU27,"u","g")))) ->  | BV40: =IF(OR(ISERROR(FIND("-",V14)),AH14>'export html'!$AR$7),"",IF(AND(LEFT(V14)="*",RIGHT(V14)="*"),"ff",IF(BV14>BV27,"t",IF(BV14<BV27,"u","g")))) ->  | BW40: =IF(OR(ISERROR(FIND("-",W14)),AI14>'export html'!$AR$7),"",IF(AND(LEFT(W14)="*",RIGHT(W14)="*"),"ff",IF(BW14>BW27,"t",IF(BW14<BW27,"u","g")))) -> t | BX40: =IF(OR(ISERROR(FIND("-",X14)),AJ14>'export html'!$AR$7),"",IF(AND(LEFT(X14)="*",RIGHT(X14)="*"),"ff",IF(BX14>BX27,"t",IF(BX14<BX27,"u","g")))) -> t | BY40: =IF(OR(ISERROR(FIND("-",Y14)),AK14>'export html'!$AR$7),"",IF(AND(LEFT(Y14)="*",RIGHT(Y14)="*"),"ff",IF(BY14>BY27,"t",IF(BY14<BY27,"u","g")))) -> t | CA40: =IF(OR(ISERROR(FIND("-",AA14)),AM14>'export html'!$AR$7),"",IF(AND(LEFT(AA14)="*",RIGHT(AA14)="*"),"ff",IF(CA14>CA27,"t",IF(CA14<CA27,"u","g")))) ->  | CB40: =IF(OR(ISERROR(FIND("-",AB14)),AN14>'export html'!$AR$7),"",IF(AND(LEFT(AB14)="*",RIGHT(AB14)="*"),"ff",IF(CB14>CB27,"t",IF(CB14<CB27,"u","g")))) ->  | CC40: 10 | CD40: =IF(OR(ISERROR(FIND("-",Q14)),AC14<='export html'!$AR$7),"",IF(AND(LEFT(Q14)="*",RIGHT(Q14)="*"),"ff",IF(CD14>CD27,"t",IF(CD14<CD27,"u","g")))) -> u | CE40: =IF(OR(ISERROR(FIND("-",R14)),AD14<='export html'!$AR$7),"",IF(AND(LEFT(R14)="*",RIGHT(R14)="*"),"ff",IF(CE14>CE27,"t",IF(CE14<CE27,"u","g")))) ->  | CF40: =IF(OR(ISERROR(FIND("-",S14)),AE14<='export html'!$AR$7),"",IF(AND(LEFT(S14)="*",RIGHT(S14)="*"),"ff",IF(CF14>CF27,"t",IF(CF14<CF27,"u","g")))) ->  | CG40: =IF(OR(ISERROR(FIND("-",T14)),AF14<='export html'!$AR$7),"",IF(AND(LEFT(T14)="*",RIGHT(T14)="*"),"ff",IF(CG14>CG27,"t",IF(CG14<CG27,"u","g")))) ->  | CH40: =IF(OR(ISERROR(FIND("-",U14)),AG14<='export html'!$AR$7),"",IF(AND(LEFT(U14)="*",RIGHT(U14)="*"),"ff",IF(CH14>CH27,"t",IF(CH14<CH27,"u","g")))) ->  | CI40: =IF(OR(ISERROR(FIND("-",V14)),AH14<='export html'!$AR$7),"",IF(AND(LEFT(V14)="*",RIGHT(V14)="*"),"ff",IF(CI14>CI27,"t",IF(CI14<CI27,"u","g")))) -> t | CJ40: =IF(OR(ISERROR(FIND("-",W14)),AI14<='export html'!$AR$7),"",IF(AND(LEFT(W14)="*",RIGHT(W14)="*"),"ff",IF(CJ14>CJ27,"t",IF(CJ14<CJ27,"u","g")))) ->  | CK40: =IF(OR(ISERROR(FIND("-",X14)),AJ14<='export html'!$AR$7),"",IF(AND(LEFT(X14)="*",RIGHT(X14)="*"),"ff",IF(CK14>CK27,"t",IF(CK14<CK27,"u","g")))) ->  | CL40: =IF(OR(ISERROR(FIND("-",Y14)),AK14<='export html'!$AR$7),"",IF(AND(LEFT(Y14)="*",RIGHT(Y14)="*"),"ff",IF(CL14>CL27,"t",IF(CL14<CL27,"u","g")))) ->  | CN40: =IF(OR(ISERROR(FIND("-",AA14)),AM14<='export html'!$AR$7),"",IF(AND(LEFT(AA14)="*",RIGHT(AA14)="*"),"ff",IF(CN14>CN27,"t",IF(CN14<CN27,"u","g")))) -> g | CO40: =IF(OR(ISERROR(FIND("-",AB14)),AN14<='export html'!$AR$7),"",IF(AND(LEFT(AB14)="*",RIGHT(AB14)="*"),"ff",IF(CO14>CO27,"t",IF(CO14<CO27,"u","g")))) -> t | CP40: 10
BP41: 11 | BQ41: =IF(OR(ISERROR(FIND("-",Q15)),AC15>'export html'!$AR$7),"",IF(AND(LEFT(Q15)="*",RIGHT(Q15)="*"),"ff",IF(BQ15>BQ28,"t",IF(BQ15<BQ28,"u","g")))) ->  | BR41: =IF(OR(ISERROR(FIND("-",R15)),AD15>'export html'!$AR$7),"",IF(AND(LEFT(R15)="*",RIGHT(R15)="*"),"ff",IF(BR15>BR28,"t",IF(BR15<BR28,"u","g")))) ->  | BS41: =IF(OR(ISERROR(FIND("-",S15)),AE15>'export html'!$AR$7),"",IF(AND(LEFT(S15)="*",RIGHT(S15)="*"),"ff",IF(BS15>BS28,"t",IF(BS15<BS28,"u","g")))) ->  | BT41: =IF(OR(ISERROR(FIND("-",T15)),AF15>'export html'!$AR$7),"",IF(AND(LEFT(T15)="*",RIGHT(T15)="*"),"ff",IF(BT15>BT28,"t",IF(BT15<BT28,"u","g")))) ->  | BU41: =IF(OR(ISERROR(FIND("-",U15)),AG15>'export html'!$AR$7),"",IF(AND(LEFT(U15)="*",RIGHT(U15)="*"),"ff",IF(BU15>BU28,"t",IF(BU15<BU28,"u","g")))) ->  | BV41: =IF(OR(ISERROR(FIND("-",V15)),AH15>'export html'!$AR$7),"",IF(AND(LEFT(V15)="*",RIGHT(V15)="*"),"ff",IF(BV15>BV28,"t",IF(BV15<BV28,"u","g")))) -> u | BW41: =IF(OR(ISERROR(FIND("-",W15)),AI15>'export html'!$AR$7),"",IF(AND(LEFT(W15)="*",RIGHT(W15)="*"),"ff",IF(BW15>BW28,"t",IF(BW15<BW28,"u","g")))) ->  | BX41: =IF(OR(ISERROR(FIND("-",X15)),AJ15>'export html'!$AR$7),"",IF(AND(LEFT(X15)="*",RIGHT(X15)="*"),"ff",IF(BX15>BX28,"t",IF(BX15<BX28,"u","g")))) -> g | BY41: =IF(OR(ISERROR(FIND("-",Y15)),AK15>'export html'!$AR$7),"",IF(AND(LEFT(Y15)="*",RIGHT(Y15)="*"),"ff",IF(BY15>BY28,"t",IF(BY15<BY28,"u","g")))) ->  | BZ41: =IF(OR(ISERROR(FIND("-",Z15)),AL15>'export html'!$AR$7),"",IF(AND(LEFT(Z15)="*",RIGHT(Z15)="*"),"ff",IF(BZ15>BZ28,"t",IF(BZ15<BZ28,"u","g")))) -> u | CB41: =IF(OR(ISERROR(FIND("-",AB15)),AN15>'export html'!$AR$7),"",IF(AND(LEFT(AB15)="*",RIGHT(AB15)="*"),"ff",IF(CB15>CB28,"t",IF(CB15<CB28,"u","g")))) -> u | CC41: 11 | CD41: =IF(OR(ISERROR(FIND("-",Q15)),AC15<='export html'!$AR$7),"",IF(AND(LEFT(Q15)="*",RIGHT(Q15)="*"),"ff",IF(CD15>CD28,"t",IF(CD15<CD28,"u","g")))) ->  | CE41: =IF(OR(ISERROR(FIND("-",R15)),AD15<='export html'!$AR$7),"",IF(AND(LEFT(R15)="*",RIGHT(R15)="*"),"ff",IF(CE15>CE28,"t",IF(CE15<CE28,"u","g")))) ->  | CF41: =IF(OR(ISERROR(FIND("-",S15)),AE15<='export html'!$AR$7),"",IF(AND(LEFT(S15)="*",RIGHT(S15)="*"),"ff",IF(CF15>CF28,"t",IF(CF15<CF28,"u","g")))) ->  | CG41: =IF(OR(ISERROR(FIND("-",T15)),AF15<='export html'!$AR$7),"",IF(AND(LEFT(T15)="*",RIGHT(T15)="*"),"ff",IF(CG15>CG28,"t",IF(CG15<CG28,"u","g")))) -> g | CH41: =IF(OR(ISERROR(FIND("-",U15)),AG15<='export html'!$AR$7),"",IF(AND(LEFT(U15)="*",RIGHT(U15)="*"),"ff",IF(CH15>CH28,"t",IF(CH15<CH28,"u","g")))) -> u | CI41: =IF(OR(ISERROR(FIND("-",V15)),AH15<='export html'!$AR$7),"",IF(AND(LEFT(V15)="*",RIGHT(V15)="*"),"ff",IF(CI15>CI28,"t",IF(CI15<CI28,"u","g")))) ->  | CJ41: =IF(OR(ISERROR(FIND("-",W15)),AI15<='export html'!$AR$7),"",IF(AND(LEFT(W15)="*",RIGHT(W15)="*"),"ff",IF(CJ15>CJ28,"t",IF(CJ15<CJ28,"u","g")))) -> g | CK41: =IF(OR(ISERROR(FIND("-",X15)),AJ15<='export html'!$AR$7),"",IF(AND(LEFT(X15)="*",RIGHT(X15)="*"),"ff",IF(CK15>CK28,"t",IF(CK15<CK28,"u","g")))) ->  | CL41: =IF(OR(ISERROR(FIND("-",Y15)),AK15<='export html'!$AR$7),"",IF(AND(LEFT(Y15)="*",RIGHT(Y15)="*"),"ff",IF(CL15>CL28,"t",IF(CL15<CL28,"u","g")))) ->  | CM41: =IF(OR(ISERROR(FIND("-",Z15)),AL15<='export html'!$AR$7),"",IF(AND(LEFT(Z15)="*",RIGHT(Z15)="*"),"ff",IF(CM15>CM28,"t",IF(CM15<CM28,"u","g")))) ->  | CO41: =IF(OR(ISERROR(FIND("-",AB15)),AN15<='export html'!$AR$7),"",IF(AND(LEFT(AB15)="*",RIGHT(AB15)="*"),"ff",IF(CO15>CO28,"t",IF(CO15<CO28,"u","g")))) ->  | CP41: 11
BP42: 12 | BQ42: =IF(OR(ISERROR(FIND("-",Q16)),AC16>'export html'!$AR$7),"",IF(AND(LEFT(Q16)="*",RIGHT(Q16)="*"),"ff",IF(BQ16>BQ29,"t",IF(BQ16<BQ29,"u","g")))) ->  | BR42: =IF(OR(ISERROR(FIND("-",R16)),AD16>'export html'!$AR$7),"",IF(AND(LEFT(R16)="*",RIGHT(R16)="*"),"ff",IF(BR16>BR29,"t",IF(BR16<BR29,"u","g")))) -> t | BS42: =IF(OR(ISERROR(FIND("-",S16)),AE16>'export html'!$AR$7),"",IF(AND(LEFT(S16)="*",RIGHT(S16)="*"),"ff",IF(BS16>BS29,"t",IF(BS16<BS29,"u","g")))) ->  | BT42: =IF(OR(ISERROR(FIND("-",T16)),AF16>'export html'!$AR$7),"",IF(AND(LEFT(T16)="*",RIGHT(T16)="*"),"ff",IF(BT16>BT29,"t",IF(BT16<BT29,"u","g")))) ->  | BU42: =IF(OR(ISERROR(FIND("-",U16)),AG16>'export html'!$AR$7),"",IF(AND(LEFT(U16)="*",RIGHT(U16)="*"),"ff",IF(BU16>BU29,"t",IF(BU16<BU29,"u","g")))) ->  | BV42: =IF(OR(ISERROR(FIND("-",V16)),AH16>'export html'!$AR$7),"",IF(AND(LEFT(V16)="*",RIGHT(V16)="*"),"ff",IF(BV16>BV29,"t",IF(BV16<BV29,"u","g")))) -> t | BW42: =IF(OR(ISERROR(FIND("-",W16)),AI16>'export html'!$AR$7),"",IF(AND(LEFT(W16)="*",RIGHT(W16)="*"),"ff",IF(BW16>BW29,"t",IF(BW16<BW29,"u","g")))) -> t | BX42: =IF(OR(ISERROR(FIND("-",X16)),AJ16>'export html'!$AR$7),"",IF(AND(LEFT(X16)="*",RIGHT(X16)="*"),"ff",IF(BX16>BX29,"t",IF(BX16<BX29,"u","g")))) -> t | BY42: =IF(OR(ISERROR(FIND("-",Y16)),AK16>'export html'!$AR$7),"",IF(AND(LEFT(Y16)="*",RIGHT(Y16)="*"),"ff",IF(BY16>BY29,"t",IF(BY16<BY29,"u","g")))) ->  | BZ42: =IF(OR(ISERROR(FIND("-",Z16)),AL16>'export html'!$AR$7),"",IF(AND(LEFT(Z16)="*",RIGHT(Z16)="*"),"ff",IF(BZ16>BZ29,"t",IF(BZ16<BZ29,"u","g")))) -> g | CA42: =IF(OR(ISERROR(FIND("-",AA16)),AM16>'export html'!$AR$7),"",IF(AND(LEFT(AA16)="*",RIGHT(AA16)="*"),"ff",IF(CA16>CA29,"t",IF(CA16<CA29,"u","g")))) ->  | CC42: 12 | CD42: =IF(OR(ISERROR(FIND("-",Q16)),AC16<='export html'!$AR$7),"",IF(AND(LEFT(Q16)="*",RIGHT(Q16)="*"),"ff",IF(CD16>CD29,"t",IF(CD16<CD29,"u","g")))) -> t | CE42: =IF(OR(ISERROR(FIND("-",R16)),AD16<='export html'!$AR$7),"",IF(AND(LEFT(R16)="*",RIGHT(R16)="*"),"ff",IF(CE16>CE29,"t",IF(CE16<CE29,"u","g")))) ->  | CF42: =IF(OR(ISERROR(FIND("-",S16)),AE16<='export html'!$AR$7),"",IF(AND(LEFT(S16)="*",RIGHT(S16)="*"),"ff",IF(CF16>CF29,"t",IF(CF16<CF29,"u","g")))) ->  | CG42: =IF(OR(ISERROR(FIND("-",T16)),AF16<='export html'!$AR$7),"",IF(AND(LEFT(T16)="*",RIGHT(T16)="*"),"ff",IF(CG16>CG29,"t",IF(CG16<CG29,"u","g")))) ->  | CH42: =IF(OR(ISERROR(FIND("-",U16)),AG16<='export html'!$AR$7),"",IF(AND(LEFT(U16)="*",RIGHT(U16)="*"),"ff",IF(CH16>CH29,"t",IF(CH16<CH29,"u","g")))) -> u | CI42: =IF(OR(ISERROR(FIND("-",V16)),AH16<='export html'!$AR$7),"",IF(AND(LEFT(V16)="*",RIGHT(V16)="*"),"ff",IF(CI16>CI29,"t",IF(CI16<CI29,"u","g")))) ->  | CJ42: =IF(OR(ISERROR(FIND("-",W16)),AI16<='export html'!$AR$7),"",IF(AND(LEFT(W16)="*",RIGHT(W16)="*"),"ff",IF(CJ16>CJ29,"t",IF(CJ16<CJ29,"u","g")))) ->  | CK42: =IF(OR(ISERROR(FIND("-",X16)),AJ16<='export html'!$AR$7),"",IF(AND(LEFT(X16)="*",RIGHT(X16)="*"),"ff",IF(CK16>CK29,"t",IF(CK16<CK29,"u","g")))) ->  | CL42: =IF(OR(ISERROR(FIND("-",Y16)),AK16<='export html'!$AR$7),"",IF(AND(LEFT(Y16)="*",RIGHT(Y16)="*"),"ff",IF(CL16>CL29,"t",IF(CL16<CL29,"u","g")))) -> g | CM42: =IF(OR(ISERROR(FIND("-",Z16)),AL16<='export html'!$AR$7),"",IF(AND(LEFT(Z16)="*",RIGHT(Z16)="*"),"ff",IF(CM16>CM29,"t",IF(CM16<CM29,"u","g")))) ->  | CN42: =IF(OR(ISERROR(FIND("-",AA16)),AM16<='export html'!$AR$7),"",IF(AND(LEFT(AA16)="*",RIGHT(AA16)="*"),"ff",IF(CN16>CN29,"t",IF(CN16<CN29,"u","g")))) ->  | CP42: 12
BQ43: 1 | BR43: 2 | BS43: 3 | BT43: 4 | BU43: 5 | BV43: 6 | BW43: 7 | BX43: 8 | BY43: 9 | BZ43: 10 | CA43: 11 | CB43: 12 | CD43: 1 | CE43: 2 | CF43: 3 | CG43: 4 | CH43: 5 | CI43: 6 | CJ43: 7 | CK43: 8 | CL43: 9 | CM43: 10 | CN43: 11 | CO43: 12

Sheet kalender
B2: Spd. | C2: Datum | D2: Thuisploeg | F2: Uitploeg | G2: Uitslag
A3: Competitie | B3: =IF(LEN('export html'!BF3),'export html'!BF3,"") -> 1 | C3: =IF(LEN('export html'!BE3),'export html'!BE3,"") -> 2023-09-03 | D3: =IF(LEN('export html'!BI3),'export html'!BI3,"") -> Pouma United | E3: =IF(LEN('export html'!BI3),"-","") -> - | F3: =IF(LEN('export html'!BJ3),'export html'!BJ3,"") -> Lucyvo | G3: =IF(LEN('export html'!BH3),'export html'!BH3,"") -> 3-2
B4: =IF(LEN('export html'!BF4),'export html'!BF4,"") -> 2 | C4: =IF(LEN('export html'!BE4),'export html'!BE4,"") -> 2023-09-10 | D4: =IF(LEN('export html'!BI4),'export html'!BI4,"") -> Lucyvo | E4: =IF(LEN('export html'!BI4),"-","") -> - | F4: =IF(LEN('export html'!BJ4),'export html'!BJ4,"") -> Paradeske | G4: =IF(LEN('export html'!BH4),'export html'!BH4,"") -> 3-6
B5: =IF(LEN('export html'!BF5),'export html'!BF5,"") -> 3 | C5: =IF(LEN('export html'!BE5),'export html'!BE5,"") -> 2023-09-17 | D5: =IF(LEN('export html'!BI5),'export html'!BI5,"") -> De Vrede | E5: =IF(LEN('export html'!BI5),"-","") -> - | F5: =IF(LEN('export html'!BJ5),'export html'!BJ5,"") -> Lucyvo | G5: =IF(LEN('export html'!BH5),'export html'!BH5,"") -> 4-1
B6: =IF(LEN('export html'!BF6),'export html'!BF6,"") -> 4 | C6: =IF(LEN('export html'!BE6),'export html'!BE6,"") -> 2023-09-24 | D6: =IF(LEN('export html'!BI6),'export html'!BI6,"") -> Lucyvo | E6: =IF(LEN('export html'!BI6),"-","") -> - | F6: =IF(LEN('export html'!BJ6),'export html'!BJ6,"") -> Bariton | G6: =IF(LEN('export html'!BH6),'export html'!BH6,"") -> 2-1
B7: =IF(LEN('export html'!BF7),'export html'!BF7,"") -> 5 | C7: =IF(LEN('export html'!BE7),'export html'!BE7,"") -> 2023-10-01 | D7: =IF(LEN('export html'!BI7),'export html'!BI7,"") -> Racing Emblem | E7: =IF(LEN('export html'!BI7),"-","") -> - | F7: =IF(LEN('export html'!BJ7),'export html'!BJ7,"") -> Lucyvo | G7: =IF(LEN('export html'!BH7),'export html'!BH7,"") -> 3-3
B8: =IF(LEN('export html'!BF8),'export html'!BF8,"") -> 6 | C8: =IF(LEN('export html'!BE8),'export html'!BE8,"") -> 2023-10-08 | D8: =IF(LEN('export html'!BI8),'export html'!BI8,"") -> Lucyvo | E8: =IF(LEN('export html'!BI8),"-","") -> - | F8: =IF(LEN('export html'!BJ8),'export html'!BJ8,"") -> Jolika | G8: =IF(LEN('export html'!BH8),'export html'!BH8,"") -> 4-0
B9: =IF(LEN('export html'!BF9),'export html'!BF9,"") -> 7 | C9: =IF(LEN('export html'!BE9),'export html'!BE9,"") -> 2023-10-15 | D9: =IF(LEN('export html'!BI9),'export html'!BI9,"") -> Boerenbond | E9: =IF(LEN('export html'!BI9),"-","") -> - | F9: =IF(LEN('export html'!BJ9),'export html'!BJ9,"") -> Lucyvo | G9: =IF(LEN('export html'!BH9),'export html'!BH9,"") -> 3-0
B10: =IF(LEN('export html'!BF10),'export html'!BF10,"") -> 9 | C10: =IF(LEN('export html'!BE10),'export html'!BE10,"") -> 2023-10-29 | D10: =IF(LEN('export html'!BI10),'export html'!BI10,"") -> Goka | E10: =IF(LEN('export html'!BI10),"-","") -> - | F10: =IF(LEN('export html'!BJ10),'export html'!BJ10,"") -> Lucyvo | G10: =IF(LEN('export html'!BH10),'export html'!BH10,"") -> 4-2
B11: =IF(LEN('export html'!BF11),'export html'!BF11,"") -> 10 | C11: =IF(LEN('export html'!BE11),'export html'!BE11,"") -> 2023-11-05 | D11: =IF(LEN('export html'!BI11),'export html'!BI11,"") -> Lucyvo | E11: =IF(LEN('export html'!BI11),"-","") -> - | F11: =IF(LEN('export html'!BJ11),'export html'!BJ11,"") -> Hombeek | G11: =IF(LEN('export html'!BH11),'export html'!BH11,"") -> 2-1
B12: =IF(LEN('export html'!BF12),'export html'!BF12,"") -> 11 | C12: =IF(LEN('export html'!BE12),'export html'!BE12,"") -> 2023-11-12 | D12: =IF(LEN('export html'!BI12),'export html'!BI12,"") -> Hoje | E12: =IF(LEN('export html'!BI12),"-","") -> - | F12: =IF(LEN('export html'!BJ12),'export html'!BJ12,"") -> Lucyvo | G12: =IF(LEN('export html'!BH12),'export html'!BH12,"") -> 3-2
B13: =IF(LEN('export html'!BF13),'export html'!BF13,"") -> 12 | C13: =IF(LEN('export html'!BE13),'export html'!BE13,"") -> 2023-11-19 | D13: =IF(LEN('export html'!BI13),'export html'!BI13,"") -> Antverpia 98 | E13: =IF(LEN('export html'!BI13),"-","") -> - | F13: =IF(LEN('export html'!BJ13),'export html'!BJ13,"") -> Lucyvo | G13: =IF(LEN('export html'!BH13),'export html'!BH13,"") -> 5-5
B14: =IF(LEN('export html'!BF14),'export html'!BF14,"") -> 14 | C14: =IF(LEN('export html'!BE14),'export html'!BE14,"") -> 2023-12-03 | D14: =IF(LEN('export html'!BI14),'export html'!BI14,"") -> Lucyvo | E14: =IF(LEN('export html'!BI14),"-","") -> - | F14: =IF(LEN('export html'!BJ14),'export html'!BJ14,"") -> Pouma United | G14: =IF(LEN('export html'!BH14),'export html'!BH14,"") -> 4-4
B15: =IF(LEN('export html'!BF15),'export html'!BF15,"") -> 15 | C15: =IF(LEN('export html'!BE15),'export html'!BE15,"") -> 2024-01-14 | D15: =IF(LEN('export html'!BI15),'export html'!BI15,"") -> Paradeske | E15: =IF(LEN('export html'!BI15),"-","") -> - | F15: =IF(LEN('export html'!BJ15),'export html'!BJ15,"") -> Lucyvo | G15: =IF(LEN('export html'!BH15),'export html'!BH15,"") -> 4-1
B16: =IF(LEN('export html'!BF16),'export html'!BF16,"") -> 17 | C16: =IF(LEN('export html'!BE16),'export html'!BE16,"") -> 2024-01-28 | D16: =IF(LEN('export html'!BI16),'export html'!BI16,"") -> Bariton | E16: =IF(LEN('export html'!BI16),"-","") -> - | F16: =IF(LEN('export html'!BJ16),'export html'!BJ16,"") -> Lucyvo | G16: =IF(LEN('export html'!BH16),'export html'!BH16,"") -> 8-1
B17: =IF(LEN('export html'!BF17),'export html'!BF17,"") -> 18 | C17: =IF(LEN('export html'!BE17),'export html'!BE17,"") -> 2024-02-04 | D17: =IF(LEN('export html'!BI17),'export html'!BI17,"") -> Lucyvo | E17: =IF(LEN('export html'!BI17),"-","") -> - | F17: =IF(LEN('export html'!BJ17),'export html'!BJ17,"") -> Racing Emblem | G17: =IF(LEN('export html'!BH17),'export html'!BH17,"") -> 3-5
B18: =IF(LEN('export html'!BF18),'export html'!BF18,"") -> 16 | C18: =IF(LEN('export html'!BE18),'export html'!BE18,"") -> 2024-02-11 | D18: =IF(LEN('export html'!BI18),'export html'!BI18,"") -> Lucyvo | E18: =IF(LEN('export html'!BI18),"-","") -> - | F18: =IF(LEN('export html'!BJ18),'export html'!BJ18,"") -> De Vrede | G18: =IF(LEN('export html'!BH18),'export html'!BH18,"") -> 6-5
B19: =IF(LEN('export html'!BF19),'export html'!BF19,"") -> 19 | C19: =IF(LEN('export html'!BE19),'export html'!BE19,"") -> 2024-02-18 | D19: =IF(LEN('export html'!BI19),'export html'!BI19,"") -> Jolika | E19: =IF(LEN('export html'!BI19),"-","") -> - | F19: =IF(LEN('export html'!BJ19),'export html'!BJ19,"") -> Lucyvo | G19: =IF(LEN('export html'!BH19),'export html'!BH19,"") -> 1-2
B20: =IF(LEN('export html'!BF20),'export html'!BF20,"") -> 20 | C20: =IF(LEN('export html'!BE20),'export html'!BE20,"") -> 2024-02-25 | D20: =IF(LEN('export html'!BI20),'export html'!BI20,"") -> Lucyvo | E20: =IF(LEN('export html'!BI20),"-","") -> - | F20: =IF(LEN('export html'!BJ20),'export html'!BJ20,"") -> Boerenbond | G20: =IF(LEN('export html'!BH20),'export html'!BH20,"") -> 2-7
B21: =IF(LEN('export html'!BF21),'export html'!BF21,"") -> 22 | C21: =IF(LEN('export html'!BE21),'export html'!BE21,"") -> 2024-03-10 | D21: =IF(LEN('export html'!BI21),'export html'!BI21,"") -> Lucyvo | E21: =IF(LEN('export html'!BI21),"-","") -> - | F21: =IF(LEN('export html'!BJ21),'export html'!BJ21,"") -> Goka | G21: =IF(LEN('export html'!BH21),'export html'!BH21,"") -> 
B22: =IF(LEN('export html'!BF22),'export html'!BF22,"") -> 23 | C22: =IF(LEN('export html'!BE22),'export html'!BE22,"") -> 2024-03-17 | D22: =IF(LEN('export html'!BI22),'export html'!BI22,"") -> Hombeek | E22: =IF(LEN('export html'!BI22),"-","") -> - | F22: =IF(LEN('export html'!BJ22),'export html'!BJ22,"") -> Lucyvo | G22: =IF(LEN('export html'!BH22),'export html'!BH22,"") -> 
B23: =IF(LEN('export html'!BF23),'export html'!BF23,"") -> 24 | C23: =IF(LEN('export html'!BE23),'export html'!BE23,"") -> 2024-03-24 | D23: =IF(LEN('export html'!BI23),'export html'!BI23,"") -> Lucyvo | E23: =IF(LEN('export html'!BI23),"-","") -> - | F23: =IF(LEN('export html'!BJ23),'export html'!BJ23,"") -> Hoje | G23: =IF(LEN('export html'!BH23),'export html'!BH23,"") -> 
B24: =IF(LEN('export html'!BF24),'export html'!BF24,"") -> 25 | C24: =IF(LEN('export html'!BE24),'export html'!BE24,"") -> 2024-04-07 | D24: =IF(LEN('export html'!BI24),'export html'!BI24,"") -> Lucyvo | E24: =IF(LEN('export html'!BI24),"-","") -> - | F24: =IF(LEN('export html'!BJ24),'export html'!BJ24,"") -> Antverpia 98 | G24: =IF(LEN('export html'!BH24),'export html'!BH24,"") -> 
B25: =IF(LEN('export html'!BF25),'export html'!BF25,"") ->  | C25: =IF(LEN('export html'!BE25),'export html'!BE25,"") ->  | D25: =IF(LEN('export html'!BI25),'export html'!BI25,"") ->  | E25: =IF(LEN('export html'!BI25),"-","") ->  | F25: =IF(LEN('export html'!BJ25),'export html'!BJ25,"") ->  | G25: =IF(LEN('export html'!BH25),'export html'!BH25,"") -> 
B26: =IF(LEN('export html'!BF26),'export html'!BF26,"") ->  | C26: =IF(LEN('export html'!BE26),'export html'!BE26,"") ->  | D26: =IF(LEN('export html'!BI26),'export html'!BI26,"") ->  | E26: =IF(LEN('export html'!BI26),"-","") ->  | F26: =IF(LEN('export html'!BJ26),'export html'!BJ26,"") ->  | G26: =IF(LEN('export html'!BH26),'export html'!BH26,"") -> 
B27: =IF(LEN('export html'!BF27),'export html'!BF27,"") ->  | C27: =IF(LEN('export html'!BE27),'export html'!BE27,"") ->  | D27: =IF(LEN('export html'!BI27),'export html'!BI27,"") ->  | E27: =IF(LEN('export html'!BI27),"-","") ->  | F27: =IF(LEN('export html'!BJ27),'export html'!BJ27,"") ->  | G27: =IF(LEN('export html'!BH27),'export html'!BH27,"") -> 
B28: =IF(LEN('export html'!BF28),'export html'!BF28,"") ->  | C28: =IF(LEN('export html'!BE28),'export html'!BE28,"") ->  | D28: =IF(LEN('export html'!BI28),'export html'!BI28,"") ->  | E28: =IF(LEN('export html'!BI28),"-","") ->  | F28: =IF(LEN('export html'!BJ28),'export html'!BJ28,"") ->  | G28: =IF(LEN('export html'!BH28),'export html'!BH28,"") -> 
B29: =IF(LEN('export html'!BF29),'export html'!BF29,"") ->  | C29: =IF(LEN('export html'!BE29),'export html'!BE29,"") ->  | D29: =IF(LEN('export html'!BI29),'export html'!BI29,"") ->  | E29: =IF(LEN('export html'!BI29),"-","") ->  | F29: =IF(LEN('export html'!BJ29),'export html'!BJ29,"") ->  | G29: =IF(LEN('export html'!BH29),'export html'!BH29,"") -> 
B30: =IF(LEN('export html'!BF30),'export html'!BF30,"") ->  | C30: =IF(LEN('export html'!BE30),'export html'!BE30,"") ->  | D30: =IF(LEN('export html'!BI30),'export html'!BI30,"") ->  | E30: =IF(LEN('export html'!BI30),"-","") ->  | F30: =IF(LEN('export html'!BJ30),'export html'!BJ30,"") -> 
A34: Oefenmatchen | B34: 1 | E34: -
B35: 2 | E35: -
B36: 3 | E36: -
B37: 4 | E37: -
A39: Beker | B39: 1 | E39: -

Sheet export html (hidden)
A1: =MAX(1,COUNTA(A3:A20)) -> 5 | E1: hulp: thuis | F1: hulp: uit | G1: hulp: uitslag | I1: =MAX(1,COUNT(I3:I9)) -> 5 | M1: hulp: thuis | N1: hulp: uit | O1: hulp: uitslag | T1: =MAX(1,COUNT(T3:T20)) -> 5 | V1: Recentste duels op | W1: uitslag | Z1: 5 | AF1: =ROWS(_xlfn.ANCHORARRAY( AF3) ) -> 5 | AH1: Hulp: # goals | AJ1: =MAX(1,COUNTA(AJ3:AJ20)) -> 1 | AP1: =RANK(spelersstatistieken!X5,INDIRECT("spelersstatistieken!$" & $AR$8 & "$5:$" & $AR$8 & "$" & 5+$AR$6-1))+ROW()/10^4 -> 10.0001 | AU1: =MAX(1,COUNTA(AU3:AU40)) -> 1 | BE1: =MAX(1,COUNT(BE3:BE30)) -> 22 | BI1: hulp: thuis | BJ1: hulp: uit
A2: Datum | B2: Speeldag | C2: ="Matchen van " & IF('rooster en stand'!$J$29=0,"speeldag " & 'rooster en stand'!$F$29,TEXT('rooster en stand'!$J$29,"dd/mm/jjjj")) -> Matchen van speeldag 20 | D2: Uitslag | I2: Datum | J2: Speeldag | K2: ="Matchen van " & IF('rooster en stand'!$J$29=0,"speeldag " & 'rooster en stand'!$F$29+1,TEXT('rooster en stand'!$J$29+'rooster en stand'!$K$29,"dd/mm/jjjj")) -> Matchen van speeldag 21 | L2: Uitslag / Plaatsen | T2: Datum | U2: Speeldag | V2: =V1 & TEXT('rooster en stand'!$F$19,"dd/mm/yyyy") -> Recentste duels op 27/02/2024 | Z2: Top-5 | AA2: Assists | AF2: Top-5 | AG2: Goals | AJ2: Ronde | AK2: Datum | AL2: Uur | AM2: Match | AN2: Uitslag | AP2: =RANK(spelersstatistieken!X6,INDIRECT("spelersstatistieken!$" & $AR$8 & "$5:$" & $AR$8 & "$" & 5+$AR$6-1))+ROW()/10^4 -> 10.0002 | AR2: 1 | AS2: berekening stand | AU2: Jaar | AV2: ="Uit het verleden..." & IF(COUNTA(#REF!)>0," (" & AU1 & "x)","") -> Uit het verleden... (1x) | AW2: Uitslag | AX2: Datum | AY2: Speeldag | BE2: Datum | BF2: Speeldag | BG2: Kalender | BH2: Uitslag
A3: 2024-02-25 | B3: 20 | C3: Hombeek - Goka | D3: =IF(G3=0,"",G3) -> 4-1 | E3: Hombeek | F3: Goka | G3: 4-1 | I3: 2024-03-03 | J3: 21 | K3: Antverpia 98 - Hombeek | L3: =IF(O3=0,"nr. " & MATCH($M3,'rooster en stand'!$D$5:$D$16,0) & " - nr. " & MATCH($N3,'rooster en stand'!$D$5:$D$16,0),O3) -> nr. 5 - nr. 4 | M3: Antverpia 98 | N3: Hombeek | T3: 2024-02-25 | U3: 20 | V3: Lucyvo - Boerenbond | W3: 2-7 | Y3: =_xlfn.SEQUENCE(Z1) -> 1 | Z3: =_xlfn.ANCHORARRAY(spelersstatistieken!AG101) -> Stijn Hofmans | AA3: 11 | AE3: =_xlfn.SEQUENCE(AF1) -> 1 | AF3: =_xlfn.ANCHORARRAY(spelersstatistieken!AG51) -> Stijn Hofmans | AG3: 12 | AJ3: Ronde 1 | AP3: =RANK(spelersstatistieken!X7,INDIRECT("spelersstatistieken!$" & $AR$8 & "$5:$" & $AR$8 & "$" & 5+$AR$6-1))+ROW()/10^4 -> 10.0003 | AR3: 00:00:00 | AS3: VO kleurtje speeldag | AV3: Geen wedstrijden voor LUCYVO | BE3: 2023-09-03 | BF3: 1 | BG3: Pouma United - Lucyvo | BH3: 3-2 | BI3: Pouma United | BJ3: Lucyvo
A4: 2024-02-25 | B4: 20 | C4: Lucyvo - Boerenbond | D4: =IF(G4=0,"",G4) -> 2-7 | E4: Lucyvo | F4: Boerenbond | G4: 2-7 | I4: 2024-03-03 | J4: 21 | K4: Bariton - De Vrede | L4: =IF(O4=0,"nr. " & MATCH($M4,'rooster en stand'!$D$5:$D$16,0) & " - nr. " & MATCH($N4,'rooster en stand'!$D$5:$D$16,0),O4) -> nr. 8 - nr. 6 | M4: Bariton | N4: De Vrede | T4: 2024-02-18 | U4: 19 | V4: Jolika - Lucyvo | W4: 1-2 | Y4: 2 | Z4: Steven De Groof | AA4: 5 | AE4: 2 | AF4: Glenn De Vinster | AG4: 11 | AP4: =RANK(spelersstatistieken!X8,INDIRECT("spelersstatistieken!$" & $AR$8 & "$5:$" & $AR$8 & "$" & 5+$AR$6-1))+ROW()/10^4 -> 10.0004 | AR4: =COUNTA( 'rooster en stand'!BC5:BC16 ) -> 12 | AS4: aantal ploegen | BE4: 2023-09-10 | BF4: 2 | BG4: Lucyvo - Paradeske | BH4: 3-6 | BI4: Lucyvo | BJ4: Paradeske
A5: 2024-02-25 | B5: 20 | C5: Paradeske - Bariton | E5: Paradeske | F5: Bariton | I5: 2024-03-03 | J5: 21 | K5: Goka - Hoje | L5: =IF(O5=0,"nr. " & MATCH($M5,'rooster en stand'!$D$5:$D$16,0) & " - nr. " & MATCH($N5,'rooster en stand'!$D$5:$D$16,0),O5) -> nr. 7 - nr. 1 | M5: Goka | N5: Hoje | T5: 2024-02-11 | U5: 16 | V5: Lucyvo - De Vrede | W5: 6-5 | Y5: 3 | Z5: Glenn De Vinster | AA5: 5 | AE5: 3 | AF5: Maarten De Groof | AG5: 6 | AP5: =RANK(spelersstatistieken!X9,INDIRECT("spelersstatistieken!$" & $AR$8 & "$5:$" & $AR$8 & "$" & 5+$AR$6-1))+ROW()/10^4 -> 10.0005 | AR5: =2 * ( AR4 - 1 ) -> 22 | AS5: aantal matchen / ploeg | BE5: 2023-09-17 | BF5: 3 | BG5: De Vrede - Lucyvo | BH5: 4-1 | BI5: De Vrede | BJ5: Lucyvo
A6: 2024-02-25 | B6: 20 | C6: Pouma United - Racing Emblem | D6: 2-2 | E6: Pouma United | F6: Racing Emblem | G6: 2-2 | I6: 2024-03-03 | J6: 21 | K6: Jolika - Pouma United | L6: =IF(O6=0,"nr. " & MATCH($M6,'rooster en stand'!$D$5:$D$16,0) & " - nr. " & MATCH($N6,'rooster en stand'!$D$5:$D$16,0),O6) -> nr. 12 - nr. 2 | M6: Jolika | N6: Pouma United | T6: 2024-02-04 | U6: 18 | V6: Lucyvo - Racing Emblem | W6: 3-5 | Y6: 4 | Z6: Stijn Verdickt | AA6: 4 | AE6: 4 | AF6: Jason Vermeylen | AG6: 6 | AP6: =RANK(spelersstatistieken!X10,INDIRECT("spelersstatistieken!$" & $AR$8 & "$5:$" & $AR$8 & "$" & 5+$AR$6-1))+ROW()/10^4 -> 10.0006 | AR6: 25 | AS6: aantal spelers | BE6: 2023-09-24 | BF6: 4 | BG6: Lucyvo - Bariton | BH6: 2-1 | BI6: Lucyvo | BJ6: Bariton
A7: 2024-02-25 | B7: 20 | C7: De Vrede - Antverpia 98 | D7: 5-0 | E7: De Vrede | F7: Antverpia 98 | G7: 5-0 | I7: 2024-03-03 | J7: 21 | K7: Racing Emblem - Paradeske | L7: =IF(O7=0,"nr. " & MATCH($M7,'rooster en stand'!$D$5:$D$16,0) & " - nr. " & MATCH($N7,'rooster en stand'!$D$5:$D$16,0),O7) -> nr. 11 - nr. 10 | M7: Racing Emblem | N7: Paradeske | T7: 2024-01-28 | U7: 17 | V7: Bariton - Lucyvo | W7: 8-1 | Y7: 5 | Z7: Ive Celis | AA7: 3 | AE7: 5 | AF7: Steven De Groof | AG7: 4 | AP7: =RANK(spelersstatistieken!X11,INDIRECT("spelersstatistieken!$" & $AR$8 & "$5:$" & $AR$8 & "$" & 5+$AR$6-1))+ROW()/10^4 -> 10.0007 | AR7: =MatchenPerPloeg / 2 + ( ISODD( AR4 )) -> 11 | AS7: speeldagen in heenronde | BE7: 2023-10-01 | BF7: 5 | BG7: Racing Emblem - Lucyvo | BH7: 3-3 | BI7: Racing Emblem | BJ7: Lucyvo
AP8: =RANK(spelersstatistieken!X12,INDIRECT("spelersstatistieken!$" & $AR$8 & "$5:$" & $AR$8 & "$" & 5+$AR$6-1))+ROW()/10^4 -> 3.0008 | AR8: =SUBSTITUTE( SUBSTITUTE( ADDRESS( 1, 1 + MatchenPerPloeg + 1 ), 1, "" ), "$", "" ) -> X | AS8: Kolom van de goal totalen | BE8: 2023-10-08 | BF8: 6 | BG8: Lucyvo - Jolika | BH8: 4-0 | BI8: Lucyvo | BJ8: Jolika
AP9: =RANK(spelersstatistieken!X13,INDIRECT("spelersstatistieken!$" & $AR$8 & "$5:$" & $AR$8 & "$" & 5+$AR$6-1))+ROW()/10^4 -> 5.0009 | BE9: 2023-10-15 | BF9: 7 | BG9: Boerenbond - Lucyvo | BH9: 3-0 | BI9: Boerenbond | BJ9: Lucyvo
AP10: =RANK(spelersstatistieken!X14,INDIRECT("spelersstatistieken!$" & $AR$8 & "$5:$" & $AR$8 & "$" & 5+$AR$6-1))+ROW()/10^4 -> 10.001 | BE10: 2023-10-29 | BF10: 9 | BG10: Goka - Lucyvo | BH10: 4-2 | BI10: Goka | BJ10: Lucyvo
AP11: =RANK(spelersstatistieken!X16,INDIRECT("spelersstatistieken!$" & $AR$8 & "$5:$" & $AR$8 & "$" & 5+$AR$6-1))+ROW()/10^4 -> 10.0011 | BE11: 2023-11-05 | BF11: 10 | BG11: Lucyvo - Hombeek | BH11: 2-1 | BI11: Lucyvo | BJ11: Hombeek
AP12: =RANK(spelersstatistieken!X17,INDIRECT("spelersstatistieken!$" & $AR$8 & "$5:$" & $AR$8 & "$" & 5+$AR$6-1))+ROW()/10^4 -> 10.0012 | BE12: 2023-11-12 | BF12: 11 | BG12: Hoje - Lucyvo | BH12: 3-2 | BI12: Hoje | BJ12: Lucyvo
AP13: =RANK(spelersstatistieken!X18,INDIRECT("spelersstatistieken!$" & $AR$8 & "$5:$" & $AR$8 & "$" & 5+$AR$6-1))+ROW()/10^4 -> 8.0013 | BE13: 2023-11-19 | BF13: 12 | BG13: Antverpia 98 - Lucyvo | BH13: 5-5 | BI13: Antverpia 98 | BJ13: Lucyvo
AP14: =RANK(spelersstatistieken!X19,INDIRECT("spelersstatistieken!$" & $AR$8 & "$5:$" & $AR$8 & "$" & 5+$AR$6-1))+ROW()/10^4 -> 1.0014 | BE14: 2023-12-03 | BF14: 14 | BG14: Lucyvo - Pouma United | BH14: 4-4 | BI14: Lucyvo | BJ14: Pouma United
AP15: =RANK(spelersstatistieken!X20,INDIRECT("spelersstatistieken!$" & $AR$8 & "$5:$" & $AR$8 & "$" & 5+$AR$6-1))+ROW()/10^4 -> 10.0015 | BE15: 2024-01-14 | BF15: 15 | BG15: Paradeske - Lucyvo | BH15: 4-1 | BI15: Paradeske | BJ15: Lucyvo
AP16: =RANK(spelersstatistieken!X21,INDIRECT("spelersstatistieken!$" & $AR$8 & "$5:$" & $AR$8 & "$" & 5+$AR$6-1))+ROW()/10^4 -> 10.0016 | BE16: 2024-01-28 | BF16: 17 | BG16: Bariton - Lucyvo | BH16: 8-1 | BI16: Bariton | BJ16: Lucyvo
AP17: =RANK(spelersstatistieken!X22,INDIRECT("spelersstatistieken!$" & $AR$8 & "$5:$" & $AR$8 & "$" & 5+$AR$6-1))+ROW()/10^4 -> 10.0017 | BE17: 2024-02-04 | BF17: 18 | BG17: Lucyvo - Racing Emblem | BH17: 3-5 | BI17: Lucyvo | BJ17: Racing Emblem
AP18: =RANK(spelersstatistieken!X23,INDIRECT("spelersstatistieken!$" & $AR$8 & "$5:$" & $AR$8 & "$" & 5+$AR$6-1))+ROW()/10^4 -> 10.0018 | BE18: 2024-02-11 | BF18: 16 | BG18: Lucyvo - De Vrede | BH18: 6-5 | BI18: Lucyvo | BJ18: De Vrede
AP19: =RANK(spelersstatistieken!X24,INDIRECT("spelersstatistieken!$" & $AR$8 & "$5:$" & $AR$8 & "$" & 5+$AR$6-1))+ROW()/10^4 -> 6.0019 | BE19: 2024-02-18 | BF19: 19 | BG19: Jolika - Lucyvo | BH19: 1-2 | BI19: Jolika | BJ19: Lucyvo
AP20: =RANK(spelersstatistieken!X25,INDIRECT("spelersstatistieken!$" & $AR$8 & "$5:$" & $AR$8 & "$" & 5+$AR$6-1))+ROW()/10^4 -> 6.002 | BE20: 2024-02-25 | BF20: 20 | BG20: Lucyvo - Boerenbond | BH20: 2-7 | BI20: Lucyvo | BJ20: Boerenbond
AP21: =RANK(spelersstatistieken!X26,INDIRECT("spelersstatistieken!$" & $AR$8 & "$5:$" & $AR$8 & "$" & 5+$AR$6-1))+ROW()/10^4 -> 8.0021 | BE21: 2024-03-10 | BF21: 22 | BG21: Lucyvo - Goka | BI21: Lucyvo | BJ21: Goka
AP22: =RANK(spelersstatistieken!X27,INDIRECT("spelersstatistieken!$" & $AR$8 & "$5:$" & $AR$8 & "$" & 5+$AR$6-1))+ROW()/10^4 -> 10.0022 | BE22: 2024-03-17 | BF22: 23 | BG22: Hombeek - Lucyvo | BI22: Hombeek | BJ22: Lucyvo
AF23: #IF(OR($AE3#0;$AG3#"");"(Niemand)";OFFSET(spelersstatistieken!$A$4;MATCH(SMALL(coeffsspelers;AE3);coeffsspelers;0);0)) | AG23: #IF($AE3#0;"";IF(AH3#0;"";AH3)) | AH23: #OFFSET(spelersstatistieken!$A$4;MATCH(SMALL(coeffsspelers;AE3);coeffsspelers;0);MatchenPerPloeg+1) | AP23: =RANK(spelersstatistieken!X28,INDIRECT("spelersstatistieken!$" & $AR$8 & "$5:$" & $AR$8 & "$" & 5+$AR$6-1))+ROW()/10^4 -> 3.0023 | BE23: 2024-03-24 | BF23: 24 | BG23: Lucyvo - Hoje | BI23: Lucyvo | BJ23: Hoje
AF24: #IF(OR($AE4#0;$AG4#"");"";OFFSET(spelersstatistieken!$A$4;MATCH(SMALL(coeffsspelers;AE4);coeffsspelers;0);0)) | AG24: #IF($AE4#0;"";IF(AH4#0;"";AH4)) | AH24: #OFFSET(spelersstatistieken!$A$4;MATCH(SMALL(coeffsspelers;AE4);coeffsspelers;0);MatchenPerPloeg+1) | AP24: =RANK(spelersstatistieken!X29,INDIRECT("spelersstatistieken!$" & $AR$8 & "$5:$" & $AR$8 & "$" & 5+$AR$6-1))+ROW()/10^4 -> 10.0024 | BE24: 2024-04-07 | BF24: 25 | BG24: Lucyvo - Antverpia 98 | BI24: Lucyvo | BJ24: Antverpia 98
AF25: #IF(OR($AE5#0;$AG5#"");"";OFFSET(spelersstatistieken!$A$4;MATCH(SMALL(coeffsspelers;AE5);coeffsspelers;0);0)) | AG25: #IF($AE5#0;"";IF(AH5#0;"";AH5)) | AH25: #OFFSET(spelersstatistieken!$A$4;MATCH(SMALL(coeffsspelers;AE5);coeffsspelers;0);MatchenPerPloeg+1) | AP25: =RANK(spelersstatistieken!X30,INDIRECT("spelersstatistieken!$" & $AR$8 & "$5:$" & $AR$8 & "$" & 5+$AR$6-1))+ROW()/10^4 -> 10.0025
AF26: #IF(OR($AE6#0;$AG6#"");"";OFFSET(spelersstatistieken!$A$4;MATCH(SMALL(coeffsspelers;AE6);coeffsspelers;0);0)) | AG26: #IF($AE6#0;"";IF(AH6#0;"";AH6)) | AH26: #OFFSET(spelersstatistieken!$A$4;MATCH(SMALL(coeffsspelers;AE6);coeffsspelers;0);MatchenPerPloeg+1)
AF27: #IF(OR($AE7#0;$AG7#"");"";OFFSET(spelersstatistieken!$A$4;MATCH(SMALL(coeffsspelers;AE7);coeffsspelers;0);0)) | AG27: #IF($AE7#0;"";IF(AH7#0;"";AH7)) | AH27: #OFFSET(spelersstatistieken!$A$4;MATCH(SMALL(coeffsspelers;AE7);coeffsspelers;0);MatchenPerPloeg+1)

Sheet spelersstatistieken
B1: =IF(kalender!$D3='rooster en stand'!$C$3,kalender!$F3&" (T)",kalender!$D3&" (U)") -> Pouma United (U) | C1: =IF(kalender!$D4='rooster en stand'!$C$3,kalender!$F4&" (T)",kalender!$D4&" (U)") -> Paradeske (T) | D1: =IF(kalender!$D5='rooster en stand'!$C$3,kalender!$F5&" (T)",kalender!$D5&" (U)") -> De Vrede (U) | E1: =IF(kalender!$D6='rooster en stand'!$C$3,kalender!$F6&" (T)",kalender!$D6&" (U)") -> Bariton (T) | F1: =IF(kalender!$D7='rooster en stand'!$C$3,kalender!$F7&" (T)",kalender!$D7&" (U)") -> Racing Emblem (U) | G1: =IF(kalender!$D8='rooster en stand'!$C$3,kalender!$F8&" (T)",kalender!$D8&" (U)") -> Jolika (T) | H1: =IF(kalender!$D9='rooster en stand'!$C$3,kalender!$F9&" (T)",kalender!$D9&" (U)") -> Boerenbond (U) | I1: =IF(kalender!$D10='rooster en stand'!$C$3,kalender!$F10&" (T)",kalender!$D10&" (U)") -> Goka (U) | J1: =IF(kalender!$D11='rooster en stand'!$C$3,kalender!$F11&" (T)",kalender!$D11&" (U)") -> Hombeek (T) | K1: =IF(kalender!$D12='rooster en stand'!$C$3,kalender!$F12&" (T)",kalender!$D12&" (U)") -> Hoje (U) | L1: =IF(kalender!$D13='rooster en stand'!$C$3,kalender!$F13&" (T)",kalender!$D13&" (U)") -> Antverpia 98 (U) | M1: =IF(kalender!$D14='rooster en stand'!$C$3,kalender!$F14&" (T)",kalender!$D14&" (U)") -> Pouma United (T) | N1: =IF(kalender!$D15='rooster en stand'!$C$3,kalender!$F15&" (T)",kalender!$D15&" (U)") -> Paradeske (U) | O1: =IF(kalender!$D16='rooster en stand'!$C$3,kalender!$F16&" (T)",kalender!$D16&" (U)") -> Bariton (U) | P1: =IF(kalender!$D17='rooster en stand'!$C$3,kalender!$F17&" (T)",kalender!$D17&" (U)") -> Racing Emblem (T) | Q1: =IF(kalender!$D18='rooster en stand'!$C$3,kalender!$F18&" (T)",kalender!$D18&" (U)") -> De Vrede (T) | R1: =IF(kalender!$D19='rooster en stand'!$C$3,kalender!$F19&" (T)",kalender!$D19&" (U)") -> Jolika (U) | S1: =IF(kalender!$D20='rooster en stand'!$C$3,kalender!$F20&" (T)",kalender!$D20&" (U)") -> Boerenbond (T) | T1: =IF(kalender!$D21='rooster en stand'!$C$3,kalender!$F21&" (T)",kalender!$D21&" (U)") -> Goka (T) | U1: =IF(kalender!$D22='rooster en stand'!$C$3,kalender!$F22&" (T)",kalender!$D22&" (U)") -> Hombeek (U) | V1: =IF(kalender!$D23='rooster en stand'!$C$3,kalender!$F23&" (T)",kalender!$D23&" (U)") -> Hoje (T) | W1: =IF(kalender!$D24='rooster en stand'!$C$3,kalender!$F24&" (T)",kalender!$D24&" (U)") -> Antverpia 98 (T) | X1: Totaal # goals | Y1: # matchen | Z1: Gem. # goals | AA1: Afwezig | AB1: Blessure | AC1: Schorsing | AD1: Niet gespeeld totaal | AE1: Keeper | AI1: =IFERROR( _xlfn.XMATCH( AJ2, B4:W4, 0 ), 0 ) -> 18 | AJ1: ="Hint: " & MAX(B4:W4) -> Hint: 20 | AL1: =B1 -> Pouma United (U) | AM1: Paradeske (T) | AN1: De Vrede (U) | AO1: Bariton (T) | AP1: Racing Emblem (U) | AQ1: Jolika (T) | AR1: Boerenbond (U) | AS1: Goka (U) | AT1: Hombeek (T) | AU1: Hoje (U) | AV1: Antverpia 98 (U) | AW1: Pouma United (T) | AX1: Paradeske (U) | AY1: Bariton (U) | AZ1: Racing Emblem (T) | BA1: De Vrede (T) | BB1: Jolika (U) | BC1: Boerenbond (T) | BD1: Goka (T) | BE1: Hombeek (U) | BF1: Hoje (T) | BG1: Antverpia 98 (T)
A2: Uitslag | B2: =kalender!$G3 -> 3-2 | C2: =kalender!$G4 -> 3-6 | D2: =kalender!$G5 -> 4-1 | E2: =kalender!$G6 -> 2-1 | F2: =kalender!$G7 -> 3-3 | G2: =kalender!$G8 -> 4-0 | H2: =kalender!$G9 -> 3-0 | I2: =kalender!$G10 -> 4-2 | J2: =kalender!$G11 -> 2-1 | K2: =kalender!$G12 -> 3-2 | L2: =kalender!$G13 -> 5-5 | M2: =kalender!$G14 -> 4-4 | N2: =kalender!$G15 -> 4-1 | O2: =kalender!$G16 -> 8-1 | P2: =kalender!$G17 -> 3-5 | Q2: =kalender!$G18 -> 6-5 | R2: =kalender!$G19 -> 1-2 | S2: =kalender!$G20 -> 2-7 | T2: =kalender!$G21 ->  | U2: =kalender!$G22 ->  | V2: =kalender!$G23 ->  | W2: =kalender!$G24 ->  | AJ2: 20 | BI2: P | BJ2: coeff | BK2: coeff aflopend | BM2: P | BN2: coeff | BO2: coeff aflopend | BQ2: aantal | BR2: coeff | BS2: coeff aflopend | BZ2: =MAX( 1, BW5:BW29, CD5:CD29 ) -> 22 | CQ2: =MAX( 1, CP5:CP29, CU5:CU29 ) -> 16 | DQ2: =_xlfn.TAKE( _xlfn.SCAN( "", _xlfn._xlws.SORT( _xlfn.UNIQUE( _xlfn.TOCOL(_xlfn.ANCHORARRAY( DF5), 2 ))), _xlfn.LAMBDA(_xlpm.a,_xlpm.v, IF( COUNTIF( $CQ$5:$CQ$31, _xlpm.v ) > 0, _xlpm.a, _xlpm.a & " / " & _xlpm.v ))), -1 ) -> / Beirinckx Wout / Celis Ive / Coolsaet Joy / De Groof Maarten / De Groof Steven / De Vinster Glenn / Elst Pieter / Gielis Bernd / Hofmans Stijn / Langenaeker Maarten / Lenaerts Jordy / Van de Vondel Rob / Van Dessel Dieter / Verdickt Stijn / Verlooy Kaïn / Vermeylen Jason
A3: Aanwezigen | B3: =IF(COUNTBLANK(B5:B29)='export html'!$AR$6,"",'export html'!$AR$6-COUNTIF(B5:B29,"a")-COUNTIF(B5:B29,"b")-COUNTIF(B5:B29,"s")) -> 16 | C3: =IF(COUNTBLANK(C5:C29)='export html'!$AR$6,"",'export html'!$AR$6-COUNTIF(C5:C29,"a")-COUNTIF(C5:C29,"b")-COUNTIF(C5:C29,"s")) -> 15 | D3: =IF(COUNTBLANK(D5:D29)='export html'!$AR$6,"",'export html'!$AR$6-COUNTIF(D5:D29,"a")-COUNTIF(D5:D29,"b")-COUNTIF(D5:D29,"s")) -> 15 | E3: =IF(COUNTBLANK(E5:E29)='export html'!$AR$6,"",'export html'!$AR$6-COUNTIF(E5:E29,"a")-COUNTIF(E5:E29,"b")-COUNTIF(E5:E29,"s")) -> 15 | F3: =IF(COUNTBLANK(F5:F29)='export html'!$AR$6,"",'export html'!$AR$6-COUNTIF(F5:F29,"a")-COUNTIF(F5:F29,"b")-COUNTIF(F5:F29,"s")) -> 16 | G3: =IF(COUNTBLANK(G5:G29)='export html'!$AR$6,"",'export html'!$AR$6-COUNTIF(G5:G29,"a")-COUNTIF(G5:G29,"b")-COUNTIF(G5:G29,"s")) -> 16 | H3: =IF(COUNTBLANK(H5:H29)='export html'!$AR$6,"",'export html'!$AR$6-COUNTIF(H5:H29,"a")-COUNTIF(H5:H29,"b")-COUNTIF(H5:H29,"s")) -> 13 | I3: =IF(COUNTBLANK(I5:I29)='export html'!$AR$6,"",'export html'!$AR$6-COUNTIF(I5:I29,"a")-COUNTIF(I5:I29,"b")-COUNTIF(I5:I29,"s")) -> 12 | J3: =IF(COUNTBLANK(J5:J29)='export html'!$AR$6,"",'export html'!$AR$6-COUNTIF(J5:J29,"a")-COUNTIF(J5:J29,"b")-COUNTIF(J5:J29,"s")) -> 15 | K3: =IF(COUNTBLANK(K5:K29)='export html'!$AR$6,"",'export html'!$AR$6-COUNTIF(K5:K29,"a")-COUNTIF(K5:K29,"b")-COUNTIF(K5:K29,"s")) -> 15 | L3: =IF(COUNTBLANK(L5:L29)='export html'!$AR$6,"",'export html'!$AR$6-COUNTIF(L5:L29,"a")-COUNTIF(L5:L29,"b")-COUNTIF(L5:L29,"s")) -> 16 | M3: =IF(COUNTBLANK(M5:M29)='export html'!$AR$6,"",'export html'!$AR$6-COUNTIF(M5:M29,"a")-COUNTIF(M5:M29,"b")-COUNTIF(M5:M29,"s")) -> 16 | N3: =IF(COUNTBLANK(N5:N29)='export html'!$AR$6,"",'export html'!$AR$6-COUNTIF(N5:N29,"a")-COUNTIF(N5:N29,"b")-COUNTIF(N5:N29,"s")) -> 13 | O3: =IF(COUNTBLANK(O5:O29)='export html'!$AR$6,"",'export html'!$AR$6-COUNTIF(O5:O29,"a")-COUNTIF(O5:O29,"b")-COUNTIF(O5:O29,"s")) -> 15 | P3: =IF(COUNTBLANK(P5:P29)='export html'!$AR$6,"",'export html'!$AR$6-COUNTIF(P5:P29,"a")-COUNTIF(P5:P29,"b")-COUNTIF(P5:P29,"s")) -> 15 | Q3: =IF(COUNTBLANK(Q5:Q29)='export html'!$AR$6,"",'export html'!$AR$6-COUNTIF(Q5:Q29,"a")-COUNTIF(Q5:Q29,"b")-COUNTIF(Q5:Q29,"s")) -> 15 | R3: =IF(COUNTBLANK(R5:R29)='export html'!$AR$6,"",'export html'!$AR$6-COUNTIF(R5:R29,"a")-COUNTIF(R5:R29,"b")-COUNTIF(R5:R29,"s")) -> 13 | S3: =IF(COUNTBLANK(S5:S29)='export html'!$AR$6,"",'export html'!$AR$6-COUNTIF(S5:S29,"a")-COUNTIF(S5:S29,"b")-COUNTIF(S5:S29,"s")) -> 15 | T3: =IF(COUNTBLANK(T5:T29)='export html'!$AR$6,"",'export html'!$AR$6-COUNTIF(T5:T29,"a")-COUNTIF(T5:T29,"b")-COUNTIF(T5:T29,"s")) ->  | U3: =IF(COUNTBLANK(U5:U29)='export html'!$AR$6,"",'export html'!$AR$6-COUNTIF(U5:U29,"a")-COUNTIF(U5:U29,"b")-COUNTIF(U5:U29,"s")) ->  | V3: =IF(COUNTBLANK(V5:V29)='export html'!$AR$6,"",'export html'!$AR$6-COUNTIF(V5:V29,"a")-COUNTIF(V5:V29,"b")-COUNTIF(V5:V29,"s")) ->  | W3: =IF(COUNTBLANK(W5:W29)='export html'!$AR$6,"",'export html'!$AR$6-COUNTIF(W5:W29,"a")-COUNTIF(W5:W29,"b")-COUNTIF(W5:W29,"s")) ->  | AG3: Match van de Man | BI3: DEZE WEEK | BM3: SEIZOEN | BQ3: WEEKOVERWINNINGEN | DQ3: =_xlfn.TEXTJOIN( "|",TRUE, _xlfn.DROP( _xlfn.TEXTSPLIT( DQ2, , " / " ), 1 )) -> Beirinckx Wout|Celis Ive|Coolsaet Joy|De Groof Maarten|De Groof Steven|De Vinster Glenn|Elst Pieter|Gielis Bernd|Hofmans Stijn|Langenaeker Maarten|Lenaerts Jordy|Van de Vondel Rob|Van Dessel Dieter|Verdickt Stijn|Verlooy Kaïn|Vermeylen Jason
A4: Speeldag | B4: =IF(COUNTBLANK(B5:B29)='export html'!$AR$6,"",kalender!$B3) -> 1 | C4: =IF(COUNTBLANK(C5:C29)='export html'!$AR$6,"",kalender!$B4) -> 2 | D4: =IF(COUNTBLANK(D5:D29)='export html'!$AR$6,"",kalender!$B5) -> 3 | E4: =IF(COUNTBLANK(E5:E29)='export html'!$AR$6,"",kalender!$B6) -> 4 | F4: =IF(COUNTBLANK(F5:F29)='export html'!$AR$6,"",kalender!$B7) -> 5 | G4: =IF(COUNTBLANK(G5:G29)='export html'!$AR$6,"",kalender!$B8) -> 6 | H4: =IF(COUNTBLANK(H5:H29)='export html'!$AR$6,"",kalender!$B9) -> 7 | I4: =IF(COUNTBLANK(I5:I29)='export html'!$AR$6,"",kalender!$B10) -> 9 | J4: =IF(COUNTBLANK(J5:J29)='export html'!$AR$6,"",kalender!$B11) -> 10 | K4: =IF(COUNTBLANK(K5:K29)='export html'!$AR$6,"",kalender!$B12) -> 11 | L4: =IF(COUNTBLANK(L5:L29)='export html'!$AR$6,"",kalender!$B13) -> 12 | M4: =IF(COUNTBLANK(M5:M29)='export html'!$AR$6,"",kalender!$B14) -> 14 | N4: =IF(COUNTBLANK(N5:N29)='export html'!$AR$6,"",kalender!$B15) -> 15 | O4: =IF(COUNTBLANK(O5:O29)='export html'!$AR$6,"",kalender!$B16) -> 17 | P4: =IF(COUNTBLANK(P5:P29)='export html'!$AR$6,"",kalender!$B17) -> 18 | Q4: =IF(COUNTBLANK(Q5:Q29)='export html'!$AR$6,"",kalender!$B18) -> 16 | R4: =IF(COUNTBLANK(R5:R29)='export html'!$AR$6,"",kalender!$B19) -> 19 | S4: =IF(COUNTBLANK(S5:S29)='export html'!$AR$6,"",kalender!$B20) -> 20 | T4: =IF(COUNTBLANK(T5:T29)='export html'!$AR$6,"",kalender!$B21) ->  | U4: =IF(COUNTBLANK(U5:U29)='export html'!$AR$6,"",kalender!$B22) ->  | V4: =IF(COUNTBLANK(V5:V29)='export html'!$AR$6,"",kalender!$B23) ->  | W4: =IF(COUNTBLANK(W5:W29)='export html'!$AR$6,"",kalender!$B24) ->  | AG4: Speler | AH4: Totaal | AI4: Plaats | AJ4: =INDEX( B1:W1, 1, MATCH( AJ2, B4:W4, 0 )) -> Boerenbond (T) | AK4: Plaats | BX4: ="Match tegen " & AJ4 -> Match tegen Boerenbond (T) | BY4: Punten - GEWOGEN | BZ4: Punten - ONGEWOGEN | CE4: Seizoenstotaal | CF4: Punten - GEWOGEN | CG4: Punten - ONGEWOGEN | CH4: Matchen | CK4: HULP 1 | CL4: HULP 2 | CM4: HULP 3 | CN4: HULP 4 | CQ4: Weekoverwinningen | CR4: Aantal | CS4: Matchen | CV4: Podiumplaatsen | CW4: Goud | CX4: Zilver | CY4: Brons | CZ4: Totaal | DA4: Goud = 3 Zilver = 2 Brons = 1 | DD4: Ook op het podium: | DJ4: Speler | DK4: Plaats 1 | DL4: Plaats 2 | DM4: Plaats 3 | DN4: Totaal | DO4: Gewogen som
A5: Beirinckx Jurgen | B5: p | C5: p | D5: p | E5: p | F5: p | G5: p | H5: ng | I5: ng | J5: p | K5: ng | L5: 1 | M5: ng | N5: ng | O5: ng | P5: p | Q5: p | R5: ng | S5: p | X5: =SUM( B53:W53 ) -> 0 | Y5: =COUNTIF( B5:W5, "k" ) + SUM( B5:W5 ) -> 1 | Z5: =IFERROR( X5 / COUNT($B$4:$W$4), "" ) -> 0 | AA5: =COUNTIF( B5:W5, "a" ) -> 0 | AB5: =COUNTIF( B5:W5, "b" ) -> 0 | AC5: =COUNTIF( B5:W5, "s" ) -> 0 | AD5: =COUNTIF( B5:W5, "ng" ) + COUNTIF( B5:W5, "na" ) + COUNTIF( B5:W5, "p" ) + COUNTIF( B5:W5, "t" ) -> 17 | AE5: =COUNTIF(B5:W5,"k") -> 0 | AG5: =A5 -> Beirinckx Jurgen | AH5: =IF(SUM(AL5:BG5)=0,"",SUM(AL5:BG5)) -> 1.111111111 | AI5: =IF(AH5="","",RANK(AH5,AH$5:AH$32)) -> 22 | AJ5: =_xlfn.LET( _xlpm.i, INDEX($AL5:$BG5,1,MAX(1,MATCH($AJ$2,$B$4:$W$4,0))), IF( _xlpm.i = "", "", _xlpm.i )) -> 0 | AK5: =IF(AJ5="","",RANK(AJ5,AJ$5:AJ$32)) -> 12 | AL5: =B303 -> 0 | AM5: =C303 -> 0 | AN5: =D303 -> 0 | AO5: =E303 -> 0 | AP5: =F303 -> 0 | AQ5: =G303 -> 0 | AR5: =H303 -> 0 | AS5: =I303 -> 0 | AT5: =J303 -> 0 | AU5: =K303 -> 0 | AV5: =L303 -> 0 | AW5: =M303 -> 0 | AX5: =N303 -> 0 | AY5: =O303 -> 1.111111111 | AZ5: =P303 -> 0 | BA5: =Q303 -> 0 | BB5: =R303 -> 0 | BC5: =S303 -> 0 | BD5: =T303 -> 0 | BE5: =U303 -> 0 | BF5: =V303 -> 0 | BG5: =W303 -> 0 | BI5: =INDEX($AL5:$BG5,1,MAX(1,MATCH($AJ$2,$B$4:$W$4,0))) -> 0 | BJ5: =BI5-BU5/100 -> -0.01 | BK5: =LARGE(BJ$5:BJ$31,BU5) -> 15.18411765 | BM5: =SUM(AL5:BG5) -> 1.111111111 | BN5: =BM5-BU5/100 -> 1.101111111 | BO5: =LARGE(BN$5:BN$31,BU5) -> 187.4362765 | BQ5: =COUNTIF( $AL$36:$BG$36, "*" & AG5 & "*" ) -> 0 | BR5: =1000*BQ5+BM5-BU5/100 -> 1.101111111 | BS5: =LARGE(BR$5:BR$31,BU5) -> 5145.68076 | BU5: =_xlfn.SEQUENCE(27) -> 1 | BW5: =IF(BY5="","",BU5) -> 1 | BX5: =_xlfn.XLOOKUP( CK5, $DR$5:$DR$30, $DS$5:$DS$30, "" ) -> Glenn De Vinster | BY5: =IF(INDEX($BI$5:$BI$31,MATCH(BK5,$BJ$5:$BJ$31,0))=0,"",INDEX($BI$5:$BI$31,MATCH(BK5,$BJ$5:$BJ$31,0))) -> 15.29411765 | BZ5: =IF( CK5 = "", "", _xlfn.XLOOKUP( CK5, $A$253:$A$279, INDEX( $B$253:$W$279, , $AI$1 ), "" )) -> 13 | CD5: =IF(CF5="","",BU5) -> 1 | CE5: =_xlfn.XLOOKUP( CL5, $DR$5:$DR$30, $DS$5:$DS$30, "" ) -> Stijn Hofmans | CF5: =IF(INDEX($BM$5:$BM$31,MATCH(BO5,$BN$5:$BN$31,0))=0,"",INDEX($BM$5:$BM$31,MATCH(BO5,$BN$5:$BN$31,0))) -> 187.5862765 | CG5: =IF( CL5 = "", "", _xlfn.XLOOKUP( CL5, $A$253:$A$279, $X$253:$X$279, "" )) -> 150 | CH5: =_xlfn.LET( _xlpm.m, INDEX($Y$5:$Y$31,MATCH(CL5,$AG$5:$AG$31,0)), IF(CF5="","","(" & IF( _xlpm.m = "", 0, _xlpm.m ) & ")")) -> (15) | CI5: =IFERROR(IF(CF5="","",ABS(CF5/CH5)),0) -> 12.50575176 | CK5: =IF(BY5="","",INDEX($AG$5:$AG$32,MATCH(BK5,$BJ$5:$BJ$31,0))) -> De Vinster Glenn | CL5: =IF(CF5="","",INDEX($AG$5:$AG$31,MATCH(BO5,$BN$5:$BN$31,0))) -> Hofmans Stijn | CM5: =IF(CR5="","",INDEX($AG$5:$AG$31,MATCH(BS5,$BR$5:$BR$31,0))) -> De Vinster Glenn | CN5: =_xlfn.TAKE( _xlfn.SORTBY( DJ5:DO20,_xlfn.ANCHORARRAY( DO5), -1 ), , 1 ) -> De Vinster Glenn | CP5: =IF(CR5="","",BU5) -> 1 | CQ5: =_xlfn.XLOOKUP( CM5, $DR$5:$DR$30, $DS$5:$DS$30, "" ) -> Glenn De Vinster | CR5: =IF(INDEX($BQ$5:$BQ$31,MATCH(BS5,$BR$5:$BR$31,0))=0,"",INDEX($BQ$5:$BQ$31,MATCH(BS5,$BR$5:$BR$31,0))) -> 5 | CS5: =IF(CR5="","","(" & INDEX($Y$5:$Y$31,MATCH(CM5,$AG$5:$AG$31,0)) & ")") -> (10) | CU5: =_xlfn.SEQUENCE( ROWS(_xlfn.ANCHORARRAY( DJ5) )) -> 1 | CV5: =_xlfn.XLOOKUP(_xlfn.ANCHORARRAY( CN5), $DR$5:$DR$30, $DS$5:$DS$30, "" ) -> Glenn De Vinster | CW5: =_xlfn.DROP( _xlfn.SORTBY( DJ5:DO20,_xlfn.ANCHORARRAY( DO5), -1 ), , 1 ) -> 5 | CX5: 1 | CY5: 0 | CZ5: 6 | DA5: 17 | DD5: =_xlfn.LET( _xlpm.n, _xlfn.TOCOL( AL36:BG38, 1 ), _xlfn._xlws.FILTER( _xlpm.n, _xlpm.n <> "", "Niets weer te geven." )) -> De Groof Steven | DF5: =_xlfn.LET( _xlpm.a,_xlfn.ANCHORARRAY( DD5), _xlpm.b, (LEN(_xlpm.a) - LEN(SUBSTITUTE(_xlpm.a, " / ",)))/LEN( " / " ) +1, _xlpm.c, _xlfn.SEQUENCE( , MAX(_xlpm.b)), IFERROR( _xlfn.TEXTSPLIT( _xlfn.TEXTAFTER( " / " & _xlpm.a & " / "," / ", _xlpm.c ), " / "), NA() )) -> De Groof Steven | DJ5: =_xlfn.UNIQUE( _xlfn.TOCOL(_xlfn.ANCHORARRAY( DF5), 2 )) -> De Groof Steven | DK5: =COUNTIF( $AL$36:$BG$36, "*" &_xlfn.ANCHORARRAY( DJ5) & "*" ) -> 2 | DL5: =COUNTIF( $AL$37:$BG$37, "*" &_xlfn.ANCHORARRAY( DJ5) & "*" ) -> 1 | DM5: =COUNTIF( $AL$38:$BG$38, "*" &_xlfn.ANCHORARRAY( DJ5) & "*" ) -> 3 | DN5: =_xlfn.ANCHORARRAY(DK5) +_xlfn.ANCHORARRAY( DL5) +_xlfn.ANCHORARRAY( DM5) -> 6 | DO5: =3 *_xlfn.ANCHORARRAY( DK5) + 2 *_xlfn.ANCHORARRAY( DL5) + 1 *_xlfn.ANCHORARRAY( DM5) -> 11 | DR5: =A5 -> Beirinckx Jurgen | DS5: Jurgen Beirinckx
A6: Beirinckx Sven | B6: a | C6: a | D6: a | E6: a | F6: a | G6: a | H6: a | I6: a | J6: a | K6: a | L6: a | M6: a | N6: a | O6: a | P6: a | Q6: a | R6: a | S6: a | X6: 0 | Y6: 0 | Z6: 0 | AA6: 18 | AB6: 0 | AC6: 0 | AD6: 0 | AE6: =COUNTIF(B6:W6,"k") -> 0 | AG6: Beirinckx Sven | AH6: =IF(SUM(AL6:BG6)=0,"",SUM(AL6:BG6)) ->  | AJ6: =_xlfn.LET( _xlpm.i, INDEX($AL6:$BG6,1,MAX(1,MATCH($AJ$2,$B$4:$W$4,0))), IF( _xlpm.i = "", "", _xlpm.i )) -> 0 | AK6: 12 | AL6: 0 | AM6: 0 | AN6: 0 | AO6: 0 | AP6: 0 | AQ6: 0 | AR6: 0 | AS6: 0 | AT6: 0 | AU6: 0 | AV6: 0 | AW6: 0 | AX6: 0 | AY6: 0 | AZ6: 0 | BA6: 0 | BB6: 0 | BC6: 0 | BD6: 0 | BE6: 0 | BF6: 0 | BG6: 0 | BI6: =INDEX($AL6:$BG6,1,MAX(1,MATCH($AJ$2,$B$4:$W$4,0))) -> 0 | BJ6: =BI6-BU6/100 -> -0.02 | BK6: 12.82117647 | BM6: 0 | BN6: =BM6-BU6/100 -> -0.02 | BO6: 183.1887868 | BQ6: 0 | BR6: =1000*BQ6+BM6-BU6/100 -> -0.02 | BS6: 3187.436276 | BU6: 2 | BW6: =IF(BY6="","",BU6) -> 2 | BX6: Pieter Elst | BY6: 12.94117647 | BZ6: =IF( CK6 = "", "", _xlfn.XLOOKUP( CK6, $A$253:$A$279, INDEX( $B$253:$W$279, , $AI$1 ), "" )) -> 11 | CD6: =IF(CF6="","",BU6) -> 2 | CE6: Maarten De Groof | CF6: =IF(INDEX($BM$5:$BM$31,MATCH(BO6,$BN$5:$BN$31,0))=0,"",INDEX($BM$5:$BM$31,MATCH(BO6,$BN$5:$BN$31,0))) -> 183.2687868 | CG6: 141 | CH6: (15) | CI6: 12.21791912 | CK6: =IF(BY6="","",INDEX($AG$5:$AG$32,MATCH(BK6,$BJ$5:$BJ$31,0))) -> Elst Pieter | CL6: De Groof Maarten | CM6: Hofmans Stijn | CN6: De Groof Maarten | CP6: 2 | CQ6: Stijn Hofmans | CR6: 3 | CS6: (15) | CU6: 2 | CV6: Maarten De Groof | CW6: 2 | CX6: 3 | CY6: 4 | CZ6: 9 | DA6: 16 | DD6: Hofmans Stijn | DF6: Hofmans Stijn | DJ6: Hofmans Stijn | DK6: 3 | DL6: 2 | DM6: 1 | DN6: 6 | DO6: 14 | DR6: =A6 -> Beirinckx Sven | DS6: Sven Beirinckx
A7: Beirinckx Wout | B7: 1 | C7: 1 | D7: 1 | E7: 1 | F7: 1 | G7: 1 | H7: 1 | I7: k | J7: 1 | K7: t | L7: t | M7: p | N7: 1 | O7: k | P7: k | Q7: k | R7: k | S7: k | X7: 0 | Y7: 15 | Z7: 0 | AA7: 0 | AB7: 0 | AC7: 0 | AD7: 3 | AE7: 6 | AG7: Beirinckx Wout | AH7: 88.61445417 | AI7: 10 | AJ7: =_xlfn.LET( _xlpm.i, INDEX($AL7:$BG7,1,MAX(1,MATCH($AJ$2,$B$4:$W$4,0))), IF( _xlpm.i = "", "", _xlpm.i )) -> 5.882352941 | AK7: 9 | AL7: 0 | AM7: 0 | AN7: 2.857142857 | AO7: 7.5 | AP7: 1.818181818 | AQ7: 1.25 | AR7: 7.692307692 | AS7: 18.33333333 | AT7: 1.428571429 | AU7: 0 | AV7: 0 | AW7: 0 | AX7: 6.153846154 | AY7: 13.33333333 | AZ7: 4 | BA7: 13.75 | BB7: 4.615384615 | BC7: 5.882352941 | BD7: 0 | BE7: 0 | BF7: 0 | BG7: 0 | BI7: =INDEX($AL7:$BG7,1,MAX(1,MATCH($AJ$2,$B$4:$W$4,0))) -> 5.882352941 | BJ7: =BI7-BU7/100 -> 5.852352941 | BK7: 12.71117647 | BM7: 88.61445417 | BN7: =BM7-BU7/100 -> 88.58445417 | BO7: 151.8754011 | BQ7: 1 | BR7: =1000*BQ7+BM7-BU7/100 -> 1088.584454 | BS7: 3129.947418 | BU7: 3 | BW7: 3 | BX7: Kaïn Verlooy | BY7: 12.94117647 | BZ7: =IF( CK7 = "", "", _xlfn.XLOOKUP( CK7, $A$253:$A$279, INDEX( $B$253:$W$279, , $AI$1 ), "" )) -> 11 | CD7: 3 | CE7: Kaïn Verlooy | CF7: =IF(INDEX($BM$5:$BM$31,MATCH(BO7,$BN$5:$BN$31,0))=0,"",INDEX($BM$5:$BM$31,MATCH(BO7,$BN$5:$BN$31,0))) -> 152.1054011 | CG7: 115 | CH7: (14) | CI7: 10.86467151 | CK7: Verlooy Kaïn | CL7: Verlooy Kaïn | CM7: Celis Ive | CN7: Hofmans Stijn | CP7: 3 | CQ7: Ive Celis | CR7: 3 | CS7: (12) | CU7: 3 | CV7: Stijn Hofmans | CW7: 3 | CX7: 2 | CY7: 1 | CZ7: 6 | DA7: 14 | DD7: De Groof Maarten | DF7: De Groof Maarten | DJ7: De Groof Maarten | DK7: 2 | DL7: 3 | DM7: 4 | DN7: 9 | DO7: 16 | DR7: Beirinckx Wout | DS7: Wout Beirinckx
A8: Boes Dieuwer | B8: 1 | C8: a | D8: 1 | E8: a | F8: 1 | G8: a | H8: 1 | I8: 1 | J8: a | K8: a | L8: a | M8: 1 | N8: a | O8: 1 | P8: 1 | Q8: 1 | R8: 1 | S8: a | X8: 0 | Y8: 10 | Z8: 0 | AA8: 8 | AB8: 0 | AC8: 0 | AD8: 0 | AE8: 0 | AG8: Boes Dieuwer | AH8: 18.18803419 | AI8: 18 | AJ8: =_xlfn.LET( _xlpm.i, INDEX($AL8:$BG8,1,MAX(1,MATCH($AJ$2,$B$4:$W$4,0))), IF( _xlpm.i = "", "", _xlpm.i )) -> 0 | AK8: 12 | AL8: 0 | AM8: 0 | AN8: 0 | AO8: 0 | AP8: 0 | AQ8: 0 | AR8: 1.538461538 | AS8: 3.333333333 | AT8: 0 | AU8: 0 | AV8: 0 | AW8: 2.666666667 | AX8: 0 | AY8: 7.777777778 | AZ8: 1.333333333 | BA8: 0 | BB8: 1.538461538 | BC8: 0 | BD8: 0 | BE8: 0 | BF8: 0 | BG8: 0 | BI8: =INDEX($AL8:$BG8,1,MAX(1,MATCH($AJ$2,$B$4:$W$4,0))) -> 0 | BJ8: =BI8-BU8/100 -> -0.04 | BK8: 11.71470588 | BM8: 18.18803419 | BN8: 18.14803419 | BO8: 145.6807599 | BQ8: 0 | BR8: 18.14803419 | BS8: 2183.188787 | BU8: 4 | BW8: 4 | BX8: Ive Celis | BY8: 11.76470588 | BZ8: =IF( CK8 = "", "", _xlfn.XLOOKUP( CK8, $A$253:$A$279, INDEX( $B$253:$W$279, , $AI$1 ), "" )) -> 10 | CD8: =IF(CF8="","",BU8) -> 4 | CE8: Glenn De Vinster | CF8: =IF(INDEX($BM$5:$BM$31,MATCH(BO8,$BN$5:$BN$31,0))=0,"",INDEX($BM$5:$BM$31,MATCH(BO8,$BN$5:$BN$31,0))) -> 145.7907599 | CG8: 109 | CH8: (10) | CI8: 14.57907599 | CK8: Celis Ive | CL8: De Vinster Glenn | CM8: De Groof Maarten | CN8: Celis Ive | CP8: 4 | CQ8: Maarten De Groof | CR8: 2 | CS8: (15) | CU8: 4 | CV8: Ive Celis | CW8: 3 | CX8: 1 | CY8: 1 | CZ8: 5 | DA8: 12 | DD8: De Groof Maarten / Vermeylen Jason | DF8: De Groof Maarten | DG8: Vermeylen Jason | DJ8: Vermeylen Jason | DK8: 2 | DL8: 1 | DM8: 1 | DN8: 4 | DO8: 9 | DR8: Boes Dieuwer | DS8: Dieuwer Boes
A9: Celis Ive | B9: a | C9: a | D9: a | E9: 1 | F9: 1 | G9: 1 | H9: 1 | I9: 1 | J9: a | K9: 1 | L9: b | M9: a | N9: 1 | O9: 1 | P9: 1 | Q9: 1 | R9: 1 | S9: 1 | X9: 0 | Y9: 12 | Z9: 0 | AA9: 5 | AB9: 1 | AC9: 0 | AD9: 0 | AE9: 0 | AG9: Celis Ive | AH9: 129.9974176 | AI9: 7 | AJ9: =_xlfn.LET( _xlpm.i, INDEX($AL9:$BG9,1,MAX(1,MATCH($AJ$2,$B$4:$W$4,0))), IF( _xlpm.i = "", "", _xlpm.i )) -> 11.76470588 | AK9: 4 | AL9: 0 | AM9: 0 | AN9: 0 | AO9: 8.75 | AP9: 11.81818182 | AQ9: 8.75 | AR9: 15.38461538 | AS9: 6.666666667 | AT9: 0 | AU9: 12 | AV9: 0 | AW9: 0 | AX9: 9.230769231 | AY9: 18.88888889 | AZ9: 18.66666667 | BA9: 5 | BB9: 3.076923077 | BC9: 11.76470588 | BD9: 0 | BE9: 0 | BF9: 0 | BG9: 0 | BI9: =INDEX($AL9:$BG9,1,MAX(1,MATCH($AJ$2,$B$4:$W$4,0))) -> 11.76470588 | BJ9: 11.71470588 | BK9: 11.63470588 | BM9: 129.9974176 | BN9: 129.9474176 | BO9: 144.0008275 | BQ9: 3 | BR9: 3129.947418 | BS9: 2144.000827 | BU9: 5 | BW9: 5 | BX9: Bernd Gielis | BY9: 11.76470588 | BZ9: =IF( CK9 = "", "", _xlfn.XLOOKUP( CK9, $A$253:$A$279, INDEX( $B$253:$W$279, , $AI$1 ), "" )) -> 10 | CD9: 5 | CE9: Steven De Groof | CF9: 144.0908275 | CG9: 106 | CH9: (16) | CI9: 9.005676717 | CK9: Gielis Bernd | CL9: De Groof Steven | CM9: De Groof Steven | CN9: De Groof Steven | CP9: 5 | CQ9: Steven De Groof | CR9: 2 | CS9: (16) | CU9: 5 | CV9: Steven De Groof | CW9: 2 | CX9: 1 | CY9: 3 | CZ9: 6 | DA9: 11 | DD9: Hofmans Stijn | DF9: Hofmans Stijn | DJ9: Celis Ive | DK9: 3 | DL9: 1 | DM9: 1 | DN9: 5 | DO9: 12 | DR9: Celis Ive | DS9: Ive Celis
A10: Coolsaet Joy | B10: a | C10: 1 | D10: a | E10: 1 | F10: a | G10: 1 | H10: 1 | I10: 1 | J10: 1 | K10: 1 | L10: 1 | M10: 1 | N10: 1 | O10: 1 | P10: 1 | Q10: 1 | R10: a | S10: 1 | X10: 0 | Y10: 14 | Z10: 0 | AA10: 4 | AB10: 0 | AC10: 0 | AD10: 0 | AE10: 0 | AG10: Coolsaet Joy | AH10: 70.04212454 | AI10: 14 | AJ10: =_xlfn.LET( _xlpm.i, INDEX($AL10:$BG10,1,MAX(1,MATCH($AJ$2,$B$4:$W$4,0))), IF( _xlpm.i = "", "", _xlpm.i )) -> 0 | AK10: 12 | AL10: 0 | AM10: 5.333333333 | AN10: 0 | AO10: 0 | AP10: 0 | AQ10: 0 | AR10: 12.30769231 | AS10: 3.333333333 | AT10: 4.285714286 | AU10: 17.33333333 | AV10: 7.5 | AW10: 12 | AX10: 4.615384615 | AY10: 3.333333333 | AZ10: 0 | BA10: 0 | BB10: 0 | BC10: 0 | BD10: 0 | BE10: 0 | BF10: 0 | BG10: 0 | BI10: =INDEX($AL10:$BG10,1,MAX(1,MATCH($AJ$2,$B$4:$W$4,0))) -> 0 | BJ10: -0.06 | BK10: 8.145294118 | BM10: 70.04212454 | BN10: 69.98212454 | BO10: 131.8712123 | BQ10: 1 | BR10: 1069.982125 | BS10: 2078.079264 | BU10: 6 | BW10: 6 | BX10: Steven De Groof | BY10: 8.235294118 | BZ10: =IF( CK10 = "", "", _xlfn.XLOOKUP( CK10, $A$253:$A$279, INDEX( $B$253:$W$279, , $AI$1 ), "" )) -> 7 | CD10: 6 | CE10: Maarten Langenaeker | CF10: 132.0312123 | CG10: 106 | CH10: (15) | CI10: 8.802080817 | CK10: De Groof Steven | CL10: Langenaeker Maarten | CM10: Vermeylen Jason | CN10: Verlooy Kaïn | CP10: 6 | CQ10: Jason Vermeylen | CR10: 2 | CS10: (6) | CU10: 6 | CV10: Kaïn Verlooy | CW10: 1 | CX10: 3 | CY10: 2 | CZ10: 6 | DA10: 11 | DD10: Vermeylen Jason | DF10: Vermeylen Jason | DJ10: Beirinckx Wout | DK10: 1 | DL10: 0 | DM10: 1 | DN10: 2 | DO10: 4 | DR10: Coolsaet Joy | DS10: Joy Coolsaet
A11: De Clerck Tom | B11: a | C11: a | D11: a | E11: a | F11: a | G11: a | H11: a | I11: a | J11: a | K11: a | L11: a | M11: a | N11: a | O11: a | P11: a | Q11: a | R11: a | S11: a | X11: 0 | Y11: 0 | Z11: 0 | AA11: 18 | AB11: 0 | AC11: 0 | AD11: 0 | AE11: 0 | AG11: De Clerck Tom | AJ11: =_xlfn.LET( _xlpm.i, INDEX($AL11:$BG11,1,MAX(1,MATCH($AJ$2,$B$4:$W$4,0))), IF( _xlpm.i = "", "", _xlpm.i )) -> 0 | AK11: 12 | AL11: 0 | AM11: 0 | AN11: 0 | AO11: 0 | AP11: 0 | AQ11: 0 | AR11: 0 | AS11: 0 | AT11: 0 | AU11: 0 | AV11: 0 | AW11: 0 | AX11: 0 | AY11: 0 | AZ11: 0 | BA11: 0 | BB11: 0 | BC11: 0 | BD11: 0 | BE11: 0 | BF11: 0 | BG11: 0 | BI11: =INDEX($AL11:$BG11,1,MAX(1,MATCH($AJ$2,$B$4:$W$4,0))) -> 0 | BJ11: -0.07 | BK11: 8.085294118 | BM11: 0 | BN11: -0.07 | BO11: 129.9474176 | BQ11: 0 | BR11: -0.07 | BS11: 1151.875401 | BU11: 7 | BW11: 7 | BX11: Stijn Hofmans | BY11: 8.235294118 | BZ11: =IF( CK11 = "", "", _xlfn.XLOOKUP( CK11, $A$253:$A$279, INDEX( $B$253:$W$279, , $AI$1 ), "" )) -> 7 | CD11: 7 | CE11: Ive Celis | CF11: 129.9974176 | CG11: 103 | CH11: (12) | CI11: 10.83311813 | CK11: Hofmans Stijn | CL11: Celis Ive | CM11: Verlooy Kaïn | CN11: Vermeylen Jason | CP11: 7 | CQ11: Kaïn Verlooy | CR11: 1 | CS11: (14) | CU11: 7 | CV11: Jason Vermeylen | CW11: 2 | CX11: 1 | CY11: 1 | CZ11: 4 | DA11: 9 | DD11: Celis Ive | DF11: Celis Ive | DJ11: De Vinster Glenn | DK11: 5 | DL11: 1 | DM11: 0 | DN11: 6 | DO11: 17 | DR11: De Clerck Tom | DS11: Tom De Clerck
A12: De Groof Maarten | B12: 1 | C12: 1 | D12: 1 | E12: 1 | F12: 1 | G12: ng | H12: 1 | I12: 1 | J12: 1 | K12: 1 | L12: 1 | M12: 1 | N12: 1 | O12: 1 | P12: 1 | Q12: 1 | R12: b | S12: ng | X12: 6 | Y12: 15 | Z12: 0.3333333333 | AA12: 0 | AB12: 1 | AC12: 0 | AD12: 2 | AE12: 0 | AG12: De Groof Maarten | AH12: 183.2687868 | AI12: 2 | AJ12: =_xlfn.LET( _xlpm.i, INDEX($AL12:$BG12,1,MAX(1,MATCH($AJ$2,$B$4:$W$4,0))), IF( _xlpm.i = "", "", _xlpm.i )) -> 0 | AK12: 12 | AL12: 6.666666667 | AM12: 10.66666667 | AN12: 20 | AO12: 18.75 | AP12: 12.72727273 | AQ12: 0 | AR12: 12.30769231 | AS12: 8.333333333 | AT12: 8.571428571 | AU12: 9.333333333 | AV12: 5 | AW12: 6.666666667 | AX12: 15.38461538 | AY12: 17.77777778 | AZ12: 17.33333333 | BA12: 13.75 | BB12: 0 | BC12: 0 | BD12: 0 | BE12: 0 | BF12: 0 | BG12: 0 | BI12: =INDEX($AL12:$BG12,1,MAX(1,MATCH($AJ$2,$B$4:$W$4,0))) -> 0 | BJ12: =BI12-BU12/100 -> -0.08 | BK12: 6.898823529 | BM12: 183.2687868 | BN12: 183.1887868 | BO12: 102.5066904 | BQ12: 2 | BR12: =1000*BQ12+BM12-BU12/100 -> 2183.188787 | BS12: 1131.871212 | BU12: 8 | BW12: 8 | BX12: Maarten Langenaeker | BY12: 7.058823529 | BZ12: =IF( CK12 = "", "", _xlfn.XLOOKUP( CK12, $A$253:$A$279, INDEX( $B$253:$W$279, , $AI$1 ), "" )) -> 6 | CD12: 8 | CE12: Rob Van de Vondel | CF12: 102.7066904 | CG12: 77 | CH12: (11) | CI12: 9.336971852 | CK12: Langenaeker Maarten | CL12: Van de Vondel Rob | CM12: Langenaeker Maarten | CN12: Langenaeker Maarten | CP12: 8 | CQ12: Maarten Langenaeker | CR12: 1 | CS12: (15) | CU12: 8 | CV12: Maarten Langenaeker | CW12: 1 | CX12: 1 | CY12: 2 | CZ12: 4 | DA12: 7 | DD12: Beirinckx Wout / De Vinster Glenn | DF12: Beirinckx Wout | DG12: De Vinster Glenn | DJ12: Langenaeker Maarten | DK12: 1 | DL12: 1 | DM12: 2 | DN12: 4 | DO12: 7 | DR12: De Groof Maarten | DS12: Maarten De Groof
A13: De Groof Steven | B13: 1 | C13: 1 | D13: 1 | E13: 1 | F13: 1 | G13: 1 | H13: 1 | I13: 1 | J13: 1 | K13: 1 | L13: ng | M13: as | N13: 1 | O13: 1 | P13: 1 | Q13: 1 | R13: 1 | S13: 1 | X13: 4 | Y13: 16 | Z13: 0.2222222222 | AA13: 0 | AB13: 0 | AC13: 0 | AD13: 1 | AE13: 0 | AG13: De Groof Steven | AH13: 144.0908275 | AI13: 5 | AJ13: =_xlfn.LET( _xlpm.i, INDEX($AL13:$BG13,1,MAX(1,MATCH($AJ$2,$B$4:$W$4,0))), IF( _xlpm.i = "", "", _xlpm.i )) -> 8.235294118 | AK13: 6 | AL13: 24 | AM13: 8 | AN13: 11.42857143 | AO13: 0 | AP13: 3.636363636 | AQ13: 2.5 | AR13: 4.615384615 | AS13: 11.66666667 | AT13: 0 | AU13: 10.66666667 | AV13: 0 | AW13: 0 | AX13: 16.92307692 | AY13: 4.444444444 | AZ13: 10.66666667 | BA13: 15 | BB13: 12.30769231 | BC13: 8.235294118 | BD13: 0 | BE13: 0 | BF13: 0 | BG13: 0 | BI13: =INDEX($AL13:$BG13,1,MAX(1,MATCH($AJ$2,$B$4:$W$4,0))) -> 8.235294118 | BJ13: =BI13-BU13/100 -> 8.145294118 | BK13: 5.852352941 | BM13: 144.0908275 | BN13: =BM13-BU13/100 -> 144.0008275 | BO13: 96.01382676 | BQ13: 2 | BR13: =1000*BQ13+BM13-BU13/100 -> 2144.000827 | BS13: 1088.584454 | BU13: 9 | BW13: 9 | BX13: Wout Beirinckx | BY13: 5.882352941 | BZ13: =IF( CK13 = "", "", _xlfn.XLOOKUP( CK13, $A$253:$A$279, INDEX( $B$253:$W$279, , $AI$1 ), "" )) -> 5 | CD13: 9 | CE13: Bernd Gielis | CF13: 96.14382676 | CG13: 73 | CH13: (12) | CI13: 8.011985563 | CK13: Beirinckx Wout | CL13: Gielis Bernd | CM13: Beirinckx Wout | CN13: Coolsaet Joy | CP13: 9 | CQ13: Wout Beirinckx | CR13: 1 | CS13: (15) | CU13: 9 | CV13: Joy Coolsaet | CW13: 1 | CX13: 1 | CY13: 1 | CZ13: 3 | DA13: 6 | DD13: Langenaeker Maarten | DF13: Langenaeker Maarten | DJ13: Coolsaet Joy | DK13: 1 | DL13: 1 | DM13: 1 | DN13: 3 | DO13: 6 | DR13: De Groof Steven | DS13: Steven De Groof
A14: De Swert Erlend | B14: 1 | C14: 1 | D14: 1 | E14: a | F14: 1 | G14: 1 | H14: a | I14: a | J14: a | K14: 1 | L14: 1 | M14: 1 | N14: a | O14: 1 | P14: a | Q14: b | R14: b | S14: a | X14: 0 | Y14: 9 | Z14: 0 | AA14: 7 | AB14: 2 | AC14: 0 | AD14: 0 | AE14: 0 | AG14: De Swert Erlend | AH14: 13.78968254 | AI14: 19 | AJ14: =_xlfn.LET( _xlpm.i, INDEX($AL14:$BG14,1,MAX(1,MATCH($AJ$2,$B$4:$W$4,0))), IF( _xlpm.i = "", "", _xlpm.i )) -> 0 | AK14: 12 | AL14: 0 | AM14: 1.333333333 | AN14: 1.428571429 | AO14: 0 | AP14: 0 | AQ14: 0 | AR14: 0 | AS14: 0 | AT14: 0 | AU14: 2.666666667 | AV14: 1.25 | AW14: 2.666666667 | AX14: 0 | AY14: 4.444444444 | AZ14: 0 | BA14: 0 | BB14: 0 | BC14: 0 | BD14: 0 | BE14: 0 | BF14: 0 | BG14: 0 | BI14: =INDEX($AL14:$BG14,1,MAX(1,MATCH($AJ$2,$B$4:$W$4,0))) -> 0 | BJ14: =BI14-BU14/100 -> -0.1 | BK14: =LARGE(BJ$5:BJ$31,BU14) -> 4.495882353 | BM14: =SUM(AL14:BG14) -> 13.78968254 | BN14: =BM14-BU14/100 -> 13.68968254 | BO14: =LARGE(BN$5:BN$31,BU14) -> 88.58445417 | BQ14: 0 | BR14: =1000*BQ14+BM14-BU14/100 -> 13.68968254 | BS14: =LARGE(BR$5:BR$31,BU14) -> 1069.982125 | BU14: 10 | BW14: =IF(BY14="","",BU14) -> 10 | BX14: Dieter Van Dessel | BY14: 4.705882353 | BZ14: =IF( CK14 = "", "", _xlfn.XLOOKUP( CK14, $A$253:$A$279, INDEX( $B$253:$W$279, , $AI$1 ), "" )) -> 4 | CD14: 10 | CE14: Wout Beirinckx | CF14: 88.61445417 | CG14: 66 | CH14: (15) | CI14: 5.907630278 | CK14: Van Dessel Dieter | CL14: Beirinckx Wout | CM14: Coolsaet Joy | CN14: Elst Pieter | CP14: 10 | CQ14: Joy Coolsaet | CR14: 1 | CS14: (14) | CU14: 10 | CV14: Pieter Elst | CW14: 0 | CX14: 3 | CY14: 0 | CZ14: 3 | DA14: 6 | DD14: Coolsaet Joy | DF14: Coolsaet Joy | DJ14: Verlooy Kaïn | DK14: 1 | DL14: 3 | DM14: 2 | DN14: 6 | DO14: 11 | DR14: De Swert Erlend | DS14: Erlend De Swert
A15: De Vinster Glenn | B15: na | C15: na | D15: na | E15: na | F15: na | G15: na | H15: na | I15: 1 | J15: 1 | K15: 1 | L15: 1 | M15: 1 | N15: a | O15: 1 | P15: 1 | Q15: 1 | R15: 1 | S15: 1 | X15: 11 | Y15: 10 | Z15: 0.6111111111 | AA15: 1 | AB15: 0 | AC15: 0 | AD15: 7 | AE15: =COUNTIF(B15:W15,"k") -> 0 | AG15: =A15 -> De Vinster Glenn | AH15: =IF(SUM(AL15:BG15)=0,"",SUM(AL15:BG15)) -> 145.7907599 | AI15: =IF(AH15="","",RANK(AH15,AH$5:AH$32)) -> 4 | AJ15: =_xlfn.LET( _xlpm.i, INDEX($AL15:$BG15,1,MAX(1,MATCH($AJ$2,$B$4:$W$4,0))), IF( _xlpm.i = "", "", _xlpm.i )) -> 15.29411765 | AK15: =IF(AJ15="","",RANK(AJ15,AJ$5:AJ$32)) -> 1 | AL15: 0 | AM15: 0 | AN15: 0 | AO15: 0 | AP15: 0 | AQ15: 0 | AR15: 0 | AS15: 18.33333333 | AT15: 18.57142857 | AU15: 9.333333333 | AV15: 23.75 | AW15: 22.66666667 | AX15: 0 | AY15: 4.444444444 | AZ15: 6.666666667 | BA15: 17.5 | BB15: 9.230769231 | BC15: 15.29411765 | BD15: 0 | BE15: 0 | BF15: 0 | BG15: 0 | BI15: =INDEX($AL15:$BG15,1,MAX(1,MATCH($AJ$2,$B$4:$W$4,0))) -> 15.29411765 | BJ15: 15.18411765 | BK15: 0.9764705882 | BM15: 145.7907599 | BN15: 145.6807599 | BO15: 87.75967412 | BQ15: 5 | BR15: 5145.68076 | BS15: 102.5066904 | BU15: 11 | BW15: =IF(BY15="","",BU15) -> 11 | BX15: Rob Van de Vondel | BY15: 1.176470588 | BZ15: =IF( CK15 = "", "", _xlfn.XLOOKUP( CK15, $A$253:$A$279, INDEX( $B$253:$W$279, , $AI$1 ), "" )) -> 1 | CD15: 11 | CE15: Dieter Van Dessel | CF15: 87.96967412 | CG15: 65 | CH15: (15) | CI15: 5.864644941 | CK15: Van de Vondel Rob | CL15: Van Dessel Dieter | CN15: Beirinckx Wout | CU15: 11 | CV15: Wout Beirinckx | CW15: 1 | CX15: 0 | CY15: 1 | CZ15: 2 | DA15: 4 | DD15: De Vinster Glenn | DF15: De Vinster Glenn | DJ15: Van de Vondel Rob | DK15: 0 | DL15: 1 | DM15: 1 | DN15: 2 | DO15: 3 | DR15: De Vinster Glenn | DS15: Glenn De Vinster
A16: Elst Pieter | B16: 1 | C16: 1 | D16: 1 | E16: 1 | F16: 1 | G16: a | H16: a | I16: a | J16: a | K16: 1 | L16: b | M16: 1 | N16: a | O16: a | P16: 1 | Q16: 1 | R16: 1 | S16: 1 | X16: 0 | Y16: 11 | Z16: 0 | AA16: 6 | AB16: 1 | AC16: 0 | AD16: 0 | AE16: 0 | AG16: Elst Pieter | AH16: 76.58877887 | AI16: 13 | AJ16: =_xlfn.LET( _xlpm.i, INDEX($AL16:$BG16,1,MAX(1,MATCH($AJ$2,$B$4:$W$4,0))), IF( _xlpm.i = "", "", _xlpm.i )) -> 12.94117647 | AK16: 2 | AL16: 0 | AM16: 8 | AN16: 4.285714286 | AO16: 16.25 | AP16: 2.727272727 | AQ16: 0 | AR16: 0 | AS16: 0 | AT16: 0 | AU16: 1.333333333 | AV16: 0 | AW16: 5.333333333 | AX16: 0 | AY16: 0 | AZ16: 5.333333333 | BA16: 5 | BB16: 15.38461538 | BC16: 12.94117647 | BD16: 0 | BE16: 0 | BF16: 0 | BG16: 0 | BI16: =INDEX($AL16:$BG16,1,MAX(1,MATCH($AJ$2,$B$4:$W$4,0))) -> 12.94117647 | BJ16: 12.82117647 | BK16: -0.01 | BM16: 76.58877887 | BN16: 76.46877887 | BO16: 78.07926407 | BQ16: 0 | BR16: 76.46877887 | BS16: 96.01382676 | BU16: 12 | BZ16: =IF( CK16 = "", "", _xlfn.XLOOKUP( CK16, $A$253:$A$279, INDEX( $B$253:$W$279, , $AI$1 ), "" )) ->  | CD16: 12 | CE16: Jason Vermeylen | CF16: 78.31926407 | CG16: 62 | CH16: (6) | CI16: 13.05321068 | CL16: Vermeylen Jason | CN16: Van de Vondel Rob | CU16: 12 | CV16: Rob Van de Vondel | CW16: 0 | CX16: 1 | CY16: 1 | CZ16: 2 | DA16: 3 | DD16: De Vinster Glenn / Hofmans Stijn | DF16: De Vinster Glenn | DG16: Hofmans Stijn | DJ16: Elst Pieter | DK16: 0 | DL16: 3 | DM16: 0 | DN16: 3 | DO16: 6 | DR16: Elst Pieter | DS16: Pieter Elst
A17: Gielis Bernd | B17: 1 | C17: 1 | D17: 1 | E17: 1 | F17: a | G17: 1 | H17: a | I17: a | J17: 1 | K17: 1 | L17: 1 | M17: b | N17: b | O17: b | P17: 1 | Q17: 1 | R17: 1 | S17: 1 | X17: 0 | Y17: 12 | Z17: 0 | AA17: 3 | AB17: 3 | AC17: 0 | AD17: 0 | AE17: 0 | AG17: Gielis Bernd | AH17: 96.14382676 | AI17: =IF(AH17="","",RANK(AH17,AH$5:AH$32)) -> 9 | AJ17: =_xlfn.LET( _xlpm.i, INDEX($AL17:$BG17,1,MAX(1,MATCH($AJ$2,$B$4:$W$4,0))), IF( _xlpm.i = "", "", _xlpm.i )) -> 11.76470588 | AK17: =IF(AJ17="","",RANK(AJ17,AJ$5:AJ$32)) -> 4 | AL17: 16 | AM17: 5.333333333 | AN17: 2.857142857 | AO17: 5 | AP17: 0 | AQ17: 8.75 | AR17: 0 | AS17: 0 | AT17: 5.714285714 | AU17: 6.666666667 | AV17: 5 | AW17: 0 | AX17: 0 | AY17: 0 | AZ17: 8 | BA17: 8.75 | BB17: 12.30769231 | BC17: 11.76470588 | BD17: 0 | BE17: 0 | BF17: 0 | BG17: 0 | BI17: =INDEX($AL17:$BG17,1,MAX(1,MATCH($AJ$2,$B$4:$W$4,0))) -> 11.76470588 | BJ17: 11.63470588 | BK17: -0.02 | BM17: 96.14382676 | BN17: 96.01382676 | BO17: 76.46877887 | BQ17: 0 | BR17: 96.01382676 | BS17: 87.75967412 | BU17: 13 | BZ17: =IF( CK17 = "", "", _xlfn.XLOOKUP( CK17, $A$253:$A$279, INDEX( $B$253:$W$279, , $AI$1 ), "" )) ->  | CD17: 13 | CE17: Pieter Elst | CF17: 76.58877887 | CG17: 59 | CH17: (11) | CI17: 6.962616261 | CL17: Elst Pieter | CN17: Gielis Bernd | CU17: 13 | CV17: Bernd Gielis | CW17: 0 | CX17: 0 | CY17: 3 | CZ17: 3 | DA17: 3 | DD17: De Groof Steven | DF17: De Groof Steven | DJ17: Lenaerts Jordy | DK17: 0 | DL17: 1 | DM17: 0 | DN17: 1 | DO17: 2 | DR17: Gielis Bernd | DS17: Bernd Gielis
A18: Gielis Wim | B18: 1 | C18: b | D18: b | E18: 1 | F18: 1 | G18: a | H18: 1 | I18: 1 | J18: 1 | K18: a | L18: 1 | M18: 1 | N18: 1 | O18: 1 | P18: 1 | Q18: 1 | R18: 1 | S18: 1 | X18: 1 | Y18: 14 | Z18: 0.05555555556 | AA18: 2 | AB18: 2 | AC18: 0 | AD18: 0 | AE18: 0 | AG18: Gielis Wim | AH18: 20.76098901 | AI18: 17 | AJ18: =_xlfn.LET( _xlpm.i, INDEX($AL18:$BG18,1,MAX(1,MATCH($AJ$2,$B$4:$W$4,0))), IF( _xlpm.i = "", "", _xlpm.i )) -> 0 | AK18: 12 | AL18: 0 | AM18: 0 | AN18: 0 | AO18: 1.25 | AP18: 0 | AQ18: 0 | AR18: 1.538461538 | AS18: 1.666666667 | AT18: 2.857142857 | AU18: 0 | AV18: 7.5 | AW18: 1.333333333 | AX18: 4.615384615 | AY18: 0 | AZ18: 0 | BA18: 0 | BB18: 0 | BC18: 0 | BD18: 0 | BE18: 0 | BF18: 0 | BG18: 0 | BI18: =INDEX($AL18:$BG18,1,MAX(1,MATCH($AJ$2,$B$4:$W$4,0))) -> 0 | BJ18: -0.14 | BK18: -0.04 | BM18: 20.76098901 | BN18: 20.62098901 | BO18: 69.98212454 | BQ18: 0 | BR18: 20.62098901 | BS18: 76.46877887 | BU18: 14 | BZ18: =IF( CK18 = "", "", _xlfn.XLOOKUP( CK18, $A$253:$A$279, INDEX( $B$253:$W$279, , $AI$1 ), "" )) ->  | CD18: 14 | CE18: Joy Coolsaet | CF18: 70.04212454 | CG18: 51 | CH18: (14) | CI18: 5.003008896 | CL18: Coolsaet Joy | CN18: Lenaerts Jordy | CU18: 14 | CV18: Jordy Lenaerts | CW18: 0 | CX18: 1 | CY18: 0 | CZ18: 1 | DA18: 2 | DD18: Celis Ive | DF18: Celis Ive | DJ18: Gielis Bernd | DK18: 0 | DL18: 0 | DM18: 3 | DN18: 3 | DO18: 3 | DR18: Gielis Wim | DS18: Wim Gielis
A19: Hofmans Stijn | B19: 1 | C19: 1 | D19: 1 | E19: b | F19: 1 | G19: 1 | H19: a | I19: 1 | J19: 1 | K19: a | L19: 1 | M19: 1 | N19: 1 | O19: 1 | P19: 1 | Q19: 1 | R19: 1 | S19: 1 | X19: 12 | Y19: 15 | Z19: 0.6666666667 | AA19: 2 | AB19: 1 | AC19: 0 | AD19: 0 | AE19: 0 | AG19: Hofmans Stijn | AH19: 187.5862765 | AI19: 1 | AJ19: =_xlfn.LET( _xlpm.i, INDEX($AL19:$BG19,1,MAX(1,MATCH($AJ$2,$B$4:$W$4,0))), IF( _xlpm.i = "", "", _xlpm.i )) -> 8.235294118 | AK19: 6 | AL19: 13.33333333 | AM19: 17.33333333 | AN19: 7.142857143 | AO19: 0 | AP19: 29.09090909 | AQ19: 18.75 | AR19: 0 | AS19: 15 | AT19: 7.142857143 | AU19: 0 | AV19: 8.75 | AW19: 22.66666667 | AX19: 1.538461538 | AY19: 3.333333333 | AZ19: 12 | BA19: 12.5 | BB19: 10.76923077 | BC19: 8.235294118 | BD19: 0 | BE19: 0 | BF19: 0 | BG19: 0 | BI19: =INDEX($AL19:$BG19,1,MAX(1,MATCH($AJ$2,$B$4:$W$4,0))) -> 8.235294118 | BJ19: 8.085294118 | BK19: -0.06 | BM19: 187.5862765 | BN19: 187.4362765 | BO19: 43.37615385 | BQ19: 3 | BR19: 3187.436276 | BS19: 43.37615385 | BU19: 15 | BZ19: =IF( CK19 = "", "", _xlfn.XLOOKUP( CK19, $A$253:$A$279, INDEX( $B$253:$W$279, , $AI$1 ), "" )) ->  | CD19: 15 | CE19: Stijn Verdickt | CF19: 43.59615385 | CG19: 32 | CH19: (11) | CI19: 3.963286713 | CL19: Verdickt Stijn | CN19: Van Dessel Dieter | CU19: 15 | CV19: Dieter Van Dessel | CW19: 0 | CX19: 0 | CY19: 2 | CZ19: 2 | DA19: 2 | DD19: Celis Ive | DF19: Celis Ive | DJ19: Van Dessel Dieter | DK19: 0 | DL19: 0 | DM19: 2 | DN19: 2 | DO19: 2 | DR19: Hofmans Stijn | DS19: Stijn Hofmans
A20: Langenaeker Maarten | B20: k | C20: k | D20: k | E20: k | F20: k | G20: k | H20: k | I20: a | J20: k | K20: k | L20: k | M20: 1 | N20: 1 | O20: 1 | P20: a | Q20: a | R20: 1 | S20: 1 | X20: 0 | Y20: 15 | Z20: 0 | AA20: 3 | AB20: 0 | AC20: 0 | AD20: 0 | AE20: 10 | AG20: Langenaeker Maarten | AH20: 132.0312123 | AI20: 6 | AJ20: =_xlfn.LET( _xlpm.i, INDEX($AL20:$BG20,1,MAX(1,MATCH($AJ$2,$B$4:$W$4,0))), IF( _xlpm.i = "", "", _xlpm.i )) -> 7.058823529 | AK20: 8 | AL20: 1.333333333 | AM20: 9.333333333 | AN20: 4.285714286 | AO20: 6.25 | AP20: 22.72727273 | AQ20: 12.5 | AR20: 12.30769231 | AS20: 0 | AT20: 20 | AU20: 4 | AV20: 7.5 | AW20: 5.333333333 | AX20: 9.230769231 | AY20: 5.555555556 | AZ20: 0 | BA20: 0 | BB20: 4.615384615 | BC20: 7.058823529 | BD20: 0 | BE20: 0 | BF20: 0 | BG20: 0 | BI20: =INDEX($AL20:$BG20,1,MAX(1,MATCH($AJ$2,$B$4:$W$4,0))) -> 7.058823529 | BJ20: 6.898823529 | BK20: -0.07 | BM20: 132.0312123 | BN20: 131.8712123 | BO20: 24.46186813 | BQ20: 1 | BR20: 1131.871212 | BS20: 24.46186813 | BU20: 16 | BZ20: =IF( CK20 = "", "", _xlfn.XLOOKUP( CK20, $A$253:$A$279, INDEX( $B$253:$W$279, , $AI$1 ), "" )) ->  | CD20: 16 | CE20: Jordy Lenaerts | CF20: 24.63186813 | CG20: 17 | CH20: (7) | CI20: 3.518838305 | CL20: Lenaerts Jordy | CN20: Verdickt Stijn | CU20: 16 | CV20: Stijn Verdickt | CW20: 0 | CX20: 0 | CY20: 2 | CZ20: 2 | DA20: 2 | DD20: De Vinster Glenn | DF20: De Vinster Glenn | DJ20: Verdickt Stijn | DK20: 0 | DL20: 0 | DM20: 2 | DN20: 2 | DO20: 2 | DR20: Langenaeker Maarten | DS20: Maarten Langenaeker
A21: Lenaerts Jordy | B21: a | C21: a | D21: a | E21: a | F21: 1 | G21: a | H21: 1 | I21: a | J21: 1 | K21: 1 | L21: 1 | M21: 1 | N21: a | O21: a | P21: 1 | Q21: a | R21: a | S21: a | X21: 0 | Y21: 7 | Z21: 0 | AA21: 11 | AB21: 0 | AC21: 0 | AD21: 0 | AE21: 0 | AG21: Lenaerts Jordy | AH21: 24.63186813 | AI21: 16 | AJ21: =_xlfn.LET( _xlpm.i, INDEX($AL21:$BG21,1,MAX(1,MATCH($AJ$2,$B$4:$W$4,0))), IF( _xlpm.i = "", "", _xlpm.i )) -> 0 | AK21: 12 | AL21: 0 | AM21: 0 | AN21: 0 | AO21: 0 | AP21: 0 | AQ21: 0 | AR21: 13.84615385 | AS21: 0 | AT21: 4.285714286 | AU21: 4 | AV21: 2.5 | AW21: 0 | AX21: 0 | AY21: 0 | AZ21: 0 | BA21: 0 | BB21: 0 | BC21: 0 | BD21: 0 | BE21: 0 | BF21: 0 | BG21: 0 | BI21: =INDEX($AL21:$BG21,1,MAX(1,MATCH($AJ$2,$B$4:$W$4,0))) -> 0 | BJ21: =BI21-BU21/100 -> -0.17 | BK21: =LARGE(BJ$5:BJ$31,BU21) -> -0.08 | BM21: 24.63186813 | BN21: =BM21-BU21/100 -> 24.46186813 | BO21: =LARGE(BN$5:BN$31,BU21) -> 20.62098901 | BQ21: 0 | BR21: =1000*BQ21+BM21-BU21/100 -> 24.46186813 | BS21: =LARGE(BR$5:BR$31,BU21) -> 20.62098901 | BU21: 17 | BZ21: =IF( CK21 = "", "", _xlfn.XLOOKUP( CK21, $A$253:$A$279, INDEX( $B$253:$W$279, , $AI$1 ), "" )) ->  | CD21: 17 | CE21: Wim Gielis | CF21: 20.76098901 | CG21: 15 | CH21: (14) | CI21: 1.482927786 | CL21: Gielis Wim | DD21: Verlooy Kaïn | DF21: Verlooy Kaïn | DR21: Lenaerts Jordy | DS21: Jordy Lenaerts
A22: Op De Beeck Maarten | B22: b | C22: b | D22: b | E22: b | F22: b | G22: b | H22: b | I22: b | J22: b | K22: b | L22: b | M22: b | N22: b | O22: b | P22: b | Q22: b | R22: b | S22: b | X22: 0 | Y22: 0 | Z22: 0 | AA22: 0 | AB22: 18 | AC22: 0 | AD22: 0 | AE22: =COUNTIF(B22:W22,"k") -> 0 | AG22: =A22 -> Op De Beeck Maarten | AH22: =IF(SUM(AL22:BG22)=0,"",SUM(AL22:BG22)) ->  | AJ22: =_xlfn.LET( _xlpm.i, INDEX($AL22:$BG22,1,MAX(1,MATCH($AJ$2,$B$4:$W$4,0))), IF( _xlpm.i = "", "", _xlpm.i )) -> 0 | AK22: 12 | AL22: 0 | AM22: 0 | AN22: 0 | AO22: 0 | AP22: 0 | AQ22: 0 | AR22: 0 | AS22: 0 | AT22: 0 | AU22: 0 | AV22: 0 | AW22: 0 | AX22: 0 | AY22: 0 | AZ22: 0 | BA22: 0 | BB22: 0 | BC22: 0 | BD22: 0 | BE22: 0 | BF22: 0 | BG22: 0 | BI22: =INDEX($AL22:$BG22,1,MAX(1,MATCH($AJ$2,$B$4:$W$4,0))) -> 0 | BJ22: =BI22-BU22/100 -> -0.18 | BK22: -0.1 | BM22: 0 | BN22: =BM22-BU22/100 -> -0.18 | BO22: 18.14803419 | BQ22: 0 | BR22: =1000*BQ22+BM22-BU22/100 -> -0.18 | BS22: 18.14803419 | BU22: 18 | BZ22: =IF( CK22 = "", "", _xlfn.XLOOKUP( CK22, $A$253:$A$279, INDEX( $B$253:$W$279, , $AI$1 ), "" )) ->  | CD22: 18 | CE22: Dieuwer Boes | CF22: 18.18803419 | CG22: 14 | CH22: (10) | CI22: 1.818803419 | CL22: Boes Dieuwer | DD22: De Vinster Glenn | DF22: De Vinster Glenn | DR22: Op De Beeck Maarten | DS22: Maarten Op De Beeck
A23: Stevens Siebe | B23: 1 | C23: b | D23: b | E23: b | F23: b | G23: b | H23: b | I23: b | J23: b | K23: b | L23: b | M23: b | N23: b | O23: b | P23: b | Q23: b | R23: b | S23: b | X23: 0 | Y23: 1 | Z23: 0 | AA23: 0 | AB23: 17 | AC23: 0 | AD23: 0 | AE23: 0 | AG23: Stevens Siebe | AH23: 1.333333333 | AI23: 20 | AJ23: =_xlfn.LET( _xlpm.i, INDEX($AL23:$BG23,1,MAX(1,MATCH($AJ$2,$B$4:$W$4,0))), IF( _xlpm.i = "", "", _xlpm.i )) -> 0 | AK23: 12 | AL23: 1.333333333 | AM23: 0 | AN23: 0 | AO23: 0 | AP23: 0 | AQ23: 0 | AR23: 0 | AS23: 0 | AT23: 0 | AU23: 0 | AV23: 0 | AW23: 0 | AX23: 0 | AY23: 0 | AZ23: 0 | BA23: 0 | BB23: 0 | BC23: 0 | BD23: 0 | BE23: 0 | BF23: 0 | BG23: 0 | BI23: =INDEX($AL23:$BG23,1,MAX(1,MATCH($AJ$2,$B$4:$W$4,0))) -> 0 | BJ23: =BI23-BU23/100 -> -0.19 | BK23: -0.14 | BM23: 1.333333333 | BN23: =BM23-BU23/100 -> 1.143333333 | BO23: 13.68968254 | BQ23: 0 | BR23: =1000*BQ23+BM23-BU23/100 -> 1.143333333 | BS23: 13.68968254 | BU23: 19 | BZ23: =IF( CK23 = "", "", _xlfn.XLOOKUP( CK23, $A$253:$A$279, INDEX( $B$253:$W$279, , $AI$1 ), "" )) ->  | CD23: 19 | CE23: Erlend De Swert | CF23: 13.78968254 | CG23: 11 | CH23: (9) | CI23: 1.532186949 | CL23: De Swert Erlend | DD23: Van de Vondel Rob | DF23: Van de Vondel Rob | DR23: Stevens Siebe | DS23: Siebe Stevens
A24: Van de Vondel Rob | B24: 1 | C24: 1 | D24: 1 | E24: 1 | F24: 1 | G24: 1 | H24: 1 | I24: 1 | J24: 1 | K24: b | L24: ng | M24: 1 | N24: 1 | O24: b | P24: b | Q24: b | R24: b | S24: b | X24: 2 | Y24: 11 | Z24: 0.1111111111 | AA24: 0 | AB24: 6 | AC24: 0 | AD24: 1 | AE24: 0 | AG24: Van de Vondel Rob | AH24: 102.7066904 | AI24: 8 | AJ24: =_xlfn.LET( _xlpm.i, INDEX($AL24:$BG24,1,MAX(1,MATCH($AJ$2,$B$4:$W$4,0))), IF( _xlpm.i = "", "", _xlpm.i )) -> 1.176470588 | AK24: 11 | AL24: 21.33333333 | AM24: 8 | AN24: 7.142857143 | AO24: 5 | AP24: 10 | AQ24: 3.75 | AR24: 9.230769231 | AS24: 8.333333333 | AT24: 15.71428571 | AU24: 0 | AV24: 0 | AW24: 5.333333333 | AX24: 7.692307692 | AY24: 0 | AZ24: 0 | BA24: 0 | BB24: 0 | BC24: 1.176470588 | BD24: 0 | BE24: 0 | BF24: 0 | BG24: 0 | BI24: =INDEX($AL24:$BG24,1,MAX(1,MATCH($AJ$2,$B$4:$W$4,0))) -> 1.176470588 | BJ24: =BI24-BU24/100 -> 0.9764705882 | BK24: -0.17 | BM24: 102.7066904 | BN24: =BM24-BU24/100 -> 102.5066904 | BO24: 1.143333333 | BQ24: 0 | BR24: =1000*BQ24+BM24-BU24/100 -> 102.5066904 | BS24: 1.143333333 | BU24: 20 | BZ24: =IF( CK24 = "", "", _xlfn.XLOOKUP( CK24, $A$253:$A$279, INDEX( $B$253:$W$279, , $AI$1 ), "" )) ->  | CD24: 20 | CE24: Siebe Stevens | CF24: 1.333333333 | CG24: 1 | CH24: (1) | CI24: 1.333333333 | CL24: Stevens Siebe | DD24: Vermeylen Jason | DF24: Vermeylen Jason | DR24: Van de Vondel Rob | DS24: Rob Van de Vondel
A25: Van Dessel Dieter | B25: 1 | C25: a | D25: 1 | E25: 1 | F25: 1 | G25: 1 | H25: 1 | I25: a | J25: 1 | K25: 1 | L25: 1 | M25: 1 | N25: 1 | O25: 1 | P25: a | Q25: 1 | R25: 1 | S25: 1 | X25: 2 | Y25: 15 | Z25: 0.1111111111 | AA25: 3 | AB25: 0 | AC25: 0 | AD25: 0 | AE25: 0 | AG25: Van Dessel Dieter | AH25: 87.96967412 | AI25: 11 | AJ25: =_xlfn.LET( _xlpm.i, INDEX($AL25:$BG25,1,MAX(1,MATCH($AJ$2,$B$4:$W$4,0))), IF( _xlpm.i = "", "", _xlpm.i )) -> 4.705882353 | AK25: 10 | AL25: 9.333333333 | AM25: 0 | AN25: 7.142857143 | AO25: 2.5 | AP25: 0.9090909091 | AQ25: 7.5 | AR25: 9.230769231 | AS25: 0 | AT25: 2.857142857 | AU25: 10.66666667 | AV25: 6.25 | AW25: 10.66666667 | AX25: 4.615384615 | AY25: 1.111111111 | AZ25: 0 | BA25: 1.25 | BB25: 9.230769231 | BC25: 4.705882353 | BD25: 0 | BE25: 0 | BF25: 0 | BG25: 0 | BI25: =INDEX($AL25:$BG25,1,MAX(1,MATCH($AJ$2,$B$4:$W$4,0))) -> 4.705882353 | BJ25: =BI25-BU25/100 -> 4.495882353 | BK25: -0.18 | BM25: 87.96967412 | BN25: =BM25-BU25/100 -> 87.75967412 | BO25: 1.101111111 | BQ25: 0 | BR25: =1000*BQ25+BM25-BU25/100 -> 87.75967412 | BS25: 1.101111111 | BU25: 21 | BZ25: =IF( CK25 = "", "", _xlfn.XLOOKUP( CK25, $A$253:$A$279, INDEX( $B$253:$W$279, , $AI$1 ), "" )) ->  | CD25: 21 | CE25: Jurgen Beirinckx | CF25: 1.111111111 | CG25: 1 | CH25: (1) | CI25: 1.111111111 | CL25: Beirinckx Jurgen | DD25: Verlooy Kaïn | DF25: Verlooy Kaïn | DR25: Van Dessel Dieter | DS25: Dieter Van Dessel
A26: Verdickt Stijn | B26: b | C26: 1 | D26: a | E26: a | F26: a | G26: 1 | H26: a | I26: a | J26: 1 | K26: 1 | L26: 1 | M26: 1 | N26: 1 | O26: 1 | P26: 1 | Q26: 1 | R26: a | S26: 1 | X26: 1 | Y26: 11 | Z26: 0.05555555556 | AA26: 6 | AB26: 1 | AC26: 0 | AD26: 0 | AE26: 0 | AG26: Verdickt Stijn | AH26: 43.59615385 | AI26: 15 | AJ26: =_xlfn.LET( _xlpm.i, INDEX($AL26:$BG26,1,MAX(1,MATCH($AJ$2,$B$4:$W$4,0))), IF( _xlpm.i = "", "", _xlpm.i )) -> 0 | AK26: 12 | AL26: 0 | AM26: 2.666666667 | AN26: 0 | AO26: 0 | AP26: 0 | AQ26: 1.25 | AR26: 0 | AS26: 0 | AT26: 0 | AU26: 5.333333333 | AV26: 11.25 | AW26: 2.666666667 | AX26: 13.84615385 | AY26: 0 | AZ26: 5.333333333 | BA26: 1.25 | BB26: 0 | BC26: 0 | BD26: 0 | BE26: 0 | BF26: 0 | BG26: 0 | BI26: =INDEX($AL26:$BG26,1,MAX(1,MATCH($AJ$2,$B$4:$W$4,0))) -> 0 | BJ26: -0.22 | BK26: -0.19 | BM26: 43.59615385 | BN26: 43.37615385 | BO26: 1.063333333 | BQ26: 0 | BR26: 43.37615385 | BS26: 1.063333333 | BU26: 22 | BZ26: =IF( CK26 = "", "", _xlfn.XLOOKUP( CK26, $A$253:$A$279, INDEX( $B$253:$W$279, , $AI$1 ), "" )) ->  | CD26: 22 | CE26: Geert Beirinckx | CF26: 1.333333333 | CG26: 1 | CH26: (0) | CI26: 0 | CL26: Beirinckx Geert | DD26: Elst Pieter | DF26: Elst Pieter | DR26: Verdickt Stijn | DS26: Stijn Verdickt
A27: Verlooy Kaïn | B27: b | C27: 1 | D27: 1 | E27: 1 | F27: a | G27: 1 | H27: a | I27: 1 | J27: 1 | K27: 1 | L27: 1 | M27: a | N27: 1 | O27: 1 | P27: 1 | Q27: 1 | R27: 1 | S27: 1 | X27: 0 | Y27: 14 | Z27: 0 | AA27: 3 | AB27: 1 | AC27: 0 | AD27: 0 | AE27: 0 | AG27: Verlooy Kaïn | AH27: 152.1054011 | AI27: 3 | AJ27: =_xlfn.LET( _xlpm.i, INDEX($AL27:$BG27,1,MAX(1,MATCH($AJ$2,$B$4:$W$4,0))), IF( _xlpm.i = "", "", _xlpm.i )) -> 12.94117647 | AK27: 2 | AL27: 5.333333333 | AM27: 9.333333333 | AN27: 18.57142857 | AO27: 10 | AP27: 0 | AQ27: 7.5 | AR27: 0 | AS27: 5 | AT27: 8.571428571 | AU27: 6.666666667 | AV27: 13.75 | AW27: 0 | AX27: 6.153846154 | AY27: 14.44444444 | AZ27: 10.66666667 | BA27: 6.25 | BB27: 16.92307692 | BC27: 12.94117647 | BD27: 0 | BE27: 0 | BF27: 0 | BG27: 0 | BI27: =INDEX($AL27:$BG27,1,MAX(1,MATCH($AJ$2,$B$4:$W$4,0))) -> 12.94117647 | BJ27: 12.71117647 | BK27: -0.22 | BM27: 152.1054011 | BN27: 151.8754011 | BO27: -0.02 | BQ27: 1 | BR27: 1151.875401 | BS27: -0.02 | BU27: 23 | BZ27: =IF( CK27 = "", "", _xlfn.XLOOKUP( CK27, $A$253:$A$279, INDEX( $B$253:$W$279, , $AI$1 ), "" )) ->  | DD27: Langenaeker Maarten | DF27: Langenaeker Maarten | DR27: Verlooy Kaïn | DS27: Kaïn Verlooy
A28: Vermeylen Jason | B28: 1 | C28: 1 | D28: 1 | E28: 1 | F28: 1 | G28: 1 | H28: a | I28: a | J28: a | K28: a | L28: a | M28: a | N28: a | O28: a | P28: a | Q28: a | R28: a | S28: a | X28: 6 | Y28: 6 | Z28: 0.3333333333 | AA28: 12 | AB28: 0 | AC28: 0 | AD28: 0 | AE28: 0 | AG28: Vermeylen Jason | AH28: 78.31926407 | AI28: 12 | AJ28: =_xlfn.LET( _xlpm.i, INDEX($AL28:$BG28,1,MAX(1,MATCH($AJ$2,$B$4:$W$4,0))), IF( _xlpm.i = "", "", _xlpm.i )) -> 0 | AK28: 12 | AL28: 1.333333333 | AM28: 13.33333333 | AN28: 12.85714286 | AO28: 18.75 | AP28: 4.545454545 | AQ28: 27.5 | AR28: 0 | AS28: 0 | AT28: 0 | AU28: 0 | AV28: 0 | AW28: 0 | AX28: 0 | AY28: 0 | AZ28: 0 | BA28: 0 | BB28: 0 | BC28: 0 | BD28: 0 | BE28: 0 | BF28: 0 | BG28: 0 | BI28: =INDEX($AL28:$BG28,1,MAX(1,MATCH($AJ$2,$B$4:$W$4,0))) -> 0 | BJ28: =BI28-BU28/100 -> -0.24 | BK28: -0.24 | BM28: 78.31926407 | BN28: =BM28-BU28/100 -> 78.07926407 | BO28: -0.07 | BQ28: 2 | BR28: =1000*BQ28+BM28-BU28/100 -> 2078.079264 | BS28: -0.07 | BU28: 24 | BZ28: =IF( CK28 = "", "", _xlfn.XLOOKUP( CK28, $A$253:$A$279, INDEX( $B$253:$W$279, , $AI$1 ), "" )) ->  | DD28: Hofmans Stijn | DF28: Hofmans Stijn | DR28: Vermeylen Jason | DS28: Jason Vermeylen
A29: Wouters Wim | B29: b | C29: b | D29: b | E29: b | F29: b | G29: b | H29: b | I29: b | J29: b | K29: b | L29: b | M29: b | N29: b | O29: b | P29: b | Q29: b | R29: b | S29: b | X29: 0 | Y29: 0 | Z29: 0 | AA29: 0 | AB29: 18 | AC29: 0 | AD29: 0 | AE29: =COUNTIF(B29:W29,"k") -> 0 | AG29: =A29 -> Wouters Wim | AH29: =IF(SUM(AL29:BG29)=0,"",SUM(AL29:BG29)) ->  | AJ29: =_xlfn.LET( _xlpm.i, INDEX($AL29:$BG29,1,MAX(1,MATCH($AJ$2,$B$4:$W$4,0))), IF( _xlpm.i = "", "", _xlpm.i )) -> 0 | AK29: 12 | AL29: 0 | AM29: 0 | AN29: 0 | AO29: 0 | AP29: 0 | AQ29: 0 | AR29: 0 | AS29: 0 | AT29: 0 | AU29: 0 | AV29: 0 | AW29: 0 | AX29: 0 | AY29: 0 | AZ29: 0 | BA29: 0 | BB29: 0 | BC29: 0 | BD29: 0 | BE29: 0 | BF29: 0 | BG29: 0 | BI29: =INDEX($AL29:$BG29,1,MAX(1,MATCH($AJ$2,$B$4:$W$4,0))) -> 0 | BJ29: =BI29-BU29/100 -> -0.25 | BK29: -0.25 | BM29: 0 | BN29: =BM29-BU29/100 -> -0.25 | BO29: -0.18 | BQ29: 0 | BR29: =1000*BQ29+BM29-BU29/100 -> -0.25 | BS29: -0.18 | BU29: 25 | BZ29: =IF( CK29 = "", "", _xlfn.XLOOKUP( CK29, $A$253:$A$279, INDEX( $B$253:$W$279, , $AI$1 ), "" )) ->  | CI29: =IFERROR(IF(CF31="","",ABS(CF31/CH31)),0) ->  | DD29: Lenaerts Jordy | DF29: Lenaerts Jordy | DR29: Wouters Wim | DS29: Wim Wouters
A30: own-goals/ff-goals | X30: 0 | Z30: 0 | AA30: 0 | AB30: 0 | AC30: 0 | AD30: 0 | AE30: 0 | AG30: own-goals/ff-goals | AH30: =IF(SUM(AL30:BG30)=0,"",SUM(AL30:BG30)) ->  | AJ30: =_xlfn.LET( _xlpm.i, INDEX($AL30:$BG30,1,MAX(1,MATCH($AJ$2,$B$4:$W$4,0))), IF( _xlpm.i = "", "", _xlpm.i )) -> 0 | AK30: 12 | AL30: 0 | AM30: 0 | AN30: 0 | AO30: 0 | AP30: 0 | AQ30: 0 | AR30: 0 | AS30: 0 | AT30: 0 | AU30: 0 | AV30: 0 | AW30: 0 | AX30: 0 | AY30: 0 | AZ30: 0 | BA30: 0 | BB30: 0 | BC30: 0 | BD30: 0 | BE30: 0 | BF30: 0 | BG30: 0 | BI30: =INDEX($AL30:$BG30,1,MAX(1,MATCH($AJ$2,$B$4:$W$4,0))) -> 0 | BJ30: =BI30-BU30/100 -> -0.26 | BK30: -0.26 | BM30: =SUM(AL30:BG30) -> 0 | BN30: =BM30-BU30/100 -> -0.26 | BO30: -0.25 | BQ30: 0 | BR30: =1000*BQ30+BM30-BU30/100 -> -0.26 | BS30: -0.25 | BU30: 26 | CD30: =IF(CF30="","",BU30) ->  | CF30: =IF(INDEX($BM$5:$BM$31,MATCH(BO30,$BN$5:$BN$31,0))=0,"",INDEX($BM$5:$BM$31,MATCH(BO30,$BN$5:$BN$31,0))) ->  | CI30: =IFERROR(IF(CF32="","",ABS(CF32/CH32)),0) ->  | DD30: Hofmans Stijn | DF30: Hofmans Stijn | DR30: Beirinckx Geert | DS30: Geert Beirinckx
AG31: Beirinckx Geert | AH31: 1.333333333 | AI31: 20 | AJ31: =_xlfn.LET( _xlpm.i, INDEX($AL31:$BG31,1,MAX(1,MATCH($AJ$2,$B$4:$W$4,0))), IF( _xlpm.i = "", "", _xlpm.i )) -> 0 | AK31: 12 | AL31: 0 | AM31: 1.333333333 | AN31: 0 | AO31: 0 | AP31: 0 | AQ31: 0 | AR31: 0 | AS31: 0 | AT31: 0 | AU31: 0 | AV31: 0 | AW31: 0 | AX31: 0 | AY31: 0 | AZ31: 0 | BA31: 0 | BB31: 0 | BC31: 0 | BD31: 0 | BE31: 0 | BF31: 0 | BG31: 0 | BI31: =INDEX($AL31:$BG31,1,MAX(1,MATCH($AJ$2,$B$4:$W$4,0))) -> 0 | BJ31: -0.27 | BK31: -0.27 | BM31: 1.333333333 | BN31: 1.063333333 | BO31: -0.26 | BQ31: 0 | BR31: 1.063333333 | BS31: -0.26 | BU31: 27 | DD31: De Vinster Glenn | DF31: De Vinster Glenn
A32: Legende: | DD32: Celis Ive | DF32: Celis Ive
AG33: Niet toegekend | AH33: =IF(SUM(AL33:BG33)=0,"",SUM(AL33:BG33)) ->  | AI33: =IF(AH33="","",RANK(AH33,AH$5:AH$33)) ->  | AJ33: =IF(INDEX($AL33:$BG33,1,MAX(1,COUNT($B$4:$W$4)))=0,"",INDEX($AL33:$BG33,1,MAX(1,COUNT($B$4:$W$4)))) ->  | AK33: =IF(AJ33="","",RANK(AJ33,AJ$5:AJ$32)) ->  | DD33: Verlooy Kaïn | DF33: Verlooy Kaïn
A34: Uitleg en afkorting | AG34: Som | AL34: =SUM( AL5:AL33 ) -> 100 | AM34: =SUM( AM5:AM33 ) -> 100 | AN34: 100 | AO34: 100 | AP34: 100 | AQ34: 100 | AR34: 100 | AS34: 100 | AT34: 100 | AU34: 100 | AV34: 100 | AW34: 100 | AX34: 100 | AY34: 100 | AZ34: 100 | BA34: 100 | BB34: 100 | BC34: 100 | BD34: 0 | BE34: 0 | BF34: 0 | BG34: 0 | DD34: Coolsaet Joy | DF34: Coolsaet Joy
A35: Thuiswedstrijd | B35: T | D35: Aantal doelpunten | E35: Getal (Goals) | AG35: Aantal invullers | AL35: =AL34 / 5 -> 20 | AM35: =AM34 / 5 -> 20 | AN35: 20 | AO35: 20 | AP35: 20 | AQ35: 20 | AR35: 20 | AS35: 20 | AT35: 20 | AU35: 20 | AV35: 20 | AW35: 20 | AX35: 20 | AY35: 20 | AZ35: 20 | BA35: 20 | BB35: 20 | BC35: 20 | BD35: 0 | BE35: 0 | BF35: 0 | BG35: 0 | DD35: De Groof Maarten | DF35: De Groof Maarten
A36: Uitwedstrijd | B36: U | D36: Aantal assists | E36: Getal (Assists) | AG36: Winnaar(s) | AL36: =IF( AL$34 = 0, "", _xlfn.TEXTJOIN( " / ",TRUE, _xlfn._xlws.FILTER( $AG$5:$AG$32, AL$5:AL$32 = LARGE( _xlfn.UNIQUE( AL$5:AL$32 ), 1 )))) -> De Groof Steven | AM36: =IF( AM$34 = 0, "", _xlfn.TEXTJOIN( " / ",TRUE, _xlfn._xlws.FILTER( $AG$5:$AG$32, AM$5:AM$32 = LARGE( _xlfn.UNIQUE( AM$5:AM$32 ), 1 )))) -> Hofmans Stijn | AN36: =IF( AN$34 = 0, "", _xlfn.TEXTJOIN( " / ",TRUE, _xlfn._xlws.FILTER( $AG$5:$AG$32, AN$5:AN$32 = LARGE( _xlfn.UNIQUE( AN$5:AN$32 ), 1 )))) -> De Groof Maarten | AO36: =IF( AO$34 = 0, "", _xlfn.TEXTJOIN( " / ",TRUE, _xlfn._xlws.FILTER( $AG$5:$AG$32, AO$5:AO$32 = LARGE( _xlfn.UNIQUE( AO$5:AO$32 ), 1 )))) -> De Groof Maarten / Vermeylen Jason | AP36: =IF( AP$34 = 0, "", _xlfn.TEXTJOIN( " / ",TRUE, _xlfn._xlws.FILTER( $AG$5:$AG$32, AP$5:AP$32 = LARGE( _xlfn.UNIQUE( AP$5:AP$32 ), 1 )))) -> Hofmans Stijn | AQ36: =IF( AQ$34 = 0, "", _xlfn.TEXTJOIN( " / ",TRUE, _xlfn._xlws.FILTER( $AG$5:$AG$32, AQ$5:AQ$32 = LARGE( _xlfn.UNIQUE( AQ$5:AQ$32 ), 1 )))) -> Vermeylen Jason | AR36: =IF( AR$34 = 0, "", _xlfn.TEXTJOIN( " / ",TRUE, _xlfn._xlws.FILTER( $AG$5:$AG$32, AR$5:AR$32 = LARGE( _xlfn.UNIQUE( AR$5:AR$32 ), 1 )))) -> Celis Ive | AS36: =IF( AS$34 = 0, "", _xlfn.TEXTJOIN( " / ",TRUE, _xlfn._xlws.FILTER( $AG$5:$AG$32, AS$5:AS$32 = LARGE( _xlfn.UNIQUE( AS$5:AS$32 ), 1 )))) -> Beirinckx Wout / De Vinster Glenn | AT36: =IF( AT$34 = 0, "", _xlfn.TEXTJOIN( " / ",TRUE, _xlfn._xlws.FILTER( $AG$5:$AG$32, AT$5:AT$32 = LARGE( _xlfn.UNIQUE( AT$5:AT$32 ), 1 )))) -> Langenaeker Maarten | AU36: =IF( AU$34 = 0, "", _xlfn.TEXTJOIN( " / ",TRUE, _xlfn._xlws.FILTER( $AG$5:$AG$32, AU$5:AU$32 = LARGE( _xlfn.UNIQUE( AU$5:AU$32 ), 1 )))) -> Coolsaet Joy | AV36: =IF( AV$34 = 0, "", _xlfn.TEXTJOIN( " / ",TRUE, _xlfn._xlws.FILTER( $AG$5:$AG$32, AV$5:AV$32 = LARGE( _xlfn.UNIQUE( AV$5:AV$32 ), 1 )))) -> De Vinster Glenn | AW36: =IF( AW$34 = 0, "", _xlfn.TEXTJOIN( " / ",TRUE, _xlfn._xlws.FILTER( $AG$5:$AG$32, AW$5:AW$32 = LARGE( _xlfn.UNIQUE( AW$5:AW$32 ), 1 )))) -> De Vinster Glenn / Hofmans Stijn | AX36: =IF( AX$34 = 0, "", _xlfn.TEXTJOIN( " / ",TRUE, _xlfn._xlws.FILTER( $AG$5:$AG$32, AX$5:AX$32 = LARGE( _xlfn.UNIQUE( AX$5:AX$32 ), 1 )))) -> De Groof Steven | AY36: =IF( AY$34 = 0, "", _xlfn.TEXTJOIN( " / ",TRUE, _xlfn._xlws.FILTER( $AG$5:$AG$32, AY$5:AY$32 = LARGE( _xlfn.UNIQUE( AY$5:AY$32 ), 1 )))) -> Celis Ive | AZ36: =IF( AZ$34 = 0, "", _xlfn.TEXTJOIN( " / ",TRUE, _xlfn._xlws.FILTER( $AG$5:$AG$32, AZ$5:AZ$32 = LARGE( _xlfn.UNIQUE( AZ$5:AZ$32 ), 1 )))) -> Celis Ive | BA36: =IF( BA$34 = 0, "", _xlfn.TEXTJOIN( " / ",TRUE, _xlfn._xlws.FILTER( $AG$5:$AG$32, BA$5:BA$32 = LARGE( _xlfn.UNIQUE( BA$5:BA$32 ), 1 )))) -> De Vinster Glenn | BB36: =IF( BB$34 = 0, "", _xlfn.TEXTJOIN( " / ",TRUE, _xlfn._xlws.FILTER( $AG$5:$AG$32, BB$5:BB$32 = LARGE( _xlfn.UNIQUE( BB$5:BB$32 ), 1 )))) -> Verlooy Kaïn | BC36: =IF( BC$34 = 0, "", _xlfn.TEXTJOIN( " / ",TRUE, _xlfn._xlws.FILTER( $AG$5:$AG$32, BC$5:BC$32 = LARGE( _xlfn.UNIQUE( BC$5:BC$32 ), 1 )))) -> De Vinster Glenn | BD36: =IF( BD$34 = 0, "", _xlfn.TEXTJOIN( " / ",TRUE, _xlfn._xlws.FILTER( $AG$5:$AG$32, BD$5:BD$32 = LARGE( _xlfn.UNIQUE( BD$5:BD$32 ), 1 )))) ->  | BE36: =IF( BE$34 = 0, "", _xlfn.TEXTJOIN( " / ",TRUE, _xlfn._xlws.FILTER( $AG$5:$AG$32, BE$5:BE$32 = LARGE( _xlfn.UNIQUE( BE$5:BE$32 ), 1 )))) ->  | BF36: =IF( BF$34 = 0, "", _xlfn.TEXTJOIN( " / ",TRUE, _xlfn._xlws.FILTER( $AG$5:$AG$32, BF$5:BF$32 = LARGE( _xlfn.UNIQUE( BF$5:BF$32 ), 1 )))) ->  | BG36: =IF( BG$34 = 0, "", _xlfn.TEXTJOIN( " / ",TRUE, _xlfn._xlws.FILTER( $AG$5:$AG$32, BG$5:BG$32 = LARGE( _xlfn.UNIQUE( BG$5:BG$32 ), 1 )))) ->  | DD36: De Groof Maarten | DF36: De Groof Maarten
A37: Aanwezige speler | B37: 1 (Aanwezigheden) | D37: Strafschopdoelpunt | E37: onderlijnd (Goals) | AG37: Plaats 2 | AL37: =IF( AL$34 = 0, "", _xlfn.TEXTJOIN( " / ",TRUE, _xlfn._xlws.FILTER( $AG$5:$AG$32, AL$5:AL$32 = LARGE( _xlfn.UNIQUE( AL$5:AL$32 ), 2 )))) -> Van de Vondel Rob | AM37: =IF( AM$34 = 0, "", _xlfn.TEXTJOIN( " / ",TRUE, _xlfn._xlws.FILTER( $AG$5:$AG$32, AM$5:AM$32 = LARGE( _xlfn.UNIQUE( AM$5:AM$32 ), 2 )))) -> Vermeylen Jason | AN37: =IF( AN$34 = 0, "", _xlfn.TEXTJOIN( " / ",TRUE, _xlfn._xlws.FILTER( $AG$5:$AG$32, AN$5:AN$32 = LARGE( _xlfn.UNIQUE( AN$5:AN$32 ), 2 )))) -> Verlooy Kaïn | AO37: =IF( AO$34 = 0, "", _xlfn.TEXTJOIN( " / ",TRUE, _xlfn._xlws.FILTER( $AG$5:$AG$32, AO$5:AO$32 = LARGE( _xlfn.UNIQUE( AO$5:AO$32 ), 2 )))) -> Elst Pieter | AP37: =IF( AP$34 = 0, "", _xlfn.TEXTJOIN( " / ",TRUE, _xlfn._xlws.FILTER( $AG$5:$AG$32, AP$5:AP$32 = LARGE( _xlfn.UNIQUE( AP$5:AP$32 ), 2 )))) -> Langenaeker Maarten | AQ37: =IF( AQ$34 = 0, "", _xlfn.TEXTJOIN( " / ",TRUE, _xlfn._xlws.FILTER( $AG$5:$AG$32, AQ$5:AQ$32 = LARGE( _xlfn.UNIQUE( AQ$5:AQ$32 ), 2 )))) -> Hofmans Stijn | AR37: =IF( AR$34 = 0, "", _xlfn.TEXTJOIN( " / ",TRUE, _xlfn._xlws.FILTER( $AG$5:$AG$32, AR$5:AR$32 = LARGE( _xlfn.UNIQUE( AR$5:AR$32 ), 2 )))) -> Lenaerts Jordy | AS37: =IF( AS$34 = 0, "", _xlfn.TEXTJOIN( " / ",TRUE, _xlfn._xlws.FILTER( $AG$5:$AG$32, AS$5:AS$32 = LARGE( _xlfn.UNIQUE( AS$5:AS$32 ), 2 )))) -> Hofmans Stijn | AT37: =IF( AT$34 = 0, "", _xlfn.TEXTJOIN( " / ",TRUE, _xlfn._xlws.FILTER( $AG$5:$AG$32, AT$5:AT$32 = LARGE( _xlfn.UNIQUE( AT$5:AT$32 ), 2 )))) -> De Vinster Glenn | AU37: =IF( AU$34 = 0, "", _xlfn.TEXTJOIN( " / ",TRUE, _xlfn._xlws.FILTER( $AG$5:$AG$32, AU$5:AU$32 = LARGE( _xlfn.UNIQUE( AU$5:AU$32 ), 2 )))) -> Celis Ive | AV37: =IF( AV$34 = 0, "", _xlfn.TEXTJOIN( " / ",TRUE, _xlfn._xlws.FILTER( $AG$5:$AG$32, AV$5:AV$32 = LARGE( _xlfn.UNIQUE( AV$5:AV$32 ), 2 )))) -> Verlooy Kaïn | AW37: =IF( AW$34 = 0, "", _xlfn.TEXTJOIN( " / ",TRUE, _xlfn._xlws.FILTER( $AG$5:$AG$32, AW$5:AW$32 = LARGE( _xlfn.UNIQUE( AW$5:AW$32 ), 2 )))) -> Coolsaet Joy | AX37: =IF( AX$34 = 0, "", _xlfn.TEXTJOIN( " / ",TRUE, _xlfn._xlws.FILTER( $AG$5:$AG$32, AX$5:AX$32 = LARGE( _xlfn.UNIQUE( AX$5:AX$32 ), 2 )))) -> De Groof Maarten | AY37: =IF( AY$34 = 0, "", _xlfn.TEXTJOIN( " / ",TRUE, _xlfn._xlws.FILTER( $AG$5:$AG$32, AY$5:AY$32 = LARGE( _xlfn.UNIQUE( AY$5:AY$32 ), 2 )))) -> De Groof Maarten | AZ37: =IF( AZ$34 = 0, "", _xlfn.TEXTJOIN( " / ",TRUE, _xlfn._xlws.FILTER( $AG$5:$AG$32, AZ$5:AZ$32 = LARGE( _xlfn.UNIQUE( AZ$5:AZ$32 ), 2 )))) -> De Groof Maarten | BA37: =IF( BA$34 = 0, "", _xlfn.TEXTJOIN( " / ",TRUE, _xlfn._xlws.FILTER( $AG$5:$AG$32, BA$5:BA$32 = LARGE( _xlfn.UNIQUE( BA$5:BA$32 ), 2 )))) -> De Groof Steven | BB37: =IF( BB$34 = 0, "", _xlfn.TEXTJOIN( " / ",TRUE, _xlfn._xlws.FILTER( $AG$5:$AG$32, BB$5:BB$32 = LARGE( _xlfn.UNIQUE( BB$5:BB$32 ), 2 )))) -> Elst Pieter | BC37: =IF( BC$34 = 0, "", _xlfn.TEXTJOIN( " / ",TRUE, _xlfn._xlws.FILTER( $AG$5:$AG$32, BC$5:BC$32 = LARGE( _xlfn.UNIQUE( BC$5:BC$32 ), 2 )))) -> Elst Pieter / Verlooy Kaïn | BD37: =IF( BD$34 = 0, "", _xlfn.TEXTJOIN( " / ",TRUE, _xlfn._xlws.FILTER( $AG$5:$AG$32, BD$5:BD$32 = LARGE( _xlfn.UNIQUE( BD$5:BD$32 ), 2 )))) ->  | BE37: =IF( BE$34 = 0, "", _xlfn.TEXTJOIN( " / ",TRUE, _xlfn._xlws.FILTER( $AG$5:$AG$32, BE$5:BE$32 = LARGE( _xlfn.UNIQUE( BE$5:BE$32 ), 2 )))) ->  | BF37: =IF( BF$34 = 0, "", _xlfn.TEXTJOIN( " / ",TRUE, _xlfn._xlws.FILTER( $AG$5:$AG$32, BF$5:BF$32 = LARGE( _xlfn.UNIQUE( BF$5:BF$32 ), 2 )))) ->  | BG37: =IF( BG$34 = 0, "", _xlfn.TEXTJOIN( " / ",TRUE, _xlfn._xlws.FILTER( $AG$5:$AG$32, BG$5:BG$32 = LARGE( _xlfn.UNIQUE( BG$5:BG$32 ), 2 )))) ->  | DD37: De Groof Maarten | DF37: De Groof Maarten
A38: Afwezige speler/supporter | B38: a | D38: Niet van toepassing | E38: (blanco) | AG38: Plaats 3 | AL38: =IF( AL$34 = 0, "", _xlfn.TEXTJOIN( " / ",TRUE, _xlfn._xlws.FILTER( $AG$5:$AG$32, AL$5:AL$32 = LARGE( _xlfn.UNIQUE( AL$5:AL$32 ), 3 )))) -> Gielis Bernd | AM38: =IF( AM$34 = 0, "", _xlfn.TEXTJOIN( " / ",TRUE, _xlfn._xlws.FILTER( $AG$5:$AG$32, AM$5:AM$32 = LARGE( _xlfn.UNIQUE( AM$5:AM$32 ), 3 )))) -> De Groof Maarten | AN38: =IF( AN$34 = 0, "", _xlfn.TEXTJOIN( " / ",TRUE, _xlfn._xlws.FILTER( $AG$5:$AG$32, AN$5:AN$32 = LARGE( _xlfn.UNIQUE( AN$5:AN$32 ), 3 )))) -> Vermeylen Jason | AO38: =IF( AO$34 = 0, "", _xlfn.TEXTJOIN( " / ",TRUE, _xlfn._xlws.FILTER( $AG$5:$AG$32, AO$5:AO$32 = LARGE( _xlfn.UNIQUE( AO$5:AO$32 ), 3 )))) -> Verlooy Kaïn | AP38: =IF( AP$34 = 0, "", _xlfn.TEXTJOIN( " / ",TRUE, _xlfn._xlws.FILTER( $AG$5:$AG$32, AP$5:AP$32 = LARGE( _xlfn.UNIQUE( AP$5:AP$32 ), 3 )))) -> De Groof Maarten | AQ38: =IF( AQ$34 = 0, "", _xlfn.TEXTJOIN( " / ",TRUE, _xlfn._xlws.FILTER( $AG$5:$AG$32, AQ$5:AQ$32 = LARGE( _xlfn.UNIQUE( AQ$5:AQ$32 ), 3 )))) -> Langenaeker Maarten | AR38: =IF( AR$34 = 0, "", _xlfn.TEXTJOIN( " / ",TRUE, _xlfn._xlws.FILTER( $AG$5:$AG$32, AR$5:AR$32 = LARGE( _xlfn.UNIQUE( AR$5:AR$32 ), 3 )))) -> Coolsaet Joy / De Groof Maarten / Langenaeker Maarten | AS38: =IF( AS$34 = 0, "", _xlfn.TEXTJOIN( " / ",TRUE, _xlfn._xlws.FILTER( $AG$5:$AG$32, AS$5:AS$32 = LARGE( _xlfn.UNIQUE( AS$5:AS$32 ), 3 )))) -> De Groof Steven | AT38: =IF( AT$34 = 0, "", _xlfn.TEXTJOIN( " / ",TRUE, _xlfn._xlws.FILTER( $AG$5:$AG$32, AT$5:AT$32 = LARGE( _xlfn.UNIQUE( AT$5:AT$32 ), 3 )))) -> Van de Vondel Rob | AU38: =IF( AU$34 = 0, "", _xlfn.TEXTJOIN( " / ",TRUE, _xlfn._xlws.FILTER( $AG$5:$AG$32, AU$5:AU$32 = LARGE( _xlfn.UNIQUE( AU$5:AU$32 ), 3 )))) -> De Groof Steven / Van Dessel Dieter | AV38: =IF( AV$34 = 0, "", _xlfn.TEXTJOIN( " / ",TRUE, _xlfn._xlws.FILTER( $AG$5:$AG$32, AV$5:AV$32 = LARGE( _xlfn.UNIQUE( AV$5:AV$32 ), 3 )))) -> Verdickt Stijn | AW38: =IF( AW$34 = 0, "", _xlfn.TEXTJOIN( " / ",TRUE, _xlfn._xlws.FILTER( $AG$5:$AG$32, AW$5:AW$32 = LARGE( _xlfn.UNIQUE( AW$5:AW$32 ), 3 )))) -> Van Dessel Dieter | AX38: =IF( AX$34 = 0, "", _xlfn.TEXTJOIN( " / ",TRUE, _xlfn._xlws.FILTER( $AG$5:$AG$32, AX$5:AX$32 = LARGE( _xlfn.UNIQUE( AX$5:AX$32 ), 3 )))) -> Verdickt Stijn | AY38: =IF( AY$34 = 0, "", _xlfn.TEXTJOIN( " / ",TRUE, _xlfn._xlws.FILTER( $AG$5:$AG$32, AY$5:AY$32 = LARGE( _xlfn.UNIQUE( AY$5:AY$32 ), 3 )))) -> Verlooy Kaïn | AZ38: =IF( AZ$34 = 0, "", _xlfn.TEXTJOIN( " / ",TRUE, _xlfn._xlws.FILTER( $AG$5:$AG$32, AZ$5:AZ$32 = LARGE( _xlfn.UNIQUE( AZ$5:AZ$32 ), 3 )))) -> Hofmans Stijn | BA38: =IF( BA$34 = 0, "", _xlfn.TEXTJOIN( " / ",TRUE, _xlfn._xlws.FILTER( $AG$5:$AG$32, BA$5:BA$32 = LARGE( _xlfn.UNIQUE( BA$5:BA$32 ), 3 )))) -> Beirinckx Wout / De Groof Maarten | BB38: =IF( BB$34 = 0, "", _xlfn.TEXTJOIN( " / ",TRUE, _xlfn._xlws.FILTER( $AG$5:$AG$32, BB$5:BB$32 = LARGE( _xlfn.UNIQUE( BB$5:BB$32 ), 3 )))) -> De Groof Steven / Gielis Bernd | BC38: =IF( BC$34 = 0, "", _xlfn.TEXTJOIN( " / ",TRUE, _xlfn._xlws.FILTER( $AG$5:$AG$32, BC$5:BC$32 = LARGE( _xlfn.UNIQUE( BC$5:BC$32 ), 3 )))) -> Celis Ive / Gielis Bernd | BD38: =IF( BD$34 = 0, "", _xlfn.TEXTJOIN( " / ",TRUE, _xlfn._xlws.FILTER( $AG$5:$AG$32, BD$5:BD$32 = LARGE( _xlfn.UNIQUE( BD$5:BD$32 ), 3 )))) ->  | BE38: =IF( BE$34 = 0, "", _xlfn.TEXTJOIN( " / ",TRUE, _xlfn._xlws.FILTER( $AG$5:$AG$32, BE$5:BE$32 = LARGE( _xlfn.UNIQUE( BE$5:BE$32 ), 3 )))) ->  | BF38: =IF( BF$34 = 0, "", _xlfn.TEXTJOIN( " / ",TRUE, _xlfn._xlws.FILTER( $AG$5:$AG$32, BF$5:BF$32 = LARGE( _xlfn.UNIQUE( BF$5:BF$32 ), 3 )))) ->  | BG38: =IF( BG$34 = 0, "", _xlfn.TEXTJOIN( " / ",TRUE, _xlfn._xlws.FILTER( $AG$5:$AG$32, BG$5:BG$32 = LARGE( _xlfn.UNIQUE( BG$5:BG$32 ), 3 )))) ->  | DD38: De Groof Steven | DF38: De Groof Steven
A39: Aanwezige supporter | B39: as | D39: Gele kaart | DD39: Elst Pieter | DF39: Elst Pieter
A40: Blessure | B40: b | D40: Rechtstreekse rode kaart | AG40: Aantal spelers met punten | AL40: =COUNTIF(AL$5:AL$30,">0") -> 10 | AM40: 12 | AN40: 12 | AO40: 11 | AP40: 10 | AQ40: 11 | AR40: 11 | AS40: 11 | AT40: 12 | AU40: 13 | AV40: 12 | AW40: 12 | AX40: 12 | AY40: 13 | AZ40: 11 | BA40: 11 | BB40: 11 | BC40: 11 | BD40: 0 | BE40: 0 | BF40: 0 | BG40: 0 | DD40: Elst Pieter / Verlooy Kaïn | DF40: Elst Pieter | DG40: Verlooy Kaïn
A41: Keeper | B41: k | D41: 2 gele kaarten en dus rode kaart | DD41: Gielis Bernd | DF41: Gielis Bernd
A42: Niet aangesloten | B42: na | D42: Gele kaart en nadien rechtstreekse rode kaart | DD42: De Groof Maarten | DF42: De Groof Maarten
A43: Niet gespeeld | B43: ng | D43: Opmerking indien strafschopdoelpunt en 1 of meer extra doelpunten | DD43: Vermeylen Jason | DF43: Vermeylen Jason
A44: Ploegverantwoordelijke | B44: p | DD44: Verlooy Kaïn | DF44: Verlooy Kaïn
A45: Schorsing | B45: s | D45: Aantal forfaitnederlagen | E45: 0 | DD45: De Groof Maarten | DF45: De Groof Maarten
A46: Trainer | B46: t | DD46: Langenaeker Maarten | DF46: Langenaeker Maarten
DD47: Coolsaet Joy / De Groof Maarten / Langenaeker Maarten | DF47: Coolsaet Joy | DG47: De Groof Maarten | DH47: Langenaeker Maarten
DD48: De Groof Steven | DF48: De Groof Steven
B49: =B1 -> Pouma United (U) | C49: Paradeske (T) | D49: De Vrede (U) | E49: Bariton (T) | F49: Racing Emblem (U) | G49: Jolika (T) | H49: Boerenbond (U) | I49: Goka (U) | J49: Hombeek (T) | K49: Hoje (U) | L49: Antverpia 98 (U) | M49: Pouma United (T) | N49: Paradeske (U) | O49: Bariton (U) | P49: Racing Emblem (T) | Q49: De Vrede (T) | R49: Jolika (U) | S49: Boerenbond (T) | T49: Goka (T) | U49: Hombeek (U) | V49: Hoje (T) | W49: Antverpia 98 (T) | DD49: Van de Vondel Rob | DF49: Van de Vondel Rob
DD50: De Groof Steven / Van Dessel Dieter | DF50: De Groof Steven | DG50: Van Dessel Dieter
A51: Goals | B51: =SUM( B53:B79 ) -> 2 | C51: 3 | D51: 1 | E51: 2 | F51: 3 | G51: 4 | H51: 0 | I51: 2 | J51: 2 | K51: 2 | L51: 5 | M51: 4 | N51: 1 | O51: 1 | P51: 3 | Q51: 6 | R51: 2 | S51: 2 | T51: 0 | U51: 0 | V51: 0 | W51: 0 | AG51: =_xlfn.LET( _xlpm.d, _xlfn.CHOOSECOLS( _xlfn.TAKE( _xlfn.SORTBY( A53:X80, X53:X80, -1 ), 5 ), 1, -1 ), _xlpm.f, _xlfn._xlws.FILTER( _xlpm.d, _xlfn.TAKE( _xlpm.d, , -1 ) > 0, "No data" ), _xlfn.HSTACK( _xlfn.XLOOKUP( _xlfn.TAKE( _xlpm.f, , 1 ), $DR$5:$DR$30, $DS$5:$DS$30 ), _xlfn.TAKE( _xlpm.f, , -1 )) ) -> Stijn Hofmans | AH51: 12 | DD51: Verdickt Stijn | DF51: Verdickt Stijn
A52: =SUM( B51:W51 ) -> 45 | AG52: Glenn De Vinster | AH52: 11 | DD52: Van Dessel Dieter | DF52: Van Dessel Dieter
A53: =A5 -> Beirinckx Jurgen | X53: =SUM( B53:W53 ) + COUNTIF( B53:W53, "ng" ) -> 0 | AG53: Maarten De Groof | AH53: 6 | DD53: Verdickt Stijn | DF53: Verdickt Stijn
A54: Beirinckx Sven | X54: =SUM( B54:W54 ) + COUNTIF( B54:W54, "ng" ) -> 0 | AG54: Jason Vermeylen | AH54: 6 | DD54: Verlooy Kaïn | DF54: Verlooy Kaïn
A55: Beirinckx Wout | X55: =SUM( B55:W55 ) + COUNTIF( B55:W55, "ng" ) -> 0 | AG55: Steven De Groof | AH55: 4 | DD55: Hofmans Stijn | DF55: Hofmans Stijn
A56: Boes Dieuwer | X56: 0 | DD56: Beirinckx Wout / De Groof Maarten | DF56: Beirinckx Wout | DG56: De Groof Maarten
A57: Celis Ive | X57: 0 | DD57: De Groof Steven / Gielis Bernd | DF57: De Groof Steven | DG57: Gielis Bernd
A58: Coolsaet Joy | X58: 0 | DD58: Celis Ive / Gielis Bernd | DF58: Celis Ive | DG58: Gielis Bernd
A59: De Clerck Tom | X59: 0
A60: De Groof Maarten | D60: 1 | E60: 1 | K60: 1 | O60: 1 | P60: 1 | Q60: 1 | X60: 6
A61: De Groof Steven | N61: 1 | P61: 1 | Q61: 1 | R61: 1 | X61: 4
A62: De Swert Erlend | X62: 0
A63: De Vinster Glenn | I63: 1 | J63: 2 | L63: 2 | M63: 3 | Q63: 2 | S63: 1 | X63: =SUM( B63:W63 ) + COUNTIF( B63:W63, "ng" ) -> 11
A64: Elst Pieter | X64: 0
A65: Gielis Bernd | X65: 0
A66: Gielis Wim | L66: 1 | X66: 1
A67: Hofmans Stijn | C67: 2 | F67: 3 | I67: 1 | L67: 1 | P67: 1 | Q67: 2 | R67: 1 | S67: 1 | X67: 12
A68: Langenaeker Maarten | X68: 0
A69: Lenaerts Jordy | X69: 0
A70: Op De Beeck Maarten | X70: 0
A71: Stevens Siebe | X71: 0
A72: Van de Vondel Rob | B72: 2 | X72: 2
A73: Van Dessel Dieter | K73: 1 | M73: 1 | X73: 2
A74: Verdickt Stijn | L74: 1 | X74: 1
A75: Verlooy Kaïn | X75: 0
A76: Vermeylen Jason | C76: 1 | E76: 1 | G76: 4 | X76: 6
A77: Wouters Wim | X77: 0
A78: Own-goals/ff-goals | X78: 0
A79: Beirinckx Geert | X79: 0
A101: Assists | B101: =SUM( B103:B129 ) -> 2 | C101: 1 | D101: 0 | E101: 2 | F101: 3 | G101: 4 | H101: 0 | I101: 1 | J101: 2 | K101: 1 | L101: 4 | M101: 3 | N101: 0 | O101: 1 | P101: 2 | Q101: 5 | R101: 2 | S101: 2 | T101: 0 | U101: 0 | V101: 0 | W101: 0 | AG101: =_xlfn.LET( _xlpm.d, _xlfn.CHOOSECOLS( _xlfn.TAKE( _xlfn.SORTBY( A103:X130, X103:X130, -1 ), 5 ), 1, -1 ), _xlpm.f, _xlfn._xlws.FILTER( _xlpm.d, _xlfn.TAKE( _xlpm.d, , -1 ) > 0, "No data" ), _xlfn.HSTACK( _xlfn.XLOOKUP( _xlfn.TAKE( _xlpm.f, , 1 ), $DR$5:$DR$30, $DS$5:$DS$30 ), _xlfn.TAKE( _xlpm.f, , -1 )) ) -> Stijn Hofmans | AH101: 11
A102: =SUM( B101:W101 ) -> 35 | AG102: Steven De Groof | AH102: 5
A103: =A5 -> Beirinckx Jurgen | X103: =SUM( B103:W103 ) + COUNTIF( B103:W103, "ng" ) -> 0 | AG103: Glenn De Vinster | AH103: 5
A104: Beirinckx Sven | X104: =SUM( B104:W104 ) + COUNTIF( B104:W104, "ng" ) -> 0 | AG104: Stijn Verdickt | AH104: 4
A105: Beirinckx Wout | X105: =SUM( B105:W105 ) + COUNTIF( B105:W105, "ng" ) -> 0 | AG105: Ive Celis | AH105: 3
A106: Boes Dieuwer | X106: 0
A107: Celis Ive | E107: 1 | P107: 1 | S107: 1 | X107: 3
A108: Coolsaet Joy | X108: 0
A109: De Clerck Tom | X109: 0
A110: De Groof Maarten | F110: 2 | X110: 2
A111: De Groof Steven | B111: 1 | G111: 1 | I111: 1 | Q111: 1 | S111: 1 | X111: 5
A112: De Swert Erlend | X112: 0
A113: De Vinster Glenn | L113: 1 | O113: 1 | Q113: 2 | R113: 1 | X113: =SUM( B113:W113 ) + COUNTIF( B113:W113, "ng" ) -> 5
A114: Elst Pieter | C114: 1 | X114: 1
A115: Gielis Bernd | X115: 0
A116: Gielis Wim | X116: 0
A117: Hofmans Stijn | B117: 1 | G117: 3 | J117: 1 | L117: 1 | M117: 3 | Q117: 1 | R117: 1 | X117: 11
A118: Langenaeker Maarten | F118: 1 | X118: 1
A119: Lenaerts Jordy | J119: 1 | X119: 1
A120: Op De Beeck Maarten | X120: 0
A121: Stevens Siebe | X121: 0
A122: Van de Vondel Rob | X122: 0
A123: Van Dessel Dieter | L123: 1 | X123: 1
A124: Verdickt Stijn | K124: 1 | L124: 1 | P124: 1 | Q124: 1 | X124: 4
A125: Verlooy Kaïn | E125: 1 | X125: 1
A126: Vermeylen Jason | X126: 0
A127: Wouters Wim | X127: 0
A128: Own-goals/ff-goals | X128: 0
A129: Beirinckx Geert | X129: 0
A151: In actie | B151: =SUM( B153:B180 ) -> 13 | C151: =SUM( C153:C180 ) -> 12 | D151: 12 | E151: 12 | F151: 13 | G151: 12 | H151: 10 | I151: 10 | J151: 13 | K151: 12 | L151: 12 | M151: 13 | N151: 12 | O151: 13 | P151: 13 | Q151: 13 | R151: 11 | S151: 12 | T151: 0 | U151: 0 | V151: 0 | W151: 0 | AG151: =_xlfn.LET( _xlpm.d, _xlfn.CHOOSECOLS( _xlfn.TAKE( _xlfn.SORTBY( A153:X180, X153:X180, -1 ), 5 ), 1, -1 ), _xlpm.f, _xlfn._xlws.FILTER( _xlpm.d, _xlfn.TAKE( _xlpm.d, , -1 ) > 0, "No data" ), _xlfn.HSTACK( _xlfn.XLOOKUP( _xlfn.TAKE( _xlpm.f, , 1 ), $DR$5:$DR$30, $DS$5:$DS$30 ), _xlfn.TAKE( _xlpm.f, , -1 )) ) -> Steven De Groof | AH151: 16
A152: =AVERAGEIF( B151:W151, ">0", B151:W151 ) -> 12.11111111 | AG152: Wout Beirinckx | AH152: 15
A153: =A5 -> Beirinckx Jurgen | L153: 1 | X153: =COUNTA( B153:W153 ) -> 1 | AG153: Maarten De Groof | AH153: 15
A154: Beirinckx Sven | X154: =COUNTA( B154:W154 ) -> 0 | AG154: Stijn Hofmans | AH154: 15
A155: Beirinckx Wout | B155: 1 | C155: 1 | D155: 1 | E155: 1 | F155: 1 | G155: 1 | H155: 1 | I155: k | J155: 1 | N155: 1 | O155: k | P155: k | Q155: k | R155: k | S155: k | X155: 15 | AG155: Maarten Langenaeker | AH155: 15
A156: Boes Dieuwer | B156: 1 | D156: 1 | F156: 1 | H156: 1 | I156: 1 | M156: 1 | O156: 1 | P156: 1 | Q156: 1 | R156: 1 | X156: 10
A157: Celis Ive | E157: 1 | F157: 1 | G157: 1 | H157: 1 | I157: 1 | K157: 1 | N157: 1 | O157: 1 | P157: 1 | Q157: 1 | R157: 1 | S157: 1 | X157: 12
A158: Coolsaet Joy | C158: 1 | E158: 1 | G158: 1 | H158: 1 | I158: 1 | J158: 1 | K158: 1 | L158: 1 | M158: 1 | N158: 1 | O158: 1 | P158: 1 | Q158: 1 | S158: 1 | X158: 14
A159: De Clerck Tom | X159: 0
A160: De Groof Maarten | B160: 1 | C160: 1 | D160: 1 | E160: 1 | F160: 1 | H160: 1 | I160: 1 | J160: 1 | K160: 1 | L160: 1 | M160: 1 | N160: 1 | O160: 1 | P160: 1 | Q160: 1 | X160: 15
A161: De Groof Steven | B161: 1 | C161: 1 | D161: 1 | E161: 1 | F161: 1 | G161: 1 | H161: 1 | I161: 1 | J161: 1 | K161: 1 | N161: 1 | O161: 1 | P161: 1 | Q161: 1 | R161: 1 | S161: 1 | X161: 16
A162: De Swert Erlend | B162: 1 | C162: 1 | D162: 1 | F162: 1 | G162: 1 | K162: 1 | L162: 1 | M162: 1 | O162: 1 | X162: 9
A163: De Vinster Glenn | I163: 1 | J163: 1 | K163: 1 | L163: 1 | M163: 1 | O163: 1 | P163: 1 | Q163: 1 | R163: 1 | S163: 1 | X163: 10
A164: Elst Pieter | B164: 1 | C164: 1 | D164: 1 | E164: 1 | F164: 1 | K164: 1 | M164: 1 | P164: 1 | Q164: 1 | R164: 1 | S164: 1 | X164: 11
A165: Gielis Bernd | B165: 1 | C165: 1 | D165: 1 | E165: 1 | G165: 1 | J165: 1 | K165: 1 | L165: 1 | P165: 1 | Q165: 1 | R165: 1 | S165: 1 | X165: 12
A166: Gielis Wim | B166: 1 | E166: 1 | F166: 1 | H166: 1 | I166: 1 | J166: 1 | L166: 1 | M166: 1 | N166: 1 | O166: 1 | P166: 1 | Q166: 1 | R166: 1 | S166: 1 | X166: 14
A167: Hofmans Stijn | B167: 1 | C167: 1 | D167: 1 | F167: 1 | G167: 1 | I167: 1 | J167: 1 | L167: 1 | M167: 1 | N167: 1 | O167: 1 | P167: 1 | Q167: 1 | R167: 1 | S167: 1 | X167: 15
A168: Langenaeker Maarten | B168: k | C168: k | D168: k | E168: k | F168: k | G168: k | H168: k | J168: k | K168: k | L168: k | M168: 1 | N168: 1 | O168: 1 | R168: 1 | S168: 1 | X168: 15
A169: Lenaerts Jordy | F169: 1 | H169: 1 | J169: 1 | K169: 1 | L169: 1 | M169: 1 | P169: 1 | X169: 7
A170: Op De Beeck Maarten | X170: 0
A171: Stevens Siebe | B171: 1 | X171: 1
A172: Van de Vondel Rob | B172: 1 | C172: 1 | D172: 1 | E172: 1 | F172: 1 | G172: 1 | H172: 1 | I172: 1 | J172: 1 | M172: 1 | N172: 1 | X172: 11
A173: Van Dessel Dieter | B173: 1 | D173: 1 | E173: 1 | F173: 1 | G173: 1 | H173: 1 | J173: 1 | K173: 1 | L173: 1 | M173: 1 | N173: 1 | O173: 1 | Q173: 1 | R173: 1 | S173: 1 | X173: 15
A174: Verdickt Stijn | C174: 1 | G174: 1 | J174: 1 | K174: 1 | L174: 1 | M174: 1 | N174: 1 | O174: 1 | P174: 1 | Q174: 1 | S174: 1 | X174: 11
A175: Verlooy Kaïn | C175: 1 | D175: 1 | E175: 1 | G175: 1 | I175: 1 | J175: 1 | K175: 1 | L175: 1 | N175: 1 | O175: 1 | P175: 1 | Q175: 1 | R175: 1 | S175: 1 | X175: 14
A176: Vermeylen Jason | B176: 1 | C176: 1 | D176: 1 | E176: 1 | F176: 1 | G176: 1 | X176: 6
A177: Wouters Wim | X177: 0
A178: Own-goals/ff-goals | X178: 0
A179: Beirinckx Geert | X179: 0
A201: Kaarten | B201: =COUNTIF( B203:B229, "geel" ) -> 0 | C201: 0 | D201: 2 | E201: 0 | F201: 0 | G201: 0 | H201: 0 | I201: 0 | J201: 0 | K201: 1 | L201: 0 | M201: 0 | N201: 1 | O201: 0 | P201: 3 | Q201: 1 | R201: 1 | S201: 2 | T201: 0 | U201: 0 | V201: 0 | W201: 0 | AG201: =_xlfn.LET( _xlpm.d, _xlfn.CHOOSECOLS( _xlfn.TAKE( _xlfn.SORTBY( A203:X230, X203:X230, -1 ), 5 ), 1, -1 ), _xlpm.f, _xlfn._xlws.FILTER( _xlpm.d, _xlfn.TAKE( _xlpm.d, , -1 ) > 0, "No data" ), _xlfn.HSTACK( _xlfn.XLOOKUP( _xlfn.TAKE( _xlpm.f, , 1 ), $DR$5:$DR$30, $DS$5:$DS$30 ), _xlfn.TAKE( _xlpm.f, , -1 )) ) -> Dieter Van Dessel | AH201: 3
A202: =SUM( B201:W202 ) -> 11 | B202: =COUNTIF( B203:B229, "rood" ) -> 0 | C202: 0 | D202: 0 | E202: 0 | F202: 0 | G202: 0 | H202: 0 | I202: 0 | J202: 0 | K202: 0 | L202: 0 | M202: 0 | N202: 0 | O202: 0 | P202: 0 | Q202: 0 | R202: 0 | S202: 0 | T202: 0 | U202: 0 | V202: 0 | W202: 0 | AG202: Ive Celis | AH202: 2
A203: =A5 -> Beirinckx Jurgen | X203: =COUNTIF( B203:W203, "<>" ) -> 0 | AG203: Joy Coolsaet | AH203: 1
A204: Beirinckx Sven | X204: =COUNTIF( B204:W204, "<>" ) -> 0 | AG204: Glenn De Vinster | AH204: 1
A205: Beirinckx Wout | X205: =COUNTIF( B205:W205, "<>" ) -> 0 | AG205: Maarten Langenaeker | AH205: 1
A206: Boes Dieuwer | X206: 0
A207: Celis Ive | N207: geel | P207: geel | X207: 2
A208: Coolsaet Joy | S208: geel | X208: 1
A209: De Clerck Tom | X209: 0
A210: De Groof Maarten | X210: 0
A211: De Groof Steven | X211: 0
A212: De Swert Erlend | X212: 0
A213: De Vinster Glenn | P213: geel | X213: =COUNTIF( B213:W213, "<>" ) -> 1
A214: Elst Pieter | X214: 0
A215: Gielis Bernd | X215: 0
A216: Gielis Wim | X216: 0
A217: Hofmans Stijn | X217: 0
A218: Langenaeker Maarten | R218: geel | X218: 1
A219: Lenaerts Jordy | X219: 0
A220: Op De Beeck Maarten | X220: 0
A221: Stevens Siebe | X221: 0
A222: Van de Vondel Rob | D222: geel | X222: 1
A223: Van Dessel Dieter | K223: geel | Q223: geel | S223: geel | X223: 3
A224: Verdickt Stijn | P224: geel | X224: 1
A225: Verlooy Kaïn | D225: geel | X225: 1
A226: Vermeylen Jason | X226: 0
A227: Wouters Wim | X227: 0
A228: Own-goals/ff-goals | X228: 0
A229: Beirinckx Geert | X229: 0
A251: MVDM | B251: =SUM( B253:B279 ) -> 75 | C251: 75 | D251: 70 | E251: 80 | F251: 110 | G251: 80 | H251: 65 | I251: 60 | J251: 70 | K251: 75 | L251: 80 | M251: 75 | N251: 65 | O251: 90 | P251: 75 | Q251: 80 | R251: 65 | S251: 85 | T251: 0 | U251: 0 | V251: 0 | W251: 0 | AG251: =_xlfn.LET( _xlpm.d, _xlfn.CHOOSECOLS( _xlfn.TAKE( _xlfn.SORTBY( A253:X280, X253:X280, -1 ), 5 ), 1, -1 ), _xlpm.f, _xlfn._xlws.FILTER( _xlpm.d, _xlfn.TAKE( _xlpm.d, , -1 ) > 0, "No data" ), _xlfn.HSTACK( _xlfn.XLOOKUP( _xlfn.TAKE( _xlpm.f, , 1 ), $DR$5:$DR$30, $DS$5:$DS$30 ), _xlfn.TAKE( _xlpm.f, , -1 )) ) -> Stijn Hofmans | AH251: 150
A252: =SUM( B251:W251 ) -> 1375 | AG252: Maarten De Groof | AH252: 141
A253: =A5 -> Beirinckx Jurgen | L253: 0 | O253: 1 | X253: =SUM( B253:W253 ) -> 1 | AG253: Kaïn Verlooy | AH253: 115
A254: Beirinckx Sven | X254: =SUM( B254:W254 ) -> 0 | AG254: Glenn De Vinster | AH254: 109
A255: Beirinckx Wout | B255: 0 | C255: 0 | D255: 2 | E255: 6 | F255: 2 | G255: 1 | H255: 5 | I255: 11 | J255: 1 | N255: 4 | O255: 12 | P255: 3 | Q255: 11 | R255: 3 | S255: 5 | X255: =SUM( B255:W255 ) -> 66 | AG255: Steven De Groof | AH255: 106
A256: Boes Dieuwer | B256: 0 | D256: 0 | F256: 0 | H256: 1 | I256: 2 | M256: 2 | O256: 7 | P256: 1 | Q256: 0 | R256: 1 | X256: 14
A257: Celis Ive | E257: 7 | F257: 13 | G257: 7 | H257: 10 | I257: 4 | K257: 9 | N257: 6 | O257: 17 | P257: 14 | Q257: 4 | R257: 2 | S257: 10 | X257: 103
A258: Coolsaet Joy | C258: 4 | E258: 0 | G258: 0 | H258: 8 | I258: 2 | J258: 3 | K258: 13 | L258: 6 | M258: 9 | N258: 3 | O258: 3 | P258: 0 | Q258: 0 | S258: 0 | X258: 51
A259: De Clerck Tom | X259: 0
A260: De Groof Maarten | B260: 5 | C260: 8 | D260: 14 | E260: 15 | F260: 14 | H260: 8 | I260: 5 | J260: 6 | K260: 7 | L260: 4 | M260: 5 | N260: 10 | O260: 16 | P260: 13 | Q260: 11 | X260: 141
A261: De Groof Steven | B261: 18 | C261: 6 | D261: 8 | E261: 0 | F261: 4 | G261: 2 | H261: 3 | I261: 7 | J261: 0 | K261: 8 | N261: 11 | O261: 4 | P261: 8 | Q261: 12 | R261: 8 | S261: 7 | X261: 106
A262: De Swert Erlend | B262: 0 | C262: 1 | D262: 1 | F262: 0 | G262: 0 | K262: 2 | L262: 1 | M262: 2 | O262: 4 | X262: 11
A263: De Vinster Glenn | I263: 11 | J263: 13 | K263: 7 | L263: 19 | M263: 17 | O263: 4 | P263: 5 | Q263: 14 | R263: 6 | S263: 13 | X263: =SUM( B263:W263 ) -> 109
A264: Elst Pieter | C264: 6 | D264: 3 | E264: 13 | F264: 3 | K264: 1 | M264: 4 | P264: 4 | Q264: 4 | R264: 10 | S264: 11 | X264: 59
A265: Gielis Bernd | B265: 12 | C265: 4 | D265: 2 | E265: 4 | G265: 7 | J265: 4 | K265: 5 | L265: 4 | P265: 6 | Q265: 7 | R265: 8 | S265: 10 | X265: 73
A266: Gielis Wim | B266: 0 | E266: 1 | F266: 0 | H266: 1 | I266: 1 | J266: 2 | L266: 6 | M266: 1 | N266: 3 | O266: 0 | P266: 0 | Q266: 0 | R266: 0 | S266: 0 | X266: 15
A267: Hofmans Stijn | B267: 10 | C267: 13 | D267: 5 | F267: 32 | G267: 15 | I267: 9 | J267: 5 | L267: 7 | M267: 17 | N267: 1 | O267: 3 | P267: 9 | Q267: 10 | R267: 7 | S267: 7 | X267: 150
A268: Langenaeker Maarten | B268: 1 | C268: 7 | D268: 3 | E268: 5 | F268: 25 | G268: 10 | H268: 8 | J268: 14 | K268: 3 | L268: 6 | M268: 4 | N268: 6 | O268: 5 | R268: 3 | S268: 6 | X268: 106
A269: Lenaerts Jordy | F269: 0 | H269: 9 | J269: 3 | K269: 3 | L269: 2 | M269: 0 | P269: 0 | X269: 17
A270: Op De Beeck Maarten | X270: 0
A271: Stevens Siebe | B271: 1 | X271: 1
A272: Van de Vondel Rob | B272: 16 | C272: 6 | D272: 5 | E272: 4 | F272: 11 | G272: 3 | H272: 6 | I272: 5 | J272: 11 | M272: 4 | N272: 5 | S272: 1 | X272: 77
A273: Van Dessel Dieter | B273: 7 | D273: 5 | E273: 2 | F273: 1 | G273: 6 | H273: 6 | J273: 2 | K273: 8 | L273: 5 | M273: 8 | N273: 3 | O273: 1 | Q273: 1 | R273: 6 | S273: 4 | X273: 65
A274: Verdickt Stijn | C274: 2 | G274: 1 | J274: 0 | K274: 4 | L274: 9 | M274: 2 | N274: 9 | O274: 0 | P274: 4 | Q274: 1 | S274: 0 | X274: 32
A275: Verlooy Kaïn | B275: 4 | C275: 7 | D275: 13 | E275: 8 | G275: 6 | I275: 3 | J275: 6 | K275: 5 | L275: 11 | N275: 4 | O275: 13 | P275: 8 | Q275: 5 | R275: 11 | S275: 11 | X275: 115
A276: Vermeylen Jason | B276: 1 | C276: 10 | D276: 9 | E276: 15 | F276: 5 | G276: 22 | X276: 62
A277: Wouters Wim | X277: 0
A278: Own-goals/ff-goals | X278: 0
A279: Beirinckx Geert | C279: 1 | X279: 1
A301: MVDM - herwogen | B301: =SUM( B303:B330 ) -> 100 | C301: =SUM( C303:C330 ) -> 100 | D301: 100 | E301: 100 | F301: 100 | G301: 100 | H301: 100 | I301: 100 | J301: 100 | K301: 100 | L301: 100 | M301: 100 | N301: 100 | O301: 100 | P301: 100 | Q301: 100 | R301: 100 | S301: 100 | T301: 0 | U301: 0 | V301: 0 | W301: 0 | AG301: =_xlfn.LET( _xlpm.d, _xlfn.CHOOSECOLS( _xlfn.TAKE( _xlfn.SORTBY( A303:X330, X303:X330, -1 ), 5 ), 1, -1 ), _xlpm.f, _xlfn._xlws.FILTER( _xlpm.d, _xlfn.TAKE( _xlpm.d, , -1 ) > 0, "No data" ), _xlfn.HSTACK( _xlfn.XLOOKUP( _xlfn.TAKE( _xlpm.f, , 1 ), $DR$5:$DR$30, $DS$5:$DS$30 ), _xlfn.TAKE( _xlpm.f, , -1 )) ) -> Stijn Hofmans | AH301: 187.5862765
A302: =SUM( B301:W301 ) -> 1800 | AG302: Maarten De Groof | AH302: 183.2687868
A303: =A5 -> Beirinckx Jurgen | L303: 0 | O303: 1.111111111 | X303: =SUM( B303:W303 ) -> 1.111111111 | AG303: Kaïn Verlooy | AH303: 152.1054011
A304: Beirinckx Sven | X304: =SUM( B304:W304 ) -> 0 | AG304: Glenn De Vinster | AH304: 145.7907599
A305: Beirinckx Wout | B305: 0 | C305: 0 | D305: 2.857142857 | E305: 7.5 | F305: 1.818181818 | G305: 1.25 | H305: 7.692307692 | I305: 18.33333333 | J305: 1.428571429 | N305: 6.153846154 | O305: 13.33333333 | P305: 4 | Q305: 13.75 | R305: 4.615384615 | S305: 5.882352941 | X305: =SUM( B305:W305 ) -> 88.61445417 | AG305: Steven De Groof | AH305: 144.0908275
... 24 more rows

Sheet Topschutters
A1: =_xlfn.SORTBY( _xlfn._xlws.FILTER( spelersstatistieken!A5:A29, spelersstatistieken!X5:X29 > 0 ), _xlfn._xlws.FILTER( spelersstatistieken!X5:X29, spelersstatistieken!X5:X29 > 0 ), -1 ) -> Hofmans Stijn | B1: =INDEX( spelersstatistieken!X5:X29,_xlfn.ANCHORARRAY( D1) ) -> 12 | C1: =_xlfn.TEXTJOIN( ", ", TRUE, IF( ISNUMBER( INDEX( spelersstatistieken!$B$5:$W$30, D1, 0 )), spelersstatistieken!$B$1:$W$1 & " (" & INDEX( spelersstatistieken!$B$5:$W$30, D1, 0 ) & ")", "" )) -> Pouma United (U) (1), Paradeske (T) (1), De Vrede (U) (1), Racing Emblem (U) (1), Jolika (T) (1), Goka (U) (1), Hombeek (T) (1), Antverpia 98 (U) (1), Pouma United (T) (1), Paradeske (U) (1), Bariton (U) (1), Racing Emblem (T) (1), De Vrede (T) (1), Jolika (U) (1), Boerenbond (T) (1) | D1: =MATCH(_xlfn.ANCHORARRAY( A1), spelersstatistieken!$A$5:$A$29, 0 ) -> 15
A2: De Vinster Glenn | B2: 11 | C2: =_xlfn.TEXTJOIN( ", ", TRUE, IF( ISNUMBER( INDEX( spelersstatistieken!$B$5:$W$30, D2, 0 )), spelersstatistieken!$B$1:$W$1 & " (" & INDEX( spelersstatistieken!$B$5:$W$30, D2, 0 ) & ")", "" )) -> Goka (U) (1), Hombeek (T) (1), Hoje (U) (1), Antverpia 98 (U) (1), Pouma United (T) (1), Bariton (U) (1), Racing Emblem (T) (1), De Vrede (T) (1), Jolika (U) (1), Boerenbond (T) (1) | D2: 11
A3: De Groof Maarten | B3: 6 | C3: =_xlfn.TEXTJOIN( ", ", TRUE, IF( ISNUMBER( INDEX( spelersstatistieken!$B$5:$W$30, D3, 0 )), spelersstatistieken!$B$1:$W$1 & " (" & INDEX( spelersstatistieken!$B$5:$W$30, D3, 0 ) & ")", "" )) -> Pouma United (U) (1), Paradeske (T) (1), De Vrede (U) (1), Bariton (T) (1), Racing Emblem (U) (1), Boerenbond (U) (1), Goka (U) (1), Hombeek (T) (1), Hoje (U) (1), Antverpia 98 (U) (1), Pouma United (T) (1), Paradeske (U) (1), Bariton (U) (1), Racing Emblem (T) (1), De Vrede (T) (1) | D3: 8
A4: Vermeylen Jason | B4: 6 | C4: =_xlfn.TEXTJOIN( ", ", TRUE, IF( ISNUMBER( INDEX( spelersstatistieken!$B$5:$W$30, D4, 0 )), spelersstatistieken!$B$1:$W$1 & " (" & INDEX( spelersstatistieken!$B$5:$W$30, D4, 0 ) & ")", "" )) -> Pouma United (U) (1), Paradeske (T) (1), De Vrede (U) (1), Bariton (T) (1), Racing Emblem (U) (1), Jolika (T) (1) | D4: 24
A5: De Groof Steven | B5: 4 | C5: =_xlfn.TEXTJOIN( ", ", TRUE, IF( ISNUMBER( INDEX( spelersstatistieken!$B$5:$W$30, D5, 0 )), spelersstatistieken!$B$1:$W$1 & " (" & INDEX( spelersstatistieken!$B$5:$W$30, D5, 0 ) & ")", "" )) -> Pouma United (U) (1), Paradeske (T) (1), De Vrede (U) (1), Bariton (T) (1), Racing Emblem (U) (1), Jolika (T) (1), Boerenbond (U) (1), Goka (U) (1), Hombeek (T) (1), Hoje (U) (1), Paradeske (U) (1), Bariton (U) (1), Racing Emblem (T) (1), De Vrede (T) (1), Jolika (U) (1), Boerenbond (T) (1) | D5: 9
A6: Van de Vondel Rob | B6: 2 | D6: 20
A7: Van Dessel Dieter | B7: 2 | D7: 21
A8: Gielis Wim | B8: 1 | D8: 14
A9: Verdickt Stijn | B9: 1 | D9: 22

Sheet Stats (hidden)
B1: Albatros Paradeske
B2: Aanwezigheden | C2: Goals | D2: Assists
A3: Van de Vondel Rob | B3: 1
A4: Stevens Siebe | B4: 1 | C4: 2
A5: Langenaeker Maarten | B5: 1
A6: De Groof Steven | B6: 1
A7: De Groof Maarten | B7: 1
A8: Hofmans Stijn | B8: 1 | C8: 2
A9: Van Dessel Dieter | B9: 1
A10: Celis Ive | B10: 1 | D10: 2
A11: Verlooy Kaïn
A12: Beirinckx Wout | B12: 1 | C12: 1
A13: De Swert Erlend | B13: 1
A14: Elst Pieter
A15: Verdickt Stijn | B15: 1
A16: Gielis Bernd | B16: 1
A17: Coolsaet Joy
A18: Boes Dieuwer | B18: 1
A19: Beirinckx Jurgen | B19: ng
